Workbook

Sheet Planilha Orçamentária
A1: Ministério da Integração e do Desenvolvimento Regional
A2: Companhia de desenvolvimento dos Vales do São Francisco e do Parnaíba
A3: PLANILHA ORÇAMENTÁRIA - ORÇAMENTO NÃO DESONERADO
A4: OBRA: | B4: =UPPER("SERVIÇOS DE MANUTENÇÃO E OBRAS CIVIS NA BARRAGEM RIACHO DA PORTA") -> SERVIÇOS DE MANUTENÇÃO E OBRAS CIVIS NA BARRAGEM RIACHO DA PORTA | F4: BDI (serv.): | H4: ='BDI serv'!D22 -> 0.2388 | I4: Bancos
A5: LOCAL: | B5: BARRAGEM RIACHO DA PORTA, BELÉM DO SÃO FRANCISCO/PE | F5: BDI (forn.): | H5: ='BDI forn'!E6 -> 0.147 | I5: 04/2024 - SINAPI/PE
A6: DATA BASE: | B6: maio, 2024 | E6: Encargos sociais Horistas: | H6: ='Encargos Sociais'!E47 -> 1.1398 | I6: 01/2024 - SICRO/PE
A7: PRAZO: | B7: 120 DIAS | E7: Encargos sociais - Mensalista: | H7: ='Encargos Sociais'!F47 -> 0.7
A8: ITEM | B8: REFERÊNCIA | D8: DESCRIÇÃO | E8: UNID. | F8: QUANT. | G8: CUSTO UNITÁRIO | H8: PREÇO UNITÁRIO | I8: PREÇO TOTAL | J8: TIPO de BDI | K8: CLASSIF
B9: FONTE | C9: CÓDIGO | L9: S | M9: A
A10: 1 | D10: ADMINISTRAÇÃO DA OBRA | I10: =SUM(I11:I11) -> 143206.9648 | K10: ss | L10: COMENTÁRIOS
A11: 1.1 | B11: PRÓPRIA | C11: CPU.01 | D11: Administração Local | E11: mês | F11: =VLOOKUP(A11,'Memorial de cálculo'!A11:H516,8,0) -> 4 | G11: =SUMIFS(CPU!$H:$H,CPU!$B:$B,'Planilha Orçamentária'!$A11,CPU!$I:$I,"ss")+SUMIFS(CPU!$H:$H,CPU!$B:$B,'Planilha Orçamentária'!$A11,CPU!$I:$I,"mdo")+SUMIF('Comp SINAPI PE 04-2024 Onerado'!G:G,'Planilha Orçamentária'!C11,'Comp SINAPI PE 04-2024 Onerado'!K:K)+SUMIF('Ins SINAPI PE 04-2024 Onerado'!A:A,'Planilha Orçamentária'!C11,'Ins SINAPI PE 04-2024 Onerado'!E:E) -> 28900.34 | H11: =IF(J11="SERV",G11*(1+$H$4),G11*(1+$H$5)) -> 35801.74119 | I11: =IF(J11="SERV",G11*F11*(1+$H$4),G11*F11*(1+$H$5)) -> 143206.9648 | J11: serv | K11: s
A13: 2 | D13: SERVIÇOS PRELIMINARES | I13: =SUM(I14:I16) -> 37971.89581 | K13: ss
A14: 2.1 | B14: PRÓPRIA | C14: CPU.02 | D14: Mobilização e desmobilização de instalação do canteiro | E14: un | F14: =VLOOKUP(A14,'Memorial de cálculo'!A17:H521,8,0) -> 1 | G14: =SUMIFS(CPU!$H:$H,CPU!$B:$B,'Planilha Orçamentária'!$A14,CPU!$I:$I,"ss")+SUMIFS(CPU!$H:$H,CPU!$B:$B,'Planilha Orçamentária'!$A14,CPU!$I:$I,"mdo")+SUMIF('Comp SINAPI PE 04-2024 Onerado'!G:G,'Planilha Orçamentária'!C14,'Comp SINAPI PE 04-2024 Onerado'!K:K)+SUMIF('Ins SINAPI PE 04-2024 Onerado'!A:A,'Planilha Orçamentária'!C14,'Ins SINAPI PE 04-2024 Onerado'!E:E) -> 8382.06 | H14: =IF(J14="SERV",G14*(1+$H$4),G14*(1+$H$5)) -> 10383.69593 | I14: =IF(J14="SERV",G14*F14*(1+$H$4),G14*F14*(1+$H$5)) -> 10383.69593 | J14: serv | K14: s
A15: 2.2 | B15: PRÓPRIA | C15: CPU.03 | D15: Canteiro de obras | E15: m² | F15: =VLOOKUP(A15,'Memorial de cálculo'!A29:H435,8,0) -> 28.5 | G15: =SUMIFS(CPU!$H:$H,CPU!$B:$B,'Planilha Orçamentária'!$A15,CPU!$I:$I,"ss")+SUMIFS(CPU!$H:$H,CPU!$B:$B,'Planilha Orçamentária'!$A15,CPU!$I:$I,"mdo")+SUMIF('Comp SINAPI PE 04-2024 Onerado'!G:G,'Planilha Orçamentária'!C15,'Comp SINAPI PE 04-2024 Onerado'!K:K)+SUMIF('Ins SINAPI PE 04-2024 Onerado'!A:A,'Planilha Orçamentária'!C15,'Ins SINAPI PE 04-2024 Onerado'!E:E) -> 746.6 | H15: =IF(J15="SERV",G15*(1+$H$4),G15*(1+$H$5)) -> 924.88808 | I15: =IF(J15="SERV",G15*F15*(1+$H$4),G15*F15*(1+$H$5)) -> 26359.31028 | J15: serv | K15: s
A16: 2.3 | B16: PRÓPRIA | C16: CPU.04 | D16: Placa de obra em chapa de aço galvanizado | E16: m² | F16: =VLOOKUP(A16,'Memorial de cálculo'!A29:H436,8,0) -> 2 | G16: =SUMIFS(CPU!$H:$H,CPU!$B:$B,'Planilha Orçamentária'!$A16,CPU!$I:$I,"ss")+SUMIFS(CPU!$H:$H,CPU!$B:$B,'Planilha Orçamentária'!$A16,CPU!$I:$I,"mdo")+SUMIF('Comp SINAPI PE 04-2024 Onerado'!G:G,'Planilha Orçamentária'!C16,'Comp SINAPI PE 04-2024 Onerado'!K:K)+SUMIF('Ins SINAPI PE 04-2024 Onerado'!A:A,'Planilha Orçamentária'!C16,'Ins SINAPI PE 04-2024 Onerado'!E:E) -> 496 | H16: =IF(J16="SERV",G16*(1+$H$4),G16*(1+$H$5)) -> 614.4448 | I16: =IF(J16="SERV",G16*F16*(1+$H$4),G16*F16*(1+$H$5)) -> 1228.8896 | J16: serv | K16: s
A18: 3 | D18: CORTE DA VEGETAÇÃO E REMOÇÃO DAS RAIZES | I18: =SUM(I19:I21) -> 279291.6719 | K18: ss
A19: 3.1 | B19: PRÓPRIA | C19: CPU.05 | D19: Limpeza de Vegetação | E19: m² | F19: =VLOOKUP(A19,'Memorial de cálculo'!$A$10:$H$536,8,0) -> 28370 | G19: =SUMIFS(CPU!$H:$H,CPU!$B:$B,'Planilha Orçamentária'!$A19,CPU!$I:$I,"ss")+SUMIFS(CPU!$H:$H,CPU!$B:$B,'Planilha Orçamentária'!$A19,CPU!$I:$I,"mdo")+SUMIF('Comp SINAPI PE 04-2024 Onerado'!G:G,'Planilha Orçamentária'!C19,'Comp SINAPI PE 04-2024 Onerado'!K:K)+SUMIF('Ins SINAPI PE 04-2024 Onerado'!A:A,'Planilha Orçamentária'!C19,'Ins SINAPI PE 04-2024 Onerado'!E:E) -> 7.32 | H19: =IF(J19="SERV",G19*(1+$H$4),G19*(1+$H$5)) -> 9.068016 | I19: =IF(J19="SERV",G19*F19*(1+$H$4),G19*F19*(1+$H$5)) -> 257259.6139 | J19: serv | K19: s
A20: 3.2 | B20: PRÓPRIA | C20: CPU.06 | D20: Corte raso de árvores | E20: un | F20: =VLOOKUP(A20,'Memorial de cálculo'!$A$10:$H$536,8,0) -> 50 | G20: =SUMIFS(CPU!$H:$H,CPU!$B:$B,'Planilha Orçamentária'!$A20,CPU!$I:$I,"ss")+SUMIFS(CPU!$H:$H,CPU!$B:$B,'Planilha Orçamentária'!$A20,CPU!$I:$I,"mdo")+SUMIF('Comp SINAPI PE 04-2024 Onerado'!G:G,'Planilha Orçamentária'!C20,'Comp SINAPI PE 04-2024 Onerado'!K:K)+SUMIF('Ins SINAPI PE 04-2024 Onerado'!A:A,'Planilha Orçamentária'!C20,'Ins SINAPI PE 04-2024 Onerado'!E:E) -> 174.35 | H20: =IF(J20="SERV",G20*(1+$H$4),G20*(1+$H$5)) -> 215.98478 | I20: =IF(J20="SERV",G20*F20*(1+$H$4),G20*F20*(1+$H$5)) -> 10799.239 | J20: serv | K20: s
A21: 3.3 | B21: PRÓPRIA | C21: CPU.07 | D21: Remoção de raízes | E21: un | F21: =VLOOKUP(A21,'Memorial de cálculo'!$A$10:$H$536,8,0) -> 50 | G21: =SUMIFS(CPU!$H:$H,CPU!$B:$B,'Planilha Orçamentária'!$A21,CPU!$I:$I,"ss")+SUMIFS(CPU!$H:$H,CPU!$B:$B,'Planilha Orçamentária'!$A21,CPU!$I:$I,"mdo")+SUMIF('Comp SINAPI PE 04-2024 Onerado'!G:G,'Planilha Orçamentária'!C21,'Comp SINAPI PE 04-2024 Onerado'!K:K)+SUMIF('Ins SINAPI PE 04-2024 Onerado'!A:A,'Planilha Orçamentária'!C21,'Ins SINAPI PE 04-2024 Onerado'!E:E) -> 181.35 | H21: =IF(J21="SERV",G21*(1+$H$4),G21*(1+$H$5)) -> 224.65638 | I21: =IF(J21="SERV",G21*F21*(1+$H$4),G21*F21*(1+$H$5)) -> 11232.819 | J21: serv | K21: s
A23: 4 | D23: RECUPERAÇÃO DO COROAMENTO | I23: =I24 -> 1012.024281 | K23: ss
A24: 4.1 | B24: PROPRIA | C24: CPU.08 | D24: Solo Melhorado com cimento | E24: M3 | F24: =VLOOKUP(A24,'Memorial de cálculo'!A4:H537,8,0) -> 2.09 | G24: =SUMIFS(CPU!$H:$H,CPU!$B:$B,'Planilha Orçamentária'!$A24,CPU!$I:$I,"ss")+SUMIFS(CPU!$H:$H,CPU!$B:$B,'Planilha Orçamentária'!$A24,CPU!$I:$I,"mdo")+SUMIF('Comp SINAPI PE 04-2024 Onerado'!G:G,'Planilha Orçamentária'!C24,'Comp SINAPI PE 04-2024 Onerado'!K:K)+SUMIF('Ins SINAPI PE 04-2024 Onerado'!A:A,'Planilha Orçamentária'!C24,'Ins SINAPI PE 04-2024 Onerado'!E:E) -> 390.88 | H24: =IF(J24="SERV",G24*(1+$H$4),G24*(1+$H$5)) -> 484.222144 | I24: =IF(J24="SERV",G24*F24*(1+$H$4),G24*F24*(1+$H$5)) -> 1012.024281 | J24: serv | K24: s
A26: 5 | D26: RECUPERAÇÃO DE EROSÃO TALUDES MONTANTE E JUSANTE | I26: =I27 -> 181724.5272 | K26: ss
A27: 5.1 | B27: PROPRIA | C27: CPU.09 | D27: Aterro de valas | E27: M3 | F27: =VLOOKUP(A27,'Memorial de cálculo'!A7:H540,8,0) -> 920 | G27: =SUMIFS(CPU!$H:$H,CPU!$B:$B,'Planilha Orçamentária'!$A27,CPU!$I:$I,"ss")+SUMIFS(CPU!$H:$H,CPU!$B:$B,'Planilha Orçamentária'!$A27,CPU!$I:$I,"mdo")+SUMIF('Comp SINAPI PE 04-2024 Onerado'!G:G,'Planilha Orçamentária'!C27,'Comp SINAPI PE 04-2024 Onerado'!K:K)+SUMIF('Ins SINAPI PE 04-2024 Onerado'!A:A,'Planilha Orçamentária'!C27,'Ins SINAPI PE 04-2024 Onerado'!E:E) -> 159.45 | H27: =IF(J27="SERV",G27*(1+$H$4),G27*(1+$H$5)) -> 197.52666 | I27: =IF(J27="SERV",G27*F27*(1+$H$4),G27*F27*(1+$H$5)) -> 181724.5272 | J27: serv | K27: s
A29: 6 | D29: REGULARIZAÇÃO E PAVIMENTAÇÃO DA CRISTA | I29: =SUM(I30:I33) -> 203809.1599 | K29: ss
A30: 6.1 | B30: PROPRIA | C30: CPU.10 | D30: Remoção de guias pré-fabricadas com reaproveitamento | E30: M | F30: =VLOOKUP(A30,'Memorial de cálculo'!A9:H542,8,0) -> 516 | G30: =SUMIFS(CPU!$H:$H,CPU!$B:$B,'Planilha Orçamentária'!$A30,CPU!$I:$I,"ss")+SUMIFS(CPU!$H:$H,CPU!$B:$B,'Planilha Orçamentária'!$A30,CPU!$I:$I,"mdo")+SUMIF('Comp SINAPI PE 04-2024 Onerado'!G:G,'Planilha Orçamentária'!C30,'Comp SINAPI PE 04-2024 Onerado'!K:K)+SUMIF('Ins SINAPI PE 04-2024 Onerado'!A:A,'Planilha Orçamentária'!C30,'Ins SINAPI PE 04-2024 Onerado'!E:E) -> 41.54 | H30: =IF(J30="SERV",G30*(1+$H$4),G30*(1+$H$5)) -> 51.459752 | I30: =IF(J30="SERV",G30*F30*(1+$H$4),G30*F30*(1+$H$5)) -> 26553.23203 | J30: serv | K30: s
A31: 6.2 | B31: PROPRIA | C31: CPU.11 | D31: Regularização e compactação da crista | E31: M2 | F31: =VLOOKUP(A31,'Memorial de cálculo'!A10:H543,8,0) -> 3870 | G31: =SUMIFS(CPU!$H:$H,CPU!$B:$B,'Planilha Orçamentária'!$A31,CPU!$I:$I,"ss")+SUMIFS(CPU!$H:$H,CPU!$B:$B,'Planilha Orçamentária'!$A31,CPU!$I:$I,"mdo")+SUMIF('Comp SINAPI PE 04-2024 Onerado'!G:G,'Planilha Orçamentária'!C31,'Comp SINAPI PE 04-2024 Onerado'!K:K)+SUMIF('Ins SINAPI PE 04-2024 Onerado'!A:A,'Planilha Orçamentária'!C31,'Ins SINAPI PE 04-2024 Onerado'!E:E) -> 3.48 | H31: =IF(J31="SERV",G31*(1+$H$4),G31*(1+$H$5)) -> 4.311024 | I31: =IF(J31="SERV",G31*F31*(1+$H$4),G31*F31*(1+$H$5)) -> 16683.66288 | J31: serv | K31: s
A32: 6.3 | B32: PROPRIA | C32: CPU.12 | D32: Drenagem | E32: M | F32: =VLOOKUP(A32,'Memorial de cálculo'!A61:H545,8,0) -> 172 | G32: =SUMIFS(CPU!$H:$H,CPU!$B:$B,'Planilha Orçamentária'!$A32,CPU!$I:$I,"ss")+SUMIFS(CPU!$H:$H,CPU!$B:$B,'Planilha Orçamentária'!$A32,CPU!$I:$I,"mdo")+SUMIF('Comp SINAPI PE 04-2024 Onerado'!G:G,'Planilha Orçamentária'!C32,'Comp SINAPI PE 04-2024 Onerado'!K:K)+SUMIF('Ins SINAPI PE 04-2024 Onerado'!A:A,'Planilha Orçamentária'!C32,'Ins SINAPI PE 04-2024 Onerado'!E:E) -> 53.67 | H32: =IF(J32="SERV",G32*(1+$H$4),G32*(1+$H$5)) -> 66.486396 | I32: =IF(J32="SERV",G32*F32*(1+$H$4),G32*F32*(1+$H$5)) -> 11435.66011 | J32: serv | K32: s
A33: 6.4 | B33: PROPRIA | C33: CPU.13 | D33: Revestimento com BGTC | E33: M3 | F33: =VLOOKUP(A33,'Memorial de cálculo'!A62:H546,8,0) -> 387 | G33: =SUMIFS(CPU!$H:$H,CPU!$B:$B,'Planilha Orçamentária'!$A33,CPU!$I:$I,"ss")+SUMIFS(CPU!$H:$H,CPU!$B:$B,'Planilha Orçamentária'!$A33,CPU!$I:$I,"mdo")+SUMIF('Comp SINAPI PE 04-2024 Onerado'!G:G,'Planilha Orçamentária'!C33,'Comp SINAPI PE 04-2024 Onerado'!K:K)+SUMIF('Ins SINAPI PE 04-2024 Onerado'!A:A,'Planilha Orçamentária'!C33,'Ins SINAPI PE 04-2024 Onerado'!E:E) -> 311.08 | H33: =IF(J33="SERV",G33*(1+$H$4),G33*(1+$H$5)) -> 385.365904 | I33: =IF(J33="SERV",G33*F33*(1+$H$4),G33*F33*(1+$H$5)) -> 149136.6048 | J33: serv | K33: s
A35: 7 | D35: =UPPER("Manutenção no talude de montante") -> MANUTENÇÃO NO TALUDE DE MONTANTE | I35: =I36 -> 489774.8172 | K35: ss
A36: 7.1 | B36: PROPRIA | C36: CPU.14 | D36: Enrocamento c/ pedra de mão para proteção do talude | E36: m³ | F36: =VLOOKUP(A36,'Memorial de cálculo'!A133:H565,8,0) -> 970 | G36: =SUMIFS(CPU!$H:$H,CPU!$B:$B,'Planilha Orçamentária'!$A36,CPU!$I:$I,"ss")+SUMIFS(CPU!$H:$H,CPU!$B:$B,'Planilha Orçamentária'!$A36,CPU!$I:$I,"mdo")+SUMIF('Comp SINAPI PE 04-2024 Onerado'!G:G,'Planilha Orçamentária'!C36,'Comp SINAPI PE 04-2024 Onerado'!K:K)+SUMIF('Ins SINAPI PE 04-2024 Onerado'!A:A,'Planilha Orçamentária'!C36,'Ins SINAPI PE 04-2024 Onerado'!E:E) -> 407.59 | H36: =IF(J36="SERV",G36*(1+$H$4),G36*(1+$H$5)) -> 504.922492 | I36: =IF(J36="SERV",G36*F36*(1+$H$4),G36*F36*(1+$H$5)) -> 489774.8172 | J36: serv | K36: s
A38: 8 | D38: =UPPER("Drenagem superficial do talude jusante") -> DRENAGEM SUPERFICIAL DO TALUDE JUSANTE | I38: =I39+I40 -> 10698.90859 | K38: ss
A39: 8.1 | B39: PROPRIA | C39: CPU.15 | D39: Canaleta para descida d'água | E39: M | F39: =VLOOKUP(A39,'Memorial de cálculo'!A196:H573,8,0) -> 102 | G39: =SUMIFS(CPU!$H:$H,CPU!$B:$B,'Planilha Orçamentária'!$A39,CPU!$I:$I,"ss")+SUMIFS(CPU!$H:$H,CPU!$B:$B,'Planilha Orçamentária'!$A39,CPU!$I:$I,"mdo")+SUMIF('Comp SINAPI PE 04-2024 Onerado'!G:G,'Planilha Orçamentária'!C39,'Comp SINAPI PE 04-2024 Onerado'!K:K)+SUMIF('Ins SINAPI PE 04-2024 Onerado'!A:A,'Planilha Orçamentária'!C39,'Ins SINAPI PE 04-2024 Onerado'!E:E) -> 69.33 | H39: =IF(J39="SERV",G39*(1+$H$4),G39*(1+$H$5)) -> 85.886004 | I39: =IF(J39="SERV",G39*F39*(1+$H$4),G39*F39*(1+$H$5)) -> 8760.372408 | J39: serv | K39: S
A40: 8.2 | B40: PROPRIA | C40: CPU.16 | D40: Entrada para descida d'água | E40: UN | F40: =VLOOKUP(A40,'Memorial de cálculo'!A212:H574,8,0) -> 17 | G40: =SUMIFS(CPU!$H:$H,CPU!$B:$B,'Planilha Orçamentária'!$A40,CPU!$I:$I,"ss")+SUMIFS(CPU!$H:$H,CPU!$B:$B,'Planilha Orçamentária'!$A40,CPU!$I:$I,"mdo")+SUMIF('Comp SINAPI PE 04-2024 Onerado'!G:G,'Planilha Orçamentária'!C40,'Comp SINAPI PE 04-2024 Onerado'!K:K)+SUMIF('Ins SINAPI PE 04-2024 Onerado'!A:A,'Planilha Orçamentária'!C40,'Ins SINAPI PE 04-2024 Onerado'!E:E) -> 92.05 | H40: =IF(J40="SERV",G40*(1+$H$4),G40*(1+$H$5)) -> 114.03154 | I40: =IF(J40="SERV",G40*F40*(1+$H$4),G40*F40*(1+$H$5)) -> 1938.53618 | J40: serv | K40: s
A42: 9 | D42: =UPPER("Proteção superficial do talude de jusante") -> PROTEÇÃO SUPERFICIAL DO TALUDE DE JUSANTE | I42: =I43+I44 -> 278599.926 | K42: ss
A43: 9.1 | B43: PROPRIA | C43: CPU.17 | D43: Aplicação de Adubo | E43: M2 | F43: =VLOOKUP(A43,'Memorial de cálculo'!A215:H577,8,0) -> 8700 | G43: =SUMIFS(CPU!$H:$H,CPU!$B:$B,'Planilha Orçamentária'!$A43,CPU!$I:$I,"ss")+SUMIFS(CPU!$H:$H,CPU!$B:$B,'Planilha Orçamentária'!$A43,CPU!$I:$I,"mdo")+SUMIF('Comp SINAPI PE 04-2024 Onerado'!G:G,'Planilha Orçamentária'!C43,'Comp SINAPI PE 04-2024 Onerado'!K:K)+SUMIF('Ins SINAPI PE 04-2024 Onerado'!A:A,'Planilha Orçamentária'!C43,'Ins SINAPI PE 04-2024 Onerado'!E:E) -> 5.15 | H43: =IF(J43="SERV",G43*(1+$H$4),G43*(1+$H$5)) -> 6.37982 | I43: =IF(J43="SERV",G43*F43*(1+$H$4),G43*F43*(1+$H$5)) -> 55504.434 | J43: serv | K43: s
A44: 9.2 | B44: PROPRIA | C44: CPU.18 | D44: Plantio de Grama | E44: M2 | F44: =VLOOKUP(A44,'Memorial de cálculo'!A216:H578,8,0) -> 8700 | G44: =SUMIFS(CPU!$H:$H,CPU!$B:$B,'Planilha Orçamentária'!$A44,CPU!$I:$I,"ss")+SUMIFS(CPU!$H:$H,CPU!$B:$B,'Planilha Orçamentária'!$A44,CPU!$I:$I,"mdo")+SUMIF('Comp SINAPI PE 04-2024 Onerado'!G:G,'Planilha Orçamentária'!C44,'Comp SINAPI PE 04-2024 Onerado'!K:K)+SUMIF('Ins SINAPI PE 04-2024 Onerado'!A:A,'Planilha Orçamentária'!C44,'Ins SINAPI PE 04-2024 Onerado'!E:E) -> 20.7 | H44: =IF(J44="SERV",G44*(1+$H$4),G44*(1+$H$5)) -> 25.64316 | I44: =IF(J44="SERV",G44*F44*(1+$H$4),G44*F44*(1+$H$5)) -> 223095.492 | J44: serv | K44: s | L44: Confirmar se deixa essa ou da SICRO - DA SICRO ESTÁ BEM MAIS BARATA
A46: 10 | D46: RESTAURAÇÃO SUPERFICIAL - MURO LATERAL | I46: =I47+I48 -> 16903.426 | K46: ss
A47: 10.1 | B47: PROPRIA | C47: CPU.19 | D47: Chapisco Aplicado em Alvenaria (com presença de vãos) | E47: M2 | F47: =VLOOKUP(A47,'Memorial de cálculo'!A227:H588,8,0) -> 100 | G47: =SUMIFS(CPU!$H:$H,CPU!$B:$B,'Planilha Orçamentária'!$A47,CPU!$I:$I,"ss")+SUMIFS(CPU!$H:$H,CPU!$B:$B,'Planilha Orçamentária'!$A47,CPU!$I:$I,"mdo")+SUMIF('Comp SINAPI PE 04-2024 Onerado'!G:G,'Planilha Orçamentária'!C47,'Comp SINAPI PE 04-2024 Onerado'!K:K)+SUMIF('Ins SINAPI PE 04-2024 Onerado'!A:A,'Planilha Orçamentária'!C47,'Ins SINAPI PE 04-2024 Onerado'!E:E) -> 10.66 | H47: =IF(J47="SERV",G47*(1+$H$4),G47*(1+$H$5)) -> 13.205608 | I47: =IF(J47="SERV",G47*F47*(1+$H$4),G47*F47*(1+$H$5)) -> 1320.5608 | J47: serv | K47: s
A48: 10.2 | B48: PROPRIA | C48: CPU.20 | D48: Emboço ou Massa única em argamassa | E48: M2 | F48: =VLOOKUP(A48,'Memorial de cálculo'!A228:H589,8,0) -> 100 | G48: =SUMIFS(CPU!$H:$H,CPU!$B:$B,'Planilha Orçamentária'!$A48,CPU!$I:$I,"ss")+SUMIFS(CPU!$H:$H,CPU!$B:$B,'Planilha Orçamentária'!$A48,CPU!$I:$I,"mdo")+SUMIF('Comp SINAPI PE 04-2024 Onerado'!G:G,'Planilha Orçamentária'!C48,'Comp SINAPI PE 04-2024 Onerado'!K:K)+SUMIF('Ins SINAPI PE 04-2024 Onerado'!A:A,'Planilha Orçamentária'!C48,'Ins SINAPI PE 04-2024 Onerado'!E:E) -> 125.79 | H48: =IF(J48="SERV",G48*(1+$H$4),G48*(1+$H$5)) -> 155.828652 | I48: =IF(J48="SERV",G48*F48*(1+$H$4),G48*F48*(1+$H$5)) -> 15582.8652 | J48: serv
A50: 11 | D50: SERVIÇOS COMPLEMENTARES | I50: =SUM(I51:I54) -> 420125.3932 | K50: ss
A51: 11.1 | B51: PRÓPRIA | C51: CPU.20 | D51: Instalação de placas de aviso | E51: M2 | F51: =VLOOKUP(A51,'Memorial de cálculo'!A239:H598,8,0) -> 4 | G51: =SUMIFS(CPU!$H:$H,CPU!$B:$B,'Planilha Orçamentária'!$A51,CPU!$I:$I,"ss")+SUMIFS(CPU!$H:$H,CPU!$B:$B,'Planilha Orçamentária'!$A51,CPU!$I:$I,"mdo")+SUMIF('Comp SINAPI PE 04-2024 Onerado'!G:G,'Planilha Orçamentária'!C51,'Comp SINAPI PE 04-2024 Onerado'!K:K)+SUMIF('Ins SINAPI PE 04-2024 Onerado'!A:A,'Planilha Orçamentária'!C51,'Ins SINAPI PE 04-2024 Onerado'!E:E) -> 499.55 | H51: =IF(J51="SERV",G51*(1+$H$4),G51*(1+$H$5)) -> 618.84254 | I51: =IF(J51="SERV",G51*F51*(1+$H$4),G51*F51*(1+$H$5)) -> 2475.37016 | J51: serv | K51: s | L51: 4 placas de 1 m²
A52: 11.2 | B52: PRÓPRIA | C52: CPU.21 | D52: Instalação de mourões para medida de cota d’água | E52: UN | F52: =VLOOKUP(A52,'Memorial de cálculo'!A243:H602,8,0) -> 10 | G52: =CPU!H273 -> 468.08 | H52: =IF(J52="SERV",G52*(1+$H$4),G52*(1+$H$5)) -> 579.857504 | I52: =IF(J52="SERV",G52*F52*(1+$H$4),G52*F52*(1+$H$5)) -> 5798.57504 | J52: serv | K52: s
A53: 11.3 | B53: PRÓPRIA | C53: CPU.22 | D53: Cercas de proteção | E53: M | F53: =VLOOKUP(A53,'Memorial de cálculo'!A256:H604,8,0) -> 3500 | G53: =SUMIFS(CPU!$H:$H,CPU!$B:$B,'Planilha Orçamentária'!$A53,CPU!$I:$I,"ss")+SUMIFS(CPU!$H:$H,CPU!$B:$B,'Planilha Orçamentária'!$A53,CPU!$I:$I,"mdo")+SUMIF('Comp SINAPI PE 04-2024 Onerado'!G:G,'Planilha Orçamentária'!C53,'Comp SINAPI PE 04-2024 Onerado'!K:K)+SUMIF('Ins SINAPI PE 04-2024 Onerado'!A:A,'Planilha Orçamentária'!C53,'Ins SINAPI PE 04-2024 Onerado'!E:E) -> 90.84 | H53: =IF(J53="SERV",G53*(1+$H$4),G53*(1+$H$5)) -> 112.532592 | I53: =IF(J53="SERV",G53*F53*(1+$H$4),G53*F53*(1+$H$5)) -> 393864.072 | J53: serv | K53: s | L53: Peso do mourao https://crepan.com.br/mourao-de-concreto/
A54: 11.4 | B54: PRÓPRIA | C54: CPU.23 | D54: Limpeza das margens do reservatório | E54: M2 | F54: =VLOOKUP(A54,'Memorial de cálculo'!A264:H608,8,0) -> 2000 | G54: =SUMIFS(CPU!$H:$H,CPU!$B:$B,'Planilha Orçamentária'!$A54,CPU!$I:$I,"ss")+SUMIFS(CPU!$H:$H,CPU!$B:$B,'Planilha Orçamentária'!$A54,CPU!$I:$I,"mdo")+SUMIF('Comp SINAPI PE 04-2024 Onerado'!G:G,'Planilha Orçamentária'!C54,'Comp SINAPI PE 04-2024 Onerado'!K:K)+SUMIF('Ins SINAPI PE 04-2024 Onerado'!A:A,'Planilha Orçamentária'!C54,'Ins SINAPI PE 04-2024 Onerado'!E:E) -> 7.26 | H54: =IF(J54="SERV",G54*(1+$H$4),G54*(1+$H$5)) -> 8.993688 | I54: =IF(J54="SERV",G54*F54*(1+$H$4),G54*F54*(1+$H$5)) -> 17987.376 | J54: serv | K54: s
D55: TOTAL Sem BDI: | I55: =SUMPRODUCT(F10:F54,G10:G54) -> 1665417.109
D56: BDI: | I56: =I57-I55 -> 397701.6057
D57: TOTAL COM BDI: | I57: =I10+I13+I18+I26+I29+I35+I38+I42+I46+I50+I23 -> 2063118.715

Sheet Planilha Orçamentária Desoner (hidden)
A1: Ministério da Integração e do Desenvolvimento Regional
A2: Companhia de desenvolvimento dos Vales do São Francisco e do Parnaíba
A4: PLANILHA ORÇAMENTÁRIA - ORÇAMENTO DESONERADO
A5: OBRA: | B5: =UPPER("SERVIÇOS DE MANUTENÇÃO E OBRAS CIVIS NA ESTRUTURA DA BARRAGEM E EQUIPAMENTO HIDROMECÂNICO") -> SERVIÇOS DE MANUTENÇÃO E OBRAS CIVIS NA ESTRUTURA DA BARRAGEM E EQUIPAMENTO HIDROMECÂNICO | G5: BDI (serv.): | H5: ='BDI serv Desonerado'!D22 -> 0.3351 | I5: Bancos
A6: LOCAL: | B6: BARRAGEM POÇO DO MAGRO, GUANAMBI/BA | G6: BDI (forn.): | H6: ='BDI forn Desonerado'!D22 -> 0.212 | I6: 05/2023 - SINAPI/BA
A7: DATA BASE: | B7: 2023-05-01 | E7: Encargos sociais Horistas: | H7: ='Encargos Sociais'!C47 -> 0.8435 | I7: 01/2023 - SICRO/BA
A8: PRAZO: | B8: 120 DIAS | E8: Encargos sociais - Mensalista: | H8: ='Encargos Sociais'!D47 -> 0.4641 | I8: 04/2023 - ORSE
A9: ITEM | B9: REFERÊNCIA | D9: DESCRIÇÃO | E9: UNID. | F9: QUANT. | G9: CUSTO UNITÁRIO | H9: PREÇO UNITÁRIO | I9: PREÇO TOTAL | J9: TIPO de BDI | K9: CLASSIF
B10: FONTE | C10: CÓDIGO
A11: 1 | D11: ADMINISTRAÇÃO LOCAL | I11: =SUM(I12:I12) -> 41837.86849 | K11: ss
A12: 1.1 | B12: PRÓPRIA | C12: CPU.01 | D12: ADMINISTRAÇÃO LOCAL | E12: MÊS | F12: ='Planilha Orçamentária'!F11 -> 4 | G12: =SUMIFS('CPU DES'!$H:$H,'CPU DES'!$B:$B,'Planilha Orçamentária Desoner'!$A12,'CPU DES'!$I:$I,"ss")+SUMIFS('CPU DES'!$H:$H,'CPU DES'!$B:$B,'Planilha Orçamentária Desoner'!$A12,'CPU DES'!$I:$I,"mdo")+SUMIF('Comp SINAPI BA 05-2023 Desoner'!G:G,'Planilha Orçamentária Desoner'!C12,'Comp SINAPI BA 05-2023 Desoner'!K:K)+SUMIF('Ins SINAPI BA 05-2023 Desoner'!A:A,'Planilha Orçamentária Desoner'!C12,'Ins SINAPI BA 05-2023 Desoner'!E:E) -> 7834.22 | H12: =IF(J12="SERV",G12*(1+$H$5),G12*(1+$H$6)) -> 10459.46712 | I12: =IF(J12="SERV",G12*F12*(1+$H$5),G12*F12*(1+$H$6)) -> 41837.86849 | J12: serv | K12: s
A14: 2 | D14: SERVIÇOS PRELIMINARES | I14: =SUM(I15,I21) ->  | K14: ss
A15: 2.1 | D15: Canteiro de obras | I15: =SUM(I16:I20) ->  | K15: s
A16: 2.1.1 | B16: SINAPI | C16: 98525 | D16: =PROPER(IF(K16="i",VLOOKUP(C16,'Ins SINAPI BA 05-2023 Desoner'!$A$8:$E$5189,2,0),VLOOKUP(C16,'Comp SINAPI BA 05-2023 Desoner'!$G$7:$K$7500,2,0))) -> Limpeza Mecanizada De Camada Vegetal, Vegetação E Pequenas Árvores (Diâmetro De Tronco Menor Que 0,20 M), Com Trator De Esteiras.Af_05/2018 | E16: =LOWER(IF(K16="i",VLOOKUP(C16,'Ins SINAPI BA 05-2023 Desoner'!$A$8:$E$5189,3,0),VLOOKUP(C16,'Comp SINAPI BA 05-2023 Desoner'!$G$7:$K$7500,3,0))) -> m2 | F16: ='Planilha Orçamentária'!F15 -> 28.5 | G16: =SUMIFS('CPU DES'!$H:$H,'CPU DES'!$B:$B,'Planilha Orçamentária Desoner'!$A16,'CPU DES'!$I:$I,"ss")+SUMIFS('CPU DES'!$H:$H,'CPU DES'!$B:$B,'Planilha Orçamentária Desoner'!$A16,'CPU DES'!$I:$I,"mdo")+SUMIF('Comp SINAPI BA 05-2023 Desoner'!G:G,'Planilha Orçamentária Desoner'!C16,'Comp SINAPI BA 05-2023 Desoner'!K:K)+SUMIF('Ins SINAPI BA 05-2023 Desoner'!A:A,'Planilha Orçamentária Desoner'!C16,'Ins SINAPI BA 05-2023 Desoner'!E:E) -> 0.37 | H16: =IF(J16="SERV",G16*(1+$H$5),G16*(1+$H$6)) -> 0.493987 | I16: =IF(J16="SERV",G16*F16*(1+$H$5),G16*F16*(1+$H$6)) -> 14.0786295 | J16: serv | K16: s
A17: 2.1.2 | B17: SINAPI | C17: 94975 | D17: =PROPER(IF(K17="i",VLOOKUP(C17,'Ins SINAPI BA 05-2023 Desoner'!$A$8:$E$5189,2,0),VLOOKUP(C17,'Comp SINAPI BA 05-2023 Desoner'!$G$7:$K$7500,2,0))) -> Concreto Fck = 15Mpa, Traço 1:3,4:3,5 (Em Massa Seca De Cimento/ Areia Média/ Brita 1) - Preparo Manual. Af_05/2021 | E17: =LOWER(IF(K17="i",VLOOKUP(C17,'Ins SINAPI BA 05-2023 Desoner'!$A$8:$E$5189,3,0),VLOOKUP(C17,'Comp SINAPI BA 05-2023 Desoner'!$G$7:$K$7500,3,0))) -> m3 | F17: ='Planilha Orçamentária'!#REF! ->  | G17: =SUMIFS('CPU DES'!$H:$H,'CPU DES'!$B:$B,'Planilha Orçamentária Desoner'!$A17,'CPU DES'!$I:$I,"ss")+SUMIFS('CPU DES'!$H:$H,'CPU DES'!$B:$B,'Planilha Orçamentária Desoner'!$A17,'CPU DES'!$I:$I,"mdo")+SUMIF('Comp SINAPI BA 05-2023 Desoner'!G:G,'Planilha Orçamentária Desoner'!C17,'Comp SINAPI BA 05-2023 Desoner'!K:K)+SUMIF('Ins SINAPI BA 05-2023 Desoner'!A:A,'Planilha Orçamentária Desoner'!C17,'Ins SINAPI BA 05-2023 Desoner'!E:E) -> 510.11 | H17: =IF(J17="SERV",G17*(1+$H$5),G17*(1+$H$6)) -> 681.047861 | I17: =IF(J17="SERV",G17*F17*(1+$H$5),G17*F17*(1+$H$6)) ->  | J17: serv | K17: s
A18: 2.1.3 | B18: SINAPI | C18: 93210 | D18: =PROPER(IF(K18="i",VLOOKUP(C18,'Ins SINAPI BA 05-2023 Desoner'!$A$8:$E$5189,2,0),VLOOKUP(C18,'Comp SINAPI BA 05-2023 Desoner'!$G$7:$K$7500,2,0))) -> Execução De Refeitório Em Canteiro De Obra Em Chapa De Madeira Compensada, Não Incluso Mobiliário E Equipamentos. Af_02/2016 | E18: =LOWER(IF(K18="i",VLOOKUP(C18,'Ins SINAPI BA 05-2023 Desoner'!$A$8:$E$5189,3,0),VLOOKUP(C18,'Comp SINAPI BA 05-2023 Desoner'!$G$7:$K$7500,3,0))) -> m2 | F18: ='Planilha Orçamentária'!#REF! ->  | G18: =SUMIFS('CPU DES'!$H:$H,'CPU DES'!$B:$B,'Planilha Orçamentária Desoner'!$A18,'CPU DES'!$I:$I,"ss")+SUMIFS('CPU DES'!$H:$H,'CPU DES'!$B:$B,'Planilha Orçamentária Desoner'!$A18,'CPU DES'!$I:$I,"mdo")+SUMIF('Comp SINAPI BA 05-2023 Desoner'!G:G,'Planilha Orçamentária Desoner'!C18,'Comp SINAPI BA 05-2023 Desoner'!K:K)+SUMIF('Ins SINAPI BA 05-2023 Desoner'!A:A,'Planilha Orçamentária Desoner'!C18,'Ins SINAPI BA 05-2023 Desoner'!E:E) -> 602.5 | H18: =IF(J18="SERV",G18*(1+$H$5),G18*(1+$H$6)) -> 804.39775 | I18: =IF(J18="SERV",G18*F18*(1+$H$5),G18*F18*(1+$H$6)) ->  | J18: serv | K18: s
A19: 2.1.4 | B19: SINAPI | C19: 93212 | D19: =PROPER(IF(K19="i",VLOOKUP(C19,'Ins SINAPI BA 05-2023 Desoner'!$A$8:$E$5189,2,0),VLOOKUP(C19,'Comp SINAPI BA 05-2023 Desoner'!$G$7:$K$7500,2,0))) -> Execução De Sanitário E Vestiário Em Canteiro De Obra Em Chapa De Madeira Compensada, Não Incluso Mobiliário. Af_02/2016 | E19: =LOWER(IF(K19="i",VLOOKUP(C19,'Ins SINAPI BA 05-2023 Desoner'!$A$8:$E$5189,3,0),VLOOKUP(C19,'Comp SINAPI BA 05-2023 Desoner'!$G$7:$K$7500,3,0))) -> m2 | F19: ='Planilha Orçamentária'!#REF! ->  | G19: =SUMIFS('CPU DES'!$H:$H,'CPU DES'!$B:$B,'Planilha Orçamentária Desoner'!$A19,'CPU DES'!$I:$I,"ss")+SUMIFS('CPU DES'!$H:$H,'CPU DES'!$B:$B,'Planilha Orçamentária Desoner'!$A19,'CPU DES'!$I:$I,"mdo")+SUMIF('Comp SINAPI BA 05-2023 Desoner'!G:G,'Planilha Orçamentária Desoner'!C19,'Comp SINAPI BA 05-2023 Desoner'!K:K)+SUMIF('Ins SINAPI BA 05-2023 Desoner'!A:A,'Planilha Orçamentária Desoner'!C19,'Ins SINAPI BA 05-2023 Desoner'!E:E) -> 1003.35 | H19: =IF(J19="SERV",G19*(1+$H$5),G19*(1+$H$6)) -> 1339.572585 | I19: =IF(J19="SERV",G19*F19*(1+$H$5),G19*F19*(1+$H$6)) ->  | J19: serv | K19: s
A20: 2.1.5 | B20: SINAPI | C20: 93583 | D20: =PROPER(IF(K20="i",VLOOKUP(C20,'Ins SINAPI BA 05-2023 Desoner'!$A$8:$E$5189,2,0),VLOOKUP(C20,'Comp SINAPI BA 05-2023 Desoner'!$G$7:$K$7500,2,0))) -> Execução De Central De Fôrmas, Produção De Argamassa Ou Concreto Em Canteiro De Obra, Não Incluso Mobiliário E Equipamentos. Af_04/2016 | E20: =LOWER(IF(K20="i",VLOOKUP(C20,'Ins SINAPI BA 05-2023 Desoner'!$A$8:$E$5189,3,0),VLOOKUP(C20,'Comp SINAPI BA 05-2023 Desoner'!$G$7:$K$7500,3,0))) -> m2 | F20: ='Planilha Orçamentária'!#REF! ->  | G20: =SUMIFS('CPU DES'!$H:$H,'CPU DES'!$B:$B,'Planilha Orçamentária Desoner'!$A20,'CPU DES'!$I:$I,"ss")+SUMIFS('CPU DES'!$H:$H,'CPU DES'!$B:$B,'Planilha Orçamentária Desoner'!$A20,'CPU DES'!$I:$I,"mdo")+SUMIF('Comp SINAPI BA 05-2023 Desoner'!G:G,'Planilha Orçamentária Desoner'!C20,'Comp SINAPI BA 05-2023 Desoner'!K:K)+SUMIF('Ins SINAPI BA 05-2023 Desoner'!A:A,'Planilha Orçamentária Desoner'!C20,'Ins SINAPI BA 05-2023 Desoner'!E:E) -> 463.26 | H20: =IF(J20="SERV",G20*(1+$H$5),G20*(1+$H$6)) -> 618.498426 | I20: =IF(J20="SERV",G20*F20*(1+$H$5),G20*F20*(1+$H$6)) ->  | J20: serv | K20: s
A21: 2.2 | D21: Sinalização | I21: =SUM(I22:I22) -> 1086.424274 | K21: s
A22: 2.2.1 | B22: PRÓPRIA | C22: CPU.02 | D22: PLACA DE OBRA EM CHAPA DE ACO GALVANIZADO | E22: m² | F22: ='Planilha Orçamentária'!F16 -> 2 | G22: =SUMIFS('CPU DES'!$H:$H,'CPU DES'!$B:$B,'Planilha Orçamentária Desoner'!$A22,'CPU DES'!$I:$I,"ss")+SUMIFS('CPU DES'!$H:$H,'CPU DES'!$B:$B,'Planilha Orçamentária Desoner'!$A22,'CPU DES'!$I:$I,"mdo")+SUMIF('Comp SINAPI BA 05-2023 Desoner'!G:G,'Planilha Orçamentária Desoner'!C22,'Comp SINAPI BA 05-2023 Desoner'!K:K)+SUMIF('Ins SINAPI BA 05-2023 Desoner'!A:A,'Planilha Orçamentária Desoner'!C22,'Ins SINAPI BA 05-2023 Desoner'!E:E) -> 406.87 | H22: =IF(J22="SERV",G22*(1+$H$5),G22*(1+$H$6)) -> 543.212137 | I22: =IF(J22="SERV",G22*F22*(1+$H$5),G22*F22*(1+$H$6)) -> 1086.424274 | J22: serv | K22: i
A24: 3 | D24: LIMPEZA DA REGIÃO A JUSANTE | I24: =SUM(I25) ->  | K24: ss
A25: 3.1 | D25: Remoção da vegetação a jusante | I25: =SUM(I26:I29) ->  | K25: s
A26: 3.1.1 | B26: SINAPI | C26: 98525 | D26: =PROPER(IF(K26="i",VLOOKUP(C26,'Ins SINAPI BA 05-2023 Desoner'!$A$8:$E$5189,2,0),VLOOKUP(C26,'Comp SINAPI BA 05-2023 Desoner'!$G$7:$K$7500,2,0))) -> Limpeza Mecanizada De Camada Vegetal, Vegetação E Pequenas Árvores (Diâmetro De Tronco Menor Que 0,20 M), Com Trator De Esteiras.Af_05/2018 | E26: =LOWER(IF(K26="i",VLOOKUP(C26,'Ins SINAPI BA 05-2023 Desoner'!$A$8:$E$5189,3,0),VLOOKUP(C26,'Comp SINAPI BA 05-2023 Desoner'!$G$7:$K$7500,3,0))) -> m2 | F26: ='Planilha Orçamentária'!#REF! ->  | G26: =SUMIFS('CPU DES'!$H:$H,'CPU DES'!$B:$B,'Planilha Orçamentária Desoner'!$A26,'CPU DES'!$I:$I,"ss")+SUMIFS('CPU DES'!$H:$H,'CPU DES'!$B:$B,'Planilha Orçamentária Desoner'!$A26,'CPU DES'!$I:$I,"mdo")+SUMIF('Comp SINAPI BA 05-2023 Desoner'!G:G,'Planilha Orçamentária Desoner'!C26,'Comp SINAPI BA 05-2023 Desoner'!K:K)+SUMIF('Ins SINAPI BA 05-2023 Desoner'!A:A,'Planilha Orçamentária Desoner'!C26,'Ins SINAPI BA 05-2023 Desoner'!E:E) -> 0.37 | H26: =IF(J26="SERV",G26*(1+$H$5),G26*(1+$H$6)) -> 0.493987 | I26: =IF(J26="SERV",G26*F26*(1+$H$5),G26*F26*(1+$H$6)) ->  | J26: serv | K26: s
A27: 3.1.2 | B27: EMBASA | C27: 02.04.04 | D27: CORTE DE ARVORE COM DESTOCAMENTO MANUAL,C/DIAMETRO ENTRE 15 E 30cm | E27: UN | F27: ='Planilha Orçamentária'!#REF! ->  | G27: 60.7 | H27: =IF(J27="SERV",G27*(1+$H$5),G27*(1+$H$6)) -> 81.04057 | I27: =IF(J27="SERV",G27*F27*(1+$H$5),G27*F27*(1+$H$6)) ->  | J27: serv | K27: s
A28: 3.1.3 | B28: EMBASA | C28: 15.92.02 | D28: LIMPEZA E DESOBSTRUCAO DE REDES DE ESGOTO / DRENAGEM | E28: H | F28: ='Planilha Orçamentária'!#REF! ->  | G28: 160.18 | H28: =IF(J28="SERV",G28*(1+$H$5),G28*(1+$H$6)) -> 213.856318 | I28: =IF(J28="SERV",G28*F28*(1+$H$5),G28*F28*(1+$H$6)) ->  | J28: serv | K28: s
A29: 3.1.4 | B29: SINAPI | C29: 97912 | D29: =PROPER(IF(K29="i",VLOOKUP(C29,'Ins SINAPI BA 05-2023 Desoner'!$A$8:$E$5189,2,0),VLOOKUP(C29,'Comp SINAPI BA 05-2023 Desoner'!$G$7:$K$7500,2,0))) -> Transporte Com Caminhão Basculante De 6 M³, Em Via Urbana Em Leito Natural (Unidade: M3Xkm). Af_07/2020 | E29: =LOWER(IF(K29="i",VLOOKUP(C29,'Ins SINAPI BA 05-2023 Desoner'!$A$8:$E$5189,3,0),VLOOKUP(C29,'Comp SINAPI BA 05-2023 Desoner'!$G$7:$K$7500,3,0))) -> m3xkm | F29: ='Planilha Orçamentária'!F20 -> 50 | G29: =SUMIFS('CPU DES'!$H:$H,'CPU DES'!$B:$B,'Planilha Orçamentária Desoner'!$A29,'CPU DES'!$I:$I,"ss")+SUMIFS('CPU DES'!$H:$H,'CPU DES'!$B:$B,'Planilha Orçamentária Desoner'!$A29,'CPU DES'!$I:$I,"mdo")+SUMIF('Comp SINAPI BA 05-2023 Desoner'!G:G,'Planilha Orçamentária Desoner'!C29,'Comp SINAPI BA 05-2023 Desoner'!K:K)+SUMIF('Ins SINAPI BA 05-2023 Desoner'!A:A,'Planilha Orçamentária Desoner'!C29,'Ins SINAPI BA 05-2023 Desoner'!E:E) -> 3.41 | H29: =IF(J29="SERV",G29*(1+$H$5),G29*(1+$H$6)) -> 4.552691 | I29: =IF(J29="SERV",G29*F29*(1+$H$5),G29*F29*(1+$H$6)) -> 227.63455 | J29: serv | K29: s
A31: 4 | D31: OPERAÇÃO SUBAQUÁTICA | I31: =SUM(I32,I35) ->  | K31: ss
A32: 4.1 | D32: Inspeção e Laudo da região subaquática | I32: =SUM(I33:I34) -> 
A33: 4.1.1 | B33: PRÓPRIA | C33: CPU.03 | D33: Mobilização da Equipe, Camara Hiperbarica e todos os equipamentos de mergulho envolvidos na operação | E33: un | F33: ='Planilha Orçamentária'!#REF! ->  | G33: =SUMIFS(CPU!$H:$H,CPU!$B:$B,'Planilha Orçamentária'!#REF!,CPU!$I:$I,"ss")+SUMIFS(CPU!$H:$H,CPU!$B:$B,'Planilha Orçamentária'!#REF!,CPU!$I:$I,"mdo")+SUMIF('Comp SINAPI PE 04-2024 Onerado'!G:G,'Planilha Orçamentária'!#REF!,'Comp SINAPI PE 04-2024 Onerado'!K:K)+SUMIF('Ins SINAPI PE 04-2024 Onerado'!A:A,'Planilha Orçamentária'!#REF!,'Ins SINAPI PE 04-2024 Onerado'!E:E) -> 0 | H33: =IF(J33="SERV",G33*(1+$H$5),G33*(1+$H$6)) -> 0 | I33: =IF(J33="SERV",G33*F33*(1+$H$5),G33*F33*(1+$H$6)) ->  | J33: serv | K33: s
A34: 4.1.2 | B34: SICRO | C34: 4816024 | D34: Operação de mergulho dependente em profundidade de até 30 m - inclusive descompressão | E34: h | F34: ='Planilha Orçamentária'!#REF! ->  | G34: 255.2 | H34: =IF(K34="SERV",G34*(1+$H$5),G34*(1+$H$6)) -> 309.3024 | I34: =IF(J34="SERV",G34*F34*(1+$H$5),G34*F34*(1+$H$6)) ->  | J34: serv | K34: s
A35: 4.2 | D35: Vedação/Abertura da tomada d'água | I35: =SUM(I36:I37) -> 
A36: 4.2.1 | B36: PRÓPRIA | C36: CPU.04 | D36: Vedação da entrada da tomada d’água com chapas metálicas | E36: un | F36: ='Planilha Orçamentária'!#REF! ->  | G36: =SUMIFS(CPU!$H:$H,CPU!$B:$B,'Planilha Orçamentária'!#REF!,CPU!$I:$I,"ss")+SUMIFS(CPU!$H:$H,CPU!$B:$B,'Planilha Orçamentária'!#REF!,CPU!$I:$I,"mdo")+SUMIF('Comp SINAPI PE 04-2024 Onerado'!G:G,'Planilha Orçamentária'!#REF!,'Comp SINAPI PE 04-2024 Onerado'!K:K)+SUMIF('Ins SINAPI PE 04-2024 Onerado'!A:A,'Planilha Orçamentária'!#REF!,'Ins SINAPI PE 04-2024 Onerado'!E:E) -> 0 | H36: =IF(J36="SERV",G36*(1+$H$5),G36*(1+$H$6)) -> 0 | I36: =IF(J36="SERV",G36*F36*(1+$H$5),G36*F36*(1+$H$6)) ->  | J36: serv | K36: s
A37: 4.2.2 | B37: PRÓPRIA | C37: CPU.05 | D37: Remoção da vedação da entrada da tomada d’água com chapas metálicas | E37: un | F37: ='Planilha Orçamentária'!#REF! ->  | G37: =SUMIFS(CPU!$H:$H,CPU!$B:$B,'Planilha Orçamentária'!#REF!,CPU!$I:$I,"ss")+SUMIFS(CPU!$H:$H,CPU!$B:$B,'Planilha Orçamentária'!#REF!,CPU!$I:$I,"mdo")+SUMIF('Comp SINAPI PE 04-2024 Onerado'!G:G,'Planilha Orçamentária'!#REF!,'Comp SINAPI PE 04-2024 Onerado'!K:K)+SUMIF('Ins SINAPI PE 04-2024 Onerado'!A:A,'Planilha Orçamentária'!#REF!,'Ins SINAPI PE 04-2024 Onerado'!E:E) -> 0 | H37: =IF(J37="SERV",G37*(1+$H$5),G37*(1+$H$6)) -> 0 | I37: =IF(J37="SERV",G37*F37*(1+$H$5),G37*F37*(1+$H$6)) ->  | J37: serv | K37: s
A39: 5 | D39: MANUTENÇÃO NOS DISPOSITIVOS DE CONTROLE | I39: =SUM(I40,I47) -> 
A40: 5.1 | D40: Manutenção das válvulas | I40: =SUM(I41:I46) -> 
A41: 5.1.1 | B41: SINAPI | C41: 98524 | D41: =PROPER(IF(K41="i",VLOOKUP(C41,'Ins SINAPI BA 05-2023 Desoner'!$A$8:$E$5189,2,0),VLOOKUP(C41,'Comp SINAPI BA 05-2023 Desoner'!$G$7:$K$7500,2,0))) -> Limpeza Manual De Vegetação Em Terreno Com Enxada.Af_05/2018 | E41: =LOWER(IF(K41="i",VLOOKUP(C41,'Ins SINAPI BA 05-2023 Desoner'!$A$8:$E$5189,3,0),VLOOKUP(C41,'Comp SINAPI BA 05-2023 Desoner'!$G$7:$K$7500,3,0))) -> m2 | F41: ='Planilha Orçamentária'!#REF! ->  | G41: =SUMIFS('CPU DES'!$H:$H,'CPU DES'!$B:$B,'Planilha Orçamentária Desoner'!$A41,'CPU DES'!$I:$I,"ss")+SUMIFS('CPU DES'!$H:$H,'CPU DES'!$B:$B,'Planilha Orçamentária Desoner'!$A41,'CPU DES'!$I:$I,"mdo")+SUMIF('Comp SINAPI BA 05-2023 Desoner'!G:G,'Planilha Orçamentária Desoner'!C41,'Comp SINAPI BA 05-2023 Desoner'!K:K)+SUMIF('Ins SINAPI BA 05-2023 Desoner'!A:A,'Planilha Orçamentária Desoner'!C41,'Ins SINAPI BA 05-2023 Desoner'!E:E) -> 2.9 | H41: =IF(J41="SERV",G41*(1+$H$5),G41*(1+$H$6)) -> 3.87179 | I41: =IF(J41="SERV",G41*F41*(1+$H$5),G41*F41*(1+$H$6)) ->  | J41: serv | K41: s
A42: 5.1.2 | B42: EMBASA | C42: 12.99.10 | D42: DESMONT. DE PECAS, CONEXOES, VALVULAS, APARELHOS E ACESSORIOS DE FERRO FUNDIDO DUCTIL OU ACO CARBONO, JUNTA TRAVADA, EXTERNA MECANICA OU FLANGEADA C/ DIAMETROS DE 700 A 1200 MM | E42: kg | F42: ='Planilha Orçamentária'!#REF! ->  | G42: 1.21 | H42: 1.615471 | J42: serv | K42: s
A43: 5.1.3 | B43: EMBASA | C43: 62.01.53 | D43: MANUTENCAO EM VALVULAS (VRP, NIVEL E ANTI-GOLPE), VENTOSAS E REGISTROS ACIMA DE 16" ATÉ 24" POLEGADAS | E43: un | F43: ='Planilha Orçamentária'!#REF! ->  | G43: 581.86 | H43: 776.841286 | J43: serv | K43: s
A44: 5.1.4 | B44: EMBASA | C44: M012309000/M012309045 | D44: PARAFUSOS C/ PORCA P/ VALVULA BORBOLETA C/ FLANGE PN 10 - AWWA / PBFW10 DN 700 48,900 kg | E44: PC | F44: ='Planilha Orçamentária'!#REF! ->  | G44: 5.36 | H44: 7.156136 | J44: serv | K44: s
A45: 5.1.5 | B45: EMBASA | C45: 15.07.46 | D45: (REVISADA) - PINTURA EPOXI EM SURPEFICIE METALICA, INCL. LIXAMENTO E FUNDO EPOXI ANTICORROSIVO, DUAS DEMAOS | E45: m² | F45: ='Planilha Orçamentária'!#REF! ->  | G45: 75.54 | H45: 100.853454 | J45: serv | K45: s
A46: 5.1.6 | B46: EMBASA | C46: 12.02.07 | D46: MONT. DE PECAS, CONEXOES, VALVULAS, APARELHOS E ACESSORIOS DE FERRO FUNDIDO DUCTIL OU ACO CARBONO, JUNTA TRAVADA, EXTERNA MECANICA OU FLANGEADA C/ DIAMETROSDE 700 A 1200 mm. | E46: kg | F46: ='Planilha Orçamentária'!#REF! ->  | G46: 1.21 | H46: 1.615471 | J46: serv | K46: s
A47: 5.2 | D47: Instalação de dispositivo de drenagem na caixa de válvulas | I47: =SUM(I48:I50) -> 
A48: 5.2.1 | B48: SINAPI | C48: 97627 | D48: =PROPER(IF(K48="i",VLOOKUP(C48,'Ins SINAPI BA 05-2023 Desoner'!$A$8:$E$5189,2,0),VLOOKUP(C48,'Comp SINAPI BA 05-2023 Desoner'!$G$7:$K$7500,2,0))) -> Demolição De Pilares E Vigas Em Concreto Armado, De Forma Mecanizada Com Martelete, Sem Reaproveitamento. Af_12/2017 | E48: =LOWER(IF(K48="i",VLOOKUP(C48,'Ins SINAPI BA 05-2023 Desoner'!$A$8:$E$5189,3,0),VLOOKUP(C48,'Comp SINAPI BA 05-2023 Desoner'!$G$7:$K$7500,3,0))) -> m3 | F48: ='Planilha Orçamentária'!#REF! ->  | G48: =SUMIFS('CPU DES'!$H:$H,'CPU DES'!$B:$B,'Planilha Orçamentária Desoner'!$A48,'CPU DES'!$I:$I,"ss")+SUMIFS('CPU DES'!$H:$H,'CPU DES'!$B:$B,'Planilha Orçamentária Desoner'!$A48,'CPU DES'!$I:$I,"mdo")+SUMIF('Comp SINAPI BA 05-2023 Desoner'!G:G,'Planilha Orçamentária Desoner'!C48,'Comp SINAPI BA 05-2023 Desoner'!K:K)+SUMIF('Ins SINAPI BA 05-2023 Desoner'!A:A,'Planilha Orçamentária Desoner'!C48,'Ins SINAPI BA 05-2023 Desoner'!E:E) -> 311.2 | H48: =IF(J48="SERV",G48*(1+$H$5),G48*(1+$H$6)) -> 415.48312 | I48: =IF(J48="SERV",G48*F48*(1+$H$5),G48*F48*(1+$H$6)) ->  | J48: serv | K48: s
A49: 5.2.2 | B49: SINAPI | C49: 89714 | D49: =PROPER(IF(K49="i",VLOOKUP(C49,'Ins SINAPI BA 05-2023 Desoner'!$A$8:$E$5189,2,0),VLOOKUP(C49,'Comp SINAPI BA 05-2023 Desoner'!$G$7:$K$7500,2,0))) -> Tubo Pvc, Serie Normal, Esgoto Predial, Dn 100 Mm, Fornecido E Instalado Em Ramal De Descarga Ou Ramal De Esgoto Sanitário. Af_08/2022 | E49: =LOWER(IF(K49="i",VLOOKUP(C49,'Ins SINAPI BA 05-2023 Desoner'!$A$8:$E$5189,3,0),VLOOKUP(C49,'Comp SINAPI BA 05-2023 Desoner'!$G$7:$K$7500,3,0))) -> m | F49: ='Planilha Orçamentária'!#REF! ->  | G49: =SUMIFS('CPU DES'!$H:$H,'CPU DES'!$B:$B,'Planilha Orçamentária Desoner'!$A49,'CPU DES'!$I:$I,"ss")+SUMIFS('CPU DES'!$H:$H,'CPU DES'!$B:$B,'Planilha Orçamentária Desoner'!$A49,'CPU DES'!$I:$I,"mdo")+SUMIF('Comp SINAPI BA 05-2023 Desoner'!G:G,'Planilha Orçamentária Desoner'!C49,'Comp SINAPI BA 05-2023 Desoner'!K:K)+SUMIF('Ins SINAPI BA 05-2023 Desoner'!A:A,'Planilha Orçamentária Desoner'!C49,'Ins SINAPI BA 05-2023 Desoner'!E:E) -> 36.26 | H49: =IF(J49="SERV",G49*(1+$H$5),G49*(1+$H$6)) -> 48.410726 | I49: =IF(J49="SERV",G49*F49*(1+$H$5),G49*F49*(1+$H$6)) ->  | J49: serv | K49: s
A50: 5.2.3 | B50: SINAPI | C50: 103682 | D50: =PROPER(IF(K50="i",VLOOKUP(C50,'Ins SINAPI BA 05-2023 Desoner'!$A$8:$E$5189,2,0),VLOOKUP(C50,'Comp SINAPI BA 05-2023 Desoner'!$G$7:$K$7500,2,0))) -> Concretagem De Vigas E Lajes, Fck=25 Mpa, Para Qualquer Tipo De Laje Com Baldes Em Edificação Térrea - Lançamento, Adensamento E Acabamento. Af_02/2022 | E50: =LOWER(IF(K50="i",VLOOKUP(C50,'Ins SINAPI BA 05-2023 Desoner'!$A$8:$E$5189,3,0),VLOOKUP(C50,'Comp SINAPI BA 05-2023 Desoner'!$G$7:$K$7500,3,0))) -> m3 | F50: ='Planilha Orçamentária'!#REF! ->  | G50: =SUMIFS('CPU DES'!$H:$H,'CPU DES'!$B:$B,'Planilha Orçamentária Desoner'!$A50,'CPU DES'!$I:$I,"ss")+SUMIFS('CPU DES'!$H:$H,'CPU DES'!$B:$B,'Planilha Orçamentária Desoner'!$A50,'CPU DES'!$I:$I,"mdo")+SUMIF('Comp SINAPI BA 05-2023 Desoner'!G:G,'Planilha Orçamentária Desoner'!C50,'Comp SINAPI BA 05-2023 Desoner'!K:K)+SUMIF('Ins SINAPI BA 05-2023 Desoner'!A:A,'Planilha Orçamentária Desoner'!C50,'Ins SINAPI BA 05-2023 Desoner'!E:E) -> 962.12 | H50: =IF(J50="SERV",G50*(1+$H$5),G50*(1+$H$6)) -> 1284.526412 | I50: =IF(J50="SERV",G50*F50*(1+$H$5),G50*F50*(1+$H$6)) ->  | J50: serv | K50: s
A52: 6 | D52: RECUPERAÇÃO | I52: =SUM(I53,I63,I69) ->  | K52: ss
A53: 6.1 | D53: Paramento a jusante | I53: =SUM(I54:I62) -> 
A54: 6.1.1 | B54: SINAPI | C54: 41805 | D54: =PROPER(IF(K54="i",VLOOKUP(C54,'Ins SINAPI BA 05-2023 Desoner'!$A$8:$E$5189,2,0),VLOOKUP(C54,'Comp SINAPI BA 05-2023 Desoner'!$G$7:$K$7500,2,0))) -> Locacao De Andaime Suspenso Ou Balancim Manual, Capacidade De Carga Total De Aproximadamente 250 Kg/M2, Plataforma De 1,50 M X 0,80 M (C X L), Cabo De 45 M | E54: =LOWER(IF(K54="i",VLOOKUP(C54,'Ins SINAPI BA 05-2023 Desoner'!$A$8:$E$5189,3,0),VLOOKUP(C54,'Comp SINAPI BA 05-2023 Desoner'!$G$7:$K$7500,3,0))) -> mes | F54: ='Planilha Orçamentária'!#REF! ->  | G54: =SUMIFS('CPU DES'!$H:$H,'CPU DES'!$B:$B,'Planilha Orçamentária Desoner'!$A54,'CPU DES'!$I:$I,"ss")+SUMIFS('CPU DES'!$H:$H,'CPU DES'!$B:$B,'Planilha Orçamentária Desoner'!$A54,'CPU DES'!$I:$I,"mdo")+SUMIF('Comp SINAPI BA 05-2023 Desoner'!G:G,'Planilha Orçamentária Desoner'!C54,'Comp SINAPI BA 05-2023 Desoner'!K:K)+SUMIF('Ins SINAPI BA 05-2023 Desoner'!A:A,'Planilha Orçamentária Desoner'!C54,'Ins SINAPI BA 05-2023 Desoner'!E:E) -> 425 | H54: =IF(J54="SERV",G54*(1+$H$5),G54*(1+$H$6)) -> 567.4175 | I54: =IF(J54="SERV",G54*F54*(1+$H$5),G54*F54*(1+$H$6)) ->  | J54: serv | K54: i
A55: 6.1.2 | B55: SICRO | C55: 3806402 | D55: Limpeza em superfície de concreto com jateamento d'água sob pressão | E55: m2 | F55: ='Planilha Orçamentária'!#REF! ->  | G55: 2.3 | H55: =IF(J55="SERV",G55*(1+$H$5),G55*(1+$H$6)) -> 3.07073 | I55: =IF(J55="SERV",G55*F55*(1+$H$5),G55*F55*(1+$H$6)) ->  | J55: serv | K55: s
A56: 6.1.3 | B56: SICRO | C56: 3806413 | D56: Apicoamento mecanizado de concreto | E56: m2 | F56: =F55 ->  | G56: 20.4 | H56: =IF(J56="SERV",G56*(1+$H$5),G56*(1+$H$6)) -> 27.23604 | J56: serv | K56: s
A57: 6.1.4 | B57: SICRO | C57: 4915645 | D57: Injeção de adesivo estrutural à base de resina epóxi de baixa viscosidade para tratamento de fissuras em estruturas de concreto - fornecimento e aplicação mecanizada | E57: kg | F57: ='Planilha Orçamentária'!#REF! ->  | G57: 272.61 | H57: 363.961611 | J57: serv | K57: s
A58: 6.1.5 | B58: SINAPI | C58: 92264 | D58: =PROPER(IF(K58="i",VLOOKUP(C58,'Ins SINAPI BA 05-2023 Desoner'!$A$8:$E$5189,2,0),VLOOKUP(C58,'Comp SINAPI BA 05-2023 Desoner'!$G$7:$K$7500,2,0))) -> Fabricação De Fôrma Para Pilares E Estruturas Similares, Em Chapa De Madeira Compensada Plastificada, E = 18 Mm. Af_09/2020 | E58: =LOWER(IF(K58="i",VLOOKUP(C58,'Ins SINAPI BA 05-2023 Desoner'!$A$8:$E$5189,3,0),VLOOKUP(C58,'Comp SINAPI BA 05-2023 Desoner'!$G$7:$K$7500,3,0))) -> m2 | F58: ='Planilha Orçamentária'!#REF! ->  | G58: =SUMIFS('CPU DES'!$H:$H,'CPU DES'!$B:$B,'Planilha Orçamentária Desoner'!$A58,'CPU DES'!$I:$I,"ss")+SUMIFS('CPU DES'!$H:$H,'CPU DES'!$B:$B,'Planilha Orçamentária Desoner'!$A58,'CPU DES'!$I:$I,"mdo")+SUMIF('Comp SINAPI BA 05-2023 Desoner'!G:G,'Planilha Orçamentária Desoner'!C58,'Comp SINAPI BA 05-2023 Desoner'!K:K)+SUMIF('Ins SINAPI BA 05-2023 Desoner'!A:A,'Planilha Orçamentária Desoner'!C58,'Ins SINAPI BA 05-2023 Desoner'!E:E) -> 204.44 | H58: 272.947844 | J58: serv | K58: s
A59: 6.1.6 | B59: PRÓPRIA | C59: CPU.06 | D59: ARGAMASSA TRACO 1:3 (CIMENTO E AREIA), PREPARO MANUAL, INCLUSO ADITIVO IMPERMEABILIZANTE | E59: m3 | F59: ='Planilha Orçamentária'!#REF! ->  | G59: =SUMIFS(CPU!$H:$H,CPU!$B:$B,'Planilha Orçamentária'!#REF!,CPU!$I:$I,"ss")+SUMIFS(CPU!$H:$H,CPU!$B:$B,'Planilha Orçamentária'!#REF!,CPU!$I:$I,"mdo")+SUMIF('Comp SINAPI PE 04-2024 Onerado'!G:G,'Planilha Orçamentária'!#REF!,'Comp SINAPI PE 04-2024 Onerado'!K:K)+SUMIF('Ins SINAPI PE 04-2024 Onerado'!A:A,'Planilha Orçamentária'!#REF!,'Ins SINAPI PE 04-2024 Onerado'!E:E) -> 0 | H59: 0 | J59: serv | K59: s
A60: 6.1.7 | B60: SINAPI | C60: 97912 | D60: =PROPER(IF(K60="i",VLOOKUP(C60,'Ins SINAPI BA 05-2023 Desoner'!$A$8:$E$5189,2,0),VLOOKUP(C60,'Comp SINAPI BA 05-2023 Desoner'!$G$7:$K$7500,2,0))) -> Transporte Com Caminhão Basculante De 6 M³, Em Via Urbana Em Leito Natural (Unidade: M3Xkm). Af_07/2020 | E60: =LOWER(IF(K60="i",VLOOKUP(C60,'Ins SINAPI BA 05-2023 Desoner'!$A$8:$E$5189,3,0),VLOOKUP(C60,'Comp SINAPI BA 05-2023 Desoner'!$G$7:$K$7500,3,0))) -> m3xkm | F60: ='Planilha Orçamentária'!#REF! ->  | G60: =SUMIFS('CPU DES'!$H:$H,'CPU DES'!$B:$B,'Planilha Orçamentária Desoner'!$A60,'CPU DES'!$I:$I,"ss")+SUMIFS('CPU DES'!$H:$H,'CPU DES'!$B:$B,'Planilha Orçamentária Desoner'!$A60,'CPU DES'!$I:$I,"mdo")+SUMIF('Comp SINAPI BA 05-2023 Desoner'!G:G,'Planilha Orçamentária Desoner'!C60,'Comp SINAPI BA 05-2023 Desoner'!K:K)+SUMIF('Ins SINAPI BA 05-2023 Desoner'!A:A,'Planilha Orçamentária Desoner'!C60,'Ins SINAPI BA 05-2023 Desoner'!E:E) -> 3.41 | H60: =IF(J60="SERV",G60*(1+$H$5),G60*(1+$H$6)) -> 4.552691 | I60: =IF(J60="SERV",G60*F60*(1+$H$5),G60*F60*(1+$H$6)) ->  | J60: serv | K60: s
A61: 6.1.8 | B61: PRÓPRIA | C61: CPU.07 | D61: CURA QUÍMICA | E61: m2 | F61: ='Planilha Orçamentária'!#REF! ->  | G61: =SUMIFS(CPU!$H:$H,CPU!$B:$B,'Planilha Orçamentária'!#REF!,CPU!$I:$I,"ss")+SUMIFS(CPU!$H:$H,CPU!$B:$B,'Planilha Orçamentária'!#REF!,CPU!$I:$I,"mdo")+SUMIF('Comp SINAPI PE 04-2024 Onerado'!G:G,'Planilha Orçamentária'!#REF!,'Comp SINAPI PE 04-2024 Onerado'!K:K)+SUMIF('Ins SINAPI PE 04-2024 Onerado'!A:A,'Planilha Orçamentária'!#REF!,'Ins SINAPI PE 04-2024 Onerado'!E:E) -> 0 | H61: 0 | J61: serv | K61: s
A62: 6.1.9 | B62: SICRO | C62: 3808043 | D62: Pintura manual com nata de cimento - 3 demãos | E62: m2 | F62: ='Planilha Orçamentária'!#REF! ->  | G62: 3.79 | H62: 5.060029 | J62: serv | K62: s
A63: 6.2 | D63: Crista | I63: =SUM(I64:I68) -> 
A64: 6.2.1 | B64: SICRO | C64: 3806402 | D64: Limpeza em superfície de concreto com jateamento d'água sob pressão | E64: m2 | F64: ='Planilha Orçamentária'!#REF! ->  | G64: 2.3 | H64: =IF(J64="SERV",G64*(1+$H$5),G64*(1+$H$6)) -> 3.07073 | I64: =IF(J64="SERV",G64*F64*(1+$H$5),G64*F64*(1+$H$6)) ->  | J64: serv | K64: s
A65: 6.2.2 | B65: SICRO | C65: 4915645 | D65: Injeção de adesivo estrutural à base de resina epóxi de baixa viscosidade para tratamento de fissuras em estruturas de concreto - fornecimento e aplicação mecanizada | E65: kg | F65: ='Planilha Orçamentária'!#REF! ->  | G65: 272.61 | H65: =IF(J65="SERV",G65*(1+$H$5),G65*(1+$H$6)) -> 363.961611 | I65: =IF(J65="SERV",G65*F65*(1+$H$5),G65*F65*(1+$H$6)) ->  | J65: serv | K65: s
A66: 6.2.3 | B66: PRÓPRIA | C66: CPU.06 | D66: ARGAMASSA TRACO 1:3 (CIMENTO E AREIA), PREPARO MANUAL, INCLUSO ADITIVO IMPERMEABILIZANTE | E66: m3 | F66: ='Planilha Orçamentária'!#REF! ->  | G66: =G59 -> 0 | H66: =IF(J66="SERV",G66*(1+$H$5),G66*(1+$H$6)) -> 0 | I66: =IF(J66="SERV",G66*F66*(1+$H$5),G66*F66*(1+$H$6)) ->  | J66: serv | K66: s
A67: 6.2.4 | B67: SINAPI | C67: 97912 | D67: =PROPER(IF(K67="i",VLOOKUP(C67,'Ins SINAPI BA 05-2023 Desoner'!$A$8:$E$5189,2,0),VLOOKUP(C67,'Comp SINAPI BA 05-2023 Desoner'!$G$7:$K$7500,2,0))) -> Transporte Com Caminhão Basculante De 6 M³, Em Via Urbana Em Leito Natural (Unidade: M3Xkm). Af_07/2020 | E67: =LOWER(IF(K67="i",VLOOKUP(C67,'Ins SINAPI PE 04-2024 Onerado'!$A$8:$E$5189,3,0),VLOOKUP(C67,'Comp SINAPI PE 04-2024 Onerado'!$G$7:$K$7500,3,0))) -> m3xkm | F67: ='Planilha Orçamentária'!#REF! ->  | G67: =SUMIFS('CPU DES'!$H:$H,'CPU DES'!$B:$B,'Planilha Orçamentária Desoner'!$A67,'CPU DES'!$I:$I,"ss")+SUMIFS('CPU DES'!$H:$H,'CPU DES'!$B:$B,'Planilha Orçamentária Desoner'!$A67,'CPU DES'!$I:$I,"mdo")+SUMIF('Comp SINAPI BA 05-2023 Desoner'!G:G,'Planilha Orçamentária Desoner'!C67,'Comp SINAPI BA 05-2023 Desoner'!K:K)+SUMIF('Ins SINAPI BA 05-2023 Desoner'!A:A,'Planilha Orçamentária Desoner'!C67,'Ins SINAPI BA 05-2023 Desoner'!E:E) -> 3.41 | H67: =IF(J67="SERV",G67*(1+$H$5),G67*(1+$H$6)) -> 4.552691 | I67: =IF(J67="SERV",G67*F67*(1+$H$5),G67*F67*(1+$H$6)) ->  | J67: serv | K67: s
A68: 6.2.5 | B68: PRÓPRIA | C68: CPU.07 | D68: CURA QUÍMICA | E68: m2 | F68: ='Planilha Orçamentária'!#REF! ->  | G68: =G61 -> 0 | H68: =IF(J68="SERV",G68*(1+$H$5),G68*(1+$H$6)) -> 0 | I68: =IF(J68="SERV",G68*F68*(1+$H$5),G68*F68*(1+$H$6)) ->  | J68: serv | K68: s
A69: 6.3 | D69: Vertedouro | I69: =SUM(I70:I72) -> 
A70: 6.3.1 | B70: SICRO | C70: 3806402 | D70: Limpeza em superfície de concreto com jateamento d'água sob pressão | E70: m2 | F70: ='Planilha Orçamentária'!#REF! ->  | G70: 2.3 | H70: =IF(J70="SERV",G70*(1+$H$5),G70*(1+$H$6)) -> 3.07073 | I70: =IF(J70="SERV",G70*F70*(1+$H$5),G70*F70*(1+$H$6)) ->  | J70: serv | K70: s
A71: 6.3.2 | B71: SICRO | C71: 4915645 | D71: Injeção de adesivo estrutural à base de resina epóxi de baixa viscosidade para tratamento de fissuras em estruturas de concreto - fornecimento e aplicação mecanizada | E71: kg | F71: ='Planilha Orçamentária'!#REF! ->  | G71: 272.61 | H71: =IF(J71="SERV",G71*(1+$H$5),G71*(1+$H$6)) -> 363.961611 | I71: =IF(J71="SERV",G71*F71*(1+$H$5),G71*F71*(1+$H$6)) ->  | J71: serv | K71: s
A72: 6.3.3 | B72: SICRO | C72: 4915694 | D72: Limpeza, serragem e enchimento de fissuras niveladas com abertura entre 0,4 mm e 1,0 mm e profundidade de 25 mm em estruturas de concreto com selante elástico a frio (BASEADO SICRO 4915694) | E72: m | F72: ='Planilha Orçamentária'!#REF! ->  | G72: 27 | H72: =IF(J72="SERV",G72*(1+$H$5),G72*(1+$H$6)) -> 36.0477 | I72: =IF(J72="SERV",G72*F72*(1+$H$5),G72*F72*(1+$H$6)) ->  | J72: serv | K72: s
A74: 7 | D74: DIQUE | I74: =SUM(I75,I82) -> 
A75: 7.1 | D75: Investigação do maciço | I75: =SUM(I76:I81) -> 
A76: 7.1.1 | B76: EMBASA | C76: 32.02.01 | D76: SONDAGEM A PERCUSSÃO | E76: m | F76: ='Planilha Orçamentária'!#REF! ->  | G76: 101.49 | H76: =IF(J76="SERV",G76*(1+$H$5),G76*(1+$H$6)) -> 135.499299 | I76: =IF(J76="SERV",G76*F76*(1+$H$5),G76*F76*(1+$H$6)) ->  | J76: serv | K76: s
A77: 7.1.2 | B77: EMBASA | C77: 34.01.43 | D77: ENSAIO DE PERMEABILIDADE COM CARGA CONSTANTE | E77: un | F77: ='Planilha Orçamentária'!#REF! ->  | G77: 501.25 | H77: 669.218875 | J77: serv | K77: s
A78: 7.1.3 | B78: EMBASA | C78: 34.02.04 | D78: "ANALISE GRANULOMETRICA POR PENEIRAMENTO E SEDIMENTACAO EM "TOP SOIL" | E78: un | F78: ='Planilha Orçamentária'!#REF! ->  | G78: 223.64 | H78: 298.581764 | J78: serv | K78: s
A79: 7.1.4 | B79: EMBASA | C79: 34.01.16 | D79: MASSA ESPECIFICA REAL DOS GRAOS | E79: un | F79: ='Planilha Orçamentária'!#REF! ->  | G79: 65.78 | H79: 87.822878 | J79: serv | K79: s
A80: 7.1.5 | B80: EMBASA | C80: 34.01.07 | D80: DETERMINACAO DE LIMITE DE LIQUIDEZ (NBR - 06459) | E80: un | F80: ='Planilha Orçamentária'!#REF! ->  | G80: 86.09 | H80: 114.938759 | J80: serv | K80: s
A81: 7.1.6 | B81: EMBASA | C81: 34.01.10 | D81: DETERMINACAO DE LIMITE DE PLASTICIDADE (NBR - 07180) | E81: un | F81: ='Planilha Orçamentária'!#REF! ->  | G81: 77.48 | H81: 103.443548 | J81: serv | K81: s
A82: 7.2 | D82: Recuperação do maciço | I82: =SUM(I83:I85) -> 
A83: 7.2.1 | B83: SINAPI | C83: 93358 | D83: =PROPER(IF(K83="i",VLOOKUP(C83,'Ins SINAPI BA 05-2023 Desoner'!$A$8:$E$5189,2,0),VLOOKUP(C83,'Comp SINAPI BA 05-2023 Desoner'!$G$7:$K$7500,2,0))) -> Escavação Manual De Vala Com Profundidade Menor Ou Igual A 1,30 M. Af_02/2021 | E83: =LOWER(IF(K83="i",VLOOKUP(C83,'Ins SINAPI BA 05-2023 Desoner'!$A$8:$E$5189,3,0),VLOOKUP(C83,'Comp SINAPI BA 05-2023 Desoner'!$G$7:$K$7500,3,0))) -> m3 | F83: ='Planilha Orçamentária'!#REF! ->  | G83: =SUMIFS('CPU DES'!$H:$H,'CPU DES'!$B:$B,'Planilha Orçamentária Desoner'!$A83,'CPU DES'!$I:$I,"ss")+SUMIFS('CPU DES'!$H:$H,'CPU DES'!$B:$B,'Planilha Orçamentária Desoner'!$A83,'CPU DES'!$I:$I,"mdo")+SUMIF('Comp SINAPI BA 05-2023 Desoner'!G:G,'Planilha Orçamentária Desoner'!C83,'Comp SINAPI BA 05-2023 Desoner'!K:K)+SUMIF('Ins SINAPI BA 05-2023 Desoner'!A:A,'Planilha Orçamentária Desoner'!C83,'Ins SINAPI BA 05-2023 Desoner'!E:E) -> 77.73 | H83: =IF(J83="SERV",G83*(1+$H$5),G83*(1+$H$6)) -> 103.777323 | I83: =IF(J83="SERV",G83*F83*(1+$H$5),G83*F83*(1+$H$6)) ->  | J83: serv | K83: s
A84: 7.2.2 | B84: SINAPI | C84: 99814 | D84: =PROPER(IF(K84="i",VLOOKUP(C84,'Ins SINAPI BA 05-2023 Desoner'!$A$8:$E$5189,2,0),VLOOKUP(C84,'Comp SINAPI BA 05-2023 Desoner'!$G$7:$K$7500,2,0))) -> Limpeza De Superfície Com Jato De Alta Pressão. Af_04/2019 | E84: =LOWER(IF(K84="i",VLOOKUP(C84,'Ins SINAPI BA 05-2023 Desoner'!$A$8:$E$5189,3,0),VLOOKUP(C84,'Comp SINAPI BA 05-2023 Desoner'!$G$7:$K$7500,3,0))) -> m2 | F84: ='Planilha Orçamentária'!#REF! ->  | G84: =SUMIFS('CPU DES'!$H:$H,'CPU DES'!$B:$B,'Planilha Orçamentária Desoner'!$A84,'CPU DES'!$I:$I,"ss")+SUMIFS('CPU DES'!$H:$H,'CPU DES'!$B:$B,'Planilha Orçamentária Desoner'!$A84,'CPU DES'!$I:$I,"mdo")+SUMIF('Comp SINAPI BA 05-2023 Desoner'!G:G,'Planilha Orçamentária Desoner'!C84,'Comp SINAPI BA 05-2023 Desoner'!K:K)+SUMIF('Ins SINAPI BA 05-2023 Desoner'!A:A,'Planilha Orçamentária Desoner'!C84,'Ins SINAPI BA 05-2023 Desoner'!E:E) -> 1.77 | H84: =IF(J84="SERV",G84*(1+$H$5),G84*(1+$H$6)) -> 2.363127 | I84: =IF(J84="SERV",G84*F84*(1+$H$5),G84*F84*(1+$H$6)) ->  | J84: serv | K84: s
A85: 7.2.3 | B85: SICRO | C85: 3816196 | D85: Injeção de nata de cimento | E85: m3 | F85: ='Planilha Orçamentária'!#REF! ->  | G85: 1205.45 | H85: =IF(J85="SERV",G85*(1+$H$5),G85*(1+$H$6)) -> 1609.396295 | I85: =IF(J85="SERV",G85*F85*(1+$H$5),G85*F85*(1+$H$6)) ->  | J85: serv | K85: s
A87: 8 | D87: SERVIÇOS AUXILIARES | I87: =SUM(I88) -> 
A88: 8.1 | D88: Análise da qualidade da água | I88: =SUM(I89:I91) -> 
A89: 8.1.1 | B89: SEDOP | C89: PT0009 | D89: Analise fisico-quimica da agua | E89: un | F89: ='Planilha Orçamentária'!#REF! ->  | G89: 236.71 | H89: =IF(J89="SERV",G89*(1+$H$5),G89*(1+$H$6)) -> 316.031521 | I89: =IF(J89="SERV",G89*F89*(1+$H$5),G89*F89*(1+$H$6)) ->  | J89: serv | K89: s
A90: 8.1.2 | B90: SEDOP | C90: PT0010 | D90: Analise bacteriologica | E90: un | F90: ='Planilha Orçamentária'!#REF! ->  | G90: 210.75 | H90: =IF(J90="SERV",G90*(1+$H$5),G90*(1+$H$6)) -> 281.372325 | I90: =IF(J90="SERV",G90*F90*(1+$H$5),G90*F90*(1+$H$6)) ->  | J90: serv | K90: s
A91: 8.1.3 | B91: SEDOP | C91: PT0019 | D91: Relatório de analises e testes | E91: un | F91: ='Planilha Orçamentária'!#REF! ->  | G91: 1511.88 | H91: =IF(J91="SERV",G91*(1+$H$5),G91*(1+$H$6)) -> 2018.510988 | I91: =IF(J91="SERV",G91*F91*(1+$H$5),G91*F91*(1+$H$6)) ->  | J91: serv | K91: s
D93: TOTAL Sem BDI: | I93: =SUMPRODUCT(F11:F92,G11:G92) -> 
D94: BDI: | I94: =I93*H5 -> 
D95: TOTAL COM BDI: | I95: =SUM(I93:I94) -> 

Sheet CPU DES (hidden)
B1: Ministério da Integração e do Desenvolvimento Regional
B2: Companhia de Desenvolvimento dos Vales do São Francisco e do Parnaíba
B4: COMPOSIÇÕES DE PREÇOS UNITÁRIOS - ORÇAMENTO DESONERADO
B5: OBRA: | C5: SERVIÇOS DE MANUTENÇÃO E OBRAS CIVIS NA ESTRUTURA DA BARRAGEM E EQUIPAMENTO HIDROMECÂNICO | F5: BDI (serv.): | G5: ='BDI serv Desonerado'!D22 -> 0.3351
B6: LOCAL: | C6: BARRAGEM POÇO DO MAGRO, GUANAMBI/BA | F6: BDI (forn.): | G6: ='BDI forn Desonerado'!D22 -> 0.212
B7: DATA BASE: | C7: 2023-05-01
B8: PRAZO: | C8: 120 DIAS
B10: REFERÊNCIA | C10: CÓDIGO | D10: DESCRIÇÃO | E10: UNIDADE | F10: ÍNDICE | G10: CUSTO UNITÁRIO | H10: PREÇO TOTAL
B11: ='Planilha Orçamentária Desoner'!A12 -> 1.1 | C11: =VLOOKUP($B11,'Planilha Orçamentária Desoner'!$A$11:$I$504,3,) -> CPU.01 | D11: =VLOOKUP($B11,'Planilha Orçamentária Desoner'!$A$11:$I$504,4,) -> ADMINISTRAÇÃO LOCAL | E11: un | H11: =SUM(H15,H14,H13,H12) -> 7834.22 | I11: S
B12: =B11 -> 1.1 | D12: MATERIAL | I12: ss
B13: =B11 -> 1.1 | D13: EQUIPAMENTOS | H13: 0 | I13: ss
B14: =B11 -> 1.1 | D14: SERVIÇOS | I14: ss
B15: =B11 -> 1.1 | D15: MÃO DE OBRA | H15: =SUM(H16:H17) -> 7834.22 | I15: mdo
B16: SINAPI | C16: 90778 | D16: =PROPER(IF(I16="i",VLOOKUP(C16,'Ins SINAPI BA 05-2023 Desoner'!$A$8:$E$5189,2,0),VLOOKUP(C16,'Comp SINAPI BA 05-2023 Desoner'!$G$7:$K$7500,2,0))) -> Engenheiro Civil De Obra Pleno Com Encargos Complementares | E16: =LOWER(IF(I16="i",VLOOKUP(C16,'Ins SINAPI BA 05-2023 Desoner'!$A$8:$E$5189,3,0),VLOOKUP(C16,'Comp SINAPI BA 05-2023 Desoner'!$G$7:$K$7500,3,0))) -> h | F16: =CPU!F15 -> 30 | G16: =IF(I16="i",VLOOKUP(C16,'Ins SINAPI BA 05-2023 Desoner'!$A$8:$E$5189,5,0),VLOOKUP(C16,'Comp SINAPI BA 05-2023 Desoner'!$G$7:$K$7500,5,0)) -> 111.26 | H16: =ROUND(F16*G16,2) -> 3337.8 | I16: ca
B17: SINAPI | C17: 93572 | D17: =PROPER(IF(I17="i",VLOOKUP(C17,'Ins SINAPI BA 05-2023 Desoner'!$A$8:$E$5189,2,0),VLOOKUP(C17,'Comp SINAPI BA 05-2023 Desoner'!$G$7:$K$7500,2,0))) -> Encarregado Geral De Obras Com Encargos Complementares | E17: =LOWER(IF(I17="i",VLOOKUP(C17,'Ins SINAPI BA 05-2023 Desoner'!$A$8:$E$5189,3,0),VLOOKUP(C17,'Comp SINAPI BA 05-2023 Desoner'!$G$7:$K$7500,3,0))) -> mes | F17: =CPU!F16 -> 0.8 | G17: =IF(I17="i",VLOOKUP(C17,'Ins SINAPI BA 05-2023 Desoner'!$A$8:$E$5189,5,0),VLOOKUP(C17,'Comp SINAPI BA 05-2023 Desoner'!$G$7:$K$7500,5,0)) -> 5620.52 | H17: =ROUND(F17*G17,2) -> 4496.42 | I17: ca
I18: x
B19: ='Planilha Orçamentária Desoner'!A22 -> 2.2.1 | C19: =VLOOKUP($B19,'Planilha Orçamentária Desoner'!$A$11:$I$504,3,) -> CPU.02 | D19: =VLOOKUP($B19,'Planilha Orçamentária Desoner'!$A$11:$I$504,4,) -> PLACA DE OBRA EM CHAPA DE ACO GALVANIZADO | E19: m² | H19: =SUM(H20,H28,H26,H27) -> 406.87 | I19: S
B20: =B19 -> 2.2.1 | D20: MATERIAL | H20: =SUM(H21:H25) -> 373.64 | I20: SS
B21: SINAPI | C21: 4417 | D21: =PROPER(IF(I21="i",VLOOKUP(C21,'Ins SINAPI BA 05-2023 Desoner'!$A$8:$E$5189,2,0),VLOOKUP(C21,'Comp SINAPI BA 05-2023 Desoner'!$G$7:$K$7500,2,0))) -> Sarrafo Nao Aparelhado *2,5 X 7* Cm, Em Macaranduba, Angelim Ou Equivalente Da Regiao - Bruta | E21: =LOWER(IF(I21="i",VLOOKUP(C21,'Ins SINAPI BA 05-2023 Desoner'!$A$8:$E$5189,3,0),VLOOKUP(C21,'Comp SINAPI BA 05-2023 Desoner'!$G$7:$K$7500,3,0))) -> m | F21: =CPU!F46 -> 2 | G21: =IF(I21="i",VLOOKUP(C21,'Ins SINAPI BA 05-2023 Desoner'!$A$8:$E$5189,5,0),VLOOKUP(C21,'Comp SINAPI BA 05-2023 Desoner'!$G$7:$K$7500,5,0)) -> 7.18 | H21: =ROUND(F21*G21,2) -> 14.36 | I21: i
B22: SINAPI | C22: 4430 | D22: =PROPER(IF(I22="i",VLOOKUP(C22,'Ins SINAPI BA 05-2023 Desoner'!$A$8:$E$5189,2,0),VLOOKUP(C22,'Comp SINAPI BA 05-2023 Desoner'!$G$7:$K$7500,2,0))) -> Caibro Nao Aparelhado *5 X 6* Cm, Em Macaranduba, Angelim Ou Equivalente Da Regiao - Bruta | E22: =LOWER(IF(I22="i",VLOOKUP(C22,'Ins SINAPI BA 05-2023 Desoner'!$A$8:$E$5189,3,0),VLOOKUP(C22,'Comp SINAPI BA 05-2023 Desoner'!$G$7:$K$7500,3,0))) -> m | F22: =CPU!F47 -> 4 | G22: =IF(I22="i",VLOOKUP(C22,'Ins SINAPI BA 05-2023 Desoner'!$A$8:$E$5189,5,0),VLOOKUP(C22,'Comp SINAPI BA 05-2023 Desoner'!$G$7:$K$7500,5,0)) -> 13.2 | H22: =ROUND(F22*G22,2) -> 52.8 | I22: I
B23: SINAPI | C23: 4813 | D23: =PROPER(IF(I23="i",VLOOKUP(C23,'Ins SINAPI BA 05-2023 Desoner'!$A$8:$E$5189,2,0),VLOOKUP(C23,'Comp SINAPI BA 05-2023 Desoner'!$G$7:$K$7500,2,0))) -> Placa De Obra (Para Construcao Civil) Em Chapa Galvanizada *N. 22*, Adesivada, De *2,4 X 1,2* M (Sem Postes Para Fixacao) | E23: =LOWER(IF(I23="i",VLOOKUP(C23,'Ins SINAPI BA 05-2023 Desoner'!$A$8:$E$5189,3,0),VLOOKUP(C23,'Comp SINAPI BA 05-2023 Desoner'!$G$7:$K$7500,3,0))) -> m2 | F23: =CPU!F48 -> 1 | G23: =IF(I23="i",VLOOKUP(C23,'Ins SINAPI BA 05-2023 Desoner'!$A$8:$E$5189,5,0),VLOOKUP(C23,'Comp SINAPI BA 05-2023 Desoner'!$G$7:$K$7500,5,0)) -> 300 | H23: =ROUND(F23*G23,2) -> 300 | I23: I
B24: SINAPI | C24: 5075 | D24: =PROPER(IF(I24="i",VLOOKUP(C24,'Ins SINAPI BA 05-2023 Desoner'!$A$8:$E$5189,2,0),VLOOKUP(C24,'Comp SINAPI BA 05-2023 Desoner'!$G$7:$K$7500,2,0))) -> Prego De Aco Polido Com Cabeca 18 X 30 (2 3/4 X 10) | E24: =LOWER(IF(I24="i",VLOOKUP(C24,'Ins SINAPI BA 05-2023 Desoner'!$A$8:$E$5189,3,0),VLOOKUP(C24,'Comp SINAPI BA 05-2023 Desoner'!$G$7:$K$7500,3,0))) -> kg | F24: =CPU!F49 -> 0.11 | G24: =IF(I24="i",VLOOKUP(C24,'Ins SINAPI BA 05-2023 Desoner'!$A$8:$E$5189,5,0),VLOOKUP(C24,'Comp SINAPI BA 05-2023 Desoner'!$G$7:$K$7500,5,0)) -> 20.6 | H24: =ROUND(F24*G24,2) -> 2.27 | I24: I
B25: SINAPI | C25: 94962 | D25: =PROPER(IF(I25="i",VLOOKUP(C25,'Ins SINAPI BA 05-2023 Desoner'!$A$8:$E$5189,2,0),VLOOKUP(C25,'Comp SINAPI BA 05-2023 Desoner'!$G$7:$K$7500,2,0))) -> Concreto Magro Para Lastro, Traço 1:4,5:4,5 (Em Massa Seca De Cimento/ Areia Média/ Brita 1) - Preparo Mecânico Com Betoneira 400 L. Af_05/2021 | E25: =LOWER(IF(I25="i",VLOOKUP(C25,'Ins SINAPI BA 05-2023 Desoner'!$A$8:$E$5189,3,0),VLOOKUP(C25,'Comp SINAPI BA 05-2023 Desoner'!$G$7:$K$7500,3,0))) -> m3 | F25: =CPU!F50 -> 0.01 | G25: =IF(I25="i",VLOOKUP(C25,'Ins SINAPI BA 05-2023 Desoner'!$A$8:$E$5189,5,0),VLOOKUP(C25,'Comp SINAPI BA 05-2023 Desoner'!$G$7:$K$7500,5,0)) -> 421.32 | H25: =ROUND(F25*G25,2) -> 4.21 | I25: ca
B26: =B19 -> 2.2.1 | D26: EQUIPAMENTOS | H26: 0 | I26: SS
B27: =B19 -> 2.2.1 | D27: SERVIÇOS | H27: 0 | I27: SS
B28: =B19 -> 2.2.1 | D28: MÃO DE OBRA | H28: =SUM(H29:H30) -> 33.23 | I28: ss
B29: SINAPI | C29: 88262 | D29: =PROPER(IF(I29="i",VLOOKUP(C29,'Ins SINAPI BA 05-2023 Desoner'!$A$8:$E$5189,2,0),VLOOKUP(C29,'Comp SINAPI BA 05-2023 Desoner'!$G$7:$K$7500,2,0))) -> Carpinteiro De Formas Com Encargos Complementares | E29: =LOWER(IF(I29="i",VLOOKUP(C29,'Ins SINAPI BA 05-2023 Desoner'!$A$8:$E$5189,3,0),VLOOKUP(C29,'Comp SINAPI BA 05-2023 Desoner'!$G$7:$K$7500,3,0))) -> h | F29: =CPU!F59 -> 0.5 | G29: =IF(I29="i",VLOOKUP(C29,'Ins SINAPI BA 05-2023 Desoner'!$A$8:$E$5189,5,0),VLOOKUP(C29,'Comp SINAPI BA 05-2023 Desoner'!$G$7:$K$7500,5,0)) -> 27.16 | H29: =ROUND(F29*G29,2) -> 13.58 | I29: ca
B30: SINAPI | C30: 88316 | D30: =PROPER(IF(I30="i",VLOOKUP(C30,'Ins SINAPI BA 05-2023 Desoner'!$A$8:$E$5189,2,0),VLOOKUP(C30,'Comp SINAPI BA 05-2023 Desoner'!$G$7:$K$7500,2,0))) -> Servente Com Encargos Complementares | E30: =LOWER(IF(I30="i",VLOOKUP(C30,'Ins SINAPI BA 05-2023 Desoner'!$A$8:$E$5189,3,0),VLOOKUP(C30,'Comp SINAPI BA 05-2023 Desoner'!$G$7:$K$7500,3,0))) -> h | F30: =CPU!F60 -> 1 | G30: =IF(I30="i",VLOOKUP(C30,'Ins SINAPI BA 05-2023 Desoner'!$A$8:$E$5189,5,0),VLOOKUP(C30,'Comp SINAPI BA 05-2023 Desoner'!$G$7:$K$7500,5,0)) -> 19.65 | H30: =ROUND(F30*G30,2) -> 19.65 | I30: ca
B32: ='Planilha Orçamentária Desoner'!A33 -> 4.1.1 | C32: =VLOOKUP($B32,'Planilha Orçamentária Desoner'!$A$11:$I$504,3,) -> CPU.03 | D32: =VLOOKUP($B32,'Planilha Orçamentária Desoner'!$A$11:$I$504,4,) -> Mobilização da Equipe, Camara Hiperbarica e todos os equipamentos de mergulho envolvidos na operação | E32: un | F32: 1 | H32: =SUM(H33,H35,H37) ->  | I32: S
B33: =B32 -> 4.1.1 | D33: MATERIAL | H33: 0 | I33: ss
B34: =B32 -> 4.1.1 | D34: EQUIPAMENTOS | H34: 0 | I34: ss
B35: =B32 -> 4.1.1 | D35: SERVIÇOS | H35: =H36 ->  | I35: ss
B36: COTAÇÃO | C36: 2023-05-01 | D36: Mobilização e desmobilização da Equipe, Camara Hiperbarica e todos os equipamentos de mergulho envolvidos na operação | E36: un | F36: =CPU!#REF! ->  | G36: =2*(21000+22000+19400)/3 -> 41600 | H36: =ROUND(F36*G36,2) ->  | I36: ca
B37: =B32 -> 4.1.1 | D37: MÃO DE OBRA | H37: 0 | I37: ss
I38: x
B39: ='Planilha Orçamentária Desoner'!A36 -> 4.2.1 | C39: =VLOOKUP($B39,'Planilha Orçamentária Desoner'!$A$11:$I$504,3,) -> CPU.04 | D39: =VLOOKUP($B39,'Planilha Orçamentária Desoner'!$A$11:$I$504,4,) -> Vedação da entrada da tomada d’água com chapas metálicas | E39: un | F39: 1 | H39: =SUM(H40,H51,H53,H56) ->  | I39: S
B40: =B39 -> 4.2.1 | D40: MATERIAL | H40: =SUM(H41:H50) ->  | I40: ss
B41: CODEVASF | C41: DP | D41: DIÁRIA | E41: dia | F41: =CPU!F174 -> 1.2 | G41: 305.1 | H41: =ROUND(F41*G41,2) -> 366.12
B42: SICRO | C42: E9043 | D42: Embarcação de alumínio com comprimento de 6 m e motor de popa - 18,60 kW | E42: h | F42: =CPU!#REF! ->  | G42: 66.1577 | H42: =ROUND(F42*G42,2) -> 
B43: SICRO | C43: 2408149 | D43: Estrutura em chapa de aço ASTM A36 corte, solda e montagem - fornecimento e instalação | E43: kg | F43: =CPU!#REF! ->  | G43: 14.84 | H43: =ROUND(F43*G43,2) -> 
B44: SICRO | C44: E9243 | D44: Câmara hiperbárica com filtro, serpentina e reservatório de ar para mergulho raso - D= 1,80 m e H = 2,22 m. | E44: h | F44: =CPU!#REF! ->  | G44: 58.3517 | H44: =ROUND(F44*G44,2) -> 
B45: SICRO | C45: E9245 | D45: Estação transmissora de superfície para comunicação com fio | E45: h | F45: =CPU!#REF! ->  | G45: 0.7428
B46: SICRO | C46: E9242 | D46: Estação transmissora de superfície para televisionamento | E46: h | F46: =CPU!#REF! ->  | G46: 1.3333
B47: SICRO | C47: E9066 | D47: Grupo gerador - 14 kVA | E47: h | F47: =CPU!#REF! ->  | G47: 19.3801
B48: SICRO | C48: E9246 | D48: Painel de controle de ar com manômetros e pneufatômetros | E48: h | F48: =CPU!#REF! ->  | G48: 1.4255
B49: SICRO | C49: E9248 | D49: Sistema de ar comprimido para mergulho até 30 m com pressão de trabalho de 1,4 MPa - 7,46 kW | E49: h | F49: =CPU!#REF! ->  | G49: 15.0543
B50: SICRO | C50: E9058 | D50: Plataforma flutuante de 12 x 24 x 1,8 m com capacidade de 150 t | E50: h | F50: =CPU!#REF! ->  | G50: 40.3012 | H50: =ROUND(F50*G50,2) -> 
B51: =B39 -> 4.2.1 | D51: EQUIPAMENTOS | H51: =SUM(H52) ->  | I51: ss
B52: CODEVASF | D52: CAMINHONETE | E52: mes | F52: =CPU!#REF! ->  | G52: 5885.33 | H52: =ROUND(F52*G52,2) ->  | I52: I
B53: =B39 -> 4.2.1 | D53: SERVIÇOS | H53: =SUM(H54:H55) -> 23.57 | I53: ss
B54: SICRO | C54: 3807863 | D54: Chumbador para concreto D = 12,5 mm tipo tecbolt - fornecimento e instalação | E54: un | F54: =CPU!F177 -> 1.5 | G54: 13.2 | H54: =ROUND(F54*G54,2) -> 19.8
B55: SICRO | C55: 4915639 | D55: Limpeza em superfície de concreto com escova de aço | E55: m² | F55: =CPU!F179 -> 1 | G55: 3.77 | H55: =ROUND(F55*G55,2) -> 3.77
B56: =B39 -> 4.2.1 | D56: MÃO DE OBRA | H56: =SUM(H57:H59) ->  | I56: ss
B57: SICRO | C57: P9926 | D57: Mergulhador raso auxiliar de superfície | E57: h | F57: =CPU!F184 -> 0.5 | G57: 28.2203 | H57: =ROUND(F57*G57,2) -> 14.11
B58: EMBASA | C58: B010000113 | D58: MERGULHADOR PROFISSIONAL | E58: h | F58: =CPU!F185 -> 5 | G58: 76.19 | H58: =ROUND(F58*G58,2) -> 380.95
B59: SICRO | C59: P9922 | D59: Mergulhador raso dependente de emergência | E59: h | F59: =CPU!#REF! ->  | G59: 31.5522 | H59: =ROUND(F59*G59,2) -> 
B61: ='Planilha Orçamentária Desoner'!A37 -> 4.2.2 | C61: =VLOOKUP($B61,'Planilha Orçamentária Desoner'!$A$11:$I$504,3,) -> CPU.05 | D61: =VLOOKUP($B61,'Planilha Orçamentária Desoner'!$A$11:$I$504,4,) -> Remoção da vedação da entrada da tomada d’água com chapas metálicas | E61: un | F61: 1 | H61: =SUM(H62,H72,H74,H75) ->  | I61: S
B62: =B61 -> 4.2.2 | D62: MATERIAL | H62: =SUM(H63:H71) ->  | I62: ss
B63: CODEVASF | C63: DP | D63: DIÁRIA | E63: dia | F63: =CPU!#REF! ->  | G63: 305.1 | H63: =ROUND(F63*G63,2) -> 
B64: SICRO | C64: E9043 | D64: Embarcação de alumínio com comprimento de 6 m e motor de popa - 18,60 kW | E64: h | F64: =CPU!#REF! ->  | G64: 66.1577 | H64: =ROUND(F64*G64,2) -> 
B65: SICRO | C65: E9243 | D65: Câmara hiperbárica com filtro, serpentina e reservatório de ar para mergulho raso - D= 1,80 m e H = 2,22 m. | E65: h | F65: =CPU!#REF! ->  | G65: 58.3517 | H65: =ROUND(F65*G65,2) -> 
B66: SICRO | C66: E9245 | D66: Estação transmissora de superfície para comunicação com fio | E66: h | F66: =CPU!#REF! ->  | G66: 0.7428
B67: SICRO | C67: E9242 | D67: Estação transmissora de superfície para televisionamento | E67: h | F67: =CPU!#REF! ->  | G67: 1.3333
B68: SICRO | C68: E9066 | D68: Grupo gerador - 14 kVA | E68: h | F68: =CPU!#REF! ->  | G68: 19.3801
B69: SICRO | C69: E9246 | D69: Painel de controle de ar com manômetros e pneufatômetros | E69: h | F69: =CPU!#REF! ->  | G69: 1.4255
B70: SICRO | C70: E9248 | D70: Sistema de ar comprimido para mergulho até 30 m com pressão de trabalho de 1,4 MPa - 7,46 kW | E70: h | F70: =CPU!#REF! ->  | G70: 15.0543
B71: SICRO | C71: E9058 | D71: Plataforma flutuante de 12 x 24 x 1,8 m com capacidade de 150 t | E71: h | F71: =CPU!#REF! ->  | G71: 40.3012 | H71: =ROUND(F71*G71,2) -> 
B72: =B61 -> 4.2.2 | D72: EQUIPAMENTOS | H72: =SUM(H73) ->  | I72: ss
B73: CODEVASF | D73: CAMINHONETE | E73: mes | F73: =CPU!#REF! ->  | G73: 5885.33 | H73: =ROUND(F73*G73,2) ->  | I73: I
B74: =B61 -> 4.2.2 | D74: SERVIÇOS | H74: 0 | I74: ss
B75: =B61 -> 4.2.2 | D75: MÃO DE OBRA | H75: =SUM(H76:H78) ->  | I75: ss
B76: SICRO | C76: P9926 | D76: Mergulhador raso auxiliar de superfície | E76: h | F76: =CPU!#REF! ->  | G76: 28.2203 | H76: =ROUND(F76*G76,2) -> 
B77: EMBASA | C77: B010000113 | D77: MERGULHADOR PROFISSIONAL | E77: h | F77: =CPU!#REF! ->  | G77: 76.19 | H77: =ROUND(F77*G77,2) -> 
B78: SICRO | C78: P9922 | D78: Mergulhador raso dependente de emergência | E78: h | F78: =CPU!#REF! ->  | G78: 31.5522 | H78: =ROUND(F78*G78,2) -> 
B80: ='Planilha Orçamentária Desoner'!A59 -> 6.1.6 | C80: =VLOOKUP($B80,'Planilha Orçamentária Desoner'!$A$11:$I$504,3,) -> CPU.06 | D80: =VLOOKUP($B80,'Planilha Orçamentária Desoner'!$A$11:$I$504,4,) -> ARGAMASSA TRACO 1:3 (CIMENTO E AREIA), PREPARO MANUAL, INCLUSO ADITIVO IMPERMEABILIZANTE | E80: m3 | H80: =H81+H84+H86+H87 ->  | I80: s
B81: =B80 -> 6.1.6 | D81: MATERIAL | H81: =SUM(H82:H83) ->  | I81: ss
B82: SINAPI | C82: 88629 | D82: =PROPER(IF(I82="i",VLOOKUP(C82,'Ins SINAPI BA 05-2023 Desoner'!$A$8:$E$5189,2,0),VLOOKUP(C82,'Comp SINAPI BA 05-2023 Desoner'!$G$7:$K$7500,2,0))) -> Argamassa Traço 1:3 (Em Volume De Cimento E Areia Média Úmida), Preparo Manual. Af_08/2019 | E82: =LOWER(IF(I82="i",VLOOKUP(C82,'Ins SINAPI BA 05-2023 Desoner'!$A$8:$E$5189,3,0),VLOOKUP(C82,'Comp SINAPI BA 05-2023 Desoner'!$G$7:$K$7500,3,0))) -> m3 | F82: =CPU!#REF! ->  | G82: =IF(I82="i",VLOOKUP(C82,'Ins SINAPI BA 05-2023 Desoner'!$A$8:$E$5189,5,0),VLOOKUP(C82,'Comp SINAPI BA 05-2023 Desoner'!$G$7:$K$7500,5,0)) -> 693.49 | H82: =ROUND(F82*G82,2) ->  | I82: ca
B83: SINAPI | C83: 123 | D83: =PROPER(IF(I83="i",VLOOKUP(C83,'Ins SINAPI BA 05-2023 Desoner'!$A$8:$E$5189,2,0),VLOOKUP(C83,'Comp SINAPI BA 05-2023 Desoner'!$G$7:$K$7500,2,0))) -> Aditivo Impermeabilizante De Pega Normal Para Argamassas E Concretos Sem Armacao, Liquido E Isento De Cloretos | E83: =LOWER(IF(I83="i",VLOOKUP(C83,'Ins SINAPI BA 05-2023 Desoner'!$A$8:$E$5189,3,0),VLOOKUP(C83,'Comp SINAPI BA 05-2023 Desoner'!$G$7:$K$7500,3,0))) -> l | F83: =CPU!#REF! ->  | G83: =IF(I83="i",VLOOKUP(C83,'Ins SINAPI BA 05-2023 Desoner'!$A$8:$E$5189,5,0),VLOOKUP(C83,'Comp SINAPI BA 05-2023 Desoner'!$G$7:$K$7500,5,0)) -> 6.85 | H83: =ROUND(F83*G83,2) ->  | I83: i
B84: =B80 -> 6.1.6 | D84: EQUIPAMENTOS | H84: =H85 ->  | I84: ss
B85: SICRO | C85: E9121 | D85: Plataforma elevatória articulada elétrica com alcance de 6 m com capacidade de 500 kg - 1,5 kW | E85: h | F85: =CPU!#REF! ->  | G85: 36.3564 | H85: =ROUND(F85*G85,2) ->  | I85: ca
B86: =B80 -> 6.1.6 | D86: SERVIÇOS | H86: 0 | I86: ss
B87: =B80 -> 6.1.6 | D87: MÃO DE OBRA | H87: 0 | I87: mdo
B89: ='Planilha Orçamentária Desoner'!A61 -> 6.1.8 | C89: =VLOOKUP($B89,'Planilha Orçamentária Desoner'!$A$11:$I$504,3,) -> CPU.07 | D89: =VLOOKUP($B89,'Planilha Orçamentária Desoner'!$A$11:$I$504,4,) -> CURA QUÍMICA | E89: m2 | H89: =H90+H92+H94+H95 ->  | I89: s
B90: =B89 -> 6.1.8 | D90: MATERIAL | H90: =SUM(H91) ->  | I90: ss
B91: SICRO | C91: M2152 | D91: Aditivo de cura para concreto | E91: kg | F91: =CPU!#REF! ->  | G91: 7.7205 | H91: =ROUND(F91*G91,2) ->  | I91: ca
B92: =B89 -> 6.1.8 | D92: EQUIPAMENTOS | H92: =SUM(H93) ->  | I92: ss
B93: SICRO | C93: E9589 | D93: Máquina texturizadora e aplicadora de cura química em pavimento de concreto - 44,80 kW | E93: H | F93: =CPU!#REF! ->  | G93: 206.4583 | H93: =ROUND(F93*G93,2) ->  | I93: ca
B94: =B89 -> 6.1.8 | D94: SERVIÇOS | H94: 0 | I94: ss
B95: =B89 -> 6.1.8 | D95: MÃO DE OBRA | H95: =SUM(H96) -> 15.72 | I95: mdo
B96: SINAPI | C96: 88316 | D96: =PROPER(IF(I96="i",VLOOKUP(C96,'Ins SINAPI BA 05-2023 Desoner'!$A$8:$E$5189,2,0),VLOOKUP(C96,'Comp SINAPI BA 05-2023 Desoner'!$G$7:$K$7500,2,0))) -> Servente Com Encargos Complementares | E96: =LOWER(IF(I96="i",VLOOKUP(C96,'Ins SINAPI BA 05-2023 Desoner'!$A$8:$E$5189,3,0),VLOOKUP(C96,'Comp SINAPI BA 05-2023 Desoner'!$G$7:$K$7500,3,0))) -> h | F96: =CPU!F284 -> 0.8 | G96: =IF(I96="i",VLOOKUP(C96,'Ins SINAPI BA 05-2023 Desoner'!$A$8:$E$5189,5,0),VLOOKUP(C96,'Comp SINAPI BA 05-2023 Desoner'!$G$7:$K$7500,5,0)) -> 19.65 | H96: =ROUND(F96*G96,2) -> 15.72 | I96: ca

Sheet Equipe de Mergulho (hidden)
B2: Definições de acordo com a TABELA REFERÊNCIA | H2: TABELA REFERÊNCIA
B3: 20 | C3: m | D3: Profundidade
B4: 48 | C4: min | D4: Tempo de mergulho
B5: =B4/60 -> 0.8 | C5: h
B6: 8 | C6: un | D6: Qd de mergulhadores
B8: EQUIPE ADOTADA DE ACORDO COM A NR 15 - ATIVIDADES E OPERAÇÕES INSALUBRES (POR DIA)
B9: H | C9: QTD
B10: =$B$5 -> 0.8 | C10: 1 | D10: Mergulhador Profissional
B11: =$B$5 -> 0.8 | C11: 1 | D11: Mergulhador Profissional
B12: 0.8 | C12: 1 | D12: Mergulhador Profissional
B13: 0.8 | C13: 1 | D13: Mergulhador Profissional
B14: 0.8 | C14: 1 | D14: Mergulhador Profissional
B15: 0.8 | C15: 1 | D15: Mergulhador Profissional
B16: 0.8 | C16: 1 | D16: Mergulhador Profissional
B17: 0.8 | C17: 1 | D17: Mergulhador Profissional
B18: =B5*B6 -> 6.4 | C18: 1 | D18: Mergulhador raso auxiliar de superfície
B19: =B5*B6 -> 6.4 | C19: 1 | D19: Mergulhador raso auxiliar de superfície
B20: =B5*B6 -> 6.4 | C20: 1 | D20: Mergulhador raso dependente de emergência
B21: =MAX(B10:B20) -> 6.4 | C21: =SUM(C10:C20) -> 11 | D21: TOTAL
B23: Identificação | D23: Serviço | E23: Duração (dias) | F23: Total (h)
B24: =CPU!B172 -> 7.1 | C24: =CPU!C172 -> CPU.14 | D24: =CPU!D172 -> Enrocamento c/ pedra de mão para proteção do talude | E24: 2 | F24: =$B$21*E24 -> 12.8
B25: =CPU!#REF! ->  | C25: =CPU!#REF! ->  | D25: =CPU!#REF! ->  | E25: 2 | F25: =$B$21*E25 -> 12.8
D27: De acordo com a duração do serviço será atualizada a quantidade de diárias
D28: Duração | E28: 2
D29: Diária | E29: =E28-1 -> 1

Sheet CPU
B1: Ministério da Integração e do Desenvolvimento Regional
B2: Companhia de Desenvolvimento dos Vales do São Francisco e do Parnaíba
B4: COMPOSIÇÕES DE PREÇOS UNITÁRIOS - ORÇAMENTO NÃO DESONERADO
B5: OBRA: | C5: ='Planilha Orçamentária'!B4 -> SERVIÇOS DE MANUTENÇÃO E OBRAS CIVIS NA BARRAGEM RIACHO DA PORTA
B6: LOCAL: | C6: ='Planilha Orçamentária'!B5 -> BARRAGEM RIACHO DA PORTA, BELÉM DO SÃO FRANCISCO/PE
B7: DATA BASE: | C7: 2024-05-01
B8: PRAZO: | C8: ='Planilha Orçamentária'!B7 -> 120 DIAS
B9: REFERÊNCIA | C9: CÓDIGO | D9: DESCRIÇÃO | E9: UNIDADE | F9: ÍNDICE | G9: CUSTO UNITÁRIO | H9: PREÇO TOTAL
B10: ='Planilha Orçamentária'!A11 -> 1.1 | C10: =VLOOKUP($B10,'Planilha Orçamentária'!$A$10:$I$477,3,) -> CPU.01 | D10: =VLOOKUP($B10,'Planilha Orçamentária'!$A$10:$I$477,4,) -> Administração Local | E10: mes | F10: 1 | H10: =SUM(H14,H13,H12,H11) -> 28900.34 | I10: ss | J10: COMENTÁRIOS
B11: =B10 -> 1.1 | D11: MATERIAL | H11: 0
B12: =B10 -> 1.1 | D12: EQUIPAMENTOS | H12: 0
B13: =B10 -> 1.1 | D13: SERVIÇOS | H13: 0 | I13: ss
B14: =B10 -> 1.1 | D14: MÃO DE OBRA | H14: =SUM(H15:H17) -> 28900.34
B15: SINAPI | C15: 90778 | D15: =PROPER(IF(K15="i",VLOOKUP(C15,'Ins SINAPI PE 04-2024 Onerado'!$A$8:$E$5189,2,0),VLOOKUP(C15,'Comp SINAPI PE 04-2024 Onerado'!$G$7:$K$7500,2,0))) -> Engenheiro Civil De Obra Pleno Com Encargos Complementares | E15: =LOWER(IF(K15="i",VLOOKUP(C15,'Ins SINAPI PE 04-2024 Onerado'!$A$8:$E$5189,3,0),VLOOKUP(C15,'Comp SINAPI PE 04-2024 Onerado'!$G$7:$K$7500,3,0))) -> h | F15: =1.5*5*4 -> 30 | G15: =IF(I15="i",VLOOKUP(C15,'Ins SINAPI PE 04-2024 Onerado'!$A$8:$E$5189,5,0),VLOOKUP(C15,'Comp SINAPI PE 04-2024 Onerado'!$G$7:$K$7500,5,0)) -> 126.7 | H15: =ROUND(F15*G15,2) -> 3801 | I15: ca
B16: SINAPI | C16: 93572 | D16: =PROPER(IF(K16="i",VLOOKUP(C16,'Ins SINAPI PE 04-2024 Onerado'!$A$8:$E$5189,2,0),VLOOKUP(C16,'Comp SINAPI PE 04-2024 Onerado'!$G$7:$K$7500,2,0))) -> Encarregado Geral De Obras Com Encargos Complementares | E16: =LOWER(IF(K16="i",VLOOKUP(C16,'Ins SINAPI PE 04-2024 Onerado'!$A$8:$E$5189,3,0),VLOOKUP(C16,'Comp SINAPI PE 04-2024 Onerado'!$G$7:$K$7500,3,0))) -> mes | F16: 0.8 | G16: =IF(I16="i",VLOOKUP(C16,'Ins SINAPI PE 04-2024 Onerado'!$A$8:$E$5189,5,0),VLOOKUP(C16,'Comp SINAPI PE 04-2024 Onerado'!$G$7:$K$7500,5,0)) -> 6840.17 | H16: =ROUND(F16*G16,2) -> 5472.14 | I16: ca
B17: SINAPI (11/23) | C17: 88326 | D17: VIGIA NOTURNO COM ENCARGOS COMPLEMENTARES | E17: h | F17: =4*12*15 -> 720 | G17: 27.26 | H17: =ROUND(F17*G17,2) -> 19627.2 | I17: ca | J17: considerando 4 vigias intercalando em dupla na jornada de 12/36
B19: ='Planilha Orçamentária'!A14 -> 2.1 | C19: =VLOOKUP($B19,'Planilha Orçamentária'!$A$10:$I$477,3,) -> CPU.02 | D19: =VLOOKUP($B19,'Planilha Orçamentária'!$A$10:$I$477,4,) -> Mobilização e desmobilização de instalação do canteiro | E19: un | F19: 1 | H19: =SUM(H20,H21,H26,H27) -> 8051.98 | I19: ss | J19: mobilização e desmobilização de Petrolina a barragem
B20: =B19 -> 2.1 | D20: MATERIAL | H20: 0
B21: =B19 -> 2.1 | D21: EQUIPAMENTOS | H21: =SUM(H22:H25) -> 7721.9
A22: 2.1.1 | B22: SICRO | C22: E9134 | D22: Miniônibus com capacidade para 30 passageiros - 111 Kw | E22: chp | F22: =VLOOKUP(A22,'Memorial de cálculo'!$A$10:$H$529,8,0) -> 6 | G22: 204.47 | H22: =ROUND(F22*G22,2) -> 1226.82 | I22: ca
A23: 2.1.2 | B23: SICRO | C23: E9134 | D23: Miniônibus com capacidade para 30 passageiros - 111 Kw | E23: chi | F23: =VLOOKUP(A23,'Memorial de cálculo'!$A$10:$H$529,8,0) -> 10 | G23: 72.08 | H23: =ROUND(F23*G23,2) -> 720.8 | I23: ca
A24: 2.1.3 | B24: SINAPI | C24: 100946 | D24: =IF(I24="i",VLOOKUP(C24,'Ins SINAPI PE 04-2024 Onerado'!$A$8:$E$5189,2,0),VLOOKUP(C24,'Comp SINAPI PE 04-2024 Onerado'!$G$7:$K$7500,2,0)) -> TRANSPORTE COM CAMINHÃO CARROCERIA 9T, EM VIA URBANA EM REVESTIMENTO PRIMÁRIO (UNIDADE: TXKM). AF_07/2020 | E24: =IF(I24="i",VLOOKUP(C24,'Ins SINAPI PE 04-2024 Onerado'!$A$8:$E$5189,3,0),VLOOKUP(C24,'Comp SINAPI PE 04-2024 Onerado'!$G$7:$K$7500,3,0)) -> TXKM | F24: =VLOOKUP(A24,'Memorial de cálculo'!$A$10:$H$529,8,0) -> 239 | G24: =IF(I24="i",VLOOKUP(C24,'Ins SINAPI PE 04-2024 Onerado'!$A$8:$E$5189,5,0),VLOOKUP(C24,'Comp SINAPI PE 04-2024 Onerado'!$G$7:$K$7500,5,0)) -> 2.42 | H24: =ROUND(F24*G24,2) -> 578.38 | I24: ca | J24: considerando 5 toneladas de carga e metade da distância para Petrolina
A25: 2.1.4 | B25: SINAPI | C25: 100947 | D25: =IF(I25="i",VLOOKUP(C25,'Ins SINAPI PE 04-2024 Onerado'!$A$8:$E$5189,2,0),VLOOKUP(C25,'Comp SINAPI PE 04-2024 Onerado'!$G$7:$K$7500,2,0)) -> TRANSPORTE COM CAMINHÃO CARROCERIA 9T, EM VIA URBANA PAVIMENTADA, DMT ATÉ 30KM (UNIDADE: TXKM). AF_07/2020 | E25: =IF(I25="i",VLOOKUP(C25,'Ins SINAPI PE 04-2024 Onerado'!$A$8:$E$5189,3,0),VLOOKUP(C25,'Comp SINAPI PE 04-2024 Onerado'!$G$7:$K$7500,3,0)) -> TXKM | F25: =VLOOKUP(A25,'Memorial de cálculo'!$A$10:$H$529,8,0) -> 2330 | G25: =IF(I25="i",VLOOKUP(C25,'Ins SINAPI PE 04-2024 Onerado'!$A$8:$E$5189,5,0),VLOOKUP(C25,'Comp SINAPI PE 04-2024 Onerado'!$G$7:$K$7500,5,0)) -> 2.23 | H25: =ROUND(F25*G25,2) -> 5195.9 | I25: ca
B26: =B19 -> 2.1 | D26: SERVIÇOS | I26: ss
B27: =B19 -> 2.1 | D27: MÃO DE OBRA | H27: =H28 -> 330.08 | I27: ss
A28: 2.1.5 | B28: SINAPI | C28: 88284 | D28: =PROPER(IF(K28="i",VLOOKUP(C28,'Ins SINAPI PE 04-2024 Onerado'!$A$8:$E$5189,2,0),VLOOKUP(C28,'Comp SINAPI PE 04-2024 Onerado'!$G$7:$K$7500,2,0))) -> Motorista De Veículo Leve Com Encargos Complementares | E28: =LOWER(IF(K28="i",VLOOKUP(C28,'Ins SINAPI PE 04-2024 Onerado'!$A$8:$E$5189,3,0),VLOOKUP(C28,'Comp SINAPI PE 04-2024 Onerado'!$G$7:$K$7500,3,0))) -> h | F28: =VLOOKUP(A28,'Memorial de cálculo'!$A$10:$H$529,8,0) -> 16 | G28: =IF(I28="i",VLOOKUP(C28,'Ins SINAPI PE 04-2024 Onerado'!$A$8:$E$5189,5,0),VLOOKUP(C28,'Comp SINAPI PE 04-2024 Onerado'!$G$7:$K$7500,5,0)) -> 20.63 | H28: =ROUND(F28*G28,2) -> 330.08 | I28: ca
B30: ='Planilha Orçamentária'!A15 -> 2.2 | C30: =VLOOKUP($B30,'Planilha Orçamentária'!$A$10:$I$477,3,) -> CPU.03 | D30: =VLOOKUP($B30,'Planilha Orçamentária'!$A$10:$I$477,4,) -> Canteiro de obras | E30: =VLOOKUP($B30,'Planilha Orçamentária'!$A$11:$I$494,5,) -> m² | H30: =H33 -> 746.6 | I30: ss
B31: =B30 -> 2.2 | D31: MATERIAL | H31: 0
B32: =B30 -> 2.2 | D32: EQUIPAMENTOS | H32: 0
B33: =B30 -> 2.2 | D33: SERVIÇOS | H33: =SUM(H34:H41) -> 746.6
A34: 2.2.1 | B34: SINAPI | C34: 98524 | D34: =PROPER(IF(K34="i",VLOOKUP(C34,'Ins SINAPI PE 04-2024 Onerado'!$A$8:$E$5189,2,0),VLOOKUP(C34,'Comp SINAPI PE 04-2024 Onerado'!$G$7:$K$7500,2,0))) -> Limpeza Manual De Vegetação Em Terreno Com Enxada. Af_03/2024 | E34: =LOWER(IF(K34="i",VLOOKUP(C34,'Ins SINAPI PE 04-2024 Onerado'!$A$8:$E$5189,3,0),VLOOKUP(C34,'Comp SINAPI PE 04-2024 Onerado'!$G$7:$K$7500,3,0))) -> m2 | F34: =VLOOKUP(A34,'Memorial de cálculo'!$A$10:$H$529,8,0) -> 1 | G34: =IF(I34="i",VLOOKUP(C34,'Ins SINAPI PE 04-2024 Onerado'!$A$8:$E$5189,5,0),VLOOKUP(C34,'Comp SINAPI PE 04-2024 Onerado'!$G$7:$K$7500,5,0)) -> 4.32 | H34: =ROUND(F34*G34,2) -> 4.32 | I34: ca
A35: 2.2.2 | B35: SINAPI | C35: 94975 | D35: =PROPER(IF(K35="i",VLOOKUP(C35,'Ins SINAPI PE 04-2024 Onerado'!$A$8:$E$5189,2,0),VLOOKUP(C35,'Comp SINAPI PE 04-2024 Onerado'!$G$7:$K$7500,2,0))) -> Concreto Fck = 15Mpa, Traço 1:3,4:3,5 (Em Massa Seca De Cimento/ Areia Média/ Brita 1) - Preparo Manual. Af_05/2021 | E35: =LOWER(IF(K35="i",VLOOKUP(C35,'Ins SINAPI PE 04-2024 Onerado'!$A$8:$E$5189,3,0),VLOOKUP(C35,'Comp SINAPI PE 04-2024 Onerado'!$G$7:$K$7500,3,0))) -> m3 | F35: =VLOOKUP(A35,'Memorial de cálculo'!$A$10:$H$529,8,0) -> 0.05 | G35: =IF(I35="i",VLOOKUP(C35,'Ins SINAPI PE 04-2024 Onerado'!$A$8:$E$5189,5,0),VLOOKUP(C35,'Comp SINAPI PE 04-2024 Onerado'!$G$7:$K$7500,5,0)) -> 479.76 | H35: 23.99 | I35: ca
A36: 2.2.3 | B36: SINAPI | C36: 93210 | D36: EXECUÇÃO DE REFEITÓRIO EM CANTEIRO DE OBRA EM CHAPA DE MADEIRA COMPENSADA, NÃO INCLUSO MOBILIÁRIO E EQUIPAMENTOS. | E36: m² | F36: =VLOOKUP(A36,'Memorial de cálculo'!$A$10:$H$529,8,0) -> 0.2631578947 | G36: 632.64 | H36: 166.48 | I36: ca
A37: 2.2.4 | B37: SINAPI | C37: 93212 | D37: EXECUÇÃO DE SANITÁRIO E VESTIÁRIO EM CANTEIRO DE OBRA EM CHAPA DE MADEIRA COMPENSADA, NÃO INCLUSO MOBILIÁRIO. | E37: m² | F37: =VLOOKUP(A37,'Memorial de cálculo'!$A$10:$H$529,8,0) -> 0.3157894737 | G37: 1038.41 | H37: 327.92 | I37: ca
A38: 2.2.5 | B38: SINAPI | C38: 93583 | D38: EXECUÇÃO DE CENTRAL DE FÔRMAS, PRODUÇÃO DE ARGAMASSA OU CONCRETO EM CANTEIRO DE OBRA, NÃO INCLUSO MOBILIÁRIO E EQUIPAMENTOS. | E38: m² | F38: =VLOOKUP(A38,'Memorial de cálculo'!$A$10:$H$529,8,0) -> 0.4210526316 | G38: 514.11 | H38: 216.47 | I38: ca
A39: 2.2.6 | B39: COTAÇÃO | C39: CT.01 | D39: Hospedagem | E39: un | F39: =VLOOKUP(A39,'Memorial de cálculo'!$A$10:$H$529,8,0) -> 0.008975 | G39: 90 | H39: 0.81 | I39: ca
A40: 2.2.7 | B40: SICRO | C40: E9134 | D40: Miniônibus com capacidade para 30 passageiros - 111 Kw | E40: chp | F40: =VLOOKUP(A40,'Memorial de cálculo'!$A$10:$H$529,8,0) -> 0.008975 | G40: 217.79 | H40: 1.95 | I40: ca
A41: 2.2.8 | B41: SICRO | C41: E9134 | D41: Miniônibus com capacidade para 30 passageiros - 111 Kw | E41: chi | F41: =VLOOKUP(A41,'Memorial de cálculo'!$A$10:$H$529,8,0) -> 0.062825 | G41: 74.24 | H41: 4.66 | I41: ca
B42: =B30 -> 2.2 | D42: MÃO DE OBRA | H42: 0 | I42: mdo
B44: ='Planilha Orçamentária'!A16 -> 2.3 | C44: =VLOOKUP($B44,'Planilha Orçamentária'!$A$10:$I$477,3,) -> CPU.04 | D44: =VLOOKUP($B44,'Planilha Orçamentária'!$A$10:$I$477,4,) -> Placa de obra em chapa de aço galvanizado | E44: =VLOOKUP($B44,'Planilha Orçamentária'!$A$10:$I$54,5) -> m² | H44: =SUM(H45,H58,H51,H52) -> 496 | I44: ss
B45: =B44 -> 2.3 | D45: MATERIAL | H45: =SUM(H46:H50) -> 330.86
A46: 2.3.1 | B46: SINAPI | C46: 4417 | D46: =IF(I46="i",VLOOKUP(C46,'Ins SINAPI PE 04-2024 Onerado'!$A$8:$E$5189,2,0),VLOOKUP(C46,'Comp SINAPI PE 04-2024 Onerado'!$G$7:$K$6879,2,0)) -> SARRAFO NAO APARELHADO *2,5 X 7* CM, EM MACARANDUBA/MASSARANDUBA, ANGELIM, PEROBA-ROSA OU EQUIVALENTE DA REGIAO - BRUTA | E46: =IF(I46="i",VLOOKUP(C46,'Ins SINAPI PE 04-2024 Onerado'!$A$8:$E$5189,3,0),VLOOKUP(C46,'Comp SINAPI PE 04-2024 Onerado'!$G$7:$K$7500,3,0)) -> M | F46: 2 | G46: =IF(I46="i",VLOOKUP(C46,'Ins SINAPI PE 04-2024 Onerado'!$A$8:$E$5189,5,0),VLOOKUP(C46,'Comp SINAPI PE 04-2024 Onerado'!$G$7:$K$7500,5,0)) -> 8.02 | H46: =ROUND(F46*G46,2) -> 16.04 | I46: i
A47: 2.3.2 | B47: SINAPI | C47: 4430 | D47: =IF(I47="i",VLOOKUP(C47,'Ins SINAPI PE 04-2024 Onerado'!$A$8:$E$5189,2,0),VLOOKUP(C47,'Comp SINAPI PE 04-2024 Onerado'!$G$7:$K$6879,2,0)) -> CAIBRO NAO APARELHADO *5 X 6* CM, EM MACARANDUBA/MASSARANDUBA, ANGELIM OU EQUIVALENTE DA REGIAO - BRUTA | E47: =IF(I47="i",VLOOKUP(C47,'Ins SINAPI PE 04-2024 Onerado'!$A$8:$E$5189,3,0),VLOOKUP(C47,'Comp SINAPI PE 04-2024 Onerado'!$G$7:$K$7500,3,0)) -> M | F47: 4 | G47: =IF(I47="i",VLOOKUP(C47,'Ins SINAPI PE 04-2024 Onerado'!$A$8:$E$5189,5,0),VLOOKUP(C47,'Comp SINAPI PE 04-2024 Onerado'!$G$7:$K$7500,5,0)) -> 14.75 | H47: =ROUND(F47*G47,2) -> 59 | I47: i
A48: 2.3.3 | B48: SINAPI | C48: 4813 | D48: =IF(I48="i",VLOOKUP(C48,'Ins SINAPI PE 04-2024 Onerado'!$A$8:$E$5189,2,0),VLOOKUP(C48,'Comp SINAPI PE 04-2024 Onerado'!$G$7:$K$6879,2,0)) -> PLACA DE OBRA (PARA CONSTRUCAO CIVIL) EM CHAPA GALVANIZADA *N. 22*, ADESIVADA, DE *2,4 X 1,2* M (SEM POSTES PARA FIXACAO) | E48: =IF(I48="i",VLOOKUP(C48,'Ins SINAPI PE 04-2024 Onerado'!$A$8:$E$5189,3,0),VLOOKUP(C48,'Comp SINAPI PE 04-2024 Onerado'!$G$7:$K$7500,3,0)) -> M2 | F48: 1 | G48: =IF(I48="i",VLOOKUP(C48,'Ins SINAPI PE 04-2024 Onerado'!$A$8:$E$5189,5,0),VLOOKUP(C48,'Comp SINAPI PE 04-2024 Onerado'!$G$7:$K$7500,5,0)) -> 250 | H48: =ROUND(F48*G48,2) -> 250 | I48: i
A49: 2.3.4 | B49: SINAPI | C49: 5075 | D49: =IF(I49="i",VLOOKUP(C49,'Ins SINAPI PE 04-2024 Onerado'!$A$8:$E$5189,2,0),VLOOKUP(C49,'Comp SINAPI PE 04-2024 Onerado'!$G$7:$K$6879,2,0)) -> PREGO DE ACO POLIDO COM CABECA 18 X 30 (2 3/4 X 10) | E49: =IF(I49="i",VLOOKUP(C49,'Ins SINAPI PE 04-2024 Onerado'!$A$8:$E$5189,3,0),VLOOKUP(C49,'Comp SINAPI PE 04-2024 Onerado'!$G$7:$K$7500,3,0)) -> KG | F49: 0.11 | G49: =IF(I49="i",VLOOKUP(C49,'Ins SINAPI PE 04-2024 Onerado'!$A$8:$E$5189,5,0),VLOOKUP(C49,'Comp SINAPI PE 04-2024 Onerado'!$G$7:$K$7500,5,0)) -> 16.73 | H49: =ROUND(F49*G49,2) -> 1.84 | I49: i
A50: 2.3.5 | B50: SINAPI | C50: 94962 | D50: =IF(I50="i",VLOOKUP(C50,'Ins SINAPI PE 04-2024 Onerado'!$A$8:$E$5189,2,0),VLOOKUP(C50,'Comp SINAPI PE 04-2024 Onerado'!$G$7:$K$6879,2,0)) -> CONCRETO MAGRO PARA LASTRO, TRAÇO 1:4,5:4,5 (EM MASSA SECA DE CIMENTO/ AREIA MÉDIA/ BRITA 1) - PREPARO MECÂNICO COM BETONEIRA 400 L. AF_05/2021 | E50: =IF(I50="i",VLOOKUP(C50,'Ins SINAPI PE 04-2024 Onerado'!$A$8:$E$5189,3,0),VLOOKUP(C50,'Comp SINAPI PE 04-2024 Onerado'!$G$7:$K$7500,3,0)) -> M3 | F50: 0.01 | G50: =IF(I50="i",VLOOKUP(C50,'Ins SINAPI PE 04-2024 Onerado'!$A$8:$E$5189,5,0),VLOOKUP(C50,'Comp SINAPI PE 04-2024 Onerado'!$G$7:$K$7500,5,0)) -> 398.48 | H50: =ROUND(F50*G50,2) -> 3.98 | I50: ca
B51: =B44 -> 2.3 | D51: EQUIPAMENTOS | H51: 0 | I51: SS
B52: =B44 -> 2.3 | D52: SERVIÇOS | H52: =H53+H54+H55+H56+H57 -> 132.31
A53: 2.3.6 | B53: COTAÇÃO | C53: CT.01 | D53: Hospedagem | E53: un | F53: =VLOOKUP(A53,'Memorial de cálculo'!$A$10:$H$529,8,0) -> 0.1875 | G53: 90 | H53: =ROUND(F53*G53,2) -> 16.88 | I53: ca
A54: 2.3.7 | B54: SICRO | C54: E9134 | D54: Miniônibus com capacidade para 30 passageiros - 111 Kw | E54: chp | F54: =VLOOKUP(A54,'Memorial de cálculo'!$A$10:$H$529,8,0) -> 0.125 | G54: 204.47 | H54: =ROUND(F54*G54,2) -> 25.56 | I54: ca
A55: 2.3.8 | B55: SICRO | C55: E9134 | D55: Miniônibus com capacidade para 30 passageiros - 111 Kw | E55: chi | F55: =VLOOKUP(A55,'Memorial de cálculo'!$A$10:$H$529,8,0) -> 0.875 | G55: 72.08 | H55: =ROUND(F55*G55,2) -> 63.07 | I55: ca
A56: 2.3.9 | B56: SINAPI | C56: 100946 | D56: =IF(I56="i",VLOOKUP(C56,'Ins SINAPI PE 04-2024 Onerado'!$A$8:$E$5189,2,0),VLOOKUP(C56,'Comp SINAPI PE 04-2024 Onerado'!$G$7:$K$7500,2,0)) -> TRANSPORTE COM CAMINHÃO CARROCERIA 9T, EM VIA URBANA EM REVESTIMENTO PRIMÁRIO (UNIDADE: TXKM). AF_07/2020 | E56: =IF(I56="i",VLOOKUP(C56,'Ins SINAPI PE 04-2024 Onerado'!$A$8:$E$5189,3,0),VLOOKUP(C56,'Comp SINAPI PE 04-2024 Onerado'!$G$7:$K$7500,3,0)) -> TXKM | F56: =VLOOKUP(A56,'Memorial de cálculo'!$A$10:$H$529,8,0) -> 0.75 | G56: =IF(I56="i",VLOOKUP(C56,'Ins SINAPI PE 04-2024 Onerado'!$A$8:$E$5189,5,0),VLOOKUP(C56,'Comp SINAPI PE 04-2024 Onerado'!$G$7:$K$7500,5,0)) -> 2.42 | H56: =ROUND(F56*G56,2) -> 1.82 | I56: ca
A57: 2.3.10 | B57: SINAPI | C57: 100947 | D57: =IF(I57="i",VLOOKUP(C57,'Ins SINAPI PE 04-2024 Onerado'!$A$8:$E$5189,2,0),VLOOKUP(C57,'Comp SINAPI PE 04-2024 Onerado'!$G$7:$K$7500,2,0)) -> TRANSPORTE COM CAMINHÃO CARROCERIA 9T, EM VIA URBANA PAVIMENTADA, DMT ATÉ 30KM (UNIDADE: TXKM). AF_07/2020 | E57: =IF(I57="i",VLOOKUP(C57,'Ins SINAPI PE 04-2024 Onerado'!$A$8:$E$5189,3,0),VLOOKUP(C57,'Comp SINAPI PE 04-2024 Onerado'!$G$7:$K$7500,3,0)) -> TXKM | F57: =VLOOKUP(A57,'Memorial de cálculo'!$A$10:$H$529,8,0) -> 11.2 | G57: =IF(I57="i",VLOOKUP(C57,'Ins SINAPI PE 04-2024 Onerado'!$A$8:$E$5189,5,0),VLOOKUP(C57,'Comp SINAPI PE 04-2024 Onerado'!$G$7:$K$7500,5,0)) -> 2.23 | H57: =ROUND(F57*G57,2) -> 24.98 | I57: ca
B58: =B44 -> 2.3 | D58: MÃO DE OBRA | H58: =SUM(H59:H60) -> 32.83
A59: 2.3.11 | B59: SINAPI | C59: 88262 | D59: =IF(I59="i",VLOOKUP(C59,'Ins SINAPI PE 04-2024 Onerado'!$A$8:$E$5189,2,0),VLOOKUP(C59,'Comp SINAPI PE 04-2024 Onerado'!$G$7:$K$7500,2,0)) -> CARPINTEIRO DE FORMAS COM ENCARGOS COMPLEMENTARES | E59: =IF(I59="i",VLOOKUP(C59,'Ins SINAPI PE 04-2024 Onerado'!$A$8:$E$5189,3,0),VLOOKUP(C59,'Comp SINAPI PE 04-2024 Onerado'!$G$7:$K$7500,3,0)) -> H | F59: =VLOOKUP(A59,'Memorial de cálculo'!$A$10:$H$529,8,0) -> 0.5 | G59: =IF(I59="i",VLOOKUP(C59,'Ins SINAPI PE 04-2024 Onerado'!$A$8:$E$5189,5,0),VLOOKUP(C59,'Comp SINAPI PE 04-2024 Onerado'!$G$7:$K$7500,5,0)) -> 25.1 | H59: =ROUND(F59*G59,2) -> 12.55 | I59: mdo
A60: 2.3.12 | B60: SINAPI | C60: 88316 | D60: =IF(I60="i",VLOOKUP(C60,'Ins SINAPI PE 04-2024 Onerado'!$A$8:$E$5189,2,0),VLOOKUP(C60,'Comp SINAPI PE 04-2024 Onerado'!$G$7:$K$7500,2,0)) -> SERVENTE COM ENCARGOS COMPLEMENTARES | E60: =IF(I60="i",VLOOKUP(C60,'Ins SINAPI PE 04-2024 Onerado'!$A$8:$E$5189,3,0),VLOOKUP(C60,'Comp SINAPI PE 04-2024 Onerado'!$G$7:$K$7500,3,0)) -> H | F60: =VLOOKUP(A60,'Memorial de cálculo'!$A$10:$H$529,8,0) -> 1 | G60: =IF(I60="i",VLOOKUP(C60,'Ins SINAPI PE 04-2024 Onerado'!$A$8:$E$5189,5,0),VLOOKUP(C60,'Comp SINAPI PE 04-2024 Onerado'!$G$7:$K$7500,5,0)) -> 20.28 | H60: =ROUND(F60*G60,2) -> 20.28 | I60: mdo
A62: 3 | D62: CORTE DA VEGETAÇÃO E REMOÇÃO DAS RAIZES
A63: 3.1 | B63: ='Planilha Orçamentária'!A19 -> 3.1 | C63: =VLOOKUP($B63,'Planilha Orçamentária'!$A$10:$I$477,3,0) -> CPU.05 | D63: =VLOOKUP($B63,'Planilha Orçamentária'!$A$10:$I$477,4,) -> Limpeza de Vegetação | E63: =VLOOKUP($B63,'Planilha Orçamentária'!$A$10:$I$54,5) -> m² | H63: =H66 -> 7.32 | I63: ss
B64: =B62 -> 0 | D64: MATERIAL | H64: 0
B65: =B62 -> 0 | D65: EQUIPAMENTOS | H65: 0
B66: =B62 -> 0 | D66: SERVIÇOS | H66: =H67+H68+H69+H70+H71+H72 -> 7.32
A67: 3.1.1 | B67: SINAPI | C67: 98524 | D67: =PROPER(IF(K67="i",VLOOKUP(C67,'Ins SINAPI PE 04-2024 Onerado'!$A$8:$E$5189,2,0),VLOOKUP(C67,'Comp SINAPI PE 04-2024 Onerado'!$G$7:$K$7500,2,0))) -> Limpeza Manual De Vegetação Em Terreno Com Enxada. Af_03/2024 | E67: =LOWER(IF(K67="i",VLOOKUP(C67,'Ins SINAPI PE 04-2024 Onerado'!$A$8:$E$5189,3,0),VLOOKUP(C67,'Comp SINAPI PE 04-2024 Onerado'!$G$7:$K$7500,3,0))) -> m2 | F67: =VLOOKUP(A67,'Memorial de cálculo'!A11:H434,8,0) -> 1 | G67: =IF(I67="i",VLOOKUP(C67,'Ins SINAPI PE 04-2024 Onerado'!$A$8:$E$5189,5,0),VLOOKUP(C67,'Comp SINAPI PE 04-2024 Onerado'!$G$7:$K$7500,5,0)) -> 4.32 | H67: =ROUND(F67*G67,2) -> 4.32 | I67: ca
A68: 3.1.2 | B68: COTAÇÃO | C68: CT.01 | D68: Hospedagem | E68: un | F68: =VLOOKUP(A68,'Memorial de cálculo'!A12:H435,8,0) -> 0.01795 | G68: 90 | H68: 1.62 | I68: ca
A69: 3.1.3 | B69: SICRO | C69: E9134 | D69: Miniônibus com capacidade para 30 passageiros - 111 Kw | E69: chp | F69: =VLOOKUP(A69,'Memorial de cálculo'!A13:H436,8,0) -> 0.0008975 | G69: 217.79 | H69: 0.2 | I69: ca
A70: 3.1.4 | B70: SICRO | C70: E9134 | D70: Miniônibus com capacidade para 30 passageiros - 111 Kw | E70: chi | F70: =VLOOKUP(A70,'Memorial de cálculo'!A14:H524,8,0) -> 0.0062825 | G70: 74.24 | H70: 0.47 | I70: ca
A71: 3.1.5 | B71: SINAPI | C71: 97913 | D71: =PROPER(IF(K71="i",VLOOKUP(C71,'Ins SINAPI PE 04-2024 Onerado'!$A$8:$E$5189,2,0),VLOOKUP(C71,'Comp SINAPI PE 04-2024 Onerado'!$G$7:$K$7500,2,0))) -> Transporte Com Caminhão Basculante De 6 M³, Em Via Urbana Em Revestimento Primário (Unidade: M3Xkm). Af_07/2020 | E71: =LOWER(IF(K71="i",VLOOKUP(C71,'Ins SINAPI PE 04-2024 Onerado'!$A$8:$E$5189,3,0),VLOOKUP(C71,'Comp SINAPI PE 04-2024 Onerado'!$G$7:$K$7500,3,0))) -> m3xkm | F71: =VLOOKUP(A71,'Memorial de cálculo'!A15:H526,8,0) -> 0.015 | G71: =IF(I71="i",VLOOKUP(C71,'Ins SINAPI PE 04-2024 Onerado'!$A$8:$E$5189,5,0),VLOOKUP(C71,'Comp SINAPI PE 04-2024 Onerado'!$G$7:$K$7500,5,0)) -> 3.23 | H71: 0.05 | I71: ca
A72: 3.1.6 | B72: SINAPI | C72: 97914 | D72: =PROPER(IF(K72="i",VLOOKUP(C72,'Ins SINAPI PE 04-2024 Onerado'!$A$8:$E$5189,2,0),VLOOKUP(C72,'Comp SINAPI PE 04-2024 Onerado'!$G$7:$K$7500,2,0))) -> Transporte Com Caminhão Basculante De 6 M³, Em Via Urbana Pavimentada, Dmt Até 30 Km (Unidade: M3Xkm). Af_07/2020 | E72: =LOWER(IF(K72="i",VLOOKUP(C72,'Ins SINAPI PE 04-2024 Onerado'!$A$8:$E$5189,3,0),VLOOKUP(C72,'Comp SINAPI PE 04-2024 Onerado'!$G$7:$K$7500,3,0))) -> m3xkm | F72: =VLOOKUP(A72,'Memorial de cálculo'!A16:H527,8,0) -> 0.224 | G72: =IF(I72="i",VLOOKUP(C72,'Ins SINAPI PE 04-2024 Onerado'!$A$8:$E$5189,5,0),VLOOKUP(C72,'Comp SINAPI PE 04-2024 Onerado'!$G$7:$K$7500,5,0)) -> 2.95 | H72: 0.66 | I72: ca
B73: =B64 -> 0 | D73: MÃO DE OBRA
A75: 3.2 | B75: ='Planilha Orçamentária'!A20 -> 3.2 | C75: =VLOOKUP($B75,'Planilha Orçamentária'!$A$10:$I$477,3,0) -> CPU.06 | D75: =VLOOKUP($B75,'Planilha Orçamentária'!$A$10:$I$477,4,) -> Corte raso de árvores | E75: =VLOOKUP($B75,'Planilha Orçamentária'!$A$10:$I$54,5) -> un | H75: =H78 -> 174.35 | I75: ss | J75: =H75+H85 -> 355.7
B76: =B74 -> 0 | D76: MATERIAL | H76: 0
B77: =B74 -> 0 | D77: EQUIPAMENTOS | H77: 0
B78: =B74 -> 0 | D78: SERVIÇOS | H78: =H79+H80+H81+H82 -> 174.35
A79: 3.2.1 | B79: SINAPI | C79: 98529 | D79: =PROPER(IF(K79="i",VLOOKUP(C79,'Ins SINAPI PE 04-2024 Onerado'!$A$8:$E$5189,2,0),VLOOKUP(C79,'Comp SINAPI PE 04-2024 Onerado'!$G$7:$K$7500,2,0))) -> Corte Raso E Recorte De Árvore Com Diâmetro De Tronco Maior Ou Igual A 0,20 M E Menor Que 0,40 M. Af_03/2024 | E79: =LOWER(IF(K79="i",VLOOKUP(C79,'Ins SINAPI PE 04-2024 Onerado'!$A$8:$E$5189,3,0),VLOOKUP(C79,'Comp SINAPI PE 04-2024 Onerado'!$G$7:$K$7500,3,0))) -> un | F79: =VLOOKUP(A79,'Memorial de cálculo'!A16:H527,8,0) -> 1 | G79: =IF(I79="i",VLOOKUP(C79,'Ins SINAPI PE 04-2024 Onerado'!$A$8:$E$5189,5,0),VLOOKUP(C79,'Comp SINAPI PE 04-2024 Onerado'!$G$7:$K$7500,5,0)) -> 68.42 | H79: =ROUND(F79*G79,2) -> 68.42 | I79: ca
A80: 3.2.5 | B80: COTAÇÃO | C80: CT.01 | D80: Hospedagem | E80: un | F80: =VLOOKUP(A80,'Memorial de cálculo'!A17:H528,8,0) -> 0.3861 | G80: 90 | H80: =ROUND(F80*G80,2) -> 34.75 | I80: ca
A81: 3.2.6 | B81: SICRO | C81: E9134 | D81: Miniônibus com capacidade para 30 passageiros - 111 Kw | E81: chp | F81: =VLOOKUP(A81,'Memorial de cálculo'!A17:H529,8,0) -> 0.096525 | G81: 217.79 | H81: =ROUND(F81*G81,2) -> 21.02 | I81: ca
A82: 3.2.7 | B82: SICRO | C82: E9134 | D82: Miniônibus com capacidade para 30 passageiros - 111 Kw | E82: chi | F82: =VLOOKUP(A82,'Memorial de cálculo'!A18:H530,8,0) -> 0.675675 | G82: 74.24 | H82: =ROUND(F82*G82,2) -> 50.16 | I82: ca
B83: =B74 -> 0 | D83: MÃO DE OBRA | H83: 0
A85: 3.3 | B85: ='Planilha Orçamentária'!A21 -> 3.3 | C85: =VLOOKUP($B85,'Planilha Orçamentária'!$A$10:$I$477,3,0) -> CPU.07 | D85: =VLOOKUP($B85,'Planilha Orçamentária'!$A$10:$I$477,4,) -> Remoção de raízes | E85: =VLOOKUP($B85,'Planilha Orçamentária'!$A$10:$I$54,5) -> un | H85: =H88 -> 181.35 | I85: ss
B86: =B84 -> 0 | D86: MATERIAL | H86: 0
B87: =B84 -> 0 | D87: EQUIPAMENTOS | H87: 0
B88: =B84 -> 0 | D88: SERVIÇOS | H88: =H89+H90+H91+H92 -> 181.35
A89: 3.3.1 | B89: SINAPI | C89: 98526 | D89: =PROPER(IF(K89="i",VLOOKUP(C89,'Ins SINAPI PE 04-2024 Onerado'!$A$8:$E$5189,2,0),VLOOKUP(C89,'Comp SINAPI PE 04-2024 Onerado'!$G$7:$K$7500,2,0))) -> Remoção De Raízes Remanescentes De Tronco De Árvore Com Diâmetro Maior Ou Igual A 0,20 M E Menor Que 0,40 M. Af_03/2024 | E89: =LOWER(IF(K89="i",VLOOKUP(C89,'Ins SINAPI PE 04-2024 Onerado'!$A$8:$E$5189,3,0),VLOOKUP(C89,'Comp SINAPI PE 04-2024 Onerado'!$G$7:$K$7500,3,0))) -> un | F89: 1 | G89: =IF(I89="i",VLOOKUP(C89,'Ins SINAPI PE 04-2024 Onerado'!$A$8:$E$5189,5,0),VLOOKUP(C89,'Comp SINAPI PE 04-2024 Onerado'!$G$7:$K$7500,5,0)) -> 134.84 | H89: =ROUND(F89*G89,2) -> 134.84 | I89: ca
A90: 3.3.2 | B90: COTAÇÃO | C90: CT.01 | D90: Hospedagem | E90: un | F90: =VLOOKUP(A90,'Memorial de cálculo'!A29:H533,8,0) -> 0.1695 | G90: 90 | H90: =ROUND(F90*G90,2) -> 15.26 | I90: ca
A91: 3.3.3 | B91: SICRO | C91: E9134 | D91: Miniônibus com capacidade para 30 passageiros - 111 Kw | E91: chp | F91: =VLOOKUP(A91,'Memorial de cálculo'!A29:H534,8,0) -> 0.042375 | G91: 217.79 | H91: =ROUND(F91*G91,2) -> 9.23 | I91: ca
A92: 3.3.4 | B92: SICRO | C92: E9134 | D92: Miniônibus com capacidade para 30 passageiros - 111 Kw | E92: chi | F92: =VLOOKUP(A92,'Memorial de cálculo'!A29:H535,8,0) -> 0.296625 | G92: 74.24 | H92: =ROUND(F92*G92,2) -> 22.02 | I92: ca
B93: =B79 -> SINAPI | D93: MÃO DE OBRA | H93: 0
D95: RECOMPOSIÇÃO DE EROSÃO TALUDES MONTANTE, JUSANTE e CRISTA
A96: 4.1 | B96: ='Planilha Orçamentária'!A24 -> 4.1 | C96: =VLOOKUP($B96,'Planilha Orçamentária'!$A$10:$I$477,3,0) -> CPU.08 | D96: =VLOOKUP($B96,'Planilha Orçamentária'!$A$10:$I$477,4,) -> Solo Melhorado com cimento | E96: =VLOOKUP($B96,'Planilha Orçamentária'!$A$10:$I$54,5) -> M3 | H96: =H97+H99+H102+H107 -> 390.88 | I96: ss
B97: =B96 -> 4.1 | D97: MATERIAL | H97: =H98 -> 43.32
A98: 4.1.1 | B98: SINAPI | C98: 1379 | D98: =IF(I98="i",VLOOKUP(C98,'[1]Ins SINAPI PE 12-2023 Onerado'!$A$8:$E$5189,2,0),VLOOKUP(C98,'[1]Comp SINAPI PE 12-2023 Onerado'!$G$7:$K$7500,2,0)) -> CIMENTO PORTLAND COMPOSTO CP II-32 | E98: =IF(I98="i",VLOOKUP(C98,'[1]Ins SINAPI PE 12-2023 Onerado'!$A$8:$E$5189,3,0),VLOOKUP(C98,'[1]Comp SINAPI PE 12-2023 Onerado'!$G$7:$K$7500,3,0)) -> KG | F98: =VLOOKUP(A98,'Memorial de cálculo'!A33:H541,8,0) -> 61.89 | G98: =IF(I98="i",VLOOKUP(C98,'Ins SINAPI PE 04-2024 Onerado'!$A$8:$E$5189,5,0),VLOOKUP(C98,'Comp SINAPI PE 04-2024 Onerado'!$G$7:$K$7500,5,0)) -> 0.7 | H98: =ROUND(F98*G98,2) -> 43.32 | I98: i
B99: =B96 -> 4.1 | D99: EQUIPAMENTOS | H99: =H100+H101 -> 2.65
A100: 4.1.2 | B100: SINAPI | C100: 88830 | D100: =IF(I100="i",VLOOKUP(C100,'[1]Ins SINAPI PE 12-2023 Onerado'!$A$8:$E$5189,2,0),VLOOKUP(C100,'[1]Comp SINAPI PE 12-2023 Onerado'!$G$7:$K$7500,2,0)) -> BETONEIRA CAPACIDADE NOMINAL DE 400 L, CAPACIDADE DE MISTURA 280 L, MOTOR ELÉTRICO TRIFÁSICO POTÊNCIA DE 2 CV, SEM CARREGADOR - CHP DIURNO. AF_05/2023 | E100: =IF(I100="i",VLOOKUP(C100,'[1]Ins SINAPI PE 12-2023 Onerado'!$A$8:$E$5189,3,0),VLOOKUP(C100,'[1]Comp SINAPI PE 12-2023 Onerado'!$G$7:$K$7500,3,0)) -> CHP | F100: =VLOOKUP(A100,'Memorial de cálculo'!A35:H543,8,0) -> 1.251604046 | G100: =IF(I100="i",VLOOKUP(C100,'Ins SINAPI PE 04-2024 Onerado'!$A$8:$E$5189,5,0),VLOOKUP(C100,'Comp SINAPI PE 04-2024 Onerado'!$G$7:$K$7500,5,0)) -> 2.04 | H100: =ROUND(F100*G100,2) -> 2.55
A101: 4.1.3 | B101: SINAPI | C101: 88831 | D101: =IF(I101="i",VLOOKUP(C101,'[1]Ins SINAPI PE 12-2023 Onerado'!$A$8:$E$5189,2,0),VLOOKUP(C101,'[1]Comp SINAPI PE 12-2023 Onerado'!$G$7:$K$7500,2,0)) -> BETONEIRA CAPACIDADE NOMINAL DE 400 L, CAPACIDADE DE MISTURA 280 L, MOTOR ELÉTRICO TRIFÁSICO POTÊNCIA DE 2 CV, SEM CARREGADOR - CHI DIURNO. AF_05/2023 | E101: =IF(I101="i",VLOOKUP(C101,'[1]Ins SINAPI PE 12-2023 Onerado'!$A$8:$E$5189,3,0),VLOOKUP(C101,'[1]Comp SINAPI PE 12-2023 Onerado'!$G$7:$K$7500,3,0)) -> CHI | F101: =VLOOKUP(A101,'Memorial de cálculo'!A36:H544,8,0) -> 0.237464754 | G101: =IF(I101="i",VLOOKUP(C101,'Ins SINAPI PE 04-2024 Onerado'!$A$8:$E$5189,5,0),VLOOKUP(C101,'Comp SINAPI PE 04-2024 Onerado'!$G$7:$K$7500,5,0)) -> 0.42 | H101: =ROUND(F101*G101,2) -> 0.1
B102: =B96 -> 4.1 | D102: SERVIÇOS | H102: =H103+H104+H105+H106 -> 200.38
A103: 4.1.6 | B103: SINAPI | C103: 93382 | D103: =IF(I103="i",VLOOKUP(C103,'[1]Ins SINAPI PE 12-2023 Onerado'!$A$8:$E$5189,2,0),VLOOKUP(C103,'[1]Comp SINAPI PE 12-2023 Onerado'!$G$7:$K$7500,2,0)) -> REATERRO MANUAL DE VALAS, COM COMPACTADOR DE SOLOS DE PERCUSSÃO. AF_08/2023 | E103: =IF(I103="i",VLOOKUP(C103,'[1]Ins SINAPI PE 12-2023 Onerado'!$A$8:$E$5189,3,0),VLOOKUP(C103,'[1]Comp SINAPI PE 12-2023 Onerado'!$G$7:$K$7500,3,0)) -> M3 | F103: =VLOOKUP(A103,'Memorial de cálculo'!A40:H548,8,0) -> 1 | G103: =IF(I103="i",VLOOKUP(C103,'Ins SINAPI PE 04-2024 Onerado'!$A$8:$E$5189,5,0),VLOOKUP(C103,'Comp SINAPI PE 04-2024 Onerado'!$G$7:$K$7500,5,0)) -> 25.57 | H103: =ROUND(F103*G103,2) -> 25.57
A104: 4.1.7 | B104: COTAÇÃO | C104: CT.01 | D104: Hospedagem | E104: un | F104: =VLOOKUP(A104,'Memorial de cálculo'!A41:H549,8,0) -> 0.2989 | G104: 90 | H104: =ROUND(F104*G104,2) -> 26.9
A105: 4.1.8 | B105: SICRO | C105: E9134 | D105: Miniônibus com capacidade para 30 passageiros - 111 Kw | E105: chp | F105: =VLOOKUP(A105,'Memorial de cálculo'!A42:H550,8,0) -> 0.200575 | G105: 217.79 | H105: =ROUND(F105*G105,2) -> 43.68
A106: 4.1.9 | B106: SICRO | C106: E9134 | D106: Miniônibus com capacidade para 30 passageiros - 111 Kw | E106: chi | F106: =VLOOKUP(A106,'Memorial de cálculo'!A43:H551,8,0) -> 1.404025 | G106: 74.24 | H106: =ROUND(F106*G106,2) -> 104.23
B107: =B96 -> 4.1 | D107: MÃO DE OBRA | H107: =H108 -> 144.53
A108: 4.1.10 | B108: SINAPI | C108: 88377 | D108: =IF(I108="i",VLOOKUP(C108,'[1]Ins SINAPI PE 12-2023 Onerado'!$A$8:$E$5189,2,0),VLOOKUP(C108,'[1]Comp SINAPI PE 12-2023 Onerado'!$G$7:$K$7500,2,0)) -> OPERADOR DE BETONEIRA ESTACIONÁRIA/MISTURADOR COM ENCARGOS COMPLEMENTARES | E108: =IF(I108="i",VLOOKUP(C108,'[1]Ins SINAPI PE 12-2023 Onerado'!$A$8:$E$5189,3,0),VLOOKUP(C108,'[1]Comp SINAPI PE 12-2023 Onerado'!$G$7:$K$7500,3,0)) -> H | F108: =VLOOKUP(A108,'Memorial de cálculo'!A42:H550,8,0) -> 5.16 | G108: =IF(I108="i",VLOOKUP(C108,'Ins SINAPI PE 04-2024 Onerado'!$A$8:$E$5189,5,0),VLOOKUP(C108,'Comp SINAPI PE 04-2024 Onerado'!$G$7:$K$7500,5,0)) -> 28.01 | H108: =ROUND(F108*G108,2) -> 144.53
D110: RECOMPOSIÇÃO DE EROSÃO TALUDES MONTANTE, JUSANTE e CRISTA
B111: ='Planilha Orçamentária'!A27 -> 5.1 | C111: =VLOOKUP($B111,'Planilha Orçamentária'!$A$10:$I$477,3,0) -> CPU.09 | D111: =VLOOKUP($B111,'Planilha Orçamentária'!$A$10:$I$477,4,) -> Aterro de valas | E111: =VLOOKUP($B111,'Planilha Orçamentária'!$A$10:$I$54,5) -> M3 | H111: =SUM(H115:H120) -> 159.45 | I111: ss
B112: =B111 -> 5.1 | D112: MATERIAL | H112: 0 | I112: ss
B113: =B111 -> 5.1 | D113: EQUIPAMENTOS | H113: 0 | I113: ss
B114: =B111 -> 5.1 | D114: SERVIÇOS | H114: =H115+H116+H117+H118+H119+H120 -> 159.45
A115: 5.1.1 | B115: SINAPI | C115: 94319 | D115: =PROPER(IF(K115="i",VLOOKUP(C115,'Ins SINAPI PE 04-2024 Onerado'!$A$8:$E$5189,2,0),VLOOKUP(C115,'Comp SINAPI PE 04-2024 Onerado'!$G$7:$K$7500,2,0))) -> Aterro Manual De Valas Com Solo Argilo-Arenoso. Af_08/2023 | E115: =LOWER(IF(K115="i",VLOOKUP(C115,'Ins SINAPI PE 04-2024 Onerado'!$A$8:$E$5189,3,0),VLOOKUP(C115,'Comp SINAPI PE 04-2024 Onerado'!$G$7:$K$7500,3,0))) -> m3 | F115: =VLOOKUP(A115,'Memorial de cálculo'!A29:H434,8,0) -> 1 | G115: =IF(I115="i",VLOOKUP(C115,'Ins SINAPI PE 04-2024 Onerado'!$A$8:$E$5189,5,0),VLOOKUP(C115,'Comp SINAPI PE 04-2024 Onerado'!$G$7:$K$7500,5,0)) -> 76.27 | H115: =ROUND(F115*G115,2) -> 76.27 | I115: ca
A116: 5.1.2 | B116: COTAÇÃO | C116: CT.01 | D116: Hospedagem | E116: un | F116: =VLOOKUP(A116,'Memorial de cálculo'!A29:H435,8,0) -> 0.098325 | G116: 90 | H116: 8.85 | I116: ca
A117: 5.1.3 | B117: SICRO | C117: E9134 | D117: Miniônibus com capacidade para 30 passageiros - 111 Kw | E117: chp | F117: =VLOOKUP(A117,'Memorial de cálculo'!A29:H436,8,0) -> 0.01404642857 | G117: 217.79 | H117: 3.06 | I117: ca
A118: 5.1.4 | B118: SICRO | C118: E9134 | D118: Miniônibus com capacidade para 30 passageiros - 111 Kw | E118: chi | F118: =VLOOKUP(A118,'Memorial de cálculo'!A29:H524,8,0) -> 0.098325 | G118: 74.24 | H118: 7.3 | I118: ca
A119: 5.1.5 | B119: SINAPI | C119: 93589 | D119: =PROPER(IF(K119="i",VLOOKUP(C119,'Ins SINAPI PE 04-2024 Onerado'!$A$8:$E$5189,2,0),VLOOKUP(C119,'Comp SINAPI PE 04-2024 Onerado'!$G$7:$K$7500,2,0))) -> Transporte Com Caminhão Basculante De 10 M³, Em Via Urbana Em Revestimento Primário (Unidade: M3Xkm). Af_07/2020 | E119: =LOWER(IF(K119="i",VLOOKUP(C119,'Ins SINAPI PE 04-2024 Onerado'!$A$8:$E$5189,3,0),VLOOKUP(C119,'Comp SINAPI PE 04-2024 Onerado'!$G$7:$K$7500,3,0))) -> m3xkm | F119: =VLOOKUP(A119,'Memorial de cálculo'!A112:H554,8,0) -> 22.4 | G119: =IF(I119="i",VLOOKUP(C119,'Ins SINAPI PE 04-2024 Onerado'!$A$8:$E$5189,5,0),VLOOKUP(C119,'Comp SINAPI PE 04-2024 Onerado'!$G$7:$K$7500,5,0)) -> 2.69 | H119: 60.26 | I119: ca
A120: 5.1.6 | B120: SINAPI | C120: 95875 | D120: =PROPER(IF(K120="i",VLOOKUP(C120,'Ins SINAPI PE 04-2024 Onerado'!$A$8:$E$5189,2,0),VLOOKUP(C120,'Comp SINAPI PE 04-2024 Onerado'!$G$7:$K$7500,2,0))) -> Transporte Com Caminhão Basculante De 10 M³, Em Via Urbana Pavimentada, Dmt Até 30 Km (Unidade: M3Xkm). Af_07/2020 | E120: =LOWER(IF(K120="i",VLOOKUP(C120,'Ins SINAPI PE 04-2024 Onerado'!$A$8:$E$5189,3,0),VLOOKUP(C120,'Comp SINAPI PE 04-2024 Onerado'!$G$7:$K$7500,3,0))) -> m3xkm | F120: =VLOOKUP(A120,'Memorial de cálculo'!A121:H555,8,0) -> 1.5 | G120: =IF(I120="i",VLOOKUP(C120,'Ins SINAPI PE 04-2024 Onerado'!$A$8:$E$5189,5,0),VLOOKUP(C120,'Comp SINAPI PE 04-2024 Onerado'!$G$7:$K$7500,5,0)) -> 2.47 | H120: 3.71 | I120: ca
B121: =B111 -> 5.1 | D121: MÃO DE OBRA | H121: 0
A123: 6.1 | B123: ='Planilha Orçamentária'!A30 -> 6.1 | C123: =VLOOKUP($B123,'Planilha Orçamentária'!$A$10:$I$477,3,) -> CPU.10 | D123: =VLOOKUP($B123,'Planilha Orçamentária'!$A$10:$I$477,4,) -> Remoção de guias pré-fabricadas com reaproveitamento | E123: =VLOOKUP($B123,'Planilha Orçamentária'!$A$10:$I$54,5) -> M | H123: =SUM(H128:H131) -> 41.54 | I123: SS
B124: =B123 -> 6.1 | D124: MATERIAL | H124: 0 | I124: ss
B125: =B123 -> 6.1 | D125: EQUIPAMENTOS | H125: 0 | I125: ss
B126: =B123 -> 6.1 | D126: SERVIÇOS | H126: 0 | I126: ss
B127: =B123 -> 6.1 | D127: MÃO DE OBRA | H127: 0 | I127: mdo
A128: 6.1.1 | B128: SINAPI | C128: 104797 | D128: =PROPER(IF(K130="i",VLOOKUP(C128,'Ins SINAPI PE 04-2024 Onerado'!$A$8:$E$5189,2,0),VLOOKUP(C128,'Comp SINAPI PE 04-2024 Onerado'!$G$7:$K$7500,2,0))) -> Remoçao De Guias Pré-Fabricadas De Concreto, De Forma Mecanizada, Com Reaproveitamento. Af_09/2023 | E128: =LOWER(IF(K130="i",VLOOKUP(C128,'Ins SINAPI PE 04-2024 Onerado'!$A$8:$E$5189,3,0),VLOOKUP(C128,'Comp SINAPI PE 04-2024 Onerado'!$G$7:$K$7500,3,0))) -> m | F128: =VLOOKUP(A128,'Memorial de cálculo'!A39:H447,8,0) -> 1 | G128: =IF(I128="i",VLOOKUP(C128,'Ins SINAPI PE 04-2024 Onerado'!$A$8:$E$5189,5,0),VLOOKUP(C128,'Comp SINAPI PE 04-2024 Onerado'!$G$7:$K$7500,5,0)) -> 17.71 | H128: =ROUND(F128*G128,2) -> 17.71 | I128: ca
A129: 6.1.2 | B129: COTAÇÃO | C129: CT.01 | D129: Hospedagem | E129: un | F129: =VLOOKUP(A129,'Memorial de cálculo'!A40:H448,8,0) -> 0.03955 | G129: 90 | H129: =ROUND(F129*G129,2) -> 3.56 | I129: ca | J129: 3.56
A130: 6.1.3 | B130: SICRO | C130: E9134 | D130: Miniônibus com capacidade para 30 passageiros - 111 Kw | E130: chp | F130: =VLOOKUP(A130,'Memorial de cálculo'!A41:H449,8,0) -> 0.0274875 | G130: 217.79 | H130: =ROUND(F130*G130,2) -> 5.99 | I130: ca | J130: 2.81
A131: 6.1.4 | B131: SICRO | C131: E9134 | D131: Miniônibus com capacidade para 30 passageiros - 111 Kw | E131: chi | F131: =VLOOKUP(A131,'Memorial de cálculo'!A42:H450,8,0) -> 0.1924125 | G131: 74.24 | H131: =ROUND(F131*G131,2) -> 14.28 | I131: ca | J131: 6.93
B132: =B128 -> SINAPI | D132: MÃO DE OBRA | H132: 0 | I132: mdo
B134: ='Planilha Orçamentária'!A31 -> 6.2 | C134: =VLOOKUP($B134,'Planilha Orçamentária'!$A$10:$I$477,3,) -> CPU.11 | D134: =VLOOKUP($B134,'Planilha Orçamentária'!$A$10:$I$477,4,) -> Regularização e compactação da crista | E134: =VLOOKUP($B134,'Planilha Orçamentária'!$A$10:$I$54,5) -> M2 | H134: =SUM(H139:H142) -> 3.48 | I134: SS
B135: =B134 -> 6.2 | D135: MATERIAL | H135: 0 | I135: ss
B136: =B134 -> 6.2 | D136: EQUIPAMENTOS | H136: 0 | I136: ss
B137: =B134 -> 6.2 | D137: SERVIÇOS | H137: 0 | I137: ss
B138: =B134 -> 6.2 | D138: MÃO DE OBRA | H138: 0 | I138: mdo
A139: 6.2.1 | B139: SINAPI | C139: 100576 | D139: =PROPER(IF(K141="i",VLOOKUP(C139,'Ins SINAPI PE 04-2024 Onerado'!$A$8:$E$5189,2,0),VLOOKUP(C139,'Comp SINAPI PE 04-2024 Onerado'!$G$7:$K$7500,2,0))) -> Regularização E Compactação De Subleito De Solo Predominantemente Argiloso. Af_11/2019 | E139: =LOWER(IF(K141="i",VLOOKUP(C139,'Ins SINAPI PE 04-2024 Onerado'!$A$8:$E$5189,3,0),VLOOKUP(C139,'Comp SINAPI PE 04-2024 Onerado'!$G$7:$K$7500,3,0))) -> m2 | F139: 1 | G139: =IF(I139="i",VLOOKUP(C139,'Ins SINAPI PE 04-2024 Onerado'!$A$8:$E$5189,5,0),VLOOKUP(C139,'Comp SINAPI PE 04-2024 Onerado'!$G$7:$K$7500,5,0)) -> 2.65 | H139: =ROUND(F139*G139,2) -> 2.65 | I139: ca
A140: 6.2.2 | B140: COTAÇÃO | C140: CT.01 | D140: Hospedagem | E140: un | F140: =VLOOKUP(A140,'Memorial de cálculo'!A12:H524,8,0) -> 0.001 | G140: 90 | H140: =ROUND(F140*G140,2) -> 0.09 | I140: ca
A141: 6.2.3 | B141: SICRO | C141: E9134 | D141: Miniônibus com capacidade para 30 passageiros - 111 Kw | E141: chp | F141: =VLOOKUP(A141,'Memorial de cálculo'!A13:H435,8,0) -> 0.001 | G141: 217.79 | H141: =ROUND(F141*G141,2) -> 0.22 | I141: ca
A142: 6.2.4 | B142: SICRO | C142: E9134 | D142: Miniônibus com capacidade para 30 passageiros - 111 Kw | E142: chi | F142: =VLOOKUP(A142,'Memorial de cálculo'!A14:H436,8,0) -> 0.007 | G142: 74.24 | H142: =ROUND(F142*G142,2) -> 0.52 | I142: ca
B143: =B139 -> SINAPI | D143: MÃO DE OBRA | H143: 0 | I143: mdo
B145: ='Planilha Orçamentária'!A32 -> 6.3 | C145: =VLOOKUP($B145,'Planilha Orçamentária'!$A$10:$I$477,3,) -> CPU.12 | D145: =VLOOKUP($B145,'Planilha Orçamentária'!$A$10:$I$477,4,) -> Drenagem | E145: =VLOOKUP($B145,'Planilha Orçamentária'!$A$10:$I$54,5) -> M | H145: =SUM(H149:H156) -> 53.67 | I145: SS
B146: =B145 -> 6.3 | D146: MATERIAL | H146: 0 | I146: ss
B147: =B145 -> 6.3 | D147: EQUIPAMENTOS | H147: 0 | I147: ss
B148: =B145 -> 6.3 | D148: SERVIÇOS | H148: 0 | I148: ss
A149: 6.3.1 | B149: SINAPI | C149: 94263 | D149: =PROPER(IF(K149="i",VLOOKUP(C149,'Ins SINAPI PE 04-2024 Onerado'!$A$8:$E$5189,2,0),VLOOKUP(C149,'Comp SINAPI PE 04-2024 Onerado'!$G$7:$K$7500,2,0))) -> Guia (Meio-Fio) Concreto, Moldada In Loco Em Trecho Reto Com Extrusora, 13 Cm Base X 22 Cm Altura. Af_01/2024 | E149: =LOWER(IF(K149="i",VLOOKUP(C149,'Ins SINAPI PE 04-2024 Onerado'!$A$8:$E$5189,3,0),VLOOKUP(C149,'Comp SINAPI PE 04-2024 Onerado'!$G$7:$K$7500,3,0))) -> m | F149: 1 | G149: =IF(I149="i",VLOOKUP(C149,'Ins SINAPI PE 04-2024 Onerado'!$A$8:$E$5189,5,0),VLOOKUP(C149,'Comp SINAPI PE 04-2024 Onerado'!$G$7:$K$7500,5,0)) -> 31.77 | H149: =ROUND(F149*G149,2) -> 31.77 | I149: ca
A150: 6.3.2 | B150: SINAPI | C150: 100946 | D150: =PROPER(IF(K150="i",VLOOKUP(C150,'Ins SINAPI PE 04-2024 Onerado'!$A$8:$E$5189,2,0),VLOOKUP(C150,'Comp SINAPI PE 04-2024 Onerado'!$G$7:$K$7500,2,0))) -> Transporte Com Caminhão Carroceria 9T, Em Via Urbana Em Revestimento Primário (Unidade: Txkm). Af_07/2020 | E150: =LOWER(IF(K150="i",VLOOKUP(C150,'Ins SINAPI PE 04-2024 Onerado'!$A$8:$E$5189,3,0),VLOOKUP(C150,'Comp SINAPI PE 04-2024 Onerado'!$G$7:$K$7500,3,0))) -> txkm | F150: =VLOOKUP(A150,'Memorial de cálculo'!A18:H529,8,0) -> 0.08625 | G150: =IF(I150="i",VLOOKUP(C150,'Ins SINAPI PE 04-2024 Onerado'!$A$8:$E$5189,5,0),VLOOKUP(C150,'Comp SINAPI PE 04-2024 Onerado'!$G$7:$K$7500,5,0)) -> 2.42 | H150: =ROUND(F150*G150,2) -> 0.21 | I150: ca | J150: =F150*G150 -> 0.208725
A151: 6.3.3 | B151: SINAPI | C151: 100947 | D151: =PROPER(IF(K151="i",VLOOKUP(C151,'Ins SINAPI PE 04-2024 Onerado'!$A$8:$E$5189,2,0),VLOOKUP(C151,'Comp SINAPI PE 04-2024 Onerado'!$G$7:$K$7500,2,0))) -> Transporte Com Caminhão Carroceria 9T, Em Via Urbana Pavimentada, Dmt Até 30Km (Unidade: Txkm). Af_07/2020 | E151: =LOWER(IF(K151="i",VLOOKUP(C151,'Ins SINAPI PE 04-2024 Onerado'!$A$8:$E$5189,3,0),VLOOKUP(C151,'Comp SINAPI PE 04-2024 Onerado'!$G$7:$K$7500,3,0))) -> txkm | F151: =VLOOKUP(A151,'Memorial de cálculo'!A19:H530,8,0) -> 1.288 | G151: =IF(I151="i",VLOOKUP(C151,'Ins SINAPI PE 04-2024 Onerado'!$A$8:$E$5189,5,0),VLOOKUP(C151,'Comp SINAPI PE 04-2024 Onerado'!$G$7:$K$7500,5,0)) -> 2.23 | H151: =ROUND(F151*G151,2) -> 2.87 | I151: ca
A152: 6.3.4 | B152: SINAPI | C152: 88830 | D152: =PROPER(IF(K152="i",VLOOKUP(C152,'Ins SINAPI PE 04-2024 Onerado'!$A$8:$E$5189,2,0),VLOOKUP(C152,'Comp SINAPI PE 04-2024 Onerado'!$G$7:$K$7500,2,0))) -> Betoneira Capacidade Nominal De 400 L, Capacidade De Mistura 280 L, Motor Elétrico Trifásico Potência De 2 Cv, Sem Carregador - Chp Diurno. Af_05/2023 | E152: =LOWER(IF(K152="i",VLOOKUP(C152,'Ins SINAPI PE 04-2024 Onerado'!$A$8:$E$5189,3,0),VLOOKUP(C152,'Comp SINAPI PE 04-2024 Onerado'!$G$7:$K$7500,3,0))) -> chp | F152: =VLOOKUP(A152,'Memorial de cálculo'!A20:H531,8,0) -> 0.086191105 | G152: =IF(I152="i",VLOOKUP(C152,'Ins SINAPI PE 04-2024 Onerado'!$A$8:$E$5189,5,0),VLOOKUP(C152,'Comp SINAPI PE 04-2024 Onerado'!$G$7:$K$7500,5,0)) -> 2.04 | H152: 0.18 | I152: ca
A153: 6.3.5 | B153: SINAPI | C153: 88831 | D153: =PROPER(IF(K153="i",VLOOKUP(C153,'Ins SINAPI PE 04-2024 Onerado'!$A$8:$E$5189,2,0),VLOOKUP(C153,'Comp SINAPI PE 04-2024 Onerado'!$G$7:$K$7500,2,0))) -> Betoneira Capacidade Nominal De 400 L, Capacidade De Mistura 280 L, Motor Elétrico Trifásico Potência De 2 Cv, Sem Carregador - Chi Diurno. Af_05/2023 | E153: =LOWER(IF(K153="i",VLOOKUP(C153,'Ins SINAPI PE 04-2024 Onerado'!$A$8:$E$5189,3,0),VLOOKUP(C153,'Comp SINAPI PE 04-2024 Onerado'!$G$7:$K$7500,3,0))) -> chi | F153: =VLOOKUP(A153,'Memorial de cálculo'!A29:H532,8,0) -> 0.016352895 | G153: =IF(I153="i",VLOOKUP(C153,'Ins SINAPI PE 04-2024 Onerado'!$A$8:$E$5189,5,0),VLOOKUP(C153,'Comp SINAPI PE 04-2024 Onerado'!$G$7:$K$7500,5,0)) -> 0.42 | H153: 0.01 | I153: ca
A154: 6.3.6 | B154: COTAÇÃO | C154: CT.01 | D154: Hospedagem | E154: un | F154: =VLOOKUP(A154,'Memorial de cálculo'!A29:H533,8,0) -> 0.09375 | G154: 90 | H154: 8.44 | I154: ca
A155: 6.3.7 | B155: SICRO | C155: E9134 | D155: Miniônibus com capacidade para 30 passageiros - 111 Kw | E155: chp | F155: =VLOOKUP(A155,'Memorial de cálculo'!A29:H534,8,0) -> 0.0138125 | G155: 217.79 | H155: 3.01 | I155: ca
A156: 6.3.8 | B156: SICRO | C156: E9134 | D156: Miniônibus com capacidade para 30 passageiros - 111 Kw | E156: chi | F156: =VLOOKUP(A156,'Memorial de cálculo'!A29:H535,8,0) -> 0.0966875 | G156: 74.24 | H156: 7.18 | I156: ca
B157: =B153 -> SINAPI | D157: MÃO DE OBRA | H157: 0 | I157: mdo
B159: ='Planilha Orçamentária'!A33 -> 6.4 | C159: =VLOOKUP($B159,'Planilha Orçamentária'!$A$10:$I$477,3,) -> CPU.13 | D159: =VLOOKUP($B159,'Planilha Orçamentária'!$A$10:$I$477,4,) -> Revestimento com BGTC | E159: =VLOOKUP($B159,'Planilha Orçamentária'!$A$10:$I$54,5) -> M3 | H159: =SUM(H163:H169) -> 311.08 | I159: SS
B160: =B159 -> 6.4 | D160: MATERIAL | H160: 0 | I160: ss
B161: =B159 -> 6.4 | D161: EQUIPAMENTOS | H161: 0 | I161: ss
B162: =B159 -> 6.4 | D162: SERVIÇOS | H162: 0 | I162: ss
A163: 6.4.1 | B163: SINAPI | C163: 96397 | D163: =PROPER(IF(K163="i",VLOOKUP(C163,'Ins SINAPI PE 04-2024 Onerado'!$A$8:$E$5189,2,0),VLOOKUP(C163,'Comp SINAPI PE 04-2024 Onerado'!$G$7:$K$7500,2,0))) -> Execução E Compactação De Base E Ou Sub Base Para Pavimentação De Brita Graduada Simples Tratada Com Cimento - Exclusive Carga E Transporte. Af_11/2019 | E163: =LOWER(IF(K163="i",VLOOKUP(C163,'Ins SINAPI PE 04-2024 Onerado'!$A$8:$E$5189,3,0),VLOOKUP(C163,'Comp SINAPI PE 04-2024 Onerado'!$G$7:$K$7500,3,0))) -> m3 | F163: 1 | G163: =IF(I163="i",VLOOKUP(C163,'Ins SINAPI PE 04-2024 Onerado'!$A$8:$E$5189,5,0),VLOOKUP(C163,'Comp SINAPI PE 04-2024 Onerado'!$G$7:$K$7500,5,0)) -> 240.32 | H163: =ROUND(F163*G163,2) -> 240.32 | I163: ca
A164: 6.4.2 | B164: SINAPI | C164: 100976 | D164: =PROPER(IF(K164="i",VLOOKUP(C164,'Ins SINAPI PE 04-2024 Onerado'!$A$8:$E$5189,2,0),VLOOKUP(C164,'Comp SINAPI PE 04-2024 Onerado'!$G$7:$K$7500,2,0))) -> Carga, Manobra E Descarga De Solos E Materiais Granulares Em Caminhão Basculante 18 M³ - Carga Com Pá Carregadeira (Caçamba De 1,7 A 2,8 M³ / 128 Hp) E Descarga Livre (Unidade: M3). Af_07/2020 | E164: =LOWER(IF(K164="i",VLOOKUP(C164,'Ins SINAPI PE 04-2024 Onerado'!$A$8:$E$5189,3,0),VLOOKUP(C164,'Comp SINAPI PE 04-2024 Onerado'!$G$7:$K$7500,3,0))) -> m3 | F164: =VLOOKUP(A164,'Memorial de cálculo'!A36:H539,8,0) -> 1 | G164: =IF(I164="i",VLOOKUP(C164,'Ins SINAPI PE 04-2024 Onerado'!$A$8:$E$5189,5,0),VLOOKUP(C164,'Comp SINAPI PE 04-2024 Onerado'!$G$7:$K$7500,5,0)) -> 8.28 | H164: 8.28 | I164: ca
A165: 6.4.3 | B165: SINAPI | C165: 93589 | D165: =PROPER(IF(K165="i",VLOOKUP(C165,'Ins SINAPI PE 04-2024 Onerado'!$A$8:$E$5189,2,0),VLOOKUP(C165,'Comp SINAPI PE 04-2024 Onerado'!$G$7:$K$7500,2,0))) -> Transporte Com Caminhão Basculante De 10 M³, Em Via Urbana Em Revestimento Primário (Unidade: M3Xkm). Af_07/2020 | E165: =LOWER(IF(K165="i",VLOOKUP(C165,'Ins SINAPI PE 04-2024 Onerado'!$A$8:$E$5189,3,0),VLOOKUP(C165,'Comp SINAPI PE 04-2024 Onerado'!$G$7:$K$7500,3,0))) -> m3xkm | F165: =VLOOKUP(A165,'Memorial de cálculo'!A37:H540,8,0) -> 1.5 | G165: =IF(I165="i",VLOOKUP(C165,'Ins SINAPI PE 04-2024 Onerado'!$A$8:$E$5189,5,0),VLOOKUP(C165,'Comp SINAPI PE 04-2024 Onerado'!$G$7:$K$7500,5,0)) -> 2.69 | H165: 4.04 | I165: ca
A166: 6.4.4 | B166: SINAPI | C166: 95875 | D166: =PROPER(IF(K166="i",VLOOKUP(C166,'Ins SINAPI PE 04-2024 Onerado'!$A$8:$E$5189,2,0),VLOOKUP(C166,'Comp SINAPI PE 04-2024 Onerado'!$G$7:$K$7500,2,0))) -> Transporte Com Caminhão Basculante De 10 M³, Em Via Urbana Pavimentada, Dmt Até 30 Km (Unidade: M3Xkm). Af_07/2020 | E166: =LOWER(IF(K166="i",VLOOKUP(C166,'Ins SINAPI PE 04-2024 Onerado'!$A$8:$E$5189,3,0),VLOOKUP(C166,'Comp SINAPI PE 04-2024 Onerado'!$G$7:$K$7500,3,0))) -> m3xkm | F166: =VLOOKUP(A166,'Memorial de cálculo'!A38:H541,8,0) -> 22.4 | G166: =IF(I166="i",VLOOKUP(C166,'Ins SINAPI PE 04-2024 Onerado'!$A$8:$E$5189,5,0),VLOOKUP(C166,'Comp SINAPI PE 04-2024 Onerado'!$G$7:$K$7500,5,0)) -> 2.47 | H166: 55.33 | I166: ca
A167: 6.4.5 | B167: COTAÇÃO | C167: CT.01 | D167: Hospedagem | E167: un | F167: =VLOOKUP(A167,'Memorial de cálculo'!A39:H542,8,0) -> 0.00375 | G167: 90 | H167: 0.34 | I167: ca
A168: 6.4.6 | B168: SICRO | C168: E9134 | D168: Miniônibus com capacidade para 30 passageiros - 111 Kw | E168: chp | F168: =VLOOKUP(A168,'Memorial de cálculo'!A40:H543,8,0) -> 0.00375 | G168: 217.79 | H168: 0.82 | I168: ca
A169: 6.4.7 | B169: SICRO | C169: E9134 | D169: Miniônibus com capacidade para 30 passageiros - 111 Kw | E169: chi | F169: =VLOOKUP(A169,'Memorial de cálculo'!A41:H544,8,0) -> 0.02625 | G169: 74.24 | H169: 1.95 | I169: ca
B170: =B159 -> 6.4 | D170: MÃO DE OBRA | H170: 0 | I170: mdo
B172: ='Planilha Orçamentária'!A36 -> 7.1 | C172: =VLOOKUP($B172,'Planilha Orçamentária'!$A$10:$I$477,3,) -> CPU.14 | D172: =VLOOKUP($B172,'Planilha Orçamentária'!$A$10:$I$477,4,) -> Enrocamento c/ pedra de mão para proteção do talude | E172: m³ | F172: 1 | H172: =SUM(H173,H175,H176,H183) -> 407.59 | I172: S
B173: =B172 -> 7.1 | D173: MATERIAL | H173: =SUM(H174:H174) -> 117.84 | I173: ss
A174: 7.1.1 | B174: SINAPI | C174: 4730 | D174: =IF(I174="i",VLOOKUP(C174,'Ins SINAPI PE 04-2024 Onerado'!$A$8:$E$5189,2,0),VLOOKUP(C174,'Comp SINAPI PE 04-2024 Onerado'!$G$7:$K$7500,2,0)) -> PEDRA DE MAO OU PEDRA RACHAO PARA ARRIMO/FUNDACAO (POSTO PEDREIRA/FORNECEDOR, SEM FRETE) | E174: =IF(I174="i",VLOOKUP(C174,'Ins SINAPI PE 04-2024 Onerado'!$A$8:$E$5189,3,0),VLOOKUP(C174,'Comp SINAPI PE 04-2024 Onerado'!$G$7:$K$7500,3,0)) -> M3 | F174: =VLOOKUP(A174,'Memorial de cálculo'!A46:H549,8,0) -> 1.2 | G174: =IF(I174="i",VLOOKUP(C174,'Ins SINAPI PE 04-2024 Onerado'!$A$8:$E$5189,5,0),VLOOKUP(C174,'Comp SINAPI PE 04-2024 Onerado'!$G$7:$K$7500,5,0)) -> 98.2 | H174: =ROUND(F174*G174,2) -> 117.84 | I174: i | J174: INDICES COM BASE NA COMPOSIÇÃO DA SICRO
B175: =B172 -> 7.1 | D175: EQUIPAMENTOS | I175: ss
B176: =B172 -> 7.1 | D176: SERVIÇOS | H176: =SUM(H177:H182) -> 175.62 | I176: ss
A177: 7.1.2 | B177: SINAPI | C177: 93589 | D177: =IF(I177="i",VLOOKUP(C177,'Ins SINAPI PE 04-2024 Onerado'!$A$8:$E$5189,2,0),VLOOKUP(C177,'Comp SINAPI PE 04-2024 Onerado'!$G$7:$K$7500,2,0)) -> TRANSPORTE COM CAMINHÃO BASCULANTE DE 10 M³, EM VIA URBANA EM REVESTIMENTO PRIMÁRIO (UNIDADE: M3XKM). AF_07/2020 | E177: =IF(I177="i",VLOOKUP(C177,'Ins SINAPI PE 04-2024 Onerado'!$A$8:$E$5189,3,0),VLOOKUP(C177,'Comp SINAPI PE 04-2024 Onerado'!$G$7:$K$7500,3,0)) -> M3XKM | F177: =VLOOKUP(A177,'Memorial de cálculo'!A49:H552,8,0) -> 1.5 | G177: =IF(I177="i",VLOOKUP(C177,'Ins SINAPI PE 04-2024 Onerado'!$A$8:$E$5189,5,0),VLOOKUP(C177,'Comp SINAPI PE 04-2024 Onerado'!$G$7:$K$7500,5,0)) -> 2.69 | H177: =ROUND(F177*G177,2) -> 4.04 | I177: ca
A178: 7.1.3 | B178: SINAPI | C178: 95875 | D178: =IF(I178="i",VLOOKUP(C178,'Ins SINAPI PE 04-2024 Onerado'!$A$8:$E$5189,2,0),VLOOKUP(C178,'Comp SINAPI PE 04-2024 Onerado'!$G$7:$K$7500,2,0)) -> TRANSPORTE COM CAMINHÃO BASCULANTE DE 10 M³, EM VIA URBANA PAVIMENTADA, DMT ATÉ 30 KM (UNIDADE: M3XKM). AF_07/2020 | E178: =IF(I178="i",VLOOKUP(C178,'Ins SINAPI PE 04-2024 Onerado'!$A$8:$E$5189,3,0),VLOOKUP(C178,'Comp SINAPI PE 04-2024 Onerado'!$G$7:$K$7500,3,0)) -> M3XKM | F178: =VLOOKUP(A178,'Memorial de cálculo'!A50:H553,8,0) -> 22.4 | G178: =IF(I178="i",VLOOKUP(C178,'Ins SINAPI PE 04-2024 Onerado'!$A$8:$E$5189,5,0),VLOOKUP(C178,'Comp SINAPI PE 04-2024 Onerado'!$G$7:$K$7500,5,0)) -> 2.47 | H178: 55.33 | I178: ca
A179: 7.1.4 | B179: SINAPI | C179: 100976 | D179: =IF(I179="i",VLOOKUP(C179,'Ins SINAPI PE 04-2024 Onerado'!$A$8:$E$5189,2,0),VLOOKUP(C179,'Comp SINAPI PE 04-2024 Onerado'!$G$7:$K$7500,2,0)) -> CARGA, MANOBRA E DESCARGA DE SOLOS E MATERIAIS GRANULARES EM CAMINHÃO BASCULANTE 18 M³ - CARGA COM PÁ CARREGADEIRA (CAÇAMBA DE 1,7 A 2,8 M³ / 128 HP) E DESCARGA LIVRE (UNIDADE: M3). AF_07/2020 | E179: =IF(I179="i",VLOOKUP(C179,'Ins SINAPI PE 04-2024 Onerado'!$A$8:$E$5189,3,0),VLOOKUP(C179,'Comp SINAPI PE 04-2024 Onerado'!$G$7:$K$7500,3,0)) -> M3 | F179: =VLOOKUP(A179,'Memorial de cálculo'!A51:H554,8,0) -> 1 | G179: =IF(I179="i",VLOOKUP(C179,'Ins SINAPI PE 04-2024 Onerado'!$A$8:$E$5189,5,0),VLOOKUP(C179,'Comp SINAPI PE 04-2024 Onerado'!$G$7:$K$7500,5,0)) -> 8.28 | H179: 8.28 | I179: ca
A180: 7.1.5 | B180: COTAÇÃO | C180: CT.01 | D180: Hospedagem | E180: un | F180: =VLOOKUP(A180,'Memorial de cálculo'!A55:H558,8,0) -> 0.6875 | G180: 90 | H180: 61.88 | I180: ca
A181: 7.1.6 | B181: SICRO | C181: E9134 | D181: Miniônibus com capacidade para 30 passageiros - 111 Kw | E181: chp | F181: =VLOOKUP(A181,'Memorial de cálculo'!A56:H559,8,0) -> 0.0625 | G181: 217.79 | H181: 13.61 | I181: ca
A182: 7.1.7 | B182: SICRO | C182: E9134 | D182: Miniônibus com capacidade para 30 passageiros - 111 Kw | E182: chi | F182: =VLOOKUP(A182,'Memorial de cálculo'!A57:H560,8,0) -> 0.4375 | G182: 74.24 | H182: 32.48 | I182: ca
B183: =B172 -> 7.1 | D183: MÃO DE OBRA | H183: =SUM(H184:H186) -> 114.13 | I183: mdo
A184: 7.1.8 | B184: SINAPI | C184: 88309 | D184: =IF(I184="i",VLOOKUP(C184,'Ins SINAPI PE 04-2024 Onerado'!$A$8:$E$5189,2,0),VLOOKUP(C184,'Comp SINAPI PE 04-2024 Onerado'!$G$7:$K$7500,2,0)) -> PEDREIRO COM ENCARGOS COMPLEMENTARES | E184: =IF(I184="i",VLOOKUP(C184,'Ins SINAPI PE 04-2024 Onerado'!$A$8:$E$5189,3,0),VLOOKUP(C184,'Comp SINAPI PE 04-2024 Onerado'!$G$7:$K$7500,3,0)) -> H | F184: =VLOOKUP(A184,'Memorial de cálculo'!A53:H556,8,0) -> 0.5 | G184: =IF(I184="i",VLOOKUP(C184,'Ins SINAPI PE 04-2024 Onerado'!$A$8:$E$5189,5,0),VLOOKUP(C184,'Comp SINAPI PE 04-2024 Onerado'!$G$7:$K$7500,5,0)) -> 25.46 | H184: =ROUND(F184*G184,2) -> 12.73 | I184: ca
A185: 7.1.9 | B185: SINAPI | C185: 88316 | D185: =IF(I185="i",VLOOKUP(C185,'Ins SINAPI PE 04-2024 Onerado'!$A$8:$E$5189,2,0),VLOOKUP(C185,'Comp SINAPI PE 04-2024 Onerado'!$G$7:$K$7500,2,0)) -> SERVENTE COM ENCARGOS COMPLEMENTARES | E185: =IF(I185="i",VLOOKUP(C185,'Ins SINAPI PE 04-2024 Onerado'!$A$8:$E$5189,3,0),VLOOKUP(C185,'Comp SINAPI PE 04-2024 Onerado'!$G$7:$K$7500,3,0)) -> H | F185: =VLOOKUP(A185,'Memorial de cálculo'!A54:H557,8,0) -> 5 | G185: =IF(I185="i",VLOOKUP(C185,'Ins SINAPI PE 04-2024 Onerado'!$A$8:$E$5189,5,0),VLOOKUP(C185,'Comp SINAPI PE 04-2024 Onerado'!$G$7:$K$7500,5,0)) -> 20.28 | H185: =ROUND(F185*G185,2) -> 101.4 | I185: ca
B187: ='Planilha Orçamentária'!A39 -> 8.1 | C187: =VLOOKUP($B187,'Planilha Orçamentária'!$A$10:$I$477,3,) -> CPU.15 | D187: =VLOOKUP($B187,'Planilha Orçamentária'!$A$10:$I$477,4,) -> Canaleta para descida d'água | E187: un | H187: =H190 -> 69.33 | I187: s
B188: =B187 -> 8.1 | D188: MATERIAL | I188: ss
B189: =B187 -> 8.1 | D189: EQUIPAMENTOS | I189: ss
B190: =B187 -> 8.1 | D190: SERVIÇOS | H190: =SUM(H191:H196) -> 69.33 | I190: ss
A191: 8.1.1 | B191: SINAPI | C191: 102990 | D191: =PROPER(IF(K188="i",VLOOKUP(C191,'Ins SINAPI PE 04-2024 Onerado'!$A$8:$E$5189,2,0),VLOOKUP(C191,'Comp SINAPI PE 04-2024 Onerado'!$G$7:$K$7500,2,0))) -> Canaleta Meia Cana Pré-Moldada De Concreto (D = 30 Cm) - Fornecimento E Instalação. Af_08/2021 | E191: =LOWER(IF(K188="i",VLOOKUP(C191,'Ins SINAPI PE 04-2024 Onerado'!$A$8:$E$5189,3,0),VLOOKUP(C191,'Comp SINAPI PE 04-2024 Onerado'!$G$7:$K$7500,3,0))) -> m | F191: 1 | G191: =IF(I191="i",VLOOKUP(C191,'Ins SINAPI PE 04-2024 Onerado'!$A$8:$E$5189,5,0),VLOOKUP(C191,'Comp SINAPI PE 04-2024 Onerado'!$G$7:$K$7500,5,0)) -> 45.75 | H191: =ROUND(F191*G191,2) -> 45.75
A192: 8.1.2 | B192: SINAPI | C192: 100946 | D192: =PROPER(IF(K189="i",VLOOKUP(C192,'Ins SINAPI PE 04-2024 Onerado'!$A$8:$E$5189,2,0),VLOOKUP(C192,'Comp SINAPI PE 04-2024 Onerado'!$G$7:$K$7500,2,0))) -> Transporte Com Caminhão Carroceria 9T, Em Via Urbana Em Revestimento Primário (Unidade: Txkm). Af_07/2020 | E192: =LOWER(IF(K189="i",VLOOKUP(C192,'Ins SINAPI PE 04-2024 Onerado'!$A$8:$E$5189,3,0),VLOOKUP(C192,'Comp SINAPI PE 04-2024 Onerado'!$G$7:$K$7500,3,0))) -> txkm | F192: =VLOOKUP(A192,'Memorial de cálculo'!A93:H587,8,0) -> 0.12 | G192: =IF(I192="i",VLOOKUP(C192,'Ins SINAPI PE 04-2024 Onerado'!$A$8:$E$5189,5,0),VLOOKUP(C192,'Comp SINAPI PE 04-2024 Onerado'!$G$7:$K$7500,5,0)) -> 2.42 | H192: =ROUND(F192*G192,2) -> 0.29 | I192: ca
A193: 8.1.3 | B193: SINAPI | C193: 100947 | D193: =PROPER(IF(K190="i",VLOOKUP(C193,'Ins SINAPI PE 04-2024 Onerado'!$A$8:$E$5189,2,0),VLOOKUP(C193,'Comp SINAPI PE 04-2024 Onerado'!$G$7:$K$7500,2,0))) -> Transporte Com Caminhão Carroceria 9T, Em Via Urbana Pavimentada, Dmt Até 30Km (Unidade: Txkm). Af_07/2020 | E193: =LOWER(IF(K190="i",VLOOKUP(C193,'Ins SINAPI PE 04-2024 Onerado'!$A$8:$E$5189,3,0),VLOOKUP(C193,'Comp SINAPI PE 04-2024 Onerado'!$G$7:$K$7500,3,0))) -> txkm | F193: =VLOOKUP(A193,'Memorial de cálculo'!A94:H588,8,0) -> 1.792 | G193: =IF(I193="i",VLOOKUP(C193,'Ins SINAPI PE 04-2024 Onerado'!$A$8:$E$5189,5,0),VLOOKUP(C193,'Comp SINAPI PE 04-2024 Onerado'!$G$7:$K$7500,5,0)) -> 2.23 | H193: =ROUND(F193*G193,2) -> 4 | I193: ca
A194: 8.1.4 | B194: COTAÇÃO | C194: CT.01 | D194: Hospedagem | E194: un | F194: =VLOOKUP(A194,'Memorial de cálculo'!A65:H567,8,0) -> 0.0703 | G194: 90 | H194: 6.33
A195: 8.1.5 | B195: SICRO | C195: E9134 | D195: Miniônibus com capacidade para 30 passageiros - 111 Kw | E195: chp | F195: =VLOOKUP(A195,'Memorial de cálculo'!A66:H568,8,0) -> 0.017575 | G195: 217.79 | H195: 3.83
A196: 8.1.6 | B196: SICRO | C196: E9134 | D196: Miniônibus com capacidade para 30 passageiros - 111 Kw | E196: chi | F196: =VLOOKUP(A196,'Memorial de cálculo'!A67:H569,8,0) -> 0.123025 | G196: 74.24 | H196: 9.13
B197: =B182 -> SICRO | D197: MÃO DE OBRA | H197: 0 | I197: mdo
B199: ='Planilha Orçamentária'!A40 -> 8.2 | C199: =VLOOKUP($B199,'Planilha Orçamentária'!$A$10:$I$477,3,) -> CPU.16 | D199: =VLOOKUP($B199,'Planilha Orçamentária'!$A$10:$I$477,4,) -> Entrada para descida d'água | E199: un | H199: =H200+H201+H202+H208 -> 92.05 | I199: s
B200: =B199 -> 8.2 | D200: MATERIAL | I200: ss
B201: =B199 -> 8.2 | D201: EQUIPAMENTOS | I201: ss
B202: =B199 -> 8.2 | D202: SERVIÇOS | H202: =SUM(H203:H207) -> 92.05 | I202: ss
A203: 8.2.1 | B203: SINPAI | C203: 94964 | D203: =PROPER(IF(K203="i",VLOOKUP(C203,'Ins SINAPI PE 04-2024 Onerado'!$A$8:$E$5189,2,0),VLOOKUP(C203,'Comp SINAPI PE 04-2024 Onerado'!$G$7:$K$7500,2,0))) -> Concreto Fck = 20Mpa, Traço 1:2,7:3 (Em Massa Seca De Cimento/ Areia Média/ Brita 1) - Preparo Mecânico Com Betoneira 400 L. Af_05/2021 | E203: =IF(I203="i",VLOOKUP(C203,'Ins SINAPI PE 04-2024 Onerado'!$A$8:$E$5189,3,0),VLOOKUP(C203,'Comp SINAPI PE 04-2024 Onerado'!$G$7:$K$7500,3,0)) -> M3 | F203: =VLOOKUP(A203,'Memorial de cálculo'!A74:H576,8,0) -> 0.11 | G203: =IF(I203="i",VLOOKUP(C203,'Ins SINAPI PE 04-2024 Onerado'!$A$8:$E$5189,5,0),VLOOKUP(C203,'Comp SINAPI PE 04-2024 Onerado'!$G$7:$K$7500,5,0)) -> 476.05 | H203: =ROUND(F203*G203,2) -> 52.37 | I203: ca | J203: índices baseados em SICRO 2003385 Entrada para descida d'água - EDA 01 - areia e brita comerciais
A204: 8.2.2 | B204: SINPAI | C204: 92268 | D204: =PROPER(IF(K204="i",VLOOKUP(C204,'Ins SINAPI PE 04-2024 Onerado'!$A$8:$E$5189,2,0),VLOOKUP(C204,'Comp SINAPI PE 04-2024 Onerado'!$G$7:$K$7500,2,0))) -> Fabricação De Fôrma Para Lajes, Em Chapa De Madeira Compensada Plastificada, E = 18 Mm. Af_09/2020 | E204: =IF(I204="i",VLOOKUP(C204,'Ins SINAPI PE 04-2024 Onerado'!$A$8:$E$5189,3,0),VLOOKUP(C204,'Comp SINAPI PE 04-2024 Onerado'!$G$7:$K$7500,3,0)) -> M2 | F204: =VLOOKUP(A204,'Memorial de cálculo'!A75:H577,8,0) -> 0.1 | G204: =IF(I204="i",VLOOKUP(C204,'Ins SINAPI PE 04-2024 Onerado'!$A$8:$E$5189,5,0),VLOOKUP(C204,'Comp SINAPI PE 04-2024 Onerado'!$G$7:$K$7500,5,0)) -> 88.55 | H204: =ROUND(F204*G204,2) -> 8.86 | I204: ca
A205: 8.2.3 | B205: COTAÇÃO | C205: CT.01 | D205: Hospedagem | E205: un | F205: =VLOOKUP(A205,'Memorial de cálculo'!A76:H578,8,0) -> 0.057021125 | G205: 90 | H205: =ROUND(F205*G205,2) -> 5.13
A206: 8.2.4 | B206: SICRO | C206: E9134 | D206: Miniônibus com capacidade para 30 passageiros - 111 Kw | E206: chp | F206: =VLOOKUP(A206,'Memorial de cálculo'!A77:H579,8,0) -> 0.034832875 | G206: 217.79 | H206: =ROUND(F206*G206,2) -> 7.59
A207: 8.2.5 | B207: SICRO | C207: E9134 | D207: Miniônibus com capacidade para 30 passageiros - 111 Kw | E207: chi | F207: =VLOOKUP(A207,'Memorial de cálculo'!A78:H580,8,0) -> 0.243830125 | G207: 74.24 | H207: =ROUND(F207*G207,2) -> 18.1
B208: =B199 -> 8.2 | D208: MÃO DE OBRA | H208: 0 | I208: mdo
B210: ='Planilha Orçamentária'!A43 -> 9.1 | C210: =VLOOKUP($B210,'Planilha Orçamentária'!$A$10:$I$477,3,) -> CPU.17 | D210: =VLOOKUP($B210,'Planilha Orçamentária'!$A$10:$I$477,4,) -> Aplicação de Adubo | E210: un | H210: =H213 -> 5.15 | I210: s
B211: =B210 -> 9.1 | D211: MATERIAL | I211: ss
B212: =B210 -> 9.1 | D212: EQUIPAMENTOS | I212: ss
B213: =B210 -> 9.1 | D213: SERVIÇOS | H213: =H214+H215+H216+H217+H218+H219 -> 5.15 | I213: ss
A214: 9.1.1 | B214: SINAPI | C214: 98520 | D214: =PROPER(IF(K214="i",VLOOKUP(C214,'Ins SINAPI PE 04-2024 Onerado'!$A$8:$E$5189,2,0),VLOOKUP(C214,'Comp SINAPI PE 04-2024 Onerado'!$G$7:$K$7500,2,0))) -> Aplicação De Adubo Em Solo. Af_05/2018 | E214: =LOWER(IF(K214="i",VLOOKUP(C214,'Ins SINAPI PE 04-2024 Onerado'!$A$8:$E$5189,3,0),VLOOKUP(C214,'Comp SINAPI PE 04-2024 Onerado'!$G$7:$K$7500,3,0))) -> m2 | F214: =VLOOKUP(A214,'Memorial de cálculo'!A93:H587,8,0) -> 1 | G214: =IF(I214="i",VLOOKUP(C214,'Ins SINAPI PE 04-2024 Onerado'!$A$8:$E$5189,5,0),VLOOKUP(C214,'Comp SINAPI PE 04-2024 Onerado'!$G$7:$K$7500,5,0)) -> 4.51 | H214: =ROUND(F214*G214,2) -> 4.51 | I214: ca
A215: 9.1.2 | B215: COTAÇÃO | C215: CT.01 | D215: Hospedagem | E215: un | F215: =VLOOKUP(A215,'Memorial de cálculo'!A94:H588,8,0) -> 0.002075 | G215: 90 | H215: 0.19 | I215: ca
A216: 9.1.3 | B216: SICRO | C216: E9134 | D216: Miniônibus com capacidade para 30 passageiros - 111 Kw | E216: chp | F216: =VLOOKUP(A216,'Memorial de cálculo'!A95:H589,8,0) -> 0.000415625 | G216: 217.79 | H216: 0.09 | I216: ca
A217: 9.1.4 | B217: SICRO | C217: E9134 | D217: Miniônibus com capacidade para 30 passageiros - 111 Kw | E217: chi | F217: =VLOOKUP(A217,'Memorial de cálculo'!A96:H590,8,0) -> 0.002909375 | G217: 74.24 | H217: 0.22 | I217: ca
... 83 more rows

Sheet Memorial de cálculo
A1: Ministério da Integração e do Desenvolvimento Regional
A2: Companhia de desenvolvimento dos Vales do São Francisco e do Parnaíba
A4: MEMORIAL DE CÁLCULO
A5: OBRA: | B5: ='Planilha Orçamentária'!B4 -> SERVIÇOS DE MANUTENÇÃO E OBRAS CIVIS NA BARRAGEM RIACHO DA PORTA | C5: DESLOCAMENTO - Petrolina para Belém do São Francsco (km): | G5: 6 | H5: 233
A6: LOCAL: | B6: ='Planilha Orçamentária'!B5 -> BARRAGEM RIACHO DA PORTA, BELÉM DO SÃO FRANCISCO/PE | C6: DESLOCAMENTO - Belém do São Francsco para Barragem Riacho da Porta (km): | G6: 1 | H6: 23.9
A7: DATA BASE: | B7: ='Planilha Orçamentária'!B6 -> maio, 2024 | C7: VIA URBANA PAVIMENTADA - Belém do São Francsco para Barragem Riacho da Porta (km) | H7: 22.4
A8: PRAZO: | B8: ='Planilha Orçamentária'!B7 -> 120 DIAS | C8: REVESTIMENTO PRIMÁRIO - Belém do São Francsco para Barragem Riacho da Porta (km) | H8: 1.5
A9: ITEM | B9: DESCRIÇÃO | C9: UNID. | D9: PARÂMETRO 1 | E9: PARÂMETRO 2 | F9: PARÂMETRO 3 | G9: PARÂMETRO 4 | H9: TOTAL
A10: ='Planilha Orçamentária'!A10 -> 1 | B10: =VLOOKUP(A10,'Planilha Orçamentária'!$A$10:$D$54,4,0) -> ADMINISTRAÇÃO DA OBRA
A11: ='Planilha Orçamentária'!A11 -> 1.1 | B11: =VLOOKUP(A11,'Planilha Orçamentária'!$A$7:$E$5166,4,0) -> Administração Local | C11: =VLOOKUP(A11,'Planilha Orçamentária'!$A$7:$E$5166,5,0) -> mês | D11: QUANT PESSOAS | E11: HORAS DIÁRIA | F11: DIAS TRABALHADOS NO MÊS | G11: MESES | H11: =G12 -> 4
A12: CPU.01 | G12: 4 | H12: 1
B14: Engenheiro Civil De Obra Pleno Com Encargos Complementares | C14: h | D14: 1 | E14: 1.5 | F14: 20 | H14: 30
B15: Encarregado Geral De Obras Com Encargos Complementares | C15: mes | D15: 1 | G15: 0.8 | H15: 0.8
B16: VIGIA NOTURNO COM ENCARGOS COMPLEMENTARES | C16: h | D16: 4 | E16: 12 | F16: 15 | H16: 720
A18: ='Planilha Orçamentária'!A13 -> 2 | B18: =VLOOKUP(A18,'Planilha Orçamentária'!$A$10:$D$54,4,0) -> SERVIÇOS PRELIMINARES
A19: ='Planilha Orçamentária'!A14 -> 2.1 | B19: =VLOOKUP(A19,'Planilha Orçamentária'!$A$7:$E$5166,4,0) -> Mobilização e desmobilização de instalação do canteiro | C19: =VLOOKUP(A19,'Planilha Orçamentária'!$A$7:$E$5166,5,0) -> un | D19: TEMPO DE VIAGEM | E19: TONELADAS | F19: KM | G19: IDA E VOLTA | H19: 1
A20: =CPU!A22 -> 2.1.1 | B20: =VLOOKUP(A20,CPU!$A$7:$E$5439,4,0) -> Miniônibus com capacidade para 30 passageiros - 111 Kw | C20: =VLOOKUP(A20,CPU!$A$7:$E$5439,5,0) -> chp | D20: tempo de viagem | E20: Ida e Volta | G20: ÍNDICE | H20: =H21 -> 6
D21: =G5 -> 6 | E21: 2 | H21: =D21 -> 6
A22: =CPU!A23 -> 2.1.2 | B22: =VLOOKUP(A22,CPU!$A$7:$E$5439,4,0) -> Miniônibus com capacidade para 30 passageiros - 111 Kw | C22: =VLOOKUP(A22,CPU!$A$7:$E$5439,5,0) -> chi | D22: tempo de viagem | E22: Ida e Volta | G22: ÍNDICE | H22: =H23 -> 10
D23: =(8*2)-D21 -> 10 | E23: 2 | H23: =D23 -> 10
A24: =CPU!A24 -> 2.1.3 | B24: =VLOOKUP(A24,CPU!$A$7:$E$5439,4,0) -> TRANSPORTE COM CAMINHÃO CARROCERIA 9T, EM VIA URBANA EM REVESTIMENTO PRIMÁRIO (UNIDADE: TXKM). AF_07/2020 | C24: =VLOOKUP(A24,CPU!$A$7:$E$5439,5,0) -> TXKM | D24: ton | E24: Ida e Volta | F24: km | G24: ÍNDICE | H24: =H25 -> 239
D25: 5 | E25: 2 | F25: =H6 -> 23.9 | H25: =D25*E25*F25 -> 239
A26: =CPU!A25 -> 2.1.4 | B26: =VLOOKUP(A26,CPU!$A$7:$E$5439,4,0) -> TRANSPORTE COM CAMINHÃO CARROCERIA 9T, EM VIA URBANA PAVIMENTADA, DMT ATÉ 30KM (UNIDADE: TXKM). AF_07/2020 | C26: =VLOOKUP(A26,CPU!$A$7:$E$5439,5,0) -> TXKM | D26: ton | E26: Ida e Volta | F26: km | G26: ÍNDICE | H26: =H27 -> 2330
D27: 5 | E27: 2 | F27: =$H$5 -> 233 | H27: =D27*E27*F27 -> 2330
A28: =CPU!A28 -> 2.1.5 | B28: =VLOOKUP(A28,CPU!$A$7:$E$5439,4,0) -> Motorista De Veículo Leve Com Encargos Complementares | C28: =VLOOKUP(A28,CPU!$A$7:$E$5439,5,0) -> h | E28: Ida e Volta | H28: =H29 -> 16
C29: 8 | E29: 2 | H29: =C29*E29 -> 16
A30: ='Planilha Orçamentária'!A15 -> 2.2 | B30: =VLOOKUP(A30,'Planilha Orçamentária'!$A$7:$E$5166,4,0) -> Canteiro de obras | H30: =H31+H32+H33 -> 28.5
B31: dimensões refeitório | D31: 1 | E31: 3 | F31: 2.5 | H31: =D31*E31*F31 -> 7.5
B32: dimensões banheiro | D32: 1 | E32: 4.5 | F32: 2 | H32: =D32*E32*F32 -> 9
B33: dimensões central de formas | D33: 1 | E33: 4 | F33: 3 | H33: =D33*E33*F33 -> 12
A34: =CPU!A34 -> 2.2.1 | B34: =VLOOKUP(A34,CPU!$A$7:$E$5439,4,0) -> Limpeza Manual De Vegetação Em Terreno Com Enxada. Af_03/2024 | C34: =VLOOKUP(A34,CPU!$A$7:$E$5439,5,0) -> m2 | D34: QUANT PESSOAS | E34: RENDIMENTO (H/M2) | F34: m2 | G34: HORAS | H34: =H35/C35 -> 1 | I34: =H38+H74 -> 0.008975
B35: Conforme as áreas REFEITÓRIO, SANITÁRIO E CENTRAL DE FORMAS | C35: 28.5 | H35: =C35 -> 28.5
B37: MÃO DE OBRA | D37: PESSOAS | E37: ÍNDICE | F37: RENDIMENTO | G37: H | H37: DIAS | I37: H | J37: DIAS
A38: DIAS MÃO DE OBRA | B38: 88316 SERVENTE COM ENCARGOS COMPLEMENTARES/88441 JARDINEIRO COM ENCARGOS COMPLEMENTARES | C38: h | D38: 1 | E38: 0.0718 | F38: =E38/D38 -> 0.0718 | G38: =$F$38*$H$34 -> 0.0718 | H38: =G38/8 -> 0.008975 | I38: =F38*H35 -> 2.0463 | J38: =I38/8 -> 0.2557875
A40: =CPU!A35 -> 2.2.2 | B40: =VLOOKUP(A40,CPU!$A$7:$E$5439,4,0) -> Concreto Fck = 15Mpa, Traço 1:3,4:3,5 (Em Massa Seca De Cimento/ Areia Média/ Brita 1) - Preparo Manual. Af_05/2021 | C40: =VLOOKUP(A40,CPU!$A$7:$E$5439,5,0) -> m3 | G40: ÍNDICE | H40: =H41 -> 0.05
B41: Soma da área das instalações do canteiro | D41: =C35 -> 28.5 | G41: 0.05 | H41: =G41 -> 0.05
A43: =CPU!A36 -> 2.2.3 | B43: =VLOOKUP(A43,CPU!$A$7:$E$5439,4,0) -> EXECUÇÃO DE REFEITÓRIO EM CANTEIRO DE OBRA EM CHAPA DE MADEIRA COMPENSADA, NÃO INCLUSO MOBILIÁRIO E EQUIPAMENTOS. | C43: =VLOOKUP(A43,CPU!$A$7:$E$5439,5,0) -> m² | H43: =H44/$C$35 -> 0.2631578947
B44: Área do Refeitório Em Canteiro De Obra | D44: 1 | E44: 3 | F44: 2.5 | H44: =D44*E44*F44 -> 7.5
A46: =CPU!A37 -> 2.2.4 | B46: =VLOOKUP(A46,CPU!$A$7:$E$5439,4,0) -> EXECUÇÃO DE SANITÁRIO E VESTIÁRIO EM CANTEIRO DE OBRA EM CHAPA DE MADEIRA COMPENSADA, NÃO INCLUSO MOBILIÁRIO. | C46: =VLOOKUP(A46,CPU!$A$7:$E$5439,5,0) -> m² | H46: =H47/$C$35 -> 0.3157894737
B47: Área do Sanitário Em Canteiro De Obra | D47: 1 | E47: 4.5 | F47: 2 | H47: =D47*E47*F47 -> 9
A49: =CPU!A38 -> 2.2.5 | B49: =VLOOKUP(A49,CPU!$A$7:$E$5439,4,0) -> EXECUÇÃO DE CENTRAL DE FÔRMAS, PRODUÇÃO DE ARGAMASSA OU CONCRETO EM CANTEIRO DE OBRA, NÃO INCLUSO MOBILIÁRIO E EQUIPAMENTOS. | C49: =VLOOKUP(A49,CPU!$A$7:$E$5439,5,0) -> m² | H49: =H50/$C$35 -> 0.4210526316
B50: Área da Central de Fôrmas Em Canteiro De Obra | D50: 1 | E50: 4 | F50: 3 | H50: =D50*E50*F50 -> 12
A52: =CPU!A39 -> 2.2.6 | B52: =VLOOKUP(A52,CPU!$A$7:$E$5439,4,0) -> Hospedagem | C52: =VLOOKUP(A52,CPU!$A$7:$E$5439,5,0) -> un | H52: =$H$38*$D$38 -> 0.008975
A54: =CPU!A40 -> 2.2.7 | B54: =VLOOKUP(A54,CPU!$A$7:$E$5439,4,0) -> Miniônibus com capacidade para 30 passageiros - 111 Kw | C54: =VLOOKUP(A54,CPU!$A$7:$E$5439,5,0) -> chp | E54: horas diárias | F54: dias de trabalho | H54: =H55 -> 0.008975
C55: chp | E55: 1 | F55: =$H$38 -> 0.008975 | H55: =E55*F55 -> 0.008975
A56: =CPU!A41 -> 2.2.8 | B56: =VLOOKUP(A56,CPU!$A$7:$E$5439,4,0) -> Miniônibus com capacidade para 30 passageiros - 111 Kw | C56: =VLOOKUP(A56,CPU!$A$7:$E$5439,5,0) -> chi | E56: horas diárias | F56: dias de trabalho | H56: =H57 -> 0.062825
C57: chi | E57: =8-E55 -> 7 | F57: =$H$38 -> 0.008975 | H57: =E57*F57 -> 0.062825
A59: ='Planilha Orçamentária'!A16 -> 2.3 | B59: =VLOOKUP(A59,'[2]Planilha Orçamentária'!$A$7:$E$5169,4,0) -> Placa de obra em chapa de aço galvanizado | C59: =VLOOKUP(A59,'[2]Planilha Orçamentária'!$A$7:$E$5169,5,0) -> m² | D59: QUANT. | E59: COMP. (M) | F59: LARG. (M) | H59: =H61 -> 2
B60: Dimensionamento para 1 placa | H60: 1
A61: =CPU!A46 -> 2.3.1 | B61: =VLOOKUP(A61,CPU!$A$7:$E$5439,4,0) -> SARRAFO NAO APARELHADO *2,5 X 7* CM, EM MACARANDUBA/MASSARANDUBA, ANGELIM, PEROBA-ROSA OU EQUIVALENTE DA REGIAO - BRUTA | C61: =VLOOKUP(A61,CPU!$A$7:$E$5439,5,0) -> M | H61: =H62 -> 2
H62: 2
A63: =CPU!A47 -> 2.3.2 | B63: =VLOOKUP(A63,CPU!$A$7:$E$5439,4,0) -> CAIBRO NAO APARELHADO *5 X 6* CM, EM MACARANDUBA/MASSARANDUBA, ANGELIM OU EQUIVALENTE DA REGIAO - BRUTA | C63: =VLOOKUP(A63,CPU!$A$7:$E$5439,5,0) -> M | H63: 4
A65: =CPU!A48 -> 2.3.3 | B65: =VLOOKUP(A65,CPU!$A$7:$E$5439,4,0) -> PLACA DE OBRA (PARA CONSTRUCAO CIVIL) EM CHAPA GALVANIZADA *N. 22*, ADESIVADA, DE *2,4 X 1,2* M (SEM POSTES PARA FIXACAO) | C65: =VLOOKUP(A65,CPU!$A$7:$E$5439,5,0) -> M2 | H65: 1
I66: i
A67: =CPU!A49 -> 2.3.4 | B67: =VLOOKUP(A67,CPU!$A$7:$E$5439,4,0) -> PREGO DE ACO POLIDO COM CABECA 18 X 30 (2 3/4 X 10) | C67: =VLOOKUP(A67,CPU!$A$7:$E$5439,5,0) -> KG | H67: 0.11 | I67: i
I68: i
A69: =CPU!A50 -> 2.3.5 | B69: =VLOOKUP(A69,CPU!$A$7:$E$5439,4,0) -> CONCRETO MAGRO PARA LASTRO, TRAÇO 1:4,5:4,5 (EM MASSA SECA DE CIMENTO/ AREIA MÉDIA/ BRITA 1) - PREPARO MECÂNICO COM BETONEIRA 400 L. AF_05/2021 | C69: =VLOOKUP(A69,CPU!$A$7:$E$5439,5,0) -> M3 | H69: 0.01 | I69: i
I70: ca
B71: MÃO DE OBRA | D71: PESSOAS | E71: ÍNDICE | F71: RENDIMENTO | G71: H | H71: DIAS | I71: H | J71: DIAS
A72: DIAS MÃO DE OBRA | B72: 88262 CARPINTEIRO DE FORMAS COM ENCARGOS COMPLEMENTARES | C72: H | D72: 1 | E72: 0.5 | F72: =E72/D72 -> 0.5 | G72: =F72*$H$60 -> 0.5 | H72: =G72/8 -> 0.0625 | I72: =F73*$H$59 -> 2 | J72: =I72/8 -> 0.25
A73: DIAS MÃO DE OBRA | B73: 88316 SERVENTE COM ENCARGOS COMPLEMENTARES | C73: H | D73: 1 | E73: 1 | F73: =E73/D73 -> 1 | G73: =F73*$H$60 -> 1 | H73: =G73/8 -> 0.125 | I73: =F74*$H$59 -> 0 | J73: =I73/8 -> 0
A75: =CPU!A53 -> 2.3.6 | B75: =VLOOKUP(A75,CPU!$A$7:$E$5439,4,0) -> Hospedagem | C75: =VLOOKUP(A75,CPU!$A$7:$E$5439,5,0) -> un | H75: =$H$72*$D$72+$H$73*$D$73 -> 0.1875
A77: =CPU!A54 -> 2.3.7 | B77: =VLOOKUP(A77,CPU!$A$7:$E$5439,4,0) -> Miniônibus com capacidade para 30 passageiros - 111 Kw | C77: =VLOOKUP(A77,CPU!$A$7:$E$5439,5,0) -> chp | E77: horas diárias | F77: dias de trabalho | H77: =H78 -> 0.125
C78: chp | E78: =$G$6 -> 1 | F78: =H73 -> 0.125 | H78: =E78*F78 -> 0.125
A79: =CPU!A55 -> 2.3.8 | B79: =VLOOKUP(A79,CPU!$A$7:$E$5439,4,0) -> Miniônibus com capacidade para 30 passageiros - 111 Kw | C79: =VLOOKUP(A79,CPU!$A$7:$E$5439,5,0) -> chi | E79: horas diárias | F79: dias de trabalho | H79: =H80 -> 0.875
C80: chi | E80: =8-E78 -> 7 | F80: =H73 -> 0.125 | H80: =E80*F80 -> 0.875
A81: =CPU!A56 -> 2.3.9 | B81: =VLOOKUP(A81,CPU!$A$7:$E$5439,4,0) -> TRANSPORTE COM CAMINHÃO CARROCERIA 9T, EM VIA URBANA EM REVESTIMENTO PRIMÁRIO (UNIDADE: TXKM). AF_07/2020 | C81: =VLOOKUP(A81,CPU!$A$7:$E$5439,5,0) -> TXKM | D81: ton | E81: km | H81: =H82 -> 0.75
D82: 0.5 | E82: =$H$8 -> 1.5 | H82: =D82*E82 -> 0.75
A83: =CPU!A57 -> 2.3.10 | B83: =VLOOKUP(A83,CPU!$A$7:$E$5439,4,0) -> TRANSPORTE COM CAMINHÃO CARROCERIA 9T, EM VIA URBANA PAVIMENTADA, DMT ATÉ 30KM (UNIDADE: TXKM). AF_07/2020 | C83: =VLOOKUP(A83,CPU!$A$7:$E$5439,5,0) -> TXKM | D83: ton | E83: km | H83: =H84 -> 11.2
B84: 500 kg uma placa | D84: 0.5 | E84: =$H$7 -> 22.4 | H84: =D84*E84 -> 11.2
A86: =CPU!A59 -> 2.3.11 | B86: =VLOOKUP(A86,CPU!$A$7:$E$5439,4,0) -> CARPINTEIRO DE FORMAS COM ENCARGOS COMPLEMENTARES | C86: =VLOOKUP(A86,CPU!$A$7:$E$5439,5,0) -> H | H86: 0.5
A88: =CPU!A60 -> 2.3.12 | B88: =VLOOKUP(A88,CPU!$A$7:$E$5439,4,0) -> SERVENTE COM ENCARGOS COMPLEMENTARES | C88: =VLOOKUP(A88,CPU!$A$7:$E$5439,5,0) -> H | H88: 1
I90: TOTAL DIAS | J90: TOTAL PESSOAS
A91: ='Planilha Orçamentária'!A18 -> 3 | B91: =VLOOKUP(A91,'Planilha Orçamentária'!$A$10:$D$54,4,0) -> CORTE DA VEGETAÇÃO E REMOÇÃO DAS RAIZES | I91: =H97+H117+H131 -> 0.1397975 | J91: =D97+D98+D117+D118+D131+D132 -> 28
A92: ='Planilha Orçamentária'!A19 -> 3.1 | B92: =VLOOKUP(A92,CPU!$A$7:$E$5439,4,0) -> Limpeza de Vegetação | C92: =VLOOKUP(A92,CPU!$A$7:$E$5439,5,0) -> m² | H92: =C94 -> 28370
A93: =CPU!A67 -> 3.1.1 | B93: =VLOOKUP(A93,CPU!$A$7:$E$5439,4,0) -> Limpeza Manual De Vegetação Em Terreno Com Enxada. Af_03/2024 | C93: =VLOOKUP(A93,CPU!$A$7:$E$5439,5,0) -> m2 | D93: QUANT PESSOAS | E93: RENDIMENTO (H/M2) | F93: HORAS | G93: DIAS | H93: 1
B94: Corte e poda de vegetação (Crista, T.M, T.J, Região Jusante = 3870 + 9700+8700+6100) | C94: =C95+D95+E95+F95 -> 28370
C95: 3870 | D95: 9700 | E95: 8700 | F95: 6100 | J95: diárias hotel
B96: MÃO DE OBRA | D96: PESSOAS | E96: ÍNDICE | F96: RENDIMENTO | G96: H | H96: DIAS | I96: H | J96: DIAS
A97: DIAS MÃO DE OBRA | B97: 88316 SERVENTE COM ENCARGOS COMPLEMENTARES | C97: h | D97: 10 | E97: 0.0718 | F97: =E97/D97 -> 0.00718 | G97: =F97*$H$93 -> 0.00718 | H97: =G97/8 -> 0.0008975 | I97: =F97*$H$92 -> 203.6966 | J97: =I97/8 -> 25.462075
B98: 88441 JARDINEIRO COM ENCARGOS COMPLEMENTARES | C98: h | D98: 10 | E98: 0.0718 | F98: =E98/D98 -> 0.00718 | G98: =F98*$H$93 -> 0.00718 | H98: =G98/8 -> 0.0008975 | I98: =F98*$H$92 -> 203.6966 | J98: =I98/8 -> 25.462075
A100: =CPU!A68 -> 3.1.2 | B100: =VLOOKUP(A100,CPU!$A$7:$E$5439,4,0) -> Hospedagem | C100: =VLOOKUP(A100,CPU!$A$7:$E$5439,5,0) -> un | H100: =$H$97*$D$97+$H$98*$D$98 -> 0.01795
E101: =$H$97*$D$97+$H$98*$D$98 -> 0.01795
A102: =CPU!A69 -> 3.1.3 | B102: =VLOOKUP(A102,CPU!$A$7:$E$5439,4,0) -> Miniônibus com capacidade para 30 passageiros - 111 Kw | C102: =VLOOKUP(A102,CPU!$A$7:$E$5439,5,0) -> chp | E102: horas diárias | F102: dias de trabalho | H102: =SUM(H103:H103) -> 0.0008975
C103: chp | E103: =$G$6 -> 1 | F103: =$H$97 -> 0.0008975 | H103: =E103*F103 -> 0.0008975
A104: =CPU!A70 -> 3.1.4 | B104: =VLOOKUP(A104,CPU!$A$7:$E$5439,4,0) -> Miniônibus com capacidade para 30 passageiros - 111 Kw | C104: =VLOOKUP(A104,CPU!$A$7:$E$5439,5,0) -> chi | E104: horas diárias | F104: dias de trabalho | H104: =H105 -> 0.0062825
C105: chi | E105: =8-E103 -> 7 | F105: =$H$97 -> 0.0008975 | H105: =E105*F105 -> 0.0062825
A107: =CPU!A71 -> 3.1.5 | B107: =VLOOKUP(A107,CPU!$A$7:$E$5439,4,0) -> Transporte Com Caminhão Basculante De 6 M³, Em Via Urbana Em Revestimento Primário (Unidade: M3Xkm). Af_07/2020 | C107: =VLOOKUP(A107,CPU!$A$7:$E$5439,5,0) -> m3xkm | D107: m2 | E107: m | F107: km | H107: =SUM(H108:H108) -> 0.015
B108: - Cáculo m3 de árvore = (área total*x)*distância km = 11.670 m² *,01 m*5km onde x varia entre 0,1 m a 0,05 a depender da densidade de vegetação no local | D108: =$H$93 -> 1 | E108: 0.01 | F108: =H8 -> 1.5 | H108: =E108*F108 -> 0.015
A110: =CPU!A72 -> 3.1.6 | B110: =VLOOKUP(A110,CPU!$A$7:$E$5439,4,0) -> Transporte Com Caminhão Basculante De 6 M³, Em Via Urbana Pavimentada, Dmt Até 30 Km (Unidade: M3Xkm). Af_07/2020 | C110: =VLOOKUP(A110,CPU!$A$7:$E$5439,5,0) -> m3xkm | D110: m2 | E110: m | F110: km | H110: =SUM(H111:H111) -> 0.224
B111: - Cáculo m3 de árvore = (área total*x)*distância km = 11.670 m² *,01 m*5km onde x varia entre 0,1 m a 0,05 a depender da densidade de vegetação no local | D111: =$H$93 -> 1 | E111: 0.01 | F111: =H7 -> 22.4 | H111: =E111*F111 -> 0.224
A113: ='Planilha Orçamentária'!A20 -> 3.2 | B113: =VLOOKUP(A113,'Planilha Orçamentária'!$A$10:$D$54,4,0) -> Corte raso de árvores | H113: =C115 -> 50
A114: =CPU!A79 -> 3.2.1 | B114: =VLOOKUP(A114,CPU!$A$7:$E$5439,4,0) -> Corte Raso E Recorte De Árvore Com Diâmetro De Tronco Maior Ou Igual A 0,20 M E Menor Que 0,40 M. Af_03/2024 | C114: =VLOOKUP(A114,CPU!$A$7:$E$5439,5,0) -> un | D114: QUANT PESSOAS | E114: RENDIMENTO (H/corte recorte de árvore) | F114: QUANTIDADE DE ÁRVORES | G114: HORAS DE TRABALHO | H114: 1
B115: Quantidade estimada através das imagens obtidas na visita técnica (Contém na especificação técnica) | C115: 50 | H115: =C115 -> 50 | J115: diárias hotel
B116: MÃO DE OBRA | D116: PESSOAS | E116: ÍNDICE | F116: RENDIMENTO | G116: H | H116: DIAS | I116: H | J116: DIAS
A117: DIAS MÃO DE OBRA | B117: 88316 SERVENTE COM ENCARGOS COMPLEMENTARES | D117: 2 | E117: 1.5444 | F117: =E117/D117 -> 0.7722 | G117: =F117*$H$114 -> 0.7722 | H117: =G117/8 -> 0.096525 | I117: =F117*$H$113 -> 38.61 | J117: =I117/8 -> 4.82625
B118: 88441 JARDINEIRO COM ENCARGOS COMPLEMENTARES | D118: 2 | E118: 1.5444 | F118: =E118/D118 -> 0.7722 | G118: =F118*$H$114 -> 0.7722 | H118: =G118/8 -> 0.096525 | I118: =F118*$H$113 -> 38.61 | J118: =I118/8 -> 4.82625
A120: =CPU!A80 -> 3.2.5 | B120: =VLOOKUP(A120,CPU!$A$7:$E$5439,4,0) -> Hospedagem | C120: =VLOOKUP(A120,CPU!$A$7:$E$5439,5,0) -> un | H120: =$H$117*$D$117+$H$118*$D$118 -> 0.3861
A122: =CPU!A81 -> 3.2.6 | B122: =VLOOKUP(A122,CPU!$A$7:$E$5439,4,0) -> Miniônibus com capacidade para 30 passageiros - 111 Kw | C122: =VLOOKUP(A122,CPU!$A$7:$E$5439,5,0) -> chp | E122: horas diárias | F122: dias de trabalho | H122: =H123 -> 0.096525
C123: chp | E123: =$G$6 -> 1 | F123: =$H$117 -> 0.096525 | H123: =E123*F123 -> 0.096525
A124: =CPU!A82 -> 3.2.7 | B124: =VLOOKUP(A124,CPU!$A$7:$E$5439,4,0) -> Miniônibus com capacidade para 30 passageiros - 111 Kw | C124: =VLOOKUP(A124,CPU!$A$7:$E$5439,5,0) -> chi | E124: horas diárias | F124: dias de trabalho | H124: =H125 -> 0.675675
C125: chi | E125: =8-E123 -> 7 | F125: =$H$117 -> 0.096525 | H125: =E125*F125 -> 0.675675
A127: ='Planilha Orçamentária'!A21 -> 3.3 | B127: =VLOOKUP(A127,'Planilha Orçamentária'!$A$7:$E$5166,4,0) -> Remoção de raízes | H127: =C129 -> 50
A128: =CPU!A89 -> 3.3.1 | B128: =VLOOKUP(A128,CPU!$A$7:$E$5439,4,0) -> Remoção De Raízes Remanescentes De Tronco De Árvore Com Diâmetro Maior Ou Igual A 0,20 M E Menor Que 0,40 M. Af_03/2024 | C128: =VLOOKUP(A128,CPU!$A$7:$E$5439,5,0) -> un | H128: 1
B129: Quantidade estimada através das imagens obtidas na visita técnica (Contém na especificação técnica) | C129: 50 | H129: =C129 -> 50
B130: MÃO DE OBRA | D130: PESSOAS | E130: ÍNDICE | F130: RENDIMENTO | G130: H | H130: DIAS | I130: H | J130: DIAS
A131: DIAS MÃO DE OBRA | B131: 88316 SERVENTE COM ENCARGOS COMPLEMENTARES | D131: 2 | E131: 0.678 | F131: =E131/D131 -> 0.339 | G131: =F131*$H$128 -> 0.339 | H131: =G131/8 -> 0.042375 | I131: =F131*$H$113 -> 16.95 | J131: =I131/8 -> 2.11875
B132: 88441 JARDINEIRO COM ENCARGOS COMPLEMENTARES | D132: 2 | E132: 0.678 | F132: =E132/D132 -> 0.339 | G132: =F132*$H$128 -> 0.339 | H132: =G132/8 -> 0.042375 | I132: =F132*$H$113 -> 16.95 | J132: =I132/8 -> 2.11875
A134: =CPU!A90 -> 3.3.2 | B134: =VLOOKUP(A134,CPU!$A$7:$E$5439,4,0) -> Hospedagem | C134: =VLOOKUP(A134,CPU!$A$7:$E$5439,5,0) -> un | H134: =$H$131*$D$131+H132*D132 -> 0.1695
A136: =CPU!A91 -> 3.3.3 | B136: =VLOOKUP(A136,CPU!$A$7:$E$5439,4,0) -> Miniônibus com capacidade para 30 passageiros - 111 Kw | C136: =VLOOKUP(A136,CPU!$A$7:$E$5439,5,0) -> chp | E136: horas diárias | F136: dias de trabalho | H136: =H137 -> 0.042375
C137: chp | E137: =$G$6 -> 1 | F137: =$H$131 -> 0.042375 | H137: =E137*F137 -> 0.042375
A138: =CPU!A92 -> 3.3.4 | B138: =VLOOKUP(A138,CPU!$A$7:$E$5439,4,0) -> Miniônibus com capacidade para 30 passageiros - 111 Kw | C138: =VLOOKUP(A138,CPU!$A$7:$E$5439,5,0) -> chi | E138: horas diárias | F138: dias de trabalho | H138: =H139 -> 0.296625
C139: chi | E139: =8-E137 -> 7 | F139: =$H$131 -> 0.042375 | H139: =E139*F139 -> 0.296625
A141: ='Planilha Orçamentária'!A23 -> 4 | B141: =VLOOKUP(A141,'Planilha Orçamentária'!$A$10:$D$54,4,0) -> RECUPERAÇÃO DO COROAMENTO
A142: ='Planilha Orçamentária'!A24 -> 4.1 | B142: =VLOOKUP(A142,CPU!$A$7:$E$5439,4,0) -> Solo Melhorado com cimento | C142: =VLOOKUP(A142,CPU!$A$7:$E$5439,5,0) -> M3 | H142: =C143 -> 2.09
B143: 2,5 (comprimento) * 1(largura) * 0,85(profundidade) | C143: =D143 -> 2.09 | D143: =2*0.95*1.1 -> 2.09 | H143: 1
B144: MÃO DE OBRA | D144: PESSOAS | E144: ÍNDICE | F144: RENDIMENTO | G144: H | H144: DIAS | I144: H | J144: DIAS
A145: DIAS MÃO DE OBRA | B145: 88316 SERVENTE COM ENCARGOS COMPLEMENTARES | C145: H | D145: 1 | E145: 0.7866 | F145: =E145/D145 -> 0.7866 | G145: =F145*$H$143 -> 0.7866 | H145: =G145/8 -> 0.098325 | I145: =F145*$H$142 -> 1.643994 | J145: =I145/8 -> 0.20549925
B146: 88377 OPERADOR DE BETONEIRA ESTACIONÁRIA/MISTURADOR COM ENCARGOS COMPLEMENTARES | C146: H | D146: 1 | E146: 1.6046 | F146: =E146/D146 -> 1.6046 | G146: =F146*$H$143 -> 1.6046 | H146: =G146/8 -> 0.200575 | I146: =F146*$H$142 -> 3.353614 | J146: =I146/8 -> 0.41920175
A148: =CPU!A98 -> 4.1.1 | B148: =VLOOKUP(A148,CPU!$A$7:$E$5439,4,0) -> CIMENTO PORTLAND COMPOSTO CP II-32 | C148: =VLOOKUP(A148,CPU!$A$7:$E$5439,5,0) -> KG | H148: =H149 -> 61.89
B149: índices com base na composição 87286 da SINAPI e 4011287 SICRO3 | C149: 61.89 | H149: =C149 -> 61.89
A151: =CPU!A100 -> 4.1.2 | B151: =VLOOKUP(A151,CPU!$A$7:$E$5439,4,0) -> BETONEIRA CAPACIDADE NOMINAL DE 400 L, CAPACIDADE DE MISTURA 280 L, MOTOR ELÉTRICO TRIFÁSICO POTÊNCIA DE 2 CV, SEM CARREGADOR - CHP DIURNO. AF_05/2023 | C151: =VLOOKUP(A151,CPU!$A$7:$E$5439,5,0) -> CHP | D151: HORAS | E151: OPERAÇÃO | H151: =H152 -> 1.251604046
C152: 1.1143 | D152: =G146 -> 1.6046 | E152: 0.7 | H152: =C152*D152*E152 -> 1.251604046
A153: =CPU!A101 -> 4.1.3 | B153: =VLOOKUP(A153,CPU!$A$7:$E$5439,4,0) -> BETONEIRA CAPACIDADE NOMINAL DE 400 L, CAPACIDADE DE MISTURA 280 L, MOTOR ELÉTRICO TRIFÁSICO POTÊNCIA DE 2 CV, SEM CARREGADOR - CHI DIURNO. AF_05/2023 | C153: =VLOOKUP(A153,CPU!$A$7:$E$5439,5,0) -> CHI | D153: HORAS | E153: NÃO OPERAÇÃO | H153: =H154 -> 0.237464754
C154: 0.4933 | D154: =D152 -> 1.6046 | E154: 0.3 | H154: =C154*D154*E154 -> 0.237464754
A156: =CPU!A103 -> 4.1.6 | B156: =VLOOKUP(A156,CPU!$A$7:$E$5439,4,0) -> REATERRO MANUAL DE VALAS, COM COMPACTADOR DE SOLOS DE PERCUSSÃO. AF_08/2023 | C156: =VLOOKUP(A156,CPU!$A$7:$E$5439,5,0) -> M3 | D156: ÍNDICE SERVENTE | E156: horas diárias | F156: dias de trabalho | H156: =H157 -> 1
B157: SERVENTE COM ENCARGOS COMPLEMENTARES | D157: 0.7866 | H157: 1
A159: =CPU!A104 -> 4.1.7 | B159: =VLOOKUP(A159,CPU!$A$7:$E$5439,4,0) -> Hospedagem | C159: =VLOOKUP(A159,CPU!$A$7:$E$5439,5,0) -> un | H159: =$H$145*$D$145+H146*D146 -> 0.2989
A161: =CPU!A105 -> 4.1.8 | B161: =VLOOKUP(A161,CPU!$A$7:$E$5439,4,0) -> Miniônibus com capacidade para 30 passageiros - 111 Kw | C161: =VLOOKUP(A161,CPU!$A$7:$E$5439,5,0) -> chp | E161: horas diárias | F161: dias de trabalho | H161: =H162 -> 0.200575
C162: chp | E162: =$G$6 -> 1 | F162: =$H$146 -> 0.200575 | H162: =E162*F162 -> 0.200575
A163: =CPU!A106 -> 4.1.9 | B163: =VLOOKUP(A163,CPU!$A$7:$E$5439,4,0) -> Miniônibus com capacidade para 30 passageiros - 111 Kw | C163: =VLOOKUP(A163,CPU!$A$7:$E$5439,5,0) -> chi | E163: horas diárias | F163: dias de trabalho | H163: =H164 -> 1.404025
C164: chi | E164: =8-E162 -> 7 | F164: =$H$146 -> 0.200575 | H164: =E164*F164 -> 1.404025
A165: =CPU!A108 -> 4.1.10 | B165: =VLOOKUP(A165,CPU!$A$7:$E$5439,4,0) -> OPERADOR DE BETONEIRA ESTACIONÁRIA/MISTURADOR COM ENCARGOS COMPLEMENTARES | C165: =VLOOKUP(A165,CPU!$A$7:$E$5439,5,0) -> H | E165: horas diárias | F165: dias de trabalho | H165: =H166 -> 5.16
H166: 5.16
A168: ='Planilha Orçamentária'!A26 -> 5 | B168: =VLOOKUP(A168,'Planilha Orçamentária'!$A$10:$D$54,4,0) -> RECUPERAÇÃO DE EROSÃO TALUDES MONTANTE E JUSANTE
A169: ='Planilha Orçamentária'!A27 -> 5.1 | B169: =VLOOKUP(A169,'Planilha Orçamentária'!$A$7:$E$5166,4,0) -> Aterro de valas | H169: =C171 -> 920
A170: =CPU!A115 -> 5.1.1 | B170: =VLOOKUP(A170,CPU!$A$7:$E$5439,4,0) -> Aterro Manual De Valas Com Solo Argilo-Arenoso. Af_08/2023 | C170: =VLOOKUP(A170,CPU!$A$7:$E$5439,5,0) -> m3 | D170: m2 | E170: Revolvimento do Solo | F170: Porcentagem da área total dos taludes | G170: VOLUME DE ATERRO | H170: 1
B171: VOLUME DE ATERRO. 920 = (9700+8700),1*50% | C171: =(D172+D173)*0.1*0.5 -> 920 | G171: =((D172+D173)*E175*F174) -> 920 | H171: =G171 -> 920
B172: Talude de Montante (m²) - calculado no Google Earth | D172: 9700
B173: Talude de Jusante (m²) - calculado no Google Earth | D173: 8700
B174: Aterro será aplicado para 50% da área total | F174: 0.5
B175: 10 cm de revolvimento do solo | E175: 0.1
B177: MÃO DE OBRA | D177: PESSOAS | E177: ÍNDICE | F177: RENDIMENTO | G177: H | H177: DIAS | I177: H | J177: DIAS
A178: DIAS MÃO DE OBRA | B178: 88316 SERVENTE COM ENCARGOS COMPLEMENTARES | D178: 7 | E178: 0.7866 | F178: =E178/D178 -> 0.1123714286 | G178: =F178*$H$170 -> 0.1123714286 | H178: =G178/8 -> 0.01404642857 | I178: =F178*$H$171 -> 103.3817143 | J178: =I178/8 -> 12.92271429
I179: =F179*$H$142 -> 0 | J179: =I179/8 -> 0
A180: =CPU!A116 -> 5.1.2 | B180: =VLOOKUP(A180,CPU!$A$7:$E$5439,4,0) -> Hospedagem | C180: =VLOOKUP(A180,CPU!$A$7:$E$5439,5,0) -> un | D180: DIAS DE HOSPEDAGEM | H180: =D181 -> 0.098325
D181: =$H$178*$D$178 -> 0.098325
A183: =CPU!A117 -> 5.1.3 | B183: =VLOOKUP(A183,CPU!$A$7:$E$5439,4,0) -> Miniônibus com capacidade para 30 passageiros - 111 Kw | C183: =VLOOKUP(A183,CPU!$A$7:$E$5439,5,0) -> chp | E183: horas diárias | F183: dias de trabalho | H183: =H184 -> 0.01404642857
C184: chp | E184: =$G$6 -> 1 | F184: =$H$178 -> 0.01404642857 | H184: =E184*F184 -> 0.01404642857
A185: =CPU!A118 -> 5.1.4 | B185: =VLOOKUP(A185,CPU!$A$7:$E$5439,4,0) -> Miniônibus com capacidade para 30 passageiros - 111 Kw | C185: =VLOOKUP(A185,CPU!$A$7:$E$5439,5,0) -> chi | E185: horas diárias | F185: dias de trabalho | H185: =H186 -> 0.098325
C186: chi | E186: =8-E184 -> 7 | F186: =$H$178 -> 0.01404642857 | H186: =E186*F186 -> 0.098325
A188: =CPU!A119 -> 5.1.5 | B188: =VLOOKUP(A188,CPU!$A$7:$E$5439,4,0) -> Transporte Com Caminhão Basculante De 10 M³, Em Via Urbana Em Revestimento Primário (Unidade: M3Xkm). Af_07/2020 | C188: =VLOOKUP(A188,CPU!$A$7:$E$5439,5,0) -> m3xkm | D188: m³ | E188: km | H188: =H190 -> 22.4
B189: VOLUME TRANSPORTADO: ARGILA, ARGILA VERMELHA OU ARGILA ARENOSA para atividade aterro | D189: =$H$170 -> 1
B190: Transporte Com Caminhão Basculante De 10 M³, Em Via Urbana Em Revestimento Primário (Unidade: M3Xkm). Af_07/2020 | E190: =$H$7 -> 22.4 | H190: =$D$189*E190 -> 22.4
A192: =CPU!A120 -> 5.1.6 | B192: =VLOOKUP(A192,CPU!$A$7:$E$5439,4,0) -> Transporte Com Caminhão Basculante De 10 M³, Em Via Urbana Pavimentada, Dmt Até 30 Km (Unidade: M3Xkm). Af_07/2020 | C192: =VLOOKUP(A192,CPU!$A$7:$E$5439,5,0) -> m3xkm | D192: m³ | E192: km | H192: =H194 -> 1.5
B193: VOLUME TRANSPORTADO: ARGILA, ARGILA VERMELHA OU ARGILA ARENOSA para atividade aterro | D193: =$H$170 -> 1
B194: Transporte Com Caminhão Basculante De 10 M³, Em Via Urbana Pavimentada, Adicional Para Dmt Excedente A 30 Km (Unidade: M3Xkm). Af_07/2020 | E194: =H8 -> 1.5 | H194: =$D$193*E194 -> 1.5
A196: ='Planilha Orçamentária'!A29 -> 6 | B196: =VLOOKUP(A196,'Planilha Orçamentária'!$A$10:$D$54,4,0) -> REGULARIZAÇÃO E PAVIMENTAÇÃO DA CRISTA | I196: =H217+H232 -> 0.0148125 | J196: =D217+D231+D232+D303+D304 -> 15
A197: ='Planilha Orçamentária'!A30 -> 6.1 | B197: =VLOOKUP(A197,'Planilha Orçamentária'!$A$7:$E$5166,4,0) -> Remoção de guias pré-fabricadas com reaproveitamento | H197: =C199 -> 516
A198: =CPU!A128 -> 6.1.1 | B198: =VLOOKUP(A198,CPU!$A$7:$E$5439,4,0) -> Remoçao De Guias Pré-Fabricadas De Concreto, De Forma Mecanizada, Com Reaproveitamento. Af_09/2023 | C198: =VLOOKUP(A198,CPU!$A$7:$E$5439,5,0) -> m | D198: Comprimento crista (m) | E198: Reaprovei. | H198: 1
B199: = 2*860*30% DE REAPROVEITAMENTO | C199: =2*D199*E199 -> 516 | D199: 860 | E199: 0.3 | H199: =C199 -> 516
B201: MÃO DE OBRA | D201: PESSOAS | E201: ÍNDICE | F201: RENDIMENTO | G201: H | H201: DIAS | I201: H | J201: DIAS
B202: 88309 PEDREIRO COM ENCARGOS COMPLEMENTARES | C202: H | D202: 1 | E202: 0.2199 | F202: =E202/D202 -> 0.2199 | G202: =F202*$H$198 -> 0.2199 | H202: =G202/8 -> 0.0274875 | I202: =F202*$H$197 -> 113.4684 | J202: =I202/8 -> 14.18355
B203: 88316 SERVENTE COM ENCARGOS COMPLEMENTARES | C203: H | D203: 1 | E203: 0.0965 | F203: =E203/D203 -> 0.0965 | G203: =F203*$H$198 -> 0.0965 | H203: =G203/8 -> 0.0120625 | I203: =F203*$H$197 -> 49.794 | J203: =I203/8 -> 6.22425
A204: =CPU!A129 -> 6.1.2 | B204: =VLOOKUP(A204,CPU!$A$7:$E$5439,4,0) -> Hospedagem | C204: =VLOOKUP(A204,CPU!$A$7:$E$5439,5,0) -> un | D204: DIAS DE HOSPEDAGEM | H204: =H205 -> 0.03955
D205: =$H$202*$D$202+$H$203*$D$203 -> 0.03955 | H205: =D205 -> 0.03955
A207: =CPU!A130 -> 6.1.3 | B207: =VLOOKUP(A207,CPU!$A$7:$E$5439,4,0) -> Miniônibus com capacidade para 30 passageiros - 111 Kw | C207: =VLOOKUP(A207,CPU!$A$7:$E$5439,5,0) -> chp | E207: horas diárias | F207: dias de trabalho | H207: =H208 -> 0.0274875
C208: chp | E208: =$G$6 -> 1 | F208: =$H$202 -> 0.0274875 | H208: =E208*F208 -> 0.0274875
A209: =CPU!A131 -> 6.1.4 | B209: =VLOOKUP(A209,CPU!$A$7:$E$5439,4,0) -> Miniônibus com capacidade para 30 passageiros - 111 Kw | C209: =VLOOKUP(A209,CPU!$A$7:$E$5439,5,0) -> chi | E209: horas diárias | F209: dias de trabalho | H209: =H210 -> 0.1924125
C210: chi | E210: =8-E208 -> 7 | F210: =$H$202 -> 0.0274875 | H210: =E210*F210 -> 0.1924125
A212: ='Planilha Orçamentária'!A31 -> 6.2 | B212: =VLOOKUP(A212,'Planilha Orçamentária'!$A$7:$E$5166,4,0) -> Regularização e compactação da crista | H212: =C214 -> 3870
A213: =CPU!A139 -> 6.2.1 | B213: =VLOOKUP(A213,CPU!$A$7:$E$5439,4,0) -> Regularização E Compactação De Subleito De Solo Predominantemente Argiloso. Af_11/2019 | C213: =VLOOKUP(A213,CPU!$A$7:$E$5439,5,0) -> m2 | D213: Comprimento crista (m) | E213: Largura da crista | H213: 1
C214: 3870 | D214: 860 | E214: 4.5 | H214: =D214*E214 -> 3870
B216: MÃO DE OBRA | D216: PESSOAS | E216: ÍNDICE | F216: RENDIMENTO | G216: H | H216: DIAS | I216: H | J216: DIAS
B217: 88316 SERVENTE COM ENCARGOS COMPLEMENTARES | C217: H | D217: 1 | E217: 0.008 | F217: =E217/D217 -> 0.008 | G217: =F217*$H$213 -> 0.008 | H217: =G217/8 -> 0.001 | I217: =F217*$H$212 -> 30.96 | J217: =I217/8 -> 3.87
I218: =F218*$H$197 -> 0 | J218: =I218/8 -> 0
A219: =CPU!A140 -> 6.2.2 | B219: =VLOOKUP(A219,CPU!$A$7:$E$5439,4,0) -> Hospedagem | C219: =VLOOKUP(A219,CPU!$A$7:$E$5439,5,0) -> un | D219: DIAS DE HOSPEDAGEM | H219: =H220 -> 0.001
D220: =$H$217*$D$217 -> 0.001 | H220: =D220 -> 0.001
A222: =CPU!A141 -> 6.2.3 | B222: =VLOOKUP(A222,CPU!$A$7:$E$5439,4,0) -> Miniônibus com capacidade para 30 passageiros - 111 Kw | C222: =VLOOKUP(A222,CPU!$A$7:$E$5439,5,0) -> chp | E222: horas diárias | F222: dias de trabalho | H222: =H223 -> 0.001
C223: chp | E223: =$G$6 -> 1 | F223: =$H$217 -> 0.001 | H223: =E223*F223 -> 0.001
A224: =CPU!A142 -> 6.2.4 | B224: =VLOOKUP(A224,CPU!$A$7:$E$5439,4,0) -> Miniônibus com capacidade para 30 passageiros - 111 Kw | C224: =VLOOKUP(A224,CPU!$A$7:$E$5439,5,0) -> chi | E224: horas diárias | F224: dias de trabalho | H224: =H225 -> 0.007
C225: chi | E225: =8-E223 -> 7 | F225: =$H$217 -> 0.001 | H225: =E225*F225 -> 0.007
A226: ='Planilha Orçamentária'!A32 -> 6.3 | B226: =VLOOKUP(A226,'Planilha Orçamentária'!$A$7:$E$5166,4,0) -> Drenagem | H226: =H228 -> 172
A227: =CPU!A149 -> 6.3.1 | B227: =VLOOKUP(A227,CPU!$A$7:$E$5439,4,0) -> Guia (Meio-Fio) Concreto, Moldada In Loco Em Trecho Reto Com Extrusora, 13 Cm Base X 22 Cm Altura. Af_01/2024 | C227: Comprimento meio-fio (m) | D227: Comprimento crista (m) | E227: Porcentagem estrutura nova | H227: 1
B228: ESTRUTRURA NOVA | C228: =D228*2*E228 -> 172 | D228: 860 | E228: 0.1 | H228: =C228 -> 172
B230: MÃO DE OBRA | D230: PESSOAS | E230: ÍNDICE | F230: RENDIMENTO | G230: H | H230: DIAS | I230: H | J230: DIAS
A231: DIAS MÃO DE OBRA | B231: 88243 AJUDANTE ESPECIALIZADO COM ENCARGOS COMPLEMENTARES | C231: H | D231: 1 | E231: 0.087 | F231: =E231/D231 -> 0.087 | G231: =F231*$H$227 -> 0.087 | H231: =G231/8 -> 0.010875 | I231: =F231*$H$226 -> 14.964 | J231: =I231/8 -> 1.8705
A232: DIAS MÃO DE OBRA | B232: 88309 PEDREIRO COM ENCARGOS COMPLEMENTARES | C232: H | D232: 2 | E232: 0.221 | F232: =E232/D232 -> 0.1105 | G232: =F232*$H$227 -> 0.1105 | H232: =G232/8 -> 0.0138125 | I232: =F232*$H$226 -> 19.006 | J232: =I232/8 -> 2.37575
A233: DIAS MÃO DE OBRA | B233: 88316 SERVENTE COM ENCARGOS COMPLEMENTARES | C233: H | D233: 4 | E233: 0.442 | F233: =E233/D233 -> 0.1105 | G233: =F233*$H$227 -> 0.1105 | H233: =G233/8 -> 0.0138125 | I233: =F233*$H$226 -> 19.006 | J233: =I233/8 -> 2.37575
A235: =CPU!A150 -> 6.3.2 | B235: =VLOOKUP(A235,CPU!$A$7:$E$5439,4,0) -> Transporte Com Caminhão Carroceria 9T, Em Via Urbana Em Revestimento Primário (Unidade: Txkm). Af_07/2020 | C235: =VLOOKUP(A235,CPU!$A$7:$E$5439,5,0) -> txkm | D235: kg/m | E235: ton | F235: km | H235: =H236 -> 0.08625
B236: GUIA DE CALÇADA 1,00 X 0,30 X 0,10 : 57,5 kg (https://crepan.com.br/guias-de-concreto/) | D236: 57.5 | E236: =($H$227*D236)/1000 -> 0.0575 | F236: =$H$8 -> 1.5 | H236: =E236*F236 -> 0.08625
A238: =CPU!A151 -> 6.3.3 | B238: =VLOOKUP(A238,CPU!$A$7:$E$5439,4,0) -> Transporte Com Caminhão Carroceria 9T, Em Via Urbana Pavimentada, Dmt Até 30Km (Unidade: Txkm). Af_07/2020 | C238: =VLOOKUP(A238,CPU!$A$7:$E$5439,5,0) -> txkm | D238: kg/m | E238: ton | F238: km | H238: =H239 -> 1.288
D239: 57.5 | E239: =($H$227*D239)/1000 -> 0.0575 | F239: =H7 -> 22.4 | H239: =E239*F239 -> 1.288
A241: =CPU!A152 -> 6.3.4 | B241: =VLOOKUP(A241,CPU!$A$7:$E$5439,4,0) -> Betoneira Capacidade Nominal De 400 L, Capacidade De Mistura 280 L, Motor Elétrico Trifásico Potência De 2 Cv, Sem Carregador - Chp Diurno. Af_05/2023 | C241: =VLOOKUP(A241,CPU!$A$7:$E$5439,5,0) -> chp | D241: HORAS | E241: OPERAÇÃO | H241: =H242 -> 0.086191105
C242: 1.1143 | D242: =G232 -> 0.1105 | E242: 0.7 | H242: =C242*D242*E242 -> 0.086191105
A244: =CPU!A153 -> 6.3.5 | B244: =VLOOKUP(A244,CPU!$A$7:$E$5439,4,0) -> Betoneira Capacidade Nominal De 400 L, Capacidade De Mistura 280 L, Motor Elétrico Trifásico Potência De 2 Cv, Sem Carregador - Chi Diurno. Af_05/2023 | C244: =VLOOKUP(A244,CPU!$A$7:$E$5439,5,0) -> chi | D244: HORAS | E244: NÃO OPERAÇÃO | H244: =H245 -> 0.016352895
C245: 0.4933 | D245: =D242 -> 0.1105 | E245: 0.3 | H245: =C245*D245*E245 -> 0.016352895
A247: =CPU!A154 -> 6.3.6 | B247: =VLOOKUP(A247,CPU!$A$7:$E$5439,4,0) -> Hospedagem | C247: =VLOOKUP(A247,CPU!$A$7:$E$5439,5,0) -> un | D247: DIAS DE HOSPEDAGEM | H247: =D248 -> 0.09375
D248: =$H$231*$D$231+$H$232*$D$232+$H$233*$D$233 -> 0.09375
A249: =CPU!A155 -> 6.3.7 | B249: =VLOOKUP(A249,CPU!$A$7:$E$5439,4,0) -> Miniônibus com capacidade para 30 passageiros - 111 Kw | C249: =VLOOKUP(A249,CPU!$A$7:$E$5439,5,0) -> chp | E249: horas diárias | F249: dias de trabalho | H249: =SUM(H250:H250) -> 0.0138125
... 216 more rows

Sheet Cronograma
A1: Ministério da Integração e do Desenvolvimento Regional
A2: Companhia de Desenvolvimento dos Vales do São Francisco e do Parnaíba
A4: CRONOGRAMA FÍSICO-FINANCEIRO ONERADO
A5: OBRA: | B5: =CPU!C5 -> SERVIÇOS DE MANUTENÇÃO E OBRAS CIVIS NA BARRAGEM RIACHO DA PORTA | F5: BDI (serv.): | H5: ='Planilha Orçamentária'!H4 -> 0.2388
A6: LOCAL: | B6: =CPU!C6 -> BARRAGEM RIACHO DA PORTA, BELÉM DO SÃO FRANCISCO/PE | F6: BDI (forn.): | H6: ='Planilha Orçamentária'!H5 -> 0.147
A7: DATA BASE: | B7: =CPU!C7 -> 2024-05-01
A8: PRAZO: | B8: ='Planilha Orçamentária'!B7:C7 -> 120 DIAS
A9: ITEM | B9: DESCRIÇÃO | C9: TOTAL POR ETAPA | D9: MESES | H9: TOTAL
D10: 1 | E10: 2 | F10: 3 | G10: 4
A11: 1 | B11: =VLOOKUP(A11,'Planilha Orçamentária'!$A$10:$D$54,4) -> ADMINISTRAÇÃO DA OBRA | C11: =SUMIF('Planilha Orçamentária'!$A$10:$A$54,A11,'Planilha Orçamentária'!$I$10:$I$54) -> 143206.9648 | D11: =$C11*D12 -> 35801.74119 | E11: =$C11*E12 -> 35801.74119 | F11: =$C11*F12 -> 35801.74119 | G11: =$C11*G12 -> 35801.74119 | H11: =SUM(D11:G11) -> 143206.9648 | I11: R$
C12: =C11/C11 -> 1 | D12: 0.25 | E12: 0.25 | F12: 0.25 | G12: 0.25 | H12: 1 | I12: % | J12: ='Memorial de cálculo'!I10 -> 0
A13: 2 | B13: =VLOOKUP(A13,'Planilha Orçamentária'!$A$10:$D$54,4) -> SERVIÇOS PRELIMINARES | C13: =SUMIF('Planilha Orçamentária'!$A$10:$A$54,A13,'Planilha Orçamentária'!$I$10:$I$54) -> 37971.89581 | D13: =$C13*D14 -> 37971.89581 | H13: 37971.89581 | I13: R$ | J13: DIAS | K13: PESSOAS
C14: =C13/C13 -> 1 | D14: 1 | H14: 1 | I14: %
A15: 3 | B15: =VLOOKUP(A15,'Planilha Orçamentária'!$A$10:$D$54,4) -> CORTE DA VEGETAÇÃO E REMOÇÃO DAS RAIZES | C15: =SUMIF('Planilha Orçamentária'!$A$10:$A$54,A15,'Planilha Orçamentária'!$I$10:$I$54) -> 279291.6719 | D15: =$C15*D16 -> 279291.6719 | H15: 279291.6719 | I15: R$ | J15: ='Memorial de cálculo'!I91 -> 0.1397975 | K15: ='Memorial de cálculo'!J91 -> 28
C16: =C15/C15 -> 1 | D16: 1 | H16: 1 | I16: %
A17: 4 | B17: =VLOOKUP(A17,'Planilha Orçamentária'!$A$10:$D$54,4) -> RECUPERAÇÃO DO COROAMENTO | C17: =SUMIF('Planilha Orçamentária'!$A$10:$A$54,A17,'Planilha Orçamentária'!$I$10:$I$54) -> 1012.024281 | D17: =$C17*D18 -> 1012.024281 | H17: 1012.024281 | I17: R$ | J17: ='Memorial de cálculo'!I168 -> 0 | K17: ='Memorial de cálculo'!J168 -> 0
C18: =C17/C17 -> 1 | D18: 1 | H18: 1 | I18: %
A19: 5 | B19: =VLOOKUP(A19,'Planilha Orçamentária'!$A$10:$D$54,4) -> RECUPERAÇÃO DE EROSÃO TALUDES MONTANTE E JUSANTE | C19: =SUMIF('Planilha Orçamentária'!$A$10:$A$54,A19,'Planilha Orçamentária'!$I$10:$I$54) -> 181724.5272 | E19: =$C19*E20 -> 181724.5272 | H19: 181724.5272 | I19: R$ | J19: ='Memorial de cálculo'!I196 -> 0.0148125 | K19: ='Memorial de cálculo'!J196 -> 15
C20: =C19/C19 -> 1 | E20: 1 | H20: 1 | I20: %
A21: 6 | B21: =VLOOKUP(A21,'Planilha Orçamentária'!$A$10:$D$54,4) -> REGULARIZAÇÃO E PAVIMENTAÇÃO DA CRISTA | C21: =SUMIF('Planilha Orçamentária'!$A$10:$A$54,A21,'Planilha Orçamentária'!$I$10:$I$54) -> 203809.1599 | E21: =$C21*E22 -> 203809.1599 | H21: =SUM(D21:E21) -> 203809.1599 | I21: R$ | J21: ='Memorial de cálculo'!I278 -> 0.0625 | K21: ='Memorial de cálculo'!J278 -> 17
C22: =C21/C21 -> 1 | E22: 1 | H22: =SUM(D22:E22) -> 1 | I22: %
A23: 7 | B23: =VLOOKUP(A23,'Planilha Orçamentária'!$A$10:$D$54,4) -> MANUTENÇÃO NO TALUDE DE MONTANTE | C23: =SUMIF('Planilha Orçamentária'!$A$10:$A$54,A23,'Planilha Orçamentária'!$I$10:$I$54) -> 489774.8172 | F23: =$C23*F24 -> 244887.4086 | G23: =$C23*G24 -> 244887.4086 | H23: =SUM(D23:G23) -> 489774.8172 | I23: R$ | J23: ='Memorial de cálculo'!I306 -> 0.052407875 | K23: ='Memorial de cálculo'!J306 -> 4
C24: =C23/C23 -> 1 | F24: 0.5 | G24: 0.5 | H24: =SUM(D24:G24) -> 1 | I24: %
A25: 8 | B25: =VLOOKUP(A25,'Planilha Orçamentária'!$A$10:$D$54,4) -> DRENAGEM SUPERFICIAL DO TALUDE JUSANTE | C25: =SUMIF('Planilha Orçamentária'!$A$10:$A$54,A25,'Planilha Orçamentária'!$I$10:$I$54) -> 10698.90859 | F25: =$C25*F26 -> 10698.90859 | H25: =SUM(D25:F25) -> 10698.90859 | I25: R$ | J25: ='Memorial de cálculo'!I351 -> 0 | K25: ='Memorial de cálculo'!J351 -> 0
C26: =C25/C25 -> 1 | F26: 1 | H26: =SUM(D26:F26) -> 1 | I26: %
A27: 9 | B27: =VLOOKUP(A27,'Planilha Orçamentária'!$A$10:$D$54,4) -> PROTEÇÃO SUPERFICIAL DO TALUDE DE JUSANTE | C27: =SUMIF('Planilha Orçamentária'!$A$10:$A$54,A27,'Planilha Orçamentária'!$I$10:$I$54) -> 278599.926 | F27: =$C27*F28 -> 278599.926 | H27: =SUM(D27:G27) -> 278599.926 | I27: R$ | J27: ='Memorial de cálculo'!I394 -> 0.068125 | K27: ='Memorial de cálculo'!J394 -> 2
C28: =C27/C27 -> 1 | F28: 1 | H28: 1 | I28: %
A29: 10 | B29: =VLOOKUP(A29,'Planilha Orçamentária'!$A$10:$D$54,4) -> RESTAURAÇÃO SUPERFICIAL - MURO LATERAL | C29: =SUMIF('Planilha Orçamentária'!$A$10:$A$54,A29,'Planilha Orçamentária'!$I$10:$I$54) -> 16903.426 | G29: =$C29*G30 -> 16903.426 | H29: 16903.426 | I29: R$ | J29: ='Memorial de cálculo'!I432 -> 0.210045 | K29: ='Memorial de cálculo'!J432 -> 28
C30: =C29/C29 -> 1 | G30: 1 | H30: 1 | I30: %
A31: 11 | B31: =VLOOKUP(A31,'Planilha Orçamentária'!$A$10:$D$54,4) -> SERVIÇOS COMPLEMENTARES | C31: =SUMIF('Planilha Orçamentária'!$A$10:$A$54,A31,'Planilha Orçamentária'!$I$10:$I$54) -> 420125.3932 | G31: =$C31*G32 -> 420125.3932 | H31: 420125.3932 | I31: R$
C32: =C31/C31 -> 1 | G32: 1 | H32: 1 | I32: %
B33: VALOR TOTAL: | C33: =SUMIF($I$11:$I$32,"R$",C$11:C$32) -> 2063118.715 | D33: =SUMIF($I$11:$I$30,"R$",D$11:D$30) -> 354077.3332 | E33: =SUMIF($I$11:$I$30,"R$",E$11:E$30) -> 421335.4283 | F33: =SUMIF($I$11:$I$30,"R$",F$11:F$30) -> 569987.9844 | G33: =SUMIF($I$11:$I$32,"R$",G$11:G$32) -> 717717.969 | H33: =SUMIF($I$11:$I$32,"R$",H$11:H$32) -> 2063118.715
B34: VALOR ACUMULADO: | D34: =D33 -> 354077.3332 | E34: =E33+D34 -> 775412.7615 | F34: =F33+E34 -> 1345400.746 | G34: =G33+F34 -> 2063118.715 | H34: =H33 -> 2063118.715
B35: FÍSICO PARCIAL: | D35: =SUMIF($I$13:$I$30,"R$",D$13:D$30)/$C$33 -> 0.1542691604 | E35: =SUMIF($I$13:$I$30,"R$",E$13:E$30)/$C$33 -> 0.1868693664 | F35: =SUMIF($I$13:$I$30,"R$",F$13:F$30)/$C$33 -> 0.2589217185 | G35: =SUMIF($I$13:$I$30,"R$",G$13:G$30)/$C$33 -> 0.1268908244 | H35: =H33/$C$33 -> 1
B36: AVANÇO FÍSICO: | D36: =D33/$C$33 -> 0.1716223747 | E36: =E33/$C$33 -> 0.2042225807 | F36: =F33/$C$33 -> 0.2762749328 | G36: =G33/$C$33 -> 0.3478801117

Sheet Cronograma Desoner (hidden)
A1: Ministério da Integração e do Desenvolvimento Regional
A2: Companhia de Desenvolvimento dos Vales do São Francisco e do Parnaíba
A4: CRONOGRAMA FÍSICO-FINANCEIRO DESONERADO
A5: OBRA: | B5: =UPPER("SERVIÇOS DE MANUTENÇÃO E OBRAS CIVIS NA ESTRUTURA DA BARRAGEM E EQUIPAMENTO HIDROMECÂNICO") -> SERVIÇOS DE MANUTENÇÃO E OBRAS CIVIS NA ESTRUTURA DA BARRAGEM E EQUIPAMENTO HIDROMECÂNICO | F5: BDI (serv.): | G5: ='BDI serv Desonerado'!D22 -> 0.3351
A6: LOCAL: | B6: BARRAGEM POÇO DO MAGRO, GUANAMBI/BA | F6: BDI (forn.): | G6: ='BDI forn Desonerado'!D22 -> 0.212
A7: DATA BASE: | B7: 2023-05-01
A8: PRAZO: | B8: 120 DIAS
A9: ITEM | B9: DESCRIÇÃO | C9: TOTAL POR ETAPA | D9: MESES | H9: TOTAL
D10: 1 | E10: 2 | F10: 3 | G10: 4
A11: 1 | B11: =VLOOKUP(A11,'Planilha Orçamentária Desoner'!$A$11:$D$92,4) -> ADMINISTRAÇÃO LOCAL | C11: =SUMIF('Planilha Orçamentária Desoner'!$A$11:$A$92,A11,'Planilha Orçamentária Desoner'!$I$11:$I$92) -> 41837.86849 | D11: =$C11*D12 ->  | E11: =$C11*E12 ->  | F11: =$C11*F12 ->  | G11: =$C11*G12 ->  | H11: =SUM(D11:G11) ->  | I11: R$
C12: =C11/C11 -> 1 | D12: =D37 ->  | E12: =D38-D37+E37 ->  | F12: =E38-E37+F37 ->  | G12: =1-SUM(D12:F12) ->  | I12: %
A13: 2 | B13: =VLOOKUP(A13,'Planilha Orçamentária Desoner'!$A$11:$D$92,4) -> SERVIÇOS PRELIMINARES | C13: =SUMIF('Planilha Orçamentária Desoner'!$A$11:$A$92,A13,'Planilha Orçamentária Desoner'!$I$11:$I$92) ->  | D13: =$C13*D14 ->  | I13: R$
C14: =C13/C13 ->  | D14: 1 | H14: 1 | I14: %
A15: 3 | B15: =VLOOKUP(A15,'Planilha Orçamentária Desoner'!$A$11:$D$92,4) -> LIMPEZA DA REGIÃO A JUSANTE | C15: =SUMIF('Planilha Orçamentária Desoner'!$A$11:$A$92,A15,'Planilha Orçamentária Desoner'!$I$11:$I$92) ->  | D15: =$C15*D16 ->  | I15: R$
C16: =C15/C15 ->  | D16: 1 | H16: 1 | I16: %
A17: 4.1 | B17: =VLOOKUP(A17,'Planilha Orçamentária Desoner'!$A$11:$D$92,4) -> Inspeção e Laudo da região subaquática | C17: =SUMIF('Planilha Orçamentária Desoner'!$A$11:$A$92,A17,'Planilha Orçamentária Desoner'!$I$11:$I$92) ->  | D17: =$C17*D18 ->  | I17: R$
C18: =C17/C17 ->  | D18: 1 | H18: 1 | I18: %
A19: 4.2 | B19: =VLOOKUP(A19,'Planilha Orçamentária Desoner'!$A$11:$D$92,4) -> Vedação/Abertura da tomada d'água | C19: =SUMIF('Planilha Orçamentária Desoner'!$A$11:$A$92,A19,'Planilha Orçamentária Desoner'!$I$11:$I$92) ->  | D19: =$C19*D20 ->  | E19: =$C19*E20 ->  | I19: R$
C20: =C19/C19 ->  | D20: 0.5 | E20: 0.5 | H20: 1 | I20: %
A21: 5 | B21: =VLOOKUP(A21,'Planilha Orçamentária Desoner'!$A$11:$D$92,4) -> MANUTENÇÃO NOS DISPOSITIVOS DE CONTROLE | C21: =SUMIF('Planilha Orçamentária Desoner'!$A$11:$A$92,A21,'Planilha Orçamentária Desoner'!$I$11:$I$92) ->  | E21: =$C21*E22 ->  | H21: =SUM(E21:G21) ->  | I21: R$
C22: =C21/C21 ->  | E22: 1 | H22: =SUM(E22:G22) -> 1 | I22: %
A23: 6.1 | B23: =VLOOKUP(A23,'Planilha Orçamentária Desoner'!$A$11:$D$92,4) -> Paramento a jusante | C23: =SUMIF('Planilha Orçamentária Desoner'!$A$11:$A$92,A23,'Planilha Orçamentária Desoner'!$I$11:$I$92) ->  | E23: =$C23*E24 ->  | F23: =$C23*F24 ->  | H23: =SUM(E23:G23) ->  | I23: R$
C24: =C23/C23 ->  | E24: 0.5 | F24: 0.5 | H24: 1 | I24: %
A25: 6.2 | B25: =VLOOKUP(A25,'Planilha Orçamentária Desoner'!$A$11:$D$92,4) -> Crista | C25: =SUMIF('Planilha Orçamentária Desoner'!$A$11:$A$92,A25,'Planilha Orçamentária Desoner'!$I$11:$I$92) ->  | F25: =$C25*F26 ->  | I25: R$
C26: =C25/C25 ->  | F26: 1 | H26: 1 | I26: %
A27: 6.3 | B27: =VLOOKUP(A27,'Planilha Orçamentária Desoner'!$A$11:$D$92,4) -> Vertedouro | C27: =SUMIF('Planilha Orçamentária Desoner'!$A$11:$A$92,A27,'Planilha Orçamentária Desoner'!$I$11:$I$92) ->  | F27: =$C27*F28 ->  | I27: R$
C28: =C27/C27 ->  | F28: 1 | H28: 1 | I28: %
A29: 7.1 | B29: =VLOOKUP(A29,'Planilha Orçamentária Desoner'!$A$11:$D$92,4) -> Investigação do maciço | C29: =SUMIF('Planilha Orçamentária Desoner'!$A$11:$A$92,A29,'Planilha Orçamentária Desoner'!$I$11:$I$92) ->  | F29: =$C29*F30 ->  | I29: R$
C30: =C29/C29 ->  | F30: 1 | H30: 1 | I30: %
A31: 7.2 | B31: =VLOOKUP(A31,'Planilha Orçamentária Desoner'!$A$11:$D$92,4) -> Recuperação do maciço | C31: =SUMIF('Planilha Orçamentária Desoner'!$A$11:$A$92,A31,'Planilha Orçamentária Desoner'!$I$11:$I$92) ->  | F31: =$C31*F32 ->  | I31: R$
C32: =C31/C31 ->  | F32: 1 | H32: 1 | I32: %
A33: 8 | B33: =VLOOKUP(A33,'Planilha Orçamentária Desoner'!$A$11:$D$92,4) -> SERVIÇOS AUXILIARES | C33: =SUMIF('Planilha Orçamentária Desoner'!$A$11:$A$92,A33,'Planilha Orçamentária Desoner'!$I$11:$I$92) ->  | G33: =$C33*G34 ->  | I33: R$
C34: =C33/C33 ->  | G34: 1 | H34: 1 | I34: %
B35: VALOR TOTAL: | C35: =SUMIF($I$11:$I$34,"R$",C$11:C$34) -> 
B36: VALOR ACUMULADO: | D36: =D35 ->  | E36: =E35+D36 ->  | F36: =F35+E36 ->  | G36: =G35+F36 ->  | H36: =H35 -> 
B37: FÍSICO PARCIAL: | D37: =SUMIF($I$13:$I$34,"R$",D$13:D$34)/$C$35 ->  | E37: =SUMIF($I$13:$I$34,"R$",E$13:E$34)/$C$35 ->  | F37: =SUMIF($I$13:$I$34,"R$",F$13:F$34)/$C$35 ->  | G37: =SUMIF($I$13:$I$34,"R$",G$13:G$34)/$C$35 ->  | H37: =H35/$C$35 -> 
B38: AVANÇO FÍSICO: | D38: =D35/$C$35 ->  | E38: =E35/$C$35 ->  | F38: =F35/$C$35 ->  | G38: =G35/$C$35 -> 

Sheet Cotações
A1: Ministério do Desenvolvimento Regional
A2: Companhia de Desenvolvimento dos Vales do São Francisco e do Parnaíba
A3: ='Planilha Orçamentária'!#REF! -> 
A4: COTAÇÕES
A5: OBRA: | B5: ='Planilha Orçamentária'!B4:D4 -> SERVIÇOS DE MANUTENÇÃO E OBRAS CIVIS NA BARRAGEM RIACHO DA PORTA | K5: BDI (serv.): | L5: ='BDI serv'!D22 -> 0.2388
A6: LOCAL: | B6: ='Planilha Orçamentária'!B5 -> BARRAGEM RIACHO DA PORTA, BELÉM DO SÃO FRANCISCO/PE | K6: BDI (forn.): | L6: ='BDI forn'!E6 -> 0.147
A7: DATA BASE: | B7: ='Planilha Orçamentária'!B6:C6 -> maio, 2024
A8: PRAZO: | B8: ='Planilha Orçamentária'!B7:C7 -> 120 DIAS
A9: ITEM | B9: EMPRESA | G9: ORÇADO POR | H9: DESCRIÇÃO / OBSERVAÇÃO | I9: UNID | J9: QUANT | K9: LINK OU LOCAL DO ARQUIVO | L9: VALOR
B10: DATA | C10: EMPRESA / CNPJ | D10: RESPONSÁVEL | E10: ENDEREÇO | F10: CONTATO | L10: MAT | M10: MDO | N10: TRANSPORTE | O10: TOTAL
A11: =CPU!#REF! ->  | B11: =CPU!#REF! ->  | O11: =AVERAGE(O12:O13) -> 90
A12: 1 | B12: 2024-01-22 | G12: Murilo - RHA | H12: Diária hotel | I12: un | J12: 1 | L12: 100 | O12: =SUM(L12:N12) -> 100
A13: 2 | B13: 2024-01-22 | G13: Murilo - RHA | H13: Diaria hotel | I13: un | J13: 1 | L13: 80 | O13: =SUM(L13:N13) -> 80
A14: =CPU!C273 -> CPU.21 | B14: Régua linimétrica | O14: =AVERAGE(O15:O17) -> 183
A15: 1 | B15: 2024-01-22 | C15: POLIMEDIÇÃO COMERCIAL | D15: Preço na loja online | E15: R. Arlete, 151 - Jardim Penha - São Paulo - SP | F15: Tel: (11) 4328-3003 WhatsApp: (11) 98575-6343 polimedicao@gmail.com | G15: Murilo - RHA | H15: Régua linimétrica em alumínio 2 X 70 X 1000MM | I15: un | J15: 1 | K15: https://www.polimedicao.com.br/product-page/r%C3%A9gua-linim%C3%A9trica-em-chapa-de-aluminio-2-x-70-x-1000mm | L15: 169 | O15: =SUM(L15:N15) -> 169
A16: 2 | B16: 2024-01-22 | C16: Gravametal | D16: Preço na loja online | E16: Rua Uniflor, 1012 - Emiliano Perneta Pinhais - Paraná - CEP: 83324-227 | F16: ☎ (41) 3403-0144 ✆ (41) 99672-9692 ✉ gravametal@gmail.com | G16: Murilo - RHA | H16: Régua linimétrica em alumínio 2 X 70 X 1000MM | I16: un | J16: 1 | K16: https://www.gravametal.com.br/product-page/r%C3%A9gua-linim%C3%A9trica-fluviom%C3%A9trica-1000x70x2mm | L16: 240 | O16: =SUM(L16:N16) -> 240
A17: 3 | B17: 2024-01-22 | C17: Hidromec | D17: Consulta via Whatsapp | E17: Rua Sacadura Cabral, 351 Saúde - Rio de Janeiro - RJ CEP: 20221-160 | F17: (21) 3622-8000 contato@hidromechc.com.br | G17: Murilo - RHA | H17: Régua linimétrica em alumínio 2 X 70 X 1000MM | I17: un | J17: 1 | K17: https://www.hidromechc.com.br/regua | L17: 140 | O17: =SUM(L17:N17) -> 140
A18: 4 | B18: 2024-01-22 | C18: Agrosensores | G18: Murilo - RHA | H18: Régua linimétrica em alumínio 2 X 70 X 1000MM | I18: un | J18: 1 | K18: https://www.agrosensores.com.br/sensores/limnimetro/regua-limnimetrica-dualbase | N18: 89.53 | O18: =SUM(L18:N18) -> 89.53

Sheet BDI serv
A1: Ministério da Integração e do Desenvolvimento Regional
A2: Companhia de Desenvolvimento dos Vales do São Francisco e do Parnaíba
A3: ='Planilha Orçamentária'!#REF! -> 
A4: COMPOSIÇÃO DE BDI - SERVIÇOS - ONERADO
A5: OBRA: | B5: =Cotações!B5 -> SERVIÇOS DE MANUTENÇÃO E OBRAS CIVIS NA BARRAGEM RIACHO DA PORTA | F5: BDI (serv.): | G5: =D22 -> 0.2388
A6: LOCAL: | B6: =Cotações!B6 -> BARRAGEM RIACHO DA PORTA, BELÉM DO SÃO FRANCISCO/PE | F6: BDI (forn.): | G6: ='BDI forn'!D22 -> 0.147
A7: DATA BASE: | B7: 2024-05-01
A8: PRAZO: | B8: 120 DIAS
A9: ITEM | B9: DESCRIÇÃO | C9: SIGLA | D9: % APLICADO | E9: REFERÊNCIA TCU (ACÓRDÃO Nº 2622/2013)
E10: 1º QUARTIL | F10: 2º QUARTIL | G10: 3º QUARTIL
A11: 1 | B11: ADMINISTRAÇÃO CENTRAL | C11: AC | D11: =E11 -> 0.04 | E11: 0.04 | F11: 0.0552 | G11: 0.0785
A12: 2 | B12: IMPOSTOS | C12: T | D12: =SUM(D13:D16) -> 0.0715
A13: 2.1 | B13: ISS (*) | D13: 0.035 | E13: - | F13: - | G13: -
A14: 2.2 | B14: PIS | D14: 0.0065 | E14: - | F14: - | G14: -
A15: 2.3 | B15: Cofins | D15: 0.03 | E15: - | F15: - | G15: -
A16: 2.4 | B16: Contribuição previdênciária sobre a receita bruta (CPRB) | E16: - | F16: - | G16: -
A17: 3 | B17: SEGURO, GARANTIA E RISCO | D17: =SUM(D18:D19) -> 0.0227
A18: 3.1 | B18: Seguro + Garantia | C18: S + G | D18: =E18 -> 0.0081 | E18: 0.0081 | F18: 0.0122 | G18: 0.0199
A19: 3.2 | B19: Risco | C19: R | D19: =E19 -> 0.0146 | E19: 0.0146 | F19: 0.0232 | G19: 0.0316
A20: 4 | B20: DESPESAS FINANCEIRAS | C20: DF | D20: =F20 -> 0.0102 | E20: 0.0094 | F20: 0.0102 | G20: 0.01363
A21: 5 | B21: LUCRO | C21: L | D21: =E21 -> 0.0714 | E21: 0.0714 | F21: 0.084 | G21: 0.1043
B22: BDI ADOTADO: | D22: =ROUND(((((1+D11+D17)*(1+D20)*(1+D21))/(1-D12))-1),4) -> 0.2388
A23: Considerações: O BDI foi calculado através da seguinte fórmula, regulamentada pelo Acórdão Nº 2622/2013 – TCU. * O percentual de ISSQN aqui utilizado refere-se ao município de Porteirinha/MG, conforme Lei Complementar 1899/2007 - Art. 1º (Item 7.02C). Conforme Art. 112, § 14, na base de cálculo do ISSQN considerou-se dedução do percentual abaixo discriminado.

Sheet BDI serv Desonerado (hidden)
A1: Ministério do Desenvolvimento Regional
A2: Companhia de Desenvolvimento dos Vales do São Francisco e do Parnaíba
A3: ='Planilha Orçamentária'!#REF! -> 
A4: COMPOSIÇÃO DE BDI - SERVIÇOS - DESONERADO
A5: OBRA: | B5: =UPPER("SERVIÇOS DE MANUTENÇÃO E OBRAS CIVIS NA ESTRUTURA DA BARRAGEM E EQUIPAMENTO HIDROMECÂNICO") -> SERVIÇOS DE MANUTENÇÃO E OBRAS CIVIS NA ESTRUTURA DA BARRAGEM E EQUIPAMENTO HIDROMECÂNICO | D5: BDI (serv.): | E5: =D22 -> 0.3351
A6: LOCAL: | B6: BARRAGEM POÇO DO MAGRO, GUANAMBI/BA | D6: BDI (forn.): | E6: ='BDI forn Desonerado'!E6 -> 0.212
A7: DATA BASE: | B7: 2023-05-01
A8: PRAZO: | B8: 120 DIAS
A9: ITEM | B9: DESCRIÇÃO | C9: SIGLA | D9: % APLICADO | E9: REFERÊNCIA TCU (ACÓRDÃO Nº 2622/2013)
E10: 1º QUARTIL | F10: 2º QUARTIL | G10: 3º QUARTIL
A11: 1 | B11: ADMINISTRAÇÃO CENTRAL | C11: AC | D11: =E11 -> 0.04 | E11: 0.04 | F11: 0.0552 | G11: 0.0785
A12: 2 | B12: IMPOSTOS | C12: T | D12: =SUM(D13:D16) -> 0.1315
A13: 2.1 | B13: ISS (*) | D13: 0.05 | E13: - | F13: - | G13: -
A14: 2.2 | B14: PIS | D14: 0.0065 | E14: - | F14: - | G14: -
A15: 2.3 | B15: Cofins | D15: 0.03 | E15: - | F15: - | G15: -
A16: 2.4 | B16: Contribuição previdênciária sobre a receita bruta (CPRB) | D16: 0.045 | E16: - | F16: - | G16: -
A17: 3 | B17: SEGURO, GARANTIA E RISCO | D17: =SUM(D18:D19) -> 0.0313
A18: 3.1 | B18: Seguro + Garantia | C18: S + G | D18: =E18 -> 0.0081 | E18: 0.0081 | F18: 0.0122 | G18: 0.0199
A19: 3.2 | B19: Risco | C19: R | D19: =F19 -> 0.0232 | E19: 0.0146 | F19: 0.0232 | G19: 0.0316
A20: 4 | B20: DESPESAS FINANCEIRAS | C20: DF | D20: =F20 -> 0.0102 | E20: 0.0094 | F20: 0.0102 | G20: 0.01363
A21: 5 | B21: LUCRO | C21: L | D21: =E21 -> 0.0714 | E21: 0.0714 | F21: 0.084 | G21: 0.1043
B22: BDI ADOTADO: | D22: =ROUND(((((1+D11+D17)*(1+D20)*(1+D21))/(1-D12))-1),4) -> 0.3351
A23: Considerações: O BDI foi calculado através da seguinte fórmula, regulamentada pelo Acórdão Nº 2622/2013 – TCU. * O percentual de ISSQN aqui utilizado refere-se ao município de Porteirinha/MG, conforme Lei Complementar 1899/2007 - Art. 1º (Item 7.02C). Conforme Art. 112, § 14, na base de cálculo do ISSQN considerou-se dedução do percentual abaixo discriminado.

Sheet BDI forn
A1: Ministério do Desenvolvimento Regional
A2: Companhia de Desenvolvimento dos Vales do São Francisco e do Parnaíba
A3: ='Planilha Orçamentária'!#REF! -> 
A4: COMPOSIÇÃO DE BDI - FORNECIMENTO - ONERADO
A5: OBRA: | B5: ='BDI serv'!B5:C5 -> SERVIÇOS DE MANUTENÇÃO E OBRAS CIVIS NA BARRAGEM RIACHO DA PORTA | D5: BDI (serv.): | E5: ='BDI serv'!D22 -> 0.2388
A6: LOCAL: | B6: ='BDI serv'!B6:C6 -> BARRAGEM RIACHO DA PORTA, BELÉM DO SÃO FRANCISCO/PE | D6: BDI (forn.): | E6: =D22 -> 0.147
A7: DATA BASE: | B7: ='BDI serv'!B7:C7 -> 2024-05-01
A8: PRAZO: | B8: 120 DIAS
A9: ITEM | B9: DESCRIÇÃO | C9: SIGLA | D9: % APLICADO | E9: REFERÊNCIA TCU (ACÓRDÃO Nº 2622/2013)
E10: 1º QUARTIL | F10: 2º QUARTIL | G10: 3º QUARTIL
A11: 1 | B11: ADMINISTRAÇÃO CENTRAL | C11: AC | D11: 0.04 | E11: 0.015 | F11: 0.0345 | G11: 0.0449
A12: 2 | B12: IMPOSTOS | C12: T | D12: =SUM(D13:D16) -> 0.0365
A13: 2.1 | B13: ISS (*) | E13: - | F13: - | G13: -
A14: 2.2 | B14: PIS | D14: 0.0065 | E14: - | F14: - | G14: -
A15: 2.3 | B15: Cofins | D15: 0.03 | E15: - | F15: - | G15: -
A16: 2.4 | B16: Contribuição previdênciária sobre a receita bruta (CPRB) | E16: - | F16: - | G16: -
A17: 3 | B17: SEGURO, GARANTIA E RISCO | D17: =SUM(D18:D19) -> 0.0086
A18: 3.1 | B18: Seguro + Garantia | C18: S + G | D18: =E18 -> 0.003 | E18: 0.003 | F18: 0.0048 | G18: 0.0082
A19: 3.3 | B19: Risco | C19: R | D19: =E19 -> 0.0056 | E19: 0.0056 | F19: 0.0085 | G19: 0.0089
A20: 4 | B20: DESPESAS FINANCEIRAS | C20: DF | D20: =E20 -> 0.0085 | E20: 0.0085 | F20: 0.0085 | G20: 0.0111
A21: 5 | B21: LUCRO | C21: L | D21: 0.045 | E21: 0.035 | F21: 0.0511 | G21: 0.0622
B22: BDI ADOTADO: | D22: =ROUND(((((1+D11+D17)*(1+D20)*(1+D21))/(1-D12))-1),4) -> 0.147
A23: Considerações: O BDI foi calculado através da seguinte fórmula, regulamentada pelo Acórdão Nº 2622/2013 – TCU.

Sheet BDI forn Desonerado (hidden)
A1: Ministério do Desenvolvimento Regional
A2: Companhia de Desenvolvimento dos Vales do São Francisco e do Parnaíba
A3: ='Planilha Orçamentária'!#REF! -> 
A4: COMPOSIÇÃO DE BDI - FORNECIMENTO - DESONERADO
A5: OBRA: | B5: =UPPER("SERVIÇOS DE MANUTENÇÃO E OBRAS CIVIS NA ESTRUTURA DA BARRAGEM E EQUIPAMENTO HIDROMECÂNICO") -> SERVIÇOS DE MANUTENÇÃO E OBRAS CIVIS NA ESTRUTURA DA BARRAGEM E EQUIPAMENTO HIDROMECÂNICO | D5: BDI (serv.): | E5: ='BDI serv Desonerado'!E5 -> 0.3351
A6: LOCAL: | B6: BARRAGEM POÇO DO MAGRO, GUANAMBI/BA | D6: BDI (forn.): | E6: =D22 -> 0.212
A7: DATA BASE: | B7: 2023-05-01
A8: PRAZO: | B8: 120 DIAS
A9: ITEM | B9: DESCRIÇÃO | C9: SIGLA | D9: % APLICADO | E9: REFERÊNCIA TCU (ACÓRDÃO Nº 2622/2013)
E10: 1º QUARTIL | F10: 2º QUARTIL | G10: 3º QUARTIL
A11: 1 | B11: ADMINISTRAÇÃO CENTRAL | C11: AC | D11: 0.04 | E11: 0.015 | F11: 0.0345 | G11: 0.0449
A12: 2 | B12: IMPOSTOS | C12: T | D12: =SUM(D13:D16) -> 0.0815
A13: 2.1 | B13: ISS (*) | E13: - | F13: - | G13: -
A14: 2.2 | B14: PIS | D14: 0.0065 | E14: - | F14: - | G14: -
A15: 2.3 | B15: Cofins | D15: 0.03 | E15: - | F15: - | G15: -
A16: 2.4 | B16: Contribuição previdênciária sobre a receita bruta (CPRB) | D16: 0.045 | E16: - | F16: - | G16: -
A17: 3 | B17: SEGURO, GARANTIA E RISCO | D17: =SUM(D18:D19) -> 0.0086
A18: 3.1 | B18: Seguro +Garantia | C18: S+G | D18: =E18 -> 0.003 | E18: 0.003 | F18: 0.0048 | G18: 0.0082
A19: 3.2 | B19: Risco | C19: R | D19: =E19 -> 0.0056 | E19: 0.0056 | F19: 0.0085 | G19: 0.0089
A20: 4 | B20: DESPESAS FINANCEIRAS | C20: DF | D20: 0.01 | E20: 0.0085 | F20: 0.0085 | G20: 0.0111
A21: 5 | B21: LUCRO | C21: L | D21: =F21 -> 0.0511 | E21: 0.035 | F21: 0.0511 | G21: 0.0622
B22: BDI ADOTADO: | D22: =ROUND(((((1+D11+D17)*(1+D20)*(1+D21))/(1-D12))-1),4) -> 0.212
A23: Considerações: O BDI foi calculado através da seguinte fórmula, regulamentada pelo Acórdão Nº 2622/2013 – TCU.

Sheet Encargos Sociais
A1: Ministério da Integração e do Desenvolvimento Regional
A2: Companhia de Desenvolvimento dos Vales do São Francisco e do Parnaíba
A3: ='Planilha Orçamentária'!#REF! -> 
A4: COMPOSIÇÃO DE ENCARGOS SOCIAIS SOBRE A MÃO DE OBRA
A5: OBRA: | B5: ='BDI forn'!B5:C5 -> SERVIÇOS DE MANUTENÇÃO E OBRAS CIVIS NA BARRAGEM RIACHO DA PORTA
A6: LOCAL: | B6: ='BDI forn'!B6:C6 -> BARRAGEM RIACHO DA PORTA, BELÉM DO SÃO FRANCISCO/PE
A7: DATA BASE: | B7: ='BDI forn'!B7:C7 -> 2024-05-01
A8: PRAZO: | B8: 120 DIAS
A9: Encargos Sociais – Pernambuco VIGÊNCIA A PARTIR DE 12/2023
A10: ENCARGOS SOCIAIS SOBRE A MÃO DE OBRA
A11: CÓDIGO | B11: DESCRIÇÃO | C11: COM DESONERAÇÃO | E11: SEM DESONERAÇÃO
C12: HORISTA % | D12: MENSALISTA % | E12: HORISTA % | F12: MENSALISTA %
A13: GRUPO A
A14: A1 | B14: INSS | C14: 0 | D14: 0 | E14: 0.2 | F14: 0.2
A15: A2 | B15: SESI | C15: 0.015 | D15: 0.015 | E15: 0.015 | F15: 0.015
A16: A3 | B16: SENAI | C16: 0.01 | D16: 0.01 | E16: 0.01 | F16: 0.01
A17: A4 | B17: INCRA | C17: 0.002 | D17: 0.002 | E17: 0.002 | F17: 0.002
A18: A5 | B18: SEBRAE | C18: 0.006 | D18: 0.006 | E18: 0.006 | F18: 0.006
A19: A6 | B19: Salário Educação | C19: 0.025 | D19: 0.025 | E19: 0.025 | F19: 0.025
A20: A7 | B20: Seguro Contra Acidentes de Trabalho | C20: 0.03 | D20: 0.03 | E20: 0.03 | F20: 0.03
A21: A8 | B21: FGTS | C21: 0.08 | D21: 0.08 | E21: 0.08 | F21: 0.08
A22: A9 | B22: SECONCI | C22: 0 | D22: 0 | E22: 0 | F22: 0
A23: A | B23: Total | C23: =SUM(C14:C22) -> 0.168 | D23: =SUM(D14:D22) -> 0.168 | E23: =SUM(E14:E22) -> 0.368 | F23: =SUM(F14:F22) -> 0.368
A24: GRUPO B
A25: B1 | B25: Repouso Semanal Remunerado | C25: 0.1801 | D25: Não incide | E25: 0.1801 | F25: Não incide
A26: B2 | B26: Feriados | C26: 0.0432 | D26: Não incide | E26: 0.0432 | F26: Não incide
A27: B3 | B27: Auxílio - Enfermidade | C27: 0.0085 | D27: 0.0064 | E27: 0.0085 | F27: 0.0064
A28: B4 | B28: 13º Salário | C28: 0.1103 | D28: 0.0833 | E28: 0.1103 | F28: 0.0833
A29: B5 | B29: Licença Paternidade | C29: 0.0006 | D29: 0.0004 | E29: 0.0006 | F29: 0.0004
A30: B6 | B30: Faltas Justificadas | C30: 0.0074 | D30: 0.0056 | E30: 0.0074 | F30: 0.0056
A31: B7 | B31: Dias de Chuvas | C31: 0.0198 | D31: Não incide | E31: 0.0198 | F31: Não incide
A32: B8 | B32: Auxílio Acidente de Trabalho | C32: 0.001 | D32: 0.0008 | E32: 0.001 | F32: 0.0008
A33: B9 | B33: Férias Gozadas | C33: 0.109 | D33: 0.0824 | E33: 0.109 | F33: 0.0824
A34: B10 | B34: Salário Maternidade | C34: 0.0004 | D34: 0.0003 | E34: 0.0004 | F34: 0.0003
A35: B | B35: Total | C35: =SUM(C25:C34) -> 0.4803 | D35: =SUM(D25:D34) -> 0.1792 | E35: =SUM(E25:E34) -> 0.4803 | F35: =SUM(F25:F34) -> 0.1792
A36: GRUPO C
A37: C1 | B37: Aviso Prévio Indenizado | C37: 0.048 | D37: 0.0363 | E37: 0.048 | F37: 0.0363
A38: C2 | B38: Aviso Prévio Trabalhado | C38: 0.0011 | D38: 0.0009 | E38: 0.0011 | F38: 0.0009
A39: C3 | B39: Férias Indenizadas | C39: 0.0291 | D39: 0.022 | E39: 0.0291 | F39: 0.022
A40: C4 | B40: Depósito Rescisão Sem Justa Causa | C40: 0.0283 | D40: 0.0214 | E40: 0.0283 | F40: 0.0214
A41: C5 | B41: Indenização Adicional | C41: 0.004 | D41: 0.0031 | E41: 0.004 | F41: 0.0031
A42: C | B42: Total | C42: =SUM(C37:C41) -> 0.1105 | D42: =SUM(D37:D41) -> 0.0837 | E42: =SUM(E37:E41) -> 0.1105 | F42: =SUM(F37:F41) -> 0.0837
A43: GRUPO D
A44: D1 | B44: Reincidência de Grupo A sobre Grupo B | C44: 0.0807 | D44: 0.0301 | E44: 0.1768 | F44: 0.0659
A45: D2 | B45: Reincidência de Grupo A sobre Aviso Prévio Trabalhado e Reincidência do FGTS sobre Aviso Prévio Indenizado | C45: 0.004 | D45: 0.0031 | E45: 0.0042 | F45: 0.0032
A46: D | B46: Total | C46: =SUM(C44:C45) -> 0.0847 | D46: =SUM(D44:D45) -> 0.0332 | E46: =SUM(E44:E45) -> 0.181 | F46: =SUM(F44:F45) -> 0.0691
A47: TOTAL(A+B+C+D) | C47: =C23+C35+C42+C46 -> 0.8435 | D47: =D23+D35+D42+D46 -> 0.4641 | E47: =E23+E35+E42+E46 -> 1.1398 | F47: =F23+F35+F42+F46 -> 0.7
A48: Fonte: Informação Dias de Chuva – INMET

Sheet Comp SINAPI PE 04-2024 Onerado
A1: PCI.817.01 - CUSTO DE COMPOSIÇÕES - SINTÉTICO DATA DE EMISSÃO: 17/04/2024 23:50:35 DATA DE RT: 17/04/2024
A2: ENCARGOS SOCIAIS SOBRE PREÇOS DA MÃO-DE-OBRA: 113,98%(HORA) 70,00%(MÊS)
A3: ABRANGÊNCIA : NACIONAL LOCALIDADE : RECIFE DATA DE PREÇO : 03/2024 REFERÊNCIA COLETA : MEDIANO
A5: DESCRICAO DA CLASSE | B5: SIGLA DA CLASSE | C5: DESCRICAO DO TIPO 1 | D5: SIGLA DO TIPO 1 | E5: CODIGO DO AGRUPADOR | F5: DESCRICAO DO AGRUPADOR | G5: CODIGO DA COMPOSICAO | H5: DESCRICAO DA COMPOSICAO | I5: UNIDADE | J5: ORIGEM DE PREÇO | K5: CUSTO TOTAL | L5: VINCULO
A7: ASSENTAMENTO DE TUBOS E PECAS | B7: ASTU | C7: FORNEC E/OU ASSENT DE TUBO DE FERRO FUNDIDO JUNTA ELASTICA | D7: 0045 | G7: 97141 | H7: ASSENTAMENTO DE TUBO DE FERRO FUNDIDO PARA REDE DE ÁGUA, DN 80 MM, JUNTA ELÁSTICA, INSTALADO EM LOCAL COM NÍVEL ALTO DE INTERFERÊNCIAS (NÃO INCLUI FORNECIMENTO). AF_11/2017 | I7: M | J7: COEFICIENTE DE REPRESENTATIVIDADE | K7: 8.97 | L7: CAIXA REFERENCIAL
A8: ASSENTAMENTO DE TUBOS E PECAS | B8: ASTU | C8: FORNEC E/OU ASSENT DE TUBO DE FERRO FUNDIDO JUNTA ELASTICA | D8: 0045 | G8: 97142 | H8: ASSENTAMENTO DE TUBO DE FERRO FUNDIDO PARA REDE DE ÁGUA, DN 100 MM, JUNTA ELÁSTICA, INSTALADO EM LOCAL COM NÍVEL ALTO DE INTERFERÊNCIAS (NÃO INCLUI FORNECIMENTO). AF_11/2017 | I8: M | J8: COEFICIENTE DE REPRESENTATIVIDADE | K8: 9.93 | L8: CAIXA REFERENCIAL
A9: ASSENTAMENTO DE TUBOS E PECAS | B9: ASTU | C9: FORNEC E/OU ASSENT DE TUBO DE FERRO FUNDIDO JUNTA ELASTICA | D9: 0045 | G9: 97143 | H9: ASSENTAMENTO DE TUBO DE FERRO FUNDIDO PARA REDE DE ÁGUA, DN 150 MM, JUNTA ELÁSTICA, INSTALADO EM LOCAL COM NÍVEL ALTO DE INTERFERÊNCIAS (NÃO INCLUI FORNECIMENTO). AF_11/2017 | I9: M | J9: COEFICIENTE DE REPRESENTATIVIDADE | K9: 12.37 | L9: CAIXA REFERENCIAL
A10: ASSENTAMENTO DE TUBOS E PECAS | B10: ASTU | C10: FORNEC E/OU ASSENT DE TUBO DE FERRO FUNDIDO JUNTA ELASTICA | D10: 0045 | G10: 97144 | H10: ASSENTAMENTO DE TUBO DE FERRO FUNDIDO PARA REDE DE ÁGUA, DN 200 MM, JUNTA ELÁSTICA, INSTALADO EM LOCAL COM NÍVEL ALTO DE INTERFERÊNCIAS (NÃO INCLUI FORNECIMENTO). AF_11/2017 | I10: M | J10: COEFICIENTE DE REPRESENTATIVIDADE | K10: 14.79 | L10: CAIXA REFERENCIAL
A11: ASSENTAMENTO DE TUBOS E PECAS | B11: ASTU | C11: FORNEC E/OU ASSENT DE TUBO DE FERRO FUNDIDO JUNTA ELASTICA | D11: 0045 | G11: 97145 | H11: ASSENTAMENTO DE TUBO DE FERRO FUNDIDO PARA REDE DE ÁGUA, DN 250 MM, JUNTA ELÁSTICA, INSTALADO EM LOCAL COM NÍVEL ALTO DE INTERFERÊNCIAS (NÃO INCLUI FORNECIMENTO). AF_11/2017 | I11: M | J11: COEFICIENTE DE REPRESENTATIVIDADE | K11: 17.24 | L11: CAIXA REFERENCIAL
A12: ASSENTAMENTO DE TUBOS E PECAS | B12: ASTU | C12: FORNEC E/OU ASSENT DE TUBO DE FERRO FUNDIDO JUNTA ELASTICA | D12: 0045 | G12: 97146 | H12: ASSENTAMENTO DE TUBO DE FERRO FUNDIDO PARA REDE DE ÁGUA, DN 300 MM, JUNTA ELÁSTICA, INSTALADO EM LOCAL COM NÍVEL ALTO DE INTERFERÊNCIAS (NÃO INCLUI FORNECIMENTO). AF_11/2017 | I12: M | J12: COEFICIENTE DE REPRESENTATIVIDADE | K12: 19.68 | L12: CAIXA REFERENCIAL
A13: ASSENTAMENTO DE TUBOS E PECAS | B13: ASTU | C13: FORNEC E/OU ASSENT DE TUBO DE FERRO FUNDIDO JUNTA ELASTICA | D13: 0045 | G13: 97147 | H13: ASSENTAMENTO DE TUBO DE FERRO FUNDIDO PARA REDE DE ÁGUA, DN 350 MM, JUNTA ELÁSTICA, INSTALADO EM LOCAL COM NÍVEL ALTO DE INTERFERÊNCIAS (NÃO INCLUI FORNECIMENTO). AF_11/2017 | I13: M | J13: COEFICIENTE DE REPRESENTATIVIDADE | K13: 22.12 | L13: CAIXA REFERENCIAL
A14: ASSENTAMENTO DE TUBOS E PECAS | B14: ASTU | C14: FORNEC E/OU ASSENT DE TUBO DE FERRO FUNDIDO JUNTA ELASTICA | D14: 0045 | G14: 97148 | H14: ASSENTAMENTO DE TUBO DE FERRO FUNDIDO PARA REDE DE ÁGUA, DN 400 MM, JUNTA ELÁSTICA, INSTALADO EM LOCAL COM NÍVEL ALTO DE INTERFERÊNCIAS (NÃO INCLUI FORNECIMENTO). AF_11/2017 | I14: M | J14: COEFICIENTE DE REPRESENTATIVIDADE | K14: 24.56 | L14: CAIXA REFERENCIAL
A15: ASSENTAMENTO DE TUBOS E PECAS | B15: ASTU | C15: FORNEC E/OU ASSENT DE TUBO DE FERRO FUNDIDO JUNTA ELASTICA | D15: 0045 | G15: 97149 | H15: ASSENTAMENTO DE TUBO DE FERRO FUNDIDO PARA REDE DE ÁGUA, DN 450 MM, JUNTA ELÁSTICA, INSTALADO EM LOCAL COM NÍVEL ALTO DE INTERFERÊNCIAS (NÃO INCLUI FORNECIMENTO). AF_11/2017 | I15: M | J15: COEFICIENTE DE REPRESENTATIVIDADE | K15: 27.04 | L15: CAIXA REFERENCIAL
A16: ASSENTAMENTO DE TUBOS E PECAS | B16: ASTU | C16: FORNEC E/OU ASSENT DE TUBO DE FERRO FUNDIDO JUNTA ELASTICA | D16: 0045 | G16: 97150 | H16: ASSENTAMENTO DE TUBO DE FERRO FUNDIDO PARA REDE DE ÁGUA, DN 500 MM, JUNTA ELÁSTICA, INSTALADO EM LOCAL COM NÍVEL ALTO DE INTERFERÊNCIAS (NÃO INCLUI FORNECIMENTO). AF_11/2017 | I16: M | J16: COEFICIENTE DE REPRESENTATIVIDADE | K16: 33.71 | L16: CAIXA REFERENCIAL
A17: ASSENTAMENTO DE TUBOS E PECAS | B17: ASTU | C17: FORNEC E/OU ASSENT DE TUBO DE FERRO FUNDIDO JUNTA ELASTICA | D17: 0045 | G17: 97151 | H17: ASSENTAMENTO DE TUBO DE FERRO FUNDIDO PARA REDE DE ÁGUA, DN 600 MM, JUNTA ELÁSTICA, INSTALADO EM LOCAL COM NÍVEL ALTO DE INTERFERÊNCIAS (NÃO INCLUI FORNECIMENTO). AF_11/2017 | I17: M | J17: COEFICIENTE DE REPRESENTATIVIDADE | K17: 39.24 | L17: CAIXA REFERENCIAL
A18: ASSENTAMENTO DE TUBOS E PECAS | B18: ASTU | C18: FORNEC E/OU ASSENT DE TUBO DE FERRO FUNDIDO JUNTA ELASTICA | D18: 0045 | G18: 97152 | H18: ASSENTAMENTO DE TUBO DE FERRO FUNDIDO PARA REDE DE ÁGUA, DN 700 MM, JUNTA ELÁSTICA, INSTALADO EM LOCAL COM NÍVEL ALTO DE INTERFERÊNCIAS (NÃO INCLUI FORNECIMENTO). AF_11/2017 | I18: M | J18: COEFICIENTE DE REPRESENTATIVIDADE | K18: 44.53 | L18: CAIXA REFERENCIAL
A19: ASSENTAMENTO DE TUBOS E PECAS | B19: ASTU | C19: FORNEC E/OU ASSENT DE TUBO DE FERRO FUNDIDO JUNTA ELASTICA | D19: 0045 | G19: 97153 | H19: ASSENTAMENTO DE TUBO DE FERRO FUNDIDO PARA REDE DE ÁGUA, DN 800 MM, JUNTA ELÁSTICA, INSTALADO EM LOCAL COM NÍVEL ALTO DE INTERFERÊNCIAS (NÃO INCLUI FORNECIMENTO). AF_11/2017 | I19: M | J19: COEFICIENTE DE REPRESENTATIVIDADE | K19: 49.97 | L19: CAIXA REFERENCIAL
A20: ASSENTAMENTO DE TUBOS E PECAS | B20: ASTU | C20: FORNEC E/OU ASSENT DE TUBO DE FERRO FUNDIDO JUNTA ELASTICA | D20: 0045 | G20: 97154 | H20: ASSENTAMENTO DE TUBO DE FERRO FUNDIDO PARA REDE DE ÁGUA, DN 900 MM, JUNTA ELÁSTICA, INSTALADO EM LOCAL COM NÍVEL ALTO DE INTERFERÊNCIAS (NÃO INCLUI FORNECIMENTO). AF_11/2017 | I20: M | J20: COEFICIENTE DE REPRESENTATIVIDADE | K20: 55.46 | L20: CAIXA REFERENCIAL
A21: ASSENTAMENTO DE TUBOS E PECAS | B21: ASTU | C21: FORNEC E/OU ASSENT DE TUBO DE FERRO FUNDIDO JUNTA ELASTICA | D21: 0045 | G21: 97155 | H21: ASSENTAMENTO DE TUBO DE FERRO FUNDIDO PARA REDE DE ÁGUA, DN 1000 MM, JUNTA ELÁSTICA, INSTALADO EM LOCAL COM NÍVEL ALTO DE INTERFERÊNCIAS (NÃO INCLUI FORNECIMENTO). AF_11/2017 | I21: M | J21: COEFICIENTE DE REPRESENTATIVIDADE | K21: 60.92 | L21: CAIXA REFERENCIAL
A22: ASSENTAMENTO DE TUBOS E PECAS | B22: ASTU | C22: FORNEC E/OU ASSENT DE TUBO DE FERRO FUNDIDO JUNTA ELASTICA | D22: 0045 | G22: 97156 | H22: ASSENTAMENTO DE TUBO DE FERRO FUNDIDO PARA REDE DE ÁGUA, DN 1200 MM, JUNTA ELÁSTICA, INSTALADO EM LOCAL COM NÍVEL ALTO DE INTERFERÊNCIAS (NÃO INCLUI FORNECIMENTO). AF_11/2017 | I22: M | J22: COEFICIENTE DE REPRESENTATIVIDADE | K22: 72.23 | L22: CAIXA REFERENCIAL
A23: ASSENTAMENTO DE TUBOS E PECAS | B23: ASTU | C23: FORNEC E/OU ASSENT DE TUBO DE FERRO FUNDIDO JUNTA ELASTICA | D23: 0045 | G23: 97157 | H23: ASSENTAMENTO DE TUBO DE FERRO FUNDIDO PARA REDE DE ÁGUA, DN 80 MM, JUNTA ELÁSTICA, INSTALADO EM LOCAL COM NÍVEL BAIXO DE INTERFERÊNCIAS (NÃO INCLUI FORNECIMENTO). AF_11/2017 | I23: M | J23: COEFICIENTE DE REPRESENTATIVIDADE | K23: 5.37 | L23: CAIXA REFERENCIAL
A24: ASSENTAMENTO DE TUBOS E PECAS | B24: ASTU | C24: FORNEC E/OU ASSENT DE TUBO DE FERRO FUNDIDO JUNTA ELASTICA | D24: 0045 | G24: 97158 | H24: ASSENTAMENTO DE TUBO DE FERRO FUNDIDO PARA REDE DE ÁGUA, DN 100 MM, JUNTA ELÁSTICA, INSTALADO EM LOCAL COM NÍVEL BAIXO DE INTERFERÊNCIAS (NÃO INCLUI FORNECIMENTO). AF_11/2017 | I24: M | J24: COEFICIENTE DE REPRESENTATIVIDADE | K24: 5.96 | L24: CAIXA REFERENCIAL
A25: ASSENTAMENTO DE TUBOS E PECAS | B25: ASTU | C25: FORNEC E/OU ASSENT DE TUBO DE FERRO FUNDIDO JUNTA ELASTICA | D25: 0045 | G25: 97159 | H25: ASSENTAMENTO DE TUBO DE FERRO FUNDIDO PARA REDE DE ÁGUA, DN 150 MM, JUNTA ELÁSTICA, INSTALADO EM LOCAL COM NÍVEL BAIXO DE INTERFERÊNCIAS (NÃO INCLUI FORNECIMENTO). AF_11/2017 | I25: M | J25: COEFICIENTE DE REPRESENTATIVIDADE | K25: 7.43 | L25: CAIXA REFERENCIAL
A26: ASSENTAMENTO DE TUBOS E PECAS | B26: ASTU | C26: FORNEC E/OU ASSENT DE TUBO DE FERRO FUNDIDO JUNTA ELASTICA | D26: 0045 | G26: 97160 | H26: ASSENTAMENTO DE TUBO DE FERRO FUNDIDO PARA REDE DE ÁGUA, DN 200 MM, JUNTA ELÁSTICA, INSTALADO EM LOCAL COM NÍVEL BAIXO DE INTERFERÊNCIAS (NÃO INCLUI FORNECIMENTO). AF_11/2017 | I26: M | J26: COEFICIENTE DE REPRESENTATIVIDADE | K26: 8.89 | L26: CAIXA REFERENCIAL
A27: ASSENTAMENTO DE TUBOS E PECAS | B27: ASTU | C27: FORNEC E/OU ASSENT DE TUBO DE FERRO FUNDIDO JUNTA ELASTICA | D27: 0045 | G27: 97161 | H27: ASSENTAMENTO DE TUBO DE FERRO FUNDIDO PARA REDE DE ÁGUA, DN 250 MM, JUNTA ELÁSTICA, INSTALADO EM LOCAL COM NÍVEL BAIXO DE INTERFERÊNCIAS (NÃO INCLUI FORNECIMENTO). AF_11/2017 | I27: M | J27: COEFICIENTE DE REPRESENTATIVIDADE | K27: 10.38 | L27: CAIXA REFERENCIAL
A28: ASSENTAMENTO DE TUBOS E PECAS | B28: ASTU | C28: FORNEC E/OU ASSENT DE TUBO DE FERRO FUNDIDO JUNTA ELASTICA | D28: 0045 | G28: 97162 | H28: ASSENTAMENTO DE TUBO DE FERRO FUNDIDO PARA REDE DE ÁGUA, DN 300 MM, JUNTA ELÁSTICA, INSTALADO EM LOCAL COM NÍVEL BAIXO DE INTERFERÊNCIAS (NÃO INCLUI FORNECIMENTO). AF_11/2017 | I28: M | J28: COEFICIENTE DE REPRESENTATIVIDADE | K28: 11.86 | L28: CAIXA REFERENCIAL
A29: ASSENTAMENTO DE TUBOS E PECAS | B29: ASTU | C29: FORNEC E/OU ASSENT DE TUBO DE FERRO FUNDIDO JUNTA ELASTICA | D29: 0045 | G29: 97163 | H29: ASSENTAMENTO DE TUBO DE FERRO FUNDIDO PARA REDE DE ÁGUA, DN 350 MM, JUNTA ELÁSTICA, INSTALADO EM LOCAL COM NÍVEL BAIXO DE INTERFERÊNCIAS (NÃO INCLUI FORNECIMENTO). AF_11/2017 | I29: M | J29: COEFICIENTE DE REPRESENTATIVIDADE | K29: 13.36 | L29: CAIXA REFERENCIAL
A30: ASSENTAMENTO DE TUBOS E PECAS | B30: ASTU | C30: FORNEC E/OU ASSENT DE TUBO DE FERRO FUNDIDO JUNTA ELASTICA | D30: 0045 | G30: 97164 | H30: ASSENTAMENTO DE TUBO DE FERRO FUNDIDO PARA REDE DE ÁGUA, DN 400 MM, JUNTA ELÁSTICA, INSTALADO EM LOCAL COM NÍVEL BAIXO DE INTERFERÊNCIAS (NÃO INCLUI FORNECIMENTO). AF_11/2017 | I30: M | J30: COEFICIENTE DE REPRESENTATIVIDADE | K30: 14.84 | L30: CAIXA REFERENCIAL
A31: ASSENTAMENTO DE TUBOS E PECAS | B31: ASTU | C31: FORNEC E/OU ASSENT DE TUBO DE FERRO FUNDIDO JUNTA ELASTICA | D31: 0045 | G31: 97165 | H31: ASSENTAMENTO DE TUBO DE FERRO FUNDIDO PARA REDE DE ÁGUA, DN 450 MM, JUNTA ELÁSTICA, INSTALADO EM LOCAL COM NÍVEL BAIXO DE INTERFERÊNCIAS (NÃO INCLUI FORNECIMENTO). AF_11/2017 | I31: M | J31: COEFICIENTE DE REPRESENTATIVIDADE | K31: 16.35 | L31: CAIXA REFERENCIAL
A32: ASSENTAMENTO DE TUBOS E PECAS | B32: ASTU | C32: FORNEC E/OU ASSENT DE TUBO DE FERRO FUNDIDO JUNTA ELASTICA | D32: 0045 | G32: 97166 | H32: ASSENTAMENTO DE TUBO DE FERRO FUNDIDO PARA REDE DE ÁGUA, DN 500 MM, JUNTA ELÁSTICA, INSTALADO EM LOCAL COM NÍVEL BAIXO DE INTERFERÊNCIAS (NÃO INCLUI FORNECIMENTO). AF_11/2017 | I32: M | J32: COEFICIENTE DE REPRESENTATIVIDADE | K32: 20.4 | L32: CAIXA REFERENCIAL
A33: ASSENTAMENTO DE TUBOS E PECAS | B33: ASTU | C33: FORNEC E/OU ASSENT DE TUBO DE FERRO FUNDIDO JUNTA ELASTICA | D33: 0045 | G33: 97167 | H33: ASSENTAMENTO DE TUBO DE FERRO FUNDIDO PARA REDE DE ÁGUA, DN 600 MM, JUNTA ELÁSTICA, INSTALADO EM LOCAL COM NÍVEL BAIXO DE INTERFERÊNCIAS (NÃO INCLUI FORNECIMENTO). AF_11/2017 | I33: M | J33: COEFICIENTE DE REPRESENTATIVIDADE | K33: 23.78 | L33: CAIXA REFERENCIAL
A34: ASSENTAMENTO DE TUBOS E PECAS | B34: ASTU | C34: FORNEC E/OU ASSENT DE TUBO DE FERRO FUNDIDO JUNTA ELASTICA | D34: 0045 | G34: 97168 | H34: ASSENTAMENTO DE TUBO DE FERRO FUNDIDO PARA REDE DE ÁGUA, DN 700 MM, JUNTA ELÁSTICA, INSTALADO EM LOCAL COM NÍVEL BAIXO DE INTERFERÊNCIAS (NÃO INCLUI FORNECIMENTO). AF_11/2017 | I34: M | J34: COEFICIENTE DE REPRESENTATIVIDADE | K34: 26.93 | L34: CAIXA REFERENCIAL
A35: ASSENTAMENTO DE TUBOS E PECAS | B35: ASTU | C35: FORNEC E/OU ASSENT DE TUBO DE FERRO FUNDIDO JUNTA ELASTICA | D35: 0045 | G35: 97169 | H35: ASSENTAMENTO DE TUBO DE FERRO FUNDIDO PARA REDE DE ÁGUA, DN 800 MM, JUNTA ELÁSTICA, INSTALADO EM LOCAL COM NÍVEL BAIXO DE INTERFERÊNCIAS (NÃO INCLUI FORNECIMENTO). AF_11/2017 | I35: M | J35: COEFICIENTE DE REPRESENTATIVIDADE | K35: 30.23 | L35: CAIXA REFERENCIAL
A36: ASSENTAMENTO DE TUBOS E PECAS | B36: ASTU | C36: FORNEC E/OU ASSENT DE TUBO DE FERRO FUNDIDO JUNTA ELASTICA | D36: 0045 | G36: 97170 | H36: ASSENTAMENTO DE TUBO DE FERRO FUNDIDO PARA REDE DE ÁGUA, DN 900 MM, JUNTA ELÁSTICA, INSTALADO EM LOCAL COM NÍVEL BAIXO DE INTERFERÊNCIAS (NÃO INCLUI FORNECIMENTO). AF_11/2017 | I36: M | J36: COEFICIENTE DE REPRESENTATIVIDADE | K36: 33.55 | L36: CAIXA REFERENCIAL
A37: ASSENTAMENTO DE TUBOS E PECAS | B37: ASTU | C37: FORNEC E/OU ASSENT DE TUBO DE FERRO FUNDIDO JUNTA ELASTICA | D37: 0045 | G37: 97171 | H37: ASSENTAMENTO DE TUBO DE FERRO FUNDIDO PARA REDE DE ÁGUA, DN 1000 MM, JUNTA ELÁSTICA, INSTALADO EM LOCAL COM NÍVEL BAIXO DE INTERFERÊNCIAS (NÃO INCLUI FORNECIMENTO). AF_11/2017 | I37: M | J37: COEFICIENTE DE REPRESENTATIVIDADE | K37: 36.88 | L37: CAIXA REFERENCIAL
A38: ASSENTAMENTO DE TUBOS E PECAS | B38: ASTU | C38: FORNEC E/OU ASSENT DE TUBO DE FERRO FUNDIDO JUNTA ELASTICA | D38: 0045 | G38: 97172 | H38: ASSENTAMENTO DE TUBO DE FERRO FUNDIDO PARA REDE DE ÁGUA, DN 1200 MM, JUNTA ELÁSTICA, INSTALADO EM LOCAL COM NÍVEL BAIXO DE INTERFERÊNCIAS (NÃO INCLUI FORNECIMENTO). AF_11/2017 | I38: M | J38: COEFICIENTE DE REPRESENTATIVIDADE | K38: 43.89 | L38: CAIXA REFERENCIAL
A39: ASSENTAMENTO DE TUBOS E PECAS | B39: ASTU | C39: FORNEC E/OU ASSENT DE TUBO DE ACO COM JUNTA SOLDADA | D39: 0046 | G39: 97173 | H39: ASSENTAMENTO DE TUBO DE AÇO CARBONO PARA REDE DE ÁGUA, DN 600 MM (24"), JUNTA SOLDADA, INSTALADO EM LOCAL COM NÍVEL ALTO DE INTERFERÊNCIAS (NÃO INCLUI FORNECIMENTO). AF_11/2017 | I39: M | J39: COEFICIENTE DE REPRESENTATIVIDADE | K39: 36.23 | L39: CAIXA REFERENCIAL
A40: ASSENTAMENTO DE TUBOS E PECAS | B40: ASTU | C40: FORNEC E/OU ASSENT DE TUBO DE ACO COM JUNTA SOLDADA | D40: 0046 | G40: 97174 | H40: ASSENTAMENTO DE TUBO DE AÇO CARBONO PARA REDE DE ÁGUA, DN 700 MM (28"), JUNTA SOLDADA, INSTALADO EM LOCAL COM NÍVEL ALTO DE INTERFERÊNCIAS (NÃO INCLUI FORNECIMENTO). AF_11/2017 | I40: M | J40: COEFICIENTE DE REPRESENTATIVIDADE | K40: 41.95 | L40: CAIXA REFERENCIAL
A41: ASSENTAMENTO DE TUBOS E PECAS | B41: ASTU | C41: FORNEC E/OU ASSENT DE TUBO DE ACO COM JUNTA SOLDADA | D41: 0046 | G41: 97175 | H41: ASSENTAMENTO DE TUBO DE AÇO CARBONO PARA REDE DE ÁGUA, DN 800 MM (32"), JUNTA SOLDADA, INSTALADO EM LOCAL COM NÍVEL ALTO DE INTERFERÊNCIAS (NÃO INCLUI FORNECIMENTO). AF_11/2017 | I41: M | J41: COEFICIENTE DE REPRESENTATIVIDADE | K41: 47.66 | L41: CAIXA REFERENCIAL
A42: ASSENTAMENTO DE TUBOS E PECAS | B42: ASTU | C42: FORNEC E/OU ASSENT DE TUBO DE ACO COM JUNTA SOLDADA | D42: 0046 | G42: 97176 | H42: ASSENTAMENTO DE TUBO DE AÇO CARBONO PARA REDE DE ÁGUA, DN 900 MM (36"), JUNTA SOLDADA, INSTALADO EM LOCAL COM NÍVEL ALTO DE INTERFERÊNCIAS (NÃO INCLUI FORNECIMENTO). AF_11/2017 | I42: M | J42: COEFICIENTE DE REPRESENTATIVIDADE | K42: 53.37 | L42: CAIXA REFERENCIAL
A43: ASSENTAMENTO DE TUBOS E PECAS | B43: ASTU | C43: FORNEC E/OU ASSENT DE TUBO DE ACO COM JUNTA SOLDADA | D43: 0046 | G43: 97177 | H43: ASSENTAMENTO DE TUBO DE AÇO CARBONO PARA REDE DE ÁGUA, DN 1000 MM (40") OU DN 1100 MM (44"), JUNTA SOLDADA, INSTALADO EM LOCAL COM NÍVEL ALTO DE INTERFERÊNCIAS (NÃO INCLUI FORNECIMENTO). AF_11/2017 | I43: M | J43: COEFICIENTE DE REPRESENTATIVIDADE | K43: 64.81 | L43: CAIXA REFERENCIAL
A44: ASSENTAMENTO DE TUBOS E PECAS | B44: ASTU | C44: FORNEC E/OU ASSENT DE TUBO DE ACO COM JUNTA SOLDADA | D44: 0046 | G44: 97178 | H44: ASSENTAMENTO DE TUBO DE AÇO CARBONO PARA REDE DE ÁGUA, DN 1200 MM (48") OU DN 1300 MM (52"), JUNTA SOLDADA, INSTALADO EM LOCAL COM NÍVEL ALTO DE INTERFERÊNCIAS (NÃO INCLUI FORNECIMENTO). AF_11/2017 | I44: M | J44: COEFICIENTE DE REPRESENTATIVIDADE | K44: 76.25 | L44: CAIXA REFERENCIAL
A45: ASSENTAMENTO DE TUBOS E PECAS | B45: ASTU | C45: FORNEC E/OU ASSENT DE TUBO DE ACO COM JUNTA SOLDADA | D45: 0046 | G45: 97179 | H45: ASSENTAMENTO DE TUBO DE AÇO CARBONO PARA REDE DE ÁGUA, DN 1400 MM (56'') OU DN 1500 MM (60"), JUNTA SOLDADA, INSTALADO EM LOCAL COM NÍVEL ALTO DE INTERFERÊNCIAS (NÃO INCLUI FORNECIMENTO). AF_11/2017 | I45: M | J45: COEFICIENTE DE REPRESENTATIVIDADE | K45: 87.65 | L45: CAIXA REFERENCIAL
A46: ASSENTAMENTO DE TUBOS E PECAS | B46: ASTU | C46: FORNEC E/OU ASSENT DE TUBO DE ACO COM JUNTA SOLDADA | D46: 0046 | G46: 97180 | H46: ASSENTAMENTO DE TUBO DE AÇO CARBONO PARA REDE DE ÁGUA, DN 1600 MM (64") OU DN 1700 MM (68"), JUNTA SOLDADA, INSTALADO EM LOCAL COM NÍVEL ALTO DE INTERFERÊNCIAS (NÃO INCLUI FORNECIMENTO). AF_11/2017 | I46: M | J46: COEFICIENTE DE REPRESENTATIVIDADE | K46: 99.1 | L46: CAIXA REFERENCIAL
A47: ASSENTAMENTO DE TUBOS E PECAS | B47: ASTU | C47: FORNEC E/OU ASSENT DE TUBO DE ACO COM JUNTA SOLDADA | D47: 0046 | G47: 97181 | H47: ASSENTAMENTO DE TUBO DE AÇO CARBONO PARA REDE DE ÁGUA, DN 1800 MM (72") OU DN 1900 MM (76"), JUNTA SOLDADA, INSTALADO EM LOCAL COM NÍVEL ALTO DE INTERFERÊNCIAS (NÃO INCLUI FORNECIMENTO). AF_11/2017 | I47: M | J47: COEFICIENTE DE REPRESENTATIVIDADE | K47: 115.2 | L47: CAIXA REFERENCIAL
A48: ASSENTAMENTO DE TUBOS E PECAS | B48: ASTU | C48: FORNEC E/OU ASSENT DE TUBO DE ACO COM JUNTA SOLDADA | D48: 0046 | G48: 97182 | H48: ASSENTAMENTO DE TUBO DE AÇO CARBONO PARA REDE DE ÁGUA, DN 2000 MM (80") OU DN 2100 MM (84"), JUNTA SOLDADA, INSTALADO EM LOCAL COM NÍVEL ALTO DE INTERFERÊNCIAS (NÃO INCLUI FORNECIMENTO). AF_11/2017 | I48: M | J48: COEFICIENTE DE REPRESENTATIVIDADE | K48: 127.14 | L48: CAIXA REFERENCIAL
A49: ASSENTAMENTO DE TUBOS E PECAS | B49: ASTU | C49: FORNEC E/OU ASSENT DE TUBO DE ACO COM JUNTA SOLDADA | D49: 0046 | G49: 97183 | H49: ASSENTAMENTO DE TUBO DE AÇO CARBONO PARA REDE DE ÁGUA, DN 600 MM (24"), JUNTA SOLDADA, INSTALADO EM LOCAL COM NÍVEL BAIXO DE INTERFERÊNCIAS (NÃO INCLUI FORNECIMENTO). AF_11/2017 | I49: M | J49: COEFICIENTE DE REPRESENTATIVIDADE | K49: 28.59 | L49: CAIXA REFERENCIAL
A50: ASSENTAMENTO DE TUBOS E PECAS | B50: ASTU | C50: FORNEC E/OU ASSENT DE TUBO DE ACO COM JUNTA SOLDADA | D50: 0046 | G50: 97184 | H50: ASSENTAMENTO DE TUBO DE AÇO CARBONO PARA REDE DE ÁGUA, DN 700 MM (28"), JUNTA SOLDADA, INSTALADO EM LOCAL COM NÍVEL BAIXO DE INTERFERÊNCIAS (NÃO INCLUI FORNECIMENTO). AF_11/2017 | I50: M | J50: COEFICIENTE DE REPRESENTATIVIDADE | K50: 33.15 | L50: CAIXA REFERENCIAL
A51: ASSENTAMENTO DE TUBOS E PECAS | B51: ASTU | C51: FORNEC E/OU ASSENT DE TUBO DE ACO COM JUNTA SOLDADA | D51: 0046 | G51: 97185 | H51: ASSENTAMENTO DE TUBO DE AÇO CARBONO PARA REDE DE ÁGUA, DN 800 MM (32"), JUNTA SOLDADA, INSTALADO EM LOCAL COM NÍVEL BAIXO DE INTERFERÊNCIAS (NÃO INCLUI FORNECIMENTO). AF_11/2017 | I51: M | J51: COEFICIENTE DE REPRESENTATIVIDADE | K51: 37.72 | L51: CAIXA REFERENCIAL
A52: ASSENTAMENTO DE TUBOS E PECAS | B52: ASTU | C52: FORNEC E/OU ASSENT DE TUBO DE ACO COM JUNTA SOLDADA | D52: 0046 | G52: 97186 | H52: ASSENTAMENTO DE TUBO DE AÇO CARBONO PARA REDE DE ÁGUA, DN 900 MM (36"), JUNTA SOLDADA, INSTALADO EM LOCAL COM NÍVEL BAIXO DE INTERFERÊNCIAS (NÃO INCLUI FORNECIMENTO). AF_11/2017 | I52: M | J52: COEFICIENTE DE REPRESENTATIVIDADE | K52: 42.3 | L52: CAIXA REFERENCIAL
A53: ASSENTAMENTO DE TUBOS E PECAS | B53: ASTU | C53: FORNEC E/OU ASSENT DE TUBO DE ACO COM JUNTA SOLDADA | D53: 0046 | G53: 97187 | H53: ASSENTAMENTO DE TUBO DE AÇO CARBONO PARA REDE DE ÁGUA, DN 1000 MM (40 ) OU DN 1100 MM (44 ), JUNTA SOLDADA, INSTALADO EM LOCAL COM NÍVEL BAIXO DE INTERFERÊNCIAS (NÃO INCLUI FORNECIMENTO). AF_11/2017 | I53: M | J53: COEFICIENTE DE REPRESENTATIVIDADE | K53: 51.44 | L53: CAIXA REFERENCIAL
A54: ASSENTAMENTO DE TUBOS E PECAS | B54: ASTU | C54: FORNEC E/OU ASSENT DE TUBO DE ACO COM JUNTA SOLDADA | D54: 0046 | G54: 97188 | H54: ASSENTAMENTO DE TUBO DE AÇO CARBONO PARA REDE DE ÁGUA, DN 1200 MM (48") OU DN 1300 MM (52"), JUNTA SOLDADA, INSTALADO EM LOCAL COM NÍVEL BAIXO DE INTERFERÊNCIAS (NÃO INCLUI FORNECIMENTO). AF_11/2017 | I54: M | J54: COEFICIENTE DE REPRESENTATIVIDADE | K54: 60.58 | L54: CAIXA REFERENCIAL
A55: ASSENTAMENTO DE TUBOS E PECAS | B55: ASTU | C55: FORNEC E/OU ASSENT DE TUBO DE ACO COM JUNTA SOLDADA | D55: 0046 | G55: 97189 | H55: ASSENTAMENTO DE TUBO DE AÇO CARBONO PARA REDE DE ÁGUA, DN 1400 MM (56'') OU DN 1500 MM (60"), JUNTA SOLDADA, INSTALADO EM LOCAL COM NÍVEL BAIXO DE INTERFERÊNCIAS (NÃO INCLUI FORNECIMENTO). AF_11/2017 | I55: M | J55: COEFICIENTE DE REPRESENTATIVIDADE | K55: 69.71 | L55: CAIXA REFERENCIAL
A56: ASSENTAMENTO DE TUBOS E PECAS | B56: ASTU | C56: FORNEC E/OU ASSENT DE TUBO DE ACO COM JUNTA SOLDADA | D56: 0046 | G56: 97190 | H56: ASSENTAMENTO DE TUBO DE AÇO CARBONO PARA REDE DE ÁGUA, DN 1600 MM (64") OU DN 1700 MM (68"), JUNTA SOLDADA, INSTALADO EM LOCAL COM NÍVEL BAIXO DE INTERFERÊNCIAS (NÃO INCLUI FORNECIMENTO). AF_11/2017 | I56: M | J56: COEFICIENTE DE REPRESENTATIVIDADE | K56: 78.86 | L56: CAIXA REFERENCIAL
A57: ASSENTAMENTO DE TUBOS E PECAS | B57: ASTU | C57: FORNEC E/OU ASSENT DE TUBO DE ACO COM JUNTA SOLDADA | D57: 0046 | G57: 97191 | H57: ASSENTAMENTO DE TUBO DE AÇO CARBONO PARA REDE DE ÁGUA, DN 1800 MM (72") OU DN 1900 MM (76"), JUNTA SOLDADA, INSTALADO EM LOCAL COM NÍVEL BAIXO DE INTERFERÊNCIAS (NÃO INCLUI FORNECIMENTO). AF_11/2017 | I57: M | J57: COEFICIENTE DE REPRESENTATIVIDADE | K57: 91.4 | L57: CAIXA REFERENCIAL
A58: ASSENTAMENTO DE TUBOS E PECAS | B58: ASTU | C58: FORNEC E/OU ASSENT DE TUBO DE ACO COM JUNTA SOLDADA | D58: 0046 | G58: 97192 | H58: ASSENTAMENTO DE TUBO DE AÇO CARBONO PARA REDE DE ÁGUA, DN 2000 MM (80") OU DN 2100 MM (84"), JUNTA SOLDADA, INSTALADO EM LOCAL COM NÍVEL BAIXO DE INTERFERÊNCIAS (NÃO INCLUI FORNECIMENTO). AF_11/2017 | I58: M | J58: COEFICIENTE DE REPRESENTATIVIDADE | K58: 100.91 | L58: CAIXA REFERENCIAL
A59: ASSENTAMENTO DE TUBOS E PECAS | B59: ASTU | C59: FORNEC E/OU ASSENT DE TUBO DE PVC COM JUNTA ELASTICA | D59: 0048 | G59: 90694 | H59: TUBO DE PVC PARA REDE COLETORA DE ESGOTO DE PAREDE MACIÇA, DN 100 MM, JUNTA ELÁSTICA - FORNECIMENTO E ASSENTAMENTO. AF_01/2021 | I59: M | J59: COEFICIENTE DE REPRESENTATIVIDADE | K59: 37.72 | L59: CAIXA REFERENCIAL
A60: ASSENTAMENTO DE TUBOS E PECAS | B60: ASTU | C60: FORNEC E/OU ASSENT DE TUBO DE PVC COM JUNTA ELASTICA | D60: 0048 | G60: 90695 | H60: TUBO DE PVC PARA REDE COLETORA DE ESGOTO DE PAREDE MACIÇA, DN 150 MM, JUNTA ELÁSTICA - FORNECIMENTO E ASSENTAMENTO. AF_01/2021 | I60: M | J60: COEFICIENTE DE REPRESENTATIVIDADE | K60: 71.36 | L60: CAIXA REFERENCIAL
A61: ASSENTAMENTO DE TUBOS E PECAS | B61: ASTU | C61: FORNEC E/OU ASSENT DE TUBO DE PVC COM JUNTA ELASTICA | D61: 0048 | G61: 90696 | H61: TUBO DE PVC PARA REDE COLETORA DE ESGOTO DE PAREDE MACIÇA, DN 200 MM, JUNTA ELÁSTICA - FORNECIMENTO E ASSENTAMENTO. AF_01/2021 | I61: M | J61: COEFICIENTE DE REPRESENTATIVIDADE | K61: 118.93 | L61: CAIXA REFERENCIAL
A62: ASSENTAMENTO DE TUBOS E PECAS | B62: ASTU | C62: FORNEC E/OU ASSENT DE TUBO DE PVC COM JUNTA ELASTICA | D62: 0048 | G62: 90697 | H62: TUBO DE PVC PARA REDE COLETORA DE ESGOTO DE PAREDE MACIÇA, DN 250 MM, JUNTA ELÁSTICA - FORNECIMENTO E ASSENTAMENTO. AF_01/2021 | I62: M | J62: COEFICIENTE DE REPRESENTATIVIDADE | K62: 184.27 | L62: CAIXA REFERENCIAL
A63: ASSENTAMENTO DE TUBOS E PECAS | B63: ASTU | C63: FORNEC E/OU ASSENT DE TUBO DE PVC COM JUNTA ELASTICA | D63: 0048 | G63: 90698 | H63: TUBO DE PVC PARA REDE COLETORA DE ESGOTO DE PAREDE MACIÇA, DN 300 MM, JUNTA ELÁSTICA, FORNECIMENTO E ASSENTAMENTO. AF_01/2021 | I63: M | J63: COEFICIENTE DE REPRESENTATIVIDADE | K63: 281.36 | L63: CAIXA REFERENCIAL
A64: ASSENTAMENTO DE TUBOS E PECAS | B64: ASTU | C64: FORNEC E/OU ASSENT DE TUBO DE PVC COM JUNTA ELASTICA | D64: 0048 | G64: 90699 | H64: TUBO DE PVC PARA REDE COLETORA DE ESGOTO DE PAREDE MACIÇA, DN 350 MM, JUNTA ELÁSTICA - FORNECIMENTO E ASSENTAMENTO. AF_01/2021 | I64: M | J64: COEFICIENTE DE REPRESENTATIVIDADE | K64: 395.77 | L64: CAIXA REFERENCIAL
A65: ASSENTAMENTO DE TUBOS E PECAS | B65: ASTU | C65: FORNEC E/OU ASSENT DE TUBO DE PVC COM JUNTA ELASTICA | D65: 0048 | G65: 90700 | H65: TUBO DE PVC PARA REDE COLETORA DE ESGOTO DE PAREDE MACIÇA, DN 400 MM, JUNTA ELÁSTICA FORNECIMENTO E ASSENTAMENTO. AF_01/2021 | I65: M | J65: COEFICIENTE DE REPRESENTATIVIDADE | K65: 463.2 | L65: CAIXA REFERENCIAL
A66: ASSENTAMENTO DE TUBOS E PECAS | B66: ASTU | C66: FORNEC E/OU ASSENT DE TUBO DE PVC COM JUNTA ELASTICA | D66: 0048 | G66: 90701 | H66: TUBO DE PVC CORRUGADO DE DUPLA PAREDE PARA REDE COLETORA DE ESGOTO, DN 150 MM, JUNTA ELÁSTICA - FORNECIMENTO E ASSENTAMENTO. AF_01/2021 | I66: M | J66: COEFICIENTE DE REPRESENTATIVIDADE | K66: 57.18 | L66: CAIXA REFERENCIAL
A67: ASSENTAMENTO DE TUBOS E PECAS | B67: ASTU | C67: FORNEC E/OU ASSENT DE TUBO DE PVC COM JUNTA ELASTICA | D67: 0048 | G67: 90702 | H67: TUBO DE PVC CORRUGADO DE DUPLA PAREDE PARA REDE COLETORA DE ESGOTO, DN 200 MM, JUNTA ELÁSTICA - FORNECIMENTO E ASSENTAMENTO. AF_01/2021 | I67: M | J67: COEFICIENTE DE REPRESENTATIVIDADE | K67: 94.22 | L67: CAIXA REFERENCIAL
A68: ASSENTAMENTO DE TUBOS E PECAS | B68: ASTU | C68: FORNEC E/OU ASSENT DE TUBO DE PVC COM JUNTA ELASTICA | D68: 0048 | G68: 90703 | H68: TUBO DE PVC CORRUGADO DE DUPLA PAREDE PARA REDE COLETORA DE ESGOTO, DN 250 MM, JUNTA ELÁSTICA - FORNECIMENTO E ASSENTAMENTO. AF_01/2021 | I68: M | J68: COEFICIENTE DE REPRESENTATIVIDADE | K68: 148.65 | L68: CAIXA REFERENCIAL
A69: ASSENTAMENTO DE TUBOS E PECAS | B69: ASTU | C69: FORNEC E/OU ASSENT DE TUBO DE PVC COM JUNTA ELASTICA | D69: 0048 | G69: 90704 | H69: TUBO DE PVC CORRUGADO DE DUPLA PAREDE PARA REDE COLETORA DE ESGOTO, DN 300 MM, JUNTA ELÁSTICA - FORNECIMENTO E ASSENTAMENTO. AF_01/2021 | I69: M | J69: COEFICIENTE DE REPRESENTATIVIDADE | K69: 223.36 | L69: CAIXA REFERENCIAL
A70: ASSENTAMENTO DE TUBOS E PECAS | B70: ASTU | C70: FORNEC E/OU ASSENT DE TUBO DE PVC COM JUNTA ELASTICA | D70: 0048 | G70: 90705 | H70: TUBO DE PVC CORRUGADO DE DUPLA PAREDE PARA REDE COLETORA DE ESGOTO, DN 350 MM, JUNTA ELÁSTICA - FORNECIMENTO E ASSENTAMENTO. AF_01/2021 | I70: M | J70: COEFICIENTE DE REPRESENTATIVIDADE | K70: 287.1 | L70: CAIXA REFERENCIAL
A71: ASSENTAMENTO DE TUBOS E PECAS | B71: ASTU | C71: FORNEC E/OU ASSENT DE TUBO DE PVC COM JUNTA ELASTICA | D71: 0048 | G71: 90706 | H71: TUBO DE PVC CORRUGADO DE DUPLA PAREDE PARA REDE COLETORA DE ESGOTO, DN 400 MM, JUNTA ELÁSTICA - FORNECIMENTO E ASSENTAMENTO. AF_01/2021 | I71: M | J71: COEFICIENTE DE REPRESENTATIVIDADE | K71: 381.88 | L71: CAIXA REFERENCIAL
A72: ASSENTAMENTO DE TUBOS E PECAS | B72: ASTU | C72: FORNEC E/OU ASSENT DE TUBO DE PVC COM JUNTA ELASTICA | D72: 0048 | G72: 90708 | H72: TUBO DE PEAD CORRUGADO DE DUPLA PAREDE PARA REDE COLETORA DE ESGOTO, DN 600 MM, JUNTA ELÁSTICA INTEGRADA - FORNECIMENTO E ASSENTAMENTO. AF_01/2021 | I72: M | J72: COEFICIENTE DE REPRESENTATIVIDADE | K72: 1783.84 | L72: CAIXA REFERENCIAL
A73: ASSENTAMENTO DE TUBOS E PECAS | B73: ASTU | C73: FORNEC E/OU ASSENT DE TUBO DE PVC COM JUNTA ELASTICA | D73: 0048 | G73: 90724 | H73: JUNTA ARGAMASSADA ENTRE TUBO DN 100 MM E O POÇO DE VISITA/ CAIXA DE CONCRETO OU ALVENARIA EM REDES DE ESGOTO. AF_01/2021 | I73: UN | J73: COEFICIENTE DE REPRESENTATIVIDADE | K73: 22.88 | L73: CAIXA REFERENCIAL
A74: ASSENTAMENTO DE TUBOS E PECAS | B74: ASTU | C74: FORNEC E/OU ASSENT DE TUBO DE PVC COM JUNTA ELASTICA | D74: 0048 | G74: 90725 | H74: JUNTA ARGAMASSADA ENTRE TUBO DN 150 MM E O POÇO DE VISITA/ CAIXA DE CONCRETO OU ALVENARIA EM REDES DE ESGOTO. AF_01/2021 | I74: UN | J74: COEFICIENTE DE REPRESENTATIVIDADE | K74: 28.15 | L74: CAIXA REFERENCIAL
A75: ASSENTAMENTO DE TUBOS E PECAS | B75: ASTU | C75: FORNEC E/OU ASSENT DE TUBO DE PVC COM JUNTA ELASTICA | D75: 0048 | G75: 90726 | H75: JUNTA ARGAMASSADA ENTRE TUBO DN 200 MM E O POÇO/ CAIXA DE CONCRETO OU ALVENARIA EM REDES DE ESGOTO. AF_01/2021 | I75: UN | J75: COEFICIENTE DE REPRESENTATIVIDADE | K75: 33.52 | L75: CAIXA REFERENCIAL
A76: ASSENTAMENTO DE TUBOS E PECAS | B76: ASTU | C76: FORNEC E/OU ASSENT DE TUBO DE PVC COM JUNTA ELASTICA | D76: 0048 | G76: 90727 | H76: JUNTA ARGAMASSADA ENTRE TUBO DN 250 MM E O POÇO DE VISITA/ CAIXA DE CONCRETO OU ALVENARIA EM REDES DE ESGOTO. AF_01/2021 | I76: UN | J76: COEFICIENTE DE REPRESENTATIVIDADE | K76: 38.79 | L76: CAIXA REFERENCIAL
A77: ASSENTAMENTO DE TUBOS E PECAS | B77: ASTU | C77: FORNEC E/OU ASSENT DE TUBO DE PVC COM JUNTA ELASTICA | D77: 0048 | G77: 90728 | H77: JUNTA ARGAMASSADA ENTRE TUBO DN 300 MM E O POÇO DE VISITA/ CAIXA DE CONCRETO OU ALVENARIA EM REDES DE ESGOTO. AF_01/2021 | I77: UN | J77: COEFICIENTE DE REPRESENTATIVIDADE | K77: 44.07 | L77: CAIXA REFERENCIAL
A78: ASSENTAMENTO DE TUBOS E PECAS | B78: ASTU | C78: FORNEC E/OU ASSENT DE TUBO DE PVC COM JUNTA ELASTICA | D78: 0048 | G78: 90729 | H78: JUNTA ARGAMASSADA ENTRE TUBO DN 350 MM E O POÇO DE VISITA/ CAIXA DE CONCRETO OU ALVENARIA EM REDES DE ESGOTO. AF_01/2021 | I78: UN | J78: COEFICIENTE DE REPRESENTATIVIDADE | K78: 49.36 | L78: CAIXA REFERENCIAL
A79: ASSENTAMENTO DE TUBOS E PECAS | B79: ASTU | C79: FORNEC E/OU ASSENT DE TUBO DE PVC COM JUNTA ELASTICA | D79: 0048 | G79: 90730 | H79: JUNTA ARGAMASSADA ENTRE TUBO DN 400 MM E O POÇO DE VISITA/ CAIXA DE CONCRETO OU ALVENARIA EM REDES DE ESGOTO. AF_01/2021 | I79: UN | J79: COEFICIENTE DE REPRESENTATIVIDADE | K79: 54.64 | L79: CAIXA REFERENCIAL
A80: ASSENTAMENTO DE TUBOS E PECAS | B80: ASTU | C80: FORNEC E/OU ASSENT DE TUBO DE PVC COM JUNTA ELASTICA | D80: 0048 | G80: 90731 | H80: JUNTA ARGAMASSADA ENTRE TUBO DN 450 MM E O POÇO DE VISITA/ CAIXA DE CONCRETO OU ALVENARIA EM REDES DE ESGOTO. AF_01/2021 | I80: UN | J80: COEFICIENTE DE REPRESENTATIVIDADE | K80: 59.93 | L80: CAIXA REFERENCIAL
A81: ASSENTAMENTO DE TUBOS E PECAS | B81: ASTU | C81: FORNEC E/OU ASSENT DE TUBO DE PVC COM JUNTA ELASTICA | D81: 0048 | G81: 90732 | H81: JUNTA ARGAMASSADA ENTRE TUBO DN 600 MM E O POÇO DE VISITA/ CAIXA DE CONCRETO OU ALVENARIA EM REDES DE ESGOTO. AF_01/2021 | I81: UN | J81: COEFICIENTE DE REPRESENTATIVIDADE | K81: 75.78 | L81: CAIXA REFERENCIAL
A82: ASSENTAMENTO DE TUBOS E PECAS | B82: ASTU | C82: FORNEC E/OU ASSENT DE TUBO DE PVC COM JUNTA ELASTICA | D82: 0048 | G82: 90733 | H82: ASSENTAMENTO DE TUBO DE PVC PARA REDE COLETORA DE ESGOTO DE PAREDE MACIÇA, DN 100 MM, JUNTA ELÁSTICA (NÃO INCLUI FORNECIMENTO). AF_01/2021 | I82: M | J82: COEFICIENTE DE REPRESENTATIVIDADE | K82: 3.21 | L82: CAIXA REFERENCIAL
A83: ASSENTAMENTO DE TUBOS E PECAS | B83: ASTU | C83: FORNEC E/OU ASSENT DE TUBO DE PVC COM JUNTA ELASTICA | D83: 0048 | G83: 90734 | H83: ASSENTAMENTO DE TUBO DE PVC PARA REDE COLETORA DE ESGOTO DE PAREDE MACIÇA, DN 150 MM, JUNTA ELÁSTICA, (NÃO INCLUI FORNECIMENTO). AF_01/2021 | I83: M | J83: COEFICIENTE DE REPRESENTATIVIDADE | K83: 3.8 | L83: CAIXA REFERENCIAL
A84: ASSENTAMENTO DE TUBOS E PECAS | B84: ASTU | C84: FORNEC E/OU ASSENT DE TUBO DE PVC COM JUNTA ELASTICA | D84: 0048 | G84: 90735 | H84: ASSENTAMENTO DE TUBO DE PVC PARA REDE COLETORA DE ESGOTO DE PAREDE MACIÇA, DN 200 MM, JUNTA ELÁSTICA (NÃO INCLUI FORNECIMENTO). AF_01/2021 | I84: M | J84: COEFICIENTE DE REPRESENTATIVIDADE | K84: 4.39 | L84: CAIXA REFERENCIAL
A85: ASSENTAMENTO DE TUBOS E PECAS | B85: ASTU | C85: FORNEC E/OU ASSENT DE TUBO DE PVC COM JUNTA ELASTICA | D85: 0048 | G85: 90736 | H85: ASSENTAMENTO DE TUBO DE PVC PARA REDE COLETORA DE ESGOTO DE PAREDE MACIÇA, DN 250 MM, JUNTA ELÁSTICA (NÃO INCLUI FORNECIMENTO). AF_01/2021 | I85: M | J85: COEFICIENTE DE REPRESENTATIVIDADE | K85: 4.99 | L85: CAIXA REFERENCIAL
A86: ASSENTAMENTO DE TUBOS E PECAS | B86: ASTU | C86: FORNEC E/OU ASSENT DE TUBO DE PVC COM JUNTA ELASTICA | D86: 0048 | G86: 90737 | H86: ASSENTAMENTO DE TUBO DE PVC PARA REDE COLETORA DE ESGOTO DE PAREDE MACIÇA, DN 300 MM, JUNTA ELÁSTICA (NÃO INCLUI FORNECIMENTO). AF_01/2021 | I86: M | J86: COEFICIENTE DE REPRESENTATIVIDADE | K86: 5.58 | L86: CAIXA REFERENCIAL
A87: ASSENTAMENTO DE TUBOS E PECAS | B87: ASTU | C87: FORNEC E/OU ASSENT DE TUBO DE PVC COM JUNTA ELASTICA | D87: 0048 | G87: 90738 | H87: ASSENTAMENTO DE TUBO DE PVC PARA REDE COLETORA DE ESGOTO DE PAREDE MACIÇA, DN 350 MM, JUNTA ELÁSTICA (NÃO INCLUI FORNECIMENTO). AF_01/2021 | I87: M | J87: COEFICIENTE DE REPRESENTATIVIDADE | K87: 6.18 | L87: CAIXA REFERENCIAL
A88: ASSENTAMENTO DE TUBOS E PECAS | B88: ASTU | C88: FORNEC E/OU ASSENT DE TUBO DE PVC COM JUNTA ELASTICA | D88: 0048 | G88: 90739 | H88: ASSENTAMENTO DE TUBO DE PVC PARA REDE COLETORA DE ESGOTO DE PAREDE MACIÇA, DN 400 MM, JUNTA ELÁSTICA (NÃO INCLUI FORNECIMENTO). AF_01/2021 | I88: M | J88: COEFICIENTE DE REPRESENTATIVIDADE | K88: 9.48 | L88: CAIXA REFERENCIAL
A89: ASSENTAMENTO DE TUBOS E PECAS | B89: ASTU | C89: FORNEC E/OU ASSENT DE TUBO DE PVC COM JUNTA ELASTICA | D89: 0048 | G89: 90740 | H89: ASSENTAMENTO DE TUBO DE PVC CORRUGADO DE DUPLA PAREDE PARA REDE COLETORA DE ESGOTO, DN 150 MM, JUNTA ELÁSTICA (NÃO INCLUI FORNECIMENTO). AF_01/2021 | I89: M | J89: COEFICIENTE DE REPRESENTATIVIDADE | K89: 4.24 | L89: CAIXA REFERENCIAL
A90: ASSENTAMENTO DE TUBOS E PECAS | B90: ASTU | C90: FORNEC E/OU ASSENT DE TUBO DE PVC COM JUNTA ELASTICA | D90: 0048 | G90: 90741 | H90: ASSENTAMENTO DE TUBO DE PVC CORRUGADO DE DUPLA PAREDE PARA REDE COLETORA DE ESGOTO, DN 200 MM, JUNTA ELÁSTICA (NÃO INCLUI FORNECIMENTO). AF_01/2021 | I90: M | J90: COEFICIENTE DE REPRESENTATIVIDADE | K90: 4.83 | L90: CAIXA REFERENCIAL
A91: ASSENTAMENTO DE TUBOS E PECAS | B91: ASTU | C91: FORNEC E/OU ASSENT DE TUBO DE PVC COM JUNTA ELASTICA | D91: 0048 | G91: 90742 | H91: ASSENTAMENTO DE TUBO DE PVC CORRUGADO DE DUPLA PAREDE PARA REDE COLETORA DE ESGOTO, DN 250 MM, JUNTA ELÁSTICA (NÃO INCLUI FORNECIMENTO). AF_01/2021 | I91: M | J91: COEFICIENTE DE REPRESENTATIVIDADE | K91: 5.42 | L91: CAIXA REFERENCIAL
A92: ASSENTAMENTO DE TUBOS E PECAS | B92: ASTU | C92: FORNEC E/OU ASSENT DE TUBO DE PVC COM JUNTA ELASTICA | D92: 0048 | G92: 90743 | H92: ASSENTAMENTO DE TUBO DE PVC CORRUGADO DE DUPLA PAREDE PARA REDE COLETORA DE ESGOTO, DN 300 MM, JUNTA ELÁSTICA (NÃO INCLUI FORNECIMENTO). AF_01/2021 | I92: M | J92: COEFICIENTE DE REPRESENTATIVIDADE | K92: 6.01 | L92: CAIXA REFERENCIAL
A93: ASSENTAMENTO DE TUBOS E PECAS | B93: ASTU | C93: FORNEC E/OU ASSENT DE TUBO DE PVC COM JUNTA ELASTICA | D93: 0048 | G93: 90744 | H93: ASSENTAMENTO DE TUBO DE PVC CORRUGADO DE DUPLA PAREDE PARA REDE COLETORA DE ESGOTO, DN 350 MM, JUNTA ELÁSTICA (NÃO INCLUI FORNECIMENTO). AF_01/2021 | I93: M | J93: COEFICIENTE DE REPRESENTATIVIDADE | K93: 6.62 | L93: CAIXA REFERENCIAL
A94: ASSENTAMENTO DE TUBOS E PECAS | B94: ASTU | C94: FORNEC E/OU ASSENT DE TUBO DE PVC COM JUNTA ELASTICA | D94: 0048 | G94: 90745 | H94: ASSENTAMENTO DE TUBO DE PVC CORRUGADO DE DUPLA PAREDE PARA REDE COLETORA DE ESGOTO, DN 400 MM, JUNTA ELÁSTICA (NÃO INCLUI FORNECIMENTO). AF_01/2021 | I94: M | J94: COEFICIENTE DE REPRESENTATIVIDADE | K94: 10.57 | L94: CAIXA REFERENCIAL
A95: ASSENTAMENTO DE TUBOS E PECAS | B95: ASTU | C95: FORNEC E/OU ASSENT DE TUBO DE PVC COM JUNTA ELASTICA | D95: 0048 | G95: 90746 | H95: ASSENTAMENTO DE TUBO DE PEAD CORRUGADO DE DUPLA PAREDE PARA REDE COLETORA DE ESGOTO, DN 450 MM, JUNTA ELÁSTICA INTEGRADA (NÃO INCLUI FORNECIMENTO). AF_01/2021 | I95: M | J95: COEFICIENTE DE REPRESENTATIVIDADE | K95: 3.47 | L95: CAIXA REFERENCIAL
A96: ASSENTAMENTO DE TUBOS E PECAS | B96: ASTU | C96: FORNEC E/OU ASSENT DE TUBO DE PVC COM JUNTA ELASTICA | D96: 0048 | G96: 90747 | H96: ASSENTAMENTO DE TUBO DE PEAD CORRUGADO DE DUPLA PAREDE PARA REDE COLETORA DE ESGOTO, DN 600 MM, JUNTA ELÁSTICA INTEGRADA (NÃO INCLUI FORNECIMENTO). AF_01/2021 | I96: M | J96: COEFICIENTE DE REPRESENTATIVIDADE | K96: 17.25 | L96: CAIXA REFERENCIAL
A97: ASSENTAMENTO DE TUBOS E PECAS | B97: ASTU | C97: FORNEC E/OU ASSENT DE TUBO DE PVC COM JUNTA ELASTICA | D97: 0048 | G97: 94869 | H97: TUBO DE PEAD CORRUGADO DE DUPLA PAREDE PARA REDE COLETORA DE ESGOTO, DN 250 MM, JUNTA ELÁSTICA INTEGRADA - FORNECIMENTO E ASSENTAMENTO. AF_01/2021 | I97: M | J97: COEFICIENTE DE REPRESENTATIVIDADE | K97: 316.22 | L97: CAIXA REFERENCIAL
A98: ASSENTAMENTO DE TUBOS E PECAS | B98: ASTU | C98: FORNEC E/OU ASSENT DE TUBO DE PVC COM JUNTA ELASTICA | D98: 0048 | G98: 94870 | H98: ASSENTAMENTO DE TUBO DE PEAD CORRUGADO DE DUPLA PAREDE PARA REDE COLETORA DE ESGOTO, DN 250 MM, JUNTA ELÁSTICA INTEGRADA (NÃO INCLUI FORNECIMENTO). AF_01/2021 | I98: M | J98: COEFICIENTE DE REPRESENTATIVIDADE | K98: 1.74 | L98: CAIXA REFERENCIAL
A99: ASSENTAMENTO DE TUBOS E PECAS | B99: ASTU | C99: FORNEC E/OU ASSENT DE TUBO DE PVC COM JUNTA ELASTICA | D99: 0048 | G99: 94871 | H99: TUBO DE PEAD CORRUGADO DE DUPLA PAREDE PARA REDE COLETORA DE ESGOTO, DN 300 MM, JUNTA ELÁSTICA INTEGRADA - FORNECIMENTO E ASSENTAMENTO. AF_01/2021 | I99: M | J99: COEFICIENTE DE REPRESENTATIVIDADE | K99: 495.17 | L99: CAIXA REFERENCIAL
A100: ASSENTAMENTO DE TUBOS E PECAS | B100: ASTU | C100: FORNEC E/OU ASSENT DE TUBO DE PVC COM JUNTA ELASTICA | D100: 0048 | G100: 94872 | H100: ASSENTAMENTO DE TUBO DE PEAD CORRUGADO DE DUPLA PAREDE PARA REDE COLETORA DE ESGOTO, DN 300 MM, JUNTA ELÁSTICA INTEGRADA (NÃO INCLUI FORNECIMENTO). AF_01/2021 | I100: M | J100: COEFICIENTE DE REPRESENTATIVIDADE | K100: 2.47 | L100: CAIXA REFERENCIAL
A101: ASSENTAMENTO DE TUBOS E PECAS | B101: ASTU | C101: FORNEC E/OU ASSENT DE TUBO DE PVC COM JUNTA ELASTICA | D101: 0048 | G101: 94875 | H101: TUBO DE PEAD CORRUGADO DE DUPLA PAREDE PARA REDE COLETORA DE ESGOTO, DN 800 MM, JUNTA ELÁSTICA INTEGRADA - FORNECIMENTO E ASSENTAMENTO. AF_01/2021 | I101: M | J101: COEFICIENTE DE REPRESENTATIVIDADE | K101: 2899.33 | L101: CAIXA REFERENCIAL
A102: ASSENTAMENTO DE TUBOS E PECAS | B102: ASTU | C102: FORNEC E/OU ASSENT DE TUBO DE PVC COM JUNTA ELASTICA | D102: 0048 | G102: 94876 | H102: ASSENTAMENTO DE TUBO DE PEAD CORRUGADO DE DUPLA PAREDE PARA REDE COLETORA DE ESGOTO, DN 800 MM, JUNTA ELÁSTICA INTEGRADA (NÃO INCLUI FORNECIMENTO). AF_01/2021 | I102: M | J102: COEFICIENTE DE REPRESENTATIVIDADE | K102: 28.59 | L102: CAIXA REFERENCIAL
A103: ASSENTAMENTO DE TUBOS E PECAS | B103: ASTU | C103: FORNEC E/OU ASSENT DE TUBO DE PVC COM JUNTA ELASTICA | D103: 0048 | G103: 94878 | H103: ASSENTAMENTO DE TUBO DE PEAD CORRUGADO DE DUPLA PAREDE PARA REDE COLETORA DE ESGOTO, DN 900 MM, JUNTA ELÁSTICA INTEGRADA (NÃO INCLUI FORNECIMENTO). AF_01/2021 | I103: M | J103: COEFICIENTE DE REPRESENTATIVIDADE | K103: 33.14 | L103: CAIXA REFERENCIAL
A104: ASSENTAMENTO DE TUBOS E PECAS | B104: ASTU | C104: FORNEC E/OU ASSENT DE TUBO DE PVC COM JUNTA ELASTICA | D104: 0048 | G104: 94879 | H104: TUBO DE PEAD CORRUGADO DE DUPLA PAREDE PARA REDE COLETORA DE ESGOTO, DN 1000 MM, JUNTA ELÁSTICA INTEGRADA - FORNECIMENTO E ASSENTAMENTO. AF_01/2021 | I104: M | J104: COEFICIENTE DE REPRESENTATIVIDADE | K104: 4464.79 | L104: CAIXA REFERENCIAL
A105: ASSENTAMENTO DE TUBOS E PECAS | B105: ASTU | C105: FORNEC E/OU ASSENT DE TUBO DE PVC COM JUNTA ELASTICA | D105: 0048 | G105: 94880 | H105: ASSENTAMENTO DE TUBO DE PEAD CORRUGADO DE DUPLA PAREDE PARA REDE COLETORA DE ESGOTO, DN 1000 MM, JUNTA ELÁSTICA INTEGRADA (NÃO INCLUI FORNECIMENTO). AF_01/2021 | I105: M | J105: COEFICIENTE DE REPRESENTATIVIDADE | K105: 42.48 | L105: CAIXA REFERENCIAL
A106: ASSENTAMENTO DE TUBOS E PECAS | B106: ASTU | C106: FORNEC E/OU ASSENT DE TUBO DE PVC COM JUNTA ELASTICA | D106: 0048 | G106: 94881 | H106: TUBO DE PEAD CORRUGADO DE DUPLA PAREDE PARA REDE COLETORA DE ESGOTO, DN 1200 MM, JUNTA ELÁSTICA INTEGRADA - FORNECIMENTO E ASSENTAMENTO. AF_01/2021 | I106: M | J106: COEFICIENTE DE REPRESENTATIVIDADE | K106: 6161.38 | L106: CAIXA REFERENCIAL
A107: ASSENTAMENTO DE TUBOS E PECAS | B107: ASTU | C107: FORNEC E/OU ASSENT DE TUBO DE PVC COM JUNTA ELASTICA | D107: 0048 | G107: 94882 | H107: ASSENTAMENTO DE TUBO DE PEAD CORRUGADO DE DUPLA PAREDE PARA REDE COLETORA DE ESGOTO, DN 1200 MM, JUNTA ELÁSTICA INTEGRADA (NÃO INCLUI FORNECIMENTO). AF_01/2021 | I107: M | J107: COEFICIENTE DE REPRESENTATIVIDADE | K107: 49.47 | L107: CAIXA REFERENCIAL
A108: ASSENTAMENTO DE TUBOS E PECAS | B108: ASTU | C108: FORNEC E/OU ASSENT DE TUBO DE PVC COM JUNTA ELASTICA | D108: 0048 | G108: 94884 | H108: ASSENTAMENTO DE TUBO DE PEAD CORRUGADO DE DUPLA PAREDE PARA REDE COLETORA DE ESGOTO, DN 1500 MM, JUNTA ELÁSTICA INTEGRADA (NÃO INCLUI FORNECIMENTO). AF_01/2021 | I108: M | J108: COEFICIENTE DE REPRESENTATIVIDADE | K108: 63.66 | L108: CAIXA REFERENCIAL
A109: ASSENTAMENTO DE TUBOS E PECAS | B109: ASTU | C109: FORNEC E/OU ASSENT DE TUBO DE PVC COM JUNTA ELASTICA | D109: 0048 | G109: 97121 | H109: ASSENTAMENTO DE TUBO DE PVC PBA PARA REDE DE ÁGUA, DN 50 MM, JUNTA ELÁSTICA INTEGRADA, INSTALADO EM LOCAL COM NÍVEL ALTO DE INTERFERÊNCIAS (NÃO INCLUI FORNECIMENTO). AF_11/2017 | I109: M | J109: COEFICIENTE DE REPRESENTATIVIDADE | K109: 1.91 | L109: CAIXA REFERENCIAL
A110: ASSENTAMENTO DE TUBOS E PECAS | B110: ASTU | C110: FORNEC E/OU ASSENT DE TUBO DE PVC COM JUNTA ELASTICA | D110: 0048 | G110: 97122 | H110: ASSENTAMENTO DE TUBO DE PVC PBA PARA REDE DE ÁGUA, DN 75 MM, JUNTA ELÁSTICA INTEGRADA, INSTALADO EM LOCAL COM NÍVEL ALTO DE INTERFERÊNCIAS (NÃO INCLUI FORNECIMENTO). AF_11/2017 | I110: M | J110: COEFICIENTE DE REPRESENTATIVIDADE | K110: 2.65 | L110: CAIXA REFERENCIAL
A111: ASSENTAMENTO DE TUBOS E PECAS | B111: ASTU | C111: FORNEC E/OU ASSENT DE TUBO DE PVC COM JUNTA ELASTICA | D111: 0048 | G111: 97123 | H111: ASSENTAMENTO DE TUBO DE PVC PBA PARA REDE DE ÁGUA, DN 100 MM, JUNTA ELÁSTICA INTEGRADA, INSTALADO EM LOCAL COM NÍVEL ALTO DE INTERFERÊNCIAS (NÃO INCLUI FORNECIMENTO). AF_11/2017 | I111: M | J111: COEFICIENTE DE REPRESENTATIVIDADE | K111: 3.36 | L111: CAIXA REFERENCIAL
A112: ASSENTAMENTO DE TUBOS E PECAS | B112: ASTU | C112: FORNEC E/OU ASSENT DE TUBO DE PVC COM JUNTA ELASTICA | D112: 0048 | G112: 97124 | H112: ASSENTAMENTO DE TUBO DE PVC PBA PARA REDE DE ÁGUA, DN 50 MM, JUNTA ELÁSTICA INTEGRADA, INSTALADO EM LOCAL COM NÍVEL BAIXO DE INTERFERÊNCIAS (NÃO INCLUI FORNECIMENTO). AF_11/2017 | I112: M | J112: COEFICIENTE DE REPRESENTATIVIDADE | K112: 0.84 | L112: CAIXA REFERENCIAL
A113: ASSENTAMENTO DE TUBOS E PECAS | B113: ASTU | C113: FORNEC E/OU ASSENT DE TUBO DE PVC COM JUNTA ELASTICA | D113: 0048 | G113: 97125 | H113: ASSENTAMENTO DE TUBO DE PVC PBA PARA REDE DE ÁGUA, DN 75 MM, JUNTA ELÁSTICA INTEGRADA, INSTALADO EM LOCAL COM NÍVEL BAIXO DE INTERFERÊNCIAS (NÃO INCLUI FORNECIMENTO). AF_11/2017 | I113: M | J113: COEFICIENTE DE REPRESENTATIVIDADE | K113: 1.19 | L113: CAIXA REFERENCIAL
A114: ASSENTAMENTO DE TUBOS E PECAS | B114: ASTU | C114: FORNEC E/OU ASSENT DE TUBO DE PVC COM JUNTA ELASTICA | D114: 0048 | G114: 97126 | H114: ASSENTAMENTO DE TUBO DE PVC PBA PARA REDE DE ÁGUA, DN 100 MM, JUNTA ELÁSTICA INTEGRADA, INSTALADO EM LOCAL COM NÍVEL BAIXO DE INTERFERÊNCIAS (NÃO INCLUI FORNECIMENTO). AF_11/2017 | I114: M | J114: COEFICIENTE DE REPRESENTATIVIDADE | K114: 1.51 | L114: CAIXA REFERENCIAL
A115: ASSENTAMENTO DE TUBOS E PECAS | B115: ASTU | C115: FORNEC E/OU ASSENT DE TUBO DE PVC COM JUNTA ELASTICA | D115: 0048 | G115: 102264 | H115: TUBO DE PVC BRANCO PARA REDE COLETORA DE ESGOTO CONDOMINIAL DE PAREDE MACIÇA, DN 100 MM, JUNTA ELÁSTICA - FORNECIMENTO E ASSENTAMENTO. AF_01/2021 | I115: M | J115: COEFICIENTE DE REPRESENTATIVIDADE | K115: 16.9 | L115: CAIXA REFERENCIAL
A116: ASSENTAMENTO DE TUBOS E PECAS | B116: ASTU | C116: FORNEC E/OU ASSENT DE TUBO DE PVC COM JUNTA ELASTICA | D116: 0048 | G116: 102265 | H116: JUNTA ARGAMASSADA ENTRE TUBO DN 800 MM E O POÇO DE VISITA/ CAIXA DE CONCRETO OU ALVENARIA EM REDES DE ESGOTO. AF_01/2021 | I116: UN | J116: COEFICIENTE DE REPRESENTATIVIDADE | K116: 96.9 | L116: CAIXA REFERENCIAL
A117: ASSENTAMENTO DE TUBOS E PECAS | B117: ASTU | C117: FORNEC E/OU ASSENT DE TUBO DE PVC COM JUNTA ELASTICA | D117: 0048 | G117: 102266 | H117: JUNTA ARGAMASSADA ENTRE TUBO DN 900 MM E O POÇO DE VISITA/ CAIXA DE CONCRETO OU ALVENARIA EM REDES DE ESGOTO. AF_01/2021 | I117: UN | J117: COEFICIENTE DE REPRESENTATIVIDADE | K117: 107.47 | L117: CAIXA REFERENCIAL
A118: ASSENTAMENTO DE TUBOS E PECAS | B118: ASTU | C118: FORNEC E/OU ASSENT DE TUBO DE PVC COM JUNTA ELASTICA | D118: 0048 | G118: 102267 | H118: JUNTA ARGAMASSADA ENTRE TUBO DN 1000 MM E O POÇO DE VISITA/ CAIXA DE CONCRETO OU ALVENARIA EM REDES DE ESGOTO. AF_01/2021 | I118: UN | J118: COEFICIENTE DE REPRESENTATIVIDADE | K118: 123.38 | L118: CAIXA REFERENCIAL
A119: ASSENTAMENTO DE TUBOS E PECAS | B119: ASTU | C119: FORNEC E/OU ASSENT DE TUBO DE PVC COM JUNTA ELASTICA | D119: 0048 | G119: 102268 | H119: JUNTA ARGAMASSADA ENTRE TUBO DN 1200 MM E O POÇO DE VISITA/ CAIXA DE CONCRETO OU ALVENARIA EM REDES DE ESGOTO. AF_01/2021 | I119: UN | J119: COEFICIENTE DE REPRESENTATIVIDADE | K119: 139.23 | L119: CAIXA REFERENCIAL
A120: ASSENTAMENTO DE TUBOS E PECAS | B120: ASTU | C120: FORNEC E/OU ASSENT DE TUBO DE PVC COM JUNTA ELASTICA | D120: 0048 | G120: 102269 | H120: JUNTA ARGAMASSADA ENTRE TUBO DN 1500 MM E O POÇO DE VISITA/ CAIXA DE CONCRETO OU ALVENARIA EM REDES DE ESGOTO. AF_01/2021 | I120: UN | J120: COEFICIENTE DE REPRESENTATIVIDADE | K120: 170.92 | L120: CAIXA REFERENCIAL
A121: ASSENTAMENTO DE TUBOS E PECAS | B121: ASTU | C121: FORNEC E/OU ASSENT DE TUBO DE CONCRETO COM JUNTA ELASTICA | D121: 0051 | G121: 92833 | H121: TUBO DE CONCRETO PARA REDES COLETORAS DE ESGOTO SANITÁRIO, DIÂMETRO DE 300 MM, JUNTA ELÁSTICA, INSTALADO EM LOCAL COM BAIXO NÍVEL DE INTERFERÊNCIAS - FORNECIMENTO E ASSENTAMENTO. AF_03/2024 | I121: M | J121: COEFICIENTE DE REPRESENTATIVIDADE | K121: 174.61 | L121: CAIXA REFERENCIAL
A122: ASSENTAMENTO DE TUBOS E PECAS | B122: ASTU | C122: FORNEC E/OU ASSENT DE TUBO DE CONCRETO COM JUNTA ELASTICA | D122: 0051 | G122: 92834 | H122: ASSENTAMENTO DE TUBO DE CONCRETO PARA REDES COLETORAS DE ESGOTO SANITÁRIO, DIÂMETRO DE 300 MM, JUNTA ELÁSTICA, INSTALADO EM LOCAL COM BAIXO NÍVEL DE INTERFERÊNCIAS (NÃO INCLUI FORNECIMENTO). AF_03/2024 | I122: M | J122: COEFICIENTE DE REPRESENTATIVIDADE | K122: 22.72 | L122: CAIXA REFERENCIAL
A123: ASSENTAMENTO DE TUBOS E PECAS | B123: ASTU | C123: FORNEC E/OU ASSENT DE TUBO DE CONCRETO COM JUNTA ELASTICA | D123: 0051 | G123: 92835 | H123: TUBO DE CONCRETO PARA REDES COLETORAS DE ESGOTO SANITÁRIO, DIÂMETRO DE 400 MM, JUNTA ELÁSTICA, INSTALADO EM LOCAL COM BAIXO NÍVEL DE INTERFERÊNCIAS - FORNECIMENTO E ASSENTAMENTO. AF_03/2024 | I123: M | J123: COEFICIENTE DE REPRESENTATIVIDADE | K123: 185.45 | L123: CAIXA REFERENCIAL
A124: ASSENTAMENTO DE TUBOS E PECAS | B124: ASTU | C124: FORNEC E/OU ASSENT DE TUBO DE CONCRETO COM JUNTA ELASTICA | D124: 0051 | G124: 92836 | H124: ASSENTAMENTO DE TUBO DE CONCRETO PARA REDES COLETORAS DE ESGOTO SANITÁRIO, DIÂMETRO DE 400 MM, JUNTA ELÁSTICA, INSTALADO EM LOCAL COM BAIXO NÍVEL DE INTERFERÊNCIAS (NÃO INCLUI FORNECIMENTO). AF_03/2024 | I124: M | J124: COEFICIENTE DE REPRESENTATIVIDADE | K124: 29.66 | L124: CAIXA REFERENCIAL
A125: ASSENTAMENTO DE TUBOS E PECAS | B125: ASTU | C125: FORNEC E/OU ASSENT DE TUBO DE CONCRETO COM JUNTA ELASTICA | D125: 0051 | G125: 92837 | H125: TUBO DE CONCRETO PARA REDES COLETORAS DE ESGOTO SANITÁRIO, DIÂMETRO DE 500 MM, JUNTA ELÁSTICA, INSTALADO EM LOCAL COM BAIXO NÍVEL DE INTERFERÊNCIAS - FORNECIMENTO E ASSENTAMENTO. AF_03/2024 | I125: M | J125: COEFICIENTE DE REPRESENTATIVIDADE | K125: 325.29 | L125: CAIXA REFERENCIAL
A126: ASSENTAMENTO DE TUBOS E PECAS | B126: ASTU | C126: FORNEC E/OU ASSENT DE TUBO DE CONCRETO COM JUNTA ELASTICA | D126: 0051 | G126: 92838 | H126: ASSENTAMENTO DE TUBO DE CONCRETO PARA REDES COLETORAS DE ESGOTO SANITÁRIO, DIÂMETRO DE 500 MM, JUNTA ELÁSTICA, INSTALADO EM LOCAL COM BAIXO NÍVEL DE INTERFERÊNCIAS (NÃO INCLUI FORNECIMENTO). AF_03/2024 | I126: M | J126: COEFICIENTE DE REPRESENTATIVIDADE | K126: 37.07 | L126: CAIXA REFERENCIAL
A127: ASSENTAMENTO DE TUBOS E PECAS | B127: ASTU | C127: FORNEC E/OU ASSENT DE TUBO DE CONCRETO COM JUNTA ELASTICA | D127: 0051 | G127: 92839 | H127: TUBO DE CONCRETO PARA REDES COLETORAS DE ESGOTO SANITÁRIO, DIÂMETRO DE 600 MM, JUNTA ELÁSTICA, INSTALADO EM LOCAL COM BAIXO NÍVEL DE INTERFERÊNCIAS - FORNECIMENTO E ASSENTAMENTO. AF_03/2024 | I127: M | J127: COEFICIENTE DE REPRESENTATIVIDADE | K127: 398.53 | L127: CAIXA REFERENCIAL
A128: ASSENTAMENTO DE TUBOS E PECAS | B128: ASTU | C128: FORNEC E/OU ASSENT DE TUBO DE CONCRETO COM JUNTA ELASTICA | D128: 0051 | G128: 92840 | H128: ASSENTAMENTO DE TUBO DE CONCRETO PARA REDES COLETORAS DE ESGOTO SANITÁRIO, DIÂMETRO DE 600 MM, JUNTA ELÁSTICA, INSTALADO EM LOCAL COM BAIXO NÍVEL DE INTERFERÊNCIAS (NÃO INCLUI FORNECIMENTO). AF_03/2024 | I128: M | J128: COEFICIENTE DE REPRESENTATIVIDADE | K128: 44.87 | L128: CAIXA REFERENCIAL
A129: ASSENTAMENTO DE TUBOS E PECAS | B129: ASTU | C129: FORNEC E/OU ASSENT DE TUBO DE CONCRETO COM JUNTA ELASTICA | D129: 0051 | G129: 92841 | H129: TUBO DE CONCRETO PARA REDES COLETORAS DE ESGOTO SANITÁRIO, DIÂMETRO DE 700 MM, JUNTA ELÁSTICA, INSTALADO EM LOCAL COM BAIXO NÍVEL DE INTERFERÊNCIAS - FORNECIMENTO E ASSENTAMENTO. AF_03/2024 | I129: M | J129: COEFICIENTE DE REPRESENTATIVIDADE | K129: 518.69 | L129: CAIXA REFERENCIAL
A130: ASSENTAMENTO DE TUBOS E PECAS | B130: ASTU | C130: FORNEC E/OU ASSENT DE TUBO DE CONCRETO COM JUNTA ELASTICA | D130: 0051 | G130: 92842 | H130: ASSENTAMENTO DE TUBO DE CONCRETO PARA REDES COLETORAS DE ESGOTO SANITÁRIO, DIÂMETRO DE 700 MM, JUNTA ELÁSTICA, INSTALADO EM LOCAL COM BAIXO NÍVEL DE INTERFERÊNCIAS (NÃO INCLUI FORNECIMENTO). AF_03/2024 | I130: M | J130: COEFICIENTE DE REPRESENTATIVIDADE | K130: 56.76 | L130: CAIXA REFERENCIAL
A131: ASSENTAMENTO DE TUBOS E PECAS | B131: ASTU | C131: FORNEC E/OU ASSENT DE TUBO DE CONCRETO COM JUNTA ELASTICA | D131: 0051 | G131: 92843 | H131: TUBO DE CONCRETO PARA REDES COLETORAS DE ESGOTO SANITÁRIO, DIÂMETRO DE 800 MM, JUNTA ELÁSTICA, INSTALADO EM LOCAL COM BAIXO NÍVEL DE INTERFERÊNCIAS - FORNECIMENTO E ASSENTAMENTO. AF_03/2024 | I131: M | J131: COEFICIENTE DE REPRESENTATIVIDADE | K131: 539.87 | L131: CAIXA REFERENCIAL
A132: ASSENTAMENTO DE TUBOS E PECAS | B132: ASTU | C132: FORNEC E/OU ASSENT DE TUBO DE CONCRETO COM JUNTA ELASTICA | D132: 0051 | G132: 92844 | H132: ASSENTAMENTO DE TUBO DE CONCRETO PARA REDES COLETORAS DE ESGOTO SANITÁRIO, DIÂMETRO DE 800 MM, JUNTA ELÁSTICA, INSTALADO EM LOCAL COM BAIXO NÍVEL DE INTERFERÊNCIAS (NÃO INCLUI FORNECIMENTO). AF_03/2024 | I132: M | J132: COEFICIENTE DE REPRESENTATIVIDADE | K132: 67.73 | L132: CAIXA REFERENCIAL
A133: ASSENTAMENTO DE TUBOS E PECAS | B133: ASTU | C133: FORNEC E/OU ASSENT DE TUBO DE CONCRETO COM JUNTA ELASTICA | D133: 0051 | G133: 92845 | H133: TUBO DE CONCRETO PARA REDES COLETORAS DE ESGOTO SANITÁRIO, DIÂMETRO DE 900 MM, JUNTA ELÁSTICA, INSTALADO EM LOCAL COM BAIXO NÍVEL DE INTERFERÊNCIAS - FORNECIMENTO E ASSENTAMENTO. AF_03/2024 | I133: M | J133: COEFICIENTE DE REPRESENTATIVIDADE | K133: 793.66 | L133: CAIXA REFERENCIAL
A134: ASSENTAMENTO DE TUBOS E PECAS | B134: ASTU | C134: FORNEC E/OU ASSENT DE TUBO DE CONCRETO COM JUNTA ELASTICA | D134: 0051 | G134: 92846 | H134: ASSENTAMENTO DE TUBO DE CONCRETO PARA REDES COLETORAS DE ESGOTO SANITÁRIO, DIÂMETRO DE 900 MM, JUNTA ELÁSTICA, INSTALADO EM LOCAL COM BAIXO NÍVEL DE INTERFERÊNCIAS (NÃO INCLUI FORNECIMENTO). AF_03/2024 | I134: M | J134: COEFICIENTE DE REPRESENTATIVIDADE | K134: 77.77 | L134: CAIXA REFERENCIAL
A135: ASSENTAMENTO DE TUBOS E PECAS | B135: ASTU | C135: FORNEC E/OU ASSENT DE TUBO DE CONCRETO COM JUNTA ELASTICA | D135: 0051 | G135: 92847 | H135: TUBO DE CONCRETO PARA REDES COLETORAS DE ESGOTO SANITÁRIO, DIÂMETRO DE 1000 MM, JUNTA ELÁSTICA, INSTALADO EM LOCAL COM BAIXO NÍVEL DE INTERFERÊNCIAS - FORNECIMENTO E ASSENTAMENTO. AF_03/2024 | I135: M | J135: COEFICIENTE DE REPRESENTATIVIDADE | K135: 818.36 | L135: CAIXA REFERENCIAL
A136: ASSENTAMENTO DE TUBOS E PECAS | B136: ASTU | C136: FORNEC E/OU ASSENT DE TUBO DE CONCRETO COM JUNTA ELASTICA | D136: 0051 | G136: 92848 | H136: ASSENTAMENTO DE TUBO DE CONCRETO PARA REDES COLETORAS DE ESGOTO SANITÁRIO, DIÂMETRO DE 1000 MM, JUNTA ELÁSTICA, INSTALADO EM LOCAL COM BAIXO NÍVEL DE INTERFERÊNCIAS (NÃO INCLUI FORNECIMENTO). AF_03/2024 | I136: M | J136: COEFICIENTE DE REPRESENTATIVIDADE | K136: 92.35 | L136: CAIXA REFERENCIAL
A137: ASSENTAMENTO DE TUBOS E PECAS | B137: ASTU | C137: FORNEC E/OU ASSENT DE TUBO DE CONCRETO COM JUNTA ELASTICA | D137: 0051 | G137: 92849 | H137: TUBO DE CONCRETO PARA REDES COLETORAS DE ESGOTO SANITÁRIO, DIÂMETRO DE 300 MM, JUNTA ELÁSTICA, INSTALADO EM LOCAL COM ALTO NÍVEL DE INTERFERÊNCIAS - FORNECIMENTO E ASSENTAMENTO. AF_03/2024 | I137: M | J137: COEFICIENTE DE REPRESENTATIVIDADE | K137: 177.05 | L137: CAIXA REFERENCIAL
A138: ASSENTAMENTO DE TUBOS E PECAS | B138: ASTU | C138: FORNEC E/OU ASSENT DE TUBO DE CONCRETO COM JUNTA ELASTICA | D138: 0051 | G138: 92850 | H138: ASSENTAMENTO DE TUBO DE CONCRETO PARA REDES COLETORAS DE ESGOTO SANITÁRIO, DIÂMETRO DE 300 MM, JUNTA ELÁSTICA, INSTALADO EM LOCAL COM ALTO NÍVEL DE INTERFERÊNCIAS (NÃO INCLUI FORNECIMENTO). AF_03/2024 | I138: M | J138: COEFICIENTE DE REPRESENTATIVIDADE | K138: 25.16 | L138: CAIXA REFERENCIAL
A139: ASSENTAMENTO DE TUBOS E PECAS | B139: ASTU | C139: FORNEC E/OU ASSENT DE TUBO DE CONCRETO COM JUNTA ELASTICA | D139: 0051 | G139: 92851 | H139: TUBO DE CONCRETO PARA REDES COLETORAS DE ESGOTO SANITÁRIO, DIÂMETRO DE 400 MM, JUNTA ELÁSTICA, INSTALADO EM LOCAL COM ALTO NÍVEL DE INTERFERÊNCIAS - FORNECIMENTO E ASSENTAMENTO. AF_03/2024 | I139: M | J139: COEFICIENTE DE REPRESENTATIVIDADE | K139: 188.95 | L139: CAIXA REFERENCIAL
A140: ASSENTAMENTO DE TUBOS E PECAS | B140: ASTU | C140: FORNEC E/OU ASSENT DE TUBO DE CONCRETO COM JUNTA ELASTICA | D140: 0051 | G140: 92852 | H140: ASSENTAMENTO DE TUBO DE CONCRETO PARA REDES COLETORAS DE ESGOTO SANITÁRIO, DIÂMETRO DE 400 MM, JUNTA ELÁSTICA, INSTALADO EM LOCAL COM ALTO NÍVEL DE INTERFERÊNCIAS (NÃO INCLUI FORNECIMENTO). AF_03/2024 | I140: M | J140: COEFICIENTE DE REPRESENTATIVIDADE | K140: 33.16 | L140: CAIXA REFERENCIAL
A141: ASSENTAMENTO DE TUBOS E PECAS | B141: ASTU | C141: FORNEC E/OU ASSENT DE TUBO DE CONCRETO COM JUNTA ELASTICA | D141: 0051 | G141: 92853 | H141: TUBO DE CONCRETO PARA REDES COLETORAS DE ESGOTO SANITÁRIO, DIÂMETRO DE 500 MM, JUNTA ELÁSTICA, INSTALADO EM LOCAL COM ALTO NÍVEL DE INTERFERÊNCIAS - FORNECIMENTO E ASSENTAMENTO. AF_03/2024 | I141: M | J141: COEFICIENTE DE REPRESENTATIVIDADE | K141: 329.82 | L141: CAIXA REFERENCIAL
A142: ASSENTAMENTO DE TUBOS E PECAS | B142: ASTU | C142: FORNEC E/OU ASSENT DE TUBO DE CONCRETO COM JUNTA ELASTICA | D142: 0051 | G142: 92854 | H142: ASSENTAMENTO DE TUBO DE CONCRETO PARA REDES COLETORAS DE ESGOTO SANITÁRIO, DIÂMETRO DE 500 MM, JUNTA ELÁSTICA, INSTALADO EM LOCAL COM ALTO NÍVEL DE INTERFERÊNCIAS (NÃO INCLUI FORNECIMENTO). AF_03/2024 | I142: M | J142: COEFICIENTE DE REPRESENTATIVIDADE | K142: 41.6 | L142: CAIXA REFERENCIAL
A143: ASSENTAMENTO DE TUBOS E PECAS | B143: ASTU | C143: FORNEC E/OU ASSENT DE TUBO DE CONCRETO COM JUNTA ELASTICA | D143: 0051 | G143: 92855 | H143: TUBO DE CONCRETO PARA REDES COLETORAS DE ESGOTO SANITÁRIO, DIÂMETRO DE 600 MM, JUNTA ELÁSTICA, INSTALADO EM LOCAL COM ALTO NÍVEL DE INTERFERÊNCIAS - FORNECIMENTO E ASSENTAMENTO. AF_03/2024 | I143: M | J143: COEFICIENTE DE REPRESENTATIVIDADE | K143: 404.11 | L143: CAIXA REFERENCIAL
A144: ASSENTAMENTO DE TUBOS E PECAS | B144: ASTU | C144: FORNEC E/OU ASSENT DE TUBO DE CONCRETO COM JUNTA ELASTICA | D144: 0051 | G144: 92856 | H144: ASSENTAMENTO DE TUBO DE CONCRETO PARA REDES COLETORAS DE ESGOTO SANITÁRIO, DIÂMETRO DE 600 MM, JUNTA ELÁSTICA, INSTALADO EM LOCAL COM ALTO NÍVEL DE INTERFERÊNCIAS (NÃO INCLUI FORNECIMENTO). AF_03/2024 | I144: M | J144: COEFICIENTE DE REPRESENTATIVIDADE | K144: 50.45 | L144: CAIXA REFERENCIAL
A145: ASSENTAMENTO DE TUBOS E PECAS | B145: ASTU | C145: FORNEC E/OU ASSENT DE TUBO DE CONCRETO COM JUNTA ELASTICA | D145: 0051 | G145: 92857 | H145: TUBO DE CONCRETO PARA REDES COLETORAS DE ESGOTO SANITÁRIO, DIÂMETRO DE 700 MM, JUNTA ELÁSTICA, INSTALADO EM LOCAL COM ALTO NÍVEL DE INTERFERÊNCIAS - FORNECIMENTO E ASSENTAMENTO. AF_03/2024 | I145: M | J145: COEFICIENTE DE REPRESENTATIVIDADE | K145: 525.33 | L145: CAIXA REFERENCIAL
A146: ASSENTAMENTO DE TUBOS E PECAS | B146: ASTU | C146: FORNEC E/OU ASSENT DE TUBO DE CONCRETO COM JUNTA ELASTICA | D146: 0051 | G146: 92858 | H146: ASSENTAMENTO DE TUBO DE CONCRETO PARA REDES COLETORAS DE ESGOTO SANITÁRIO, DIÂMETRO DE 700 MM, JUNTA ELÁSTICA, INSTALADO EM LOCAL COM ALTO NÍVEL DE INTERFERÊNCIAS (NÃO INCLUI FORNECIMENTO). AF_03/2024 | I146: M | J146: COEFICIENTE DE REPRESENTATIVIDADE | K146: 63.4 | L146: CAIXA REFERENCIAL
A147: ASSENTAMENTO DE TUBOS E PECAS | B147: ASTU | C147: FORNEC E/OU ASSENT DE TUBO DE CONCRETO COM JUNTA ELASTICA | D147: 0051 | G147: 92859 | H147: TUBO DE CONCRETO PARA REDES COLETORAS DE ESGOTO SANITÁRIO, DIÂMETRO DE 800 MM, JUNTA ELÁSTICA, INSTALADO EM LOCAL COM ALTO NÍVEL DE INTERFERÊNCIAS - FORNECIMENTO E ASSENTAMENTO. AF_03/2024 | I147: M | J147: COEFICIENTE DE REPRESENTATIVIDADE | K147: 547.54 | L147: CAIXA REFERENCIAL
A148: ASSENTAMENTO DE TUBOS E PECAS | B148: ASTU | C148: FORNEC E/OU ASSENT DE TUBO DE CONCRETO COM JUNTA ELASTICA | D148: 0051 | G148: 92860 | H148: ASSENTAMENTO DE TUBO DE CONCRETO PARA REDES COLETORAS DE ESGOTO SANITÁRIO, DIÂMETRO DE 800 MM, JUNTA ELÁSTICA, INSTALADO EM LOCAL COM ALTO NÍVEL DE INTERFERÊNCIAS (NÃO INCLUI FORNECIMENTO). AF_03/2024 | I148: M | J148: COEFICIENTE DE REPRESENTATIVIDADE | K148: 75.4 | L148: CAIXA REFERENCIAL
A149: ASSENTAMENTO DE TUBOS E PECAS | B149: ASTU | C149: FORNEC E/OU ASSENT DE TUBO DE CONCRETO COM JUNTA ELASTICA | D149: 0051 | G149: 92861 | H149: TUBO DE CONCRETO PARA REDES COLETORAS DE ESGOTO SANITÁRIO, DIÂMETRO DE 900 MM, JUNTA ELÁSTICA, INSTALADO EM LOCAL COM ALTO NÍVEL DE INTERFERÊNCIAS - FORNECIMENTO E ASSENTAMENTO. AF_03/2024 | I149: M | J149: COEFICIENTE DE REPRESENTATIVIDADE | K149: 802.37 | L149: CAIXA REFERENCIAL
A150: ASSENTAMENTO DE TUBOS E PECAS | B150: ASTU | C150: FORNEC E/OU ASSENT DE TUBO DE CONCRETO COM JUNTA ELASTICA | D150: 0051 | G150: 92862 | H150: ASSENTAMENTO DE TUBO DE CONCRETO PARA REDES COLETORAS DE ESGOTO SANITÁRIO, DIÂMETRO DE 900 MM, JUNTA ELÁSTICA, INSTALADO EM LOCAL COM ALTO NÍVEL DE INTERFERÊNCIAS (NÃO INCLUI FORNECIMENTO). AF_03/2024 | I150: M | J150: COEFICIENTE DE REPRESENTATIVIDADE | K150: 86.48 | L150: CAIXA REFERENCIAL
A151: ASSENTAMENTO DE TUBOS E PECAS | B151: ASTU | C151: FORNEC E/OU ASSENT DE TUBO DE CONCRETO COM JUNTA ELASTICA | D151: 0051 | G151: 92863 | H151: TUBO DE CONCRETO PARA REDES COLETORAS DE ESGOTO SANITÁRIO, DIÂMETRO DE 1000 MM, JUNTA ELÁSTICA, INSTALADO EM LOCAL COM ALTO NÍVEL DE INTERFERÊNCIAS - FORNECIMENTO E ASSENTAMENTO. AF_03/2024 | I151: M | J151: COEFICIENTE DE REPRESENTATIVIDADE | K151: 828.12 | L151: CAIXA REFERENCIAL
A152: ASSENTAMENTO DE TUBOS E PECAS | B152: ASTU | C152: FORNEC E/OU ASSENT DE TUBO DE CONCRETO COM JUNTA ELASTICA | D152: 0051 | G152: 92864 | H152: ASSENTAMENTO DE TUBO DE CONCRETO PARA REDES COLETORAS DE ESGOTO SANITÁRIO, DIÂMETRO DE 1000 MM, JUNTA ELÁSTICA, INSTALADO EM LOCAL COM ALTO NÍVEL DE INTERFERÊNCIAS (NÃO INCLUI FORNECIMENTO). AF_03/2024 | I152: M | J152: COEFICIENTE DE REPRESENTATIVIDADE | K152: 102.11 | L152: CAIXA REFERENCIAL
A153: ASSENTAMENTO DE TUBOS E PECAS | B153: ASTU | C153: FORNEC E/OU ASSENT DE TUBO DE CONCRETO COM JUNTA ARGAMASSADA | D153: 0052 | G153: 92210 | H153: TUBO DE CONCRETO PARA REDES COLETORAS DE ÁGUAS PLUVIAIS, DIÂMETRO DE 400 MM, JUNTA RÍGIDA, INSTALADO EM LOCAL COM BAIXO NÍVEL DE INTERFERÊNCIAS - FORNECIMENTO E ASSENTAMENTO. AF_03/2024 | I153: M | J153: COEFICIENTE DE REPRESENTATIVIDADE | K153: 129.8 | L153: CAIXA REFERENCIAL
A154: ASSENTAMENTO DE TUBOS E PECAS | B154: ASTU | C154: FORNEC E/OU ASSENT DE TUBO DE CONCRETO COM JUNTA ARGAMASSADA | D154: 0052 | G154: 92211 | H154: TUBO DE CONCRETO PARA REDES COLETORAS DE ÁGUAS PLUVIAIS, DIÂMETRO DE 500 MM, JUNTA RÍGIDA, INSTALADO EM LOCAL COM BAIXO NÍVEL DE INTERFERÊNCIAS - FORNECIMENTO E ASSENTAMENTO. AF_03/2024 | I154: M | J154: COEFICIENTE DE REPRESENTATIVIDADE | K154: 158.35 | L154: CAIXA REFERENCIAL
A155: ASSENTAMENTO DE TUBOS E PECAS | B155: ASTU | C155: FORNEC E/OU ASSENT DE TUBO DE CONCRETO COM JUNTA ARGAMASSADA | D155: 0052 | G155: 92212 | H155: TUBO DE CONCRETO PARA REDES COLETORAS DE ÁGUAS PLUVIAIS, DIÂMETRO DE 600 MM, JUNTA RÍGIDA, INSTALADO EM LOCAL COM BAIXO NÍVEL DE INTERFERÊNCIAS - FORNECIMENTO E ASSENTAMENTO. AF_03/2024 | I155: M | J155: COEFICIENTE DE REPRESENTATIVIDADE | K155: 239.32 | L155: CAIXA REFERENCIAL
A156: ASSENTAMENTO DE TUBOS E PECAS | B156: ASTU | C156: FORNEC E/OU ASSENT DE TUBO DE CONCRETO COM JUNTA ARGAMASSADA | D156: 0052 | G156: 92213 | H156: TUBO DE CONCRETO PARA REDES COLETORAS DE ÁGUAS PLUVIAIS, DIÂMETRO DE 700 MM, JUNTA RÍGIDA, INSTALADO EM LOCAL COM BAIXO NÍVEL DE INTERFERÊNCIAS - FORNECIMENTO E ASSENTAMENTO. AF_03/2024 | I156: M | J156: COEFICIENTE DE REPRESENTATIVIDADE | K156: 316.94 | L156: CAIXA REFERENCIAL
A157: ASSENTAMENTO DE TUBOS E PECAS | B157: ASTU | C157: FORNEC E/OU ASSENT DE TUBO DE CONCRETO COM JUNTA ARGAMASSADA | D157: 0052 | G157: 92214 | H157: TUBO DE CONCRETO PARA REDES COLETORAS DE ÁGUAS PLUVIAIS, DIÂMETRO DE 800 MM, JUNTA RÍGIDA, INSTALADO EM LOCAL COM BAIXO NÍVEL DE INTERFERÊNCIAS - FORNECIMENTO E ASSENTAMENTO. AF_03/2024 | I157: M | J157: COEFICIENTE DE REPRESENTATIVIDADE | K157: 383.27 | L157: CAIXA REFERENCIAL
A158: ASSENTAMENTO DE TUBOS E PECAS | B158: ASTU | C158: FORNEC E/OU ASSENT DE TUBO DE CONCRETO COM JUNTA ARGAMASSADA | D158: 0052 | G158: 92215 | H158: TUBO DE CONCRETO PARA REDES COLETORAS DE ÁGUAS PLUVIAIS, DIÂMETRO DE 900 MM, JUNTA RÍGIDA, INSTALADO EM LOCAL COM BAIXO NÍVEL DE INTERFERÊNCIAS - FORNECIMENTO E ASSENTAMENTO. AF_03/2024 | I158: M | J158: COEFICIENTE DE REPRESENTATIVIDADE | K158: 440.06 | L158: CAIXA REFERENCIAL
A159: ASSENTAMENTO DE TUBOS E PECAS | B159: ASTU | C159: FORNEC E/OU ASSENT DE TUBO DE CONCRETO COM JUNTA ARGAMASSADA | D159: 0052 | G159: 92216 | H159: TUBO DE CONCRETO PARA REDES COLETORAS DE ÁGUAS PLUVIAIS, DIÂMETRO DE 1000 MM, JUNTA RÍGIDA, INSTALADO EM LOCAL COM BAIXO NÍVEL DE INTERFERÊNCIAS - FORNECIMENTO E ASSENTAMENTO. AF_03/2024 | I159: M | J159: COEFICIENTE DE REPRESENTATIVIDADE | K159: 458.09 | L159: CAIXA REFERENCIAL
A160: ASSENTAMENTO DE TUBOS E PECAS | B160: ASTU | C160: FORNEC E/OU ASSENT DE TUBO DE CONCRETO COM JUNTA ARGAMASSADA | D160: 0052 | G160: 92219 | H160: TUBO DE CONCRETO PARA REDES COLETORAS DE ÁGUAS PLUVIAIS, DIÂMETRO DE 400 MM, JUNTA RÍGIDA, INSTALADO EM LOCAL COM ALTO NÍVEL DE INTERFERÊNCIAS - FORNECIMENTO E ASSENTAMENTO. AF_03/2024 | I160: M | J160: COEFICIENTE DE REPRESENTATIVIDADE | K160: 133.29 | L160: CAIXA REFERENCIAL
A161: ASSENTAMENTO DE TUBOS E PECAS | B161: ASTU | C161: FORNEC E/OU ASSENT DE TUBO DE CONCRETO COM JUNTA ARGAMASSADA | D161: 0052 | G161: 92220 | H161: TUBO DE CONCRETO PARA REDES COLETORAS DE ÁGUAS PLUVIAIS, DIÂMETRO DE 500 MM, JUNTA RÍGIDA, INSTALADO EM LOCAL COM ALTO NÍVEL DE INTERFERÊNCIAS - FORNECIMENTO E ASSENTAMENTO. AF_03/2024 | I161: M | J161: COEFICIENTE DE REPRESENTATIVIDADE | K161: 162.9 | L161: CAIXA REFERENCIAL
A162: ASSENTAMENTO DE TUBOS E PECAS | B162: ASTU | C162: FORNEC E/OU ASSENT DE TUBO DE CONCRETO COM JUNTA ARGAMASSADA | D162: 0052 | G162: 92221 | H162: TUBO DE CONCRETO PARA REDES COLETORAS DE ÁGUAS PLUVIAIS, DIÂMETRO DE 600 MM, JUNTA RÍGIDA, INSTALADO EM LOCAL COM ALTO NÍVEL DE INTERFERÊNCIAS - FORNECIMENTO E ASSENTAMENTO. AF_03/2024 | I162: M | J162: COEFICIENTE DE REPRESENTATIVIDADE | K162: 244.89 | L162: CAIXA REFERENCIAL
A163: ASSENTAMENTO DE TUBOS E PECAS | B163: ASTU | C163: FORNEC E/OU ASSENT DE TUBO DE CONCRETO COM JUNTA ARGAMASSADA | D163: 0052 | G163: 92222 | H163: TUBO DE CONCRETO PARA REDES COLETORAS DE ÁGUAS PLUVIAIS, DIÂMETRO DE 700 MM, JUNTA RÍGIDA, INSTALADO EM LOCAL COM ALTO NÍVEL DE INTERFERÊNCIAS - FORNECIMENTO E ASSENTAMENTO. AF_03/2024 | I163: M | J163: COEFICIENTE DE REPRESENTATIVIDADE | K163: 323.56 | L163: CAIXA REFERENCIAL
A164: ASSENTAMENTO DE TUBOS E PECAS | B164: ASTU | C164: FORNEC E/OU ASSENT DE TUBO DE CONCRETO COM JUNTA ARGAMASSADA | D164: 0052 | G164: 92223 | H164: TUBO DE CONCRETO PARA REDES COLETORAS DE ÁGUAS PLUVIAIS, DIÂMETRO DE 800 MM, JUNTA RÍGIDA, INSTALADO EM LOCAL COM ALTO NÍVEL DE INTERFERÊNCIAS - FORNECIMENTO E ASSENTAMENTO. AF_03/2024 | I164: M | J164: COEFICIENTE DE REPRESENTATIVIDADE | K164: 390.92 | L164: CAIXA REFERENCIAL
A165: ASSENTAMENTO DE TUBOS E PECAS | B165: ASTU | C165: FORNEC E/OU ASSENT DE TUBO DE CONCRETO COM JUNTA ARGAMASSADA | D165: 0052 | G165: 92224 | H165: TUBO DE CONCRETO PARA REDES COLETORAS DE ÁGUAS PLUVIAIS, DIÂMETRO DE 900 MM, JUNTA RÍGIDA, INSTALADO EM LOCAL COM ALTO NÍVEL DE INTERFERÊNCIAS - FORNECIMENTO E ASSENTAMENTO. AF_03/2024 | I165: M | J165: COEFICIENTE DE REPRESENTATIVIDADE | K165: 448.78 | L165: CAIXA REFERENCIAL
A166: ASSENTAMENTO DE TUBOS E PECAS | B166: ASTU | C166: FORNEC E/OU ASSENT DE TUBO DE CONCRETO COM JUNTA ARGAMASSADA | D166: 0052 | G166: 92226 | H166: TUBO DE CONCRETO PARA REDES COLETORAS DE ÁGUAS PLUVIAIS, DIÂMETRO DE 1000 MM, JUNTA RÍGIDA, INSTALADO EM LOCAL COM ALTO NÍVEL DE INTERFERÊNCIAS - FORNECIMENTO E ASSENTAMENTO. AF_03/2024 | I166: M | J166: COEFICIENTE DE REPRESENTATIVIDADE | K166: 467.86 | L166: CAIXA REFERENCIAL
A167: ASSENTAMENTO DE TUBOS E PECAS | B167: ASTU | C167: FORNEC E/OU ASSENT DE TUBO DE CONCRETO COM JUNTA ARGAMASSADA | D167: 0052 | G167: 92808 | H167: ASSENTAMENTO DE TUBO DE CONCRETO PARA REDES COLETORAS DE ÁGUAS PLUVIAIS, DIÂMETRO DE 300 MM, JUNTA RÍGIDA, INSTALADO EM LOCAL COM BAIXO NÍVEL DE INTERFERÊNCIAS (NÃO INCLUI FORNECIMENTO). AF_03/2024 | I167: M | J167: COEFICIENTE DE REPRESENTATIVIDADE | K167: 24.43 | L167: CAIXA REFERENCIAL
A168: ASSENTAMENTO DE TUBOS E PECAS | B168: ASTU | C168: FORNEC E/OU ASSENT DE TUBO DE CONCRETO COM JUNTA ARGAMASSADA | D168: 0052 | G168: 92809 | H168: ASSENTAMENTO DE TUBO DE CONCRETO PARA REDES COLETORAS DE ÁGUAS PLUVIAIS, DIÂMETRO DE 400 MM, JUNTA RÍGIDA, INSTALADO EM LOCAL COM BAIXO NÍVEL DE INTERFERÊNCIAS (NÃO INCLUI FORNECIMENTO). AF_03/2024 | I168: M | J168: COEFICIENTE DE REPRESENTATIVIDADE | K168: 33.99 | L168: CAIXA REFERENCIAL
A169: ASSENTAMENTO DE TUBOS E PECAS | B169: ASTU | C169: FORNEC E/OU ASSENT DE TUBO DE CONCRETO COM JUNTA ARGAMASSADA | D169: 0052 | G169: 92810 | H169: ASSENTAMENTO DE TUBO DE CONCRETO PARA REDES COLETORAS DE ÁGUAS PLUVIAIS, DIÂMETRO DE 500 MM, JUNTA RÍGIDA, INSTALADO EM LOCAL COM BAIXO NÍVEL DE INTERFERÊNCIAS (NÃO INCLUI FORNECIMENTO). AF_03/2024 | I169: M | J169: COEFICIENTE DE REPRESENTATIVIDADE | K169: 43.85 | L169: CAIXA REFERENCIAL
A170: ASSENTAMENTO DE TUBOS E PECAS | B170: ASTU | C170: FORNEC E/OU ASSENT DE TUBO DE CONCRETO COM JUNTA ARGAMASSADA | D170: 0052 | G170: 92811 | H170: ASSENTAMENTO DE TUBO DE CONCRETO PARA REDES COLETORAS DE ÁGUAS PLUVIAIS, DIÂMETRO DE 600 MM, JUNTA RÍGIDA, INSTALADO EM LOCAL COM BAIXO NÍVEL DE INTERFERÊNCIAS (NÃO INCLUI FORNECIMENTO). AF_03/2024 | I170: M | J170: COEFICIENTE DE REPRESENTATIVIDADE | K170: 53.92 | L170: CAIXA REFERENCIAL
A171: ASSENTAMENTO DE TUBOS E PECAS | B171: ASTU | C171: FORNEC E/OU ASSENT DE TUBO DE CONCRETO COM JUNTA ARGAMASSADA | D171: 0052 | G171: 92812 | H171: ASSENTAMENTO DE TUBO DE CONCRETO PARA REDES COLETORAS DE ÁGUAS PLUVIAIS, DIÂMETRO DE 700 MM, JUNTA RÍGIDA, INSTALADO EM LOCAL COM BAIXO NÍVEL DE INTERFERÊNCIAS (NÃO INCLUI FORNECIMENTO). AF_03/2024 | I171: M | J171: COEFICIENTE DE REPRESENTATIVIDADE | K171: 64.24 | L171: CAIXA REFERENCIAL
A172: ASSENTAMENTO DE TUBOS E PECAS | B172: ASTU | C172: FORNEC E/OU ASSENT DE TUBO DE CONCRETO COM JUNTA ARGAMASSADA | D172: 0052 | G172: 92813 | H172: ASSENTAMENTO DE TUBO DE CONCRETO PARA REDES COLETORAS DE ÁGUAS PLUVIAIS, DIÂMETRO DE 800 MM, JUNTA RÍGIDA, INSTALADO EM LOCAL COM BAIXO NÍVEL DE INTERFERÊNCIAS (NÃO INCLUI FORNECIMENTO). AF_03/2024 | I172: M | J172: COEFICIENTE DE REPRESENTATIVIDADE | K172: 74.8 | L172: CAIXA REFERENCIAL
A173: ASSENTAMENTO DE TUBOS E PECAS | B173: ASTU | C173: FORNEC E/OU ASSENT DE TUBO DE CONCRETO COM JUNTA ARGAMASSADA | D173: 0052 | G173: 92814 | H173: ASSENTAMENTO DE TUBO DE CONCRETO PARA REDES COLETORAS DE ÁGUAS PLUVIAIS, DIÂMETRO DE 900 MM, JUNTA RÍGIDA, INSTALADO EM LOCAL COM BAIXO NÍVEL DE INTERFERÊNCIAS (NÃO INCLUI FORNECIMENTO). AF_03/2024 | I173: M | J173: COEFICIENTE DE REPRESENTATIVIDADE | K173: 85.63 | L173: CAIXA REFERENCIAL
A174: ASSENTAMENTO DE TUBOS E PECAS | B174: ASTU | C174: FORNEC E/OU ASSENT DE TUBO DE CONCRETO COM JUNTA ARGAMASSADA | D174: 0052 | G174: 92815 | H174: ASSENTAMENTO DE TUBO DE CONCRETO PARA REDES COLETORAS DE ÁGUAS PLUVIAIS, DIÂMETRO DE 1000 MM, JUNTA RÍGIDA, INSTALADO EM LOCAL COM BAIXO NÍVEL DE INTERFERÊNCIAS (NÃO INCLUI FORNECIMENTO). AF_03/2024 | I174: M | J174: COEFICIENTE DE REPRESENTATIVIDADE | K174: 96.65 | L174: CAIXA REFERENCIAL
A175: ASSENTAMENTO DE TUBOS E PECAS | B175: ASTU | C175: FORNEC E/OU ASSENT DE TUBO DE CONCRETO COM JUNTA ARGAMASSADA | D175: 0052 | G175: 92816 | H175: TUBO DE CONCRETO PARA REDES COLETORAS DE ÁGUAS PLUVIAIS, DIÂMETRO DE 1200 MM, JUNTA RÍGIDA, INSTALADO EM LOCAL COM BAIXO NÍVEL DE INTERFERÊNCIAS - FORNECIMENTO E ASSENTAMENTO. AF_03/2024 | I175: M | J175: COEFICIENTE DE REPRESENTATIVIDADE | K175: 659.28 | L175: CAIXA REFERENCIAL
A176: ASSENTAMENTO DE TUBOS E PECAS | B176: ASTU | C176: FORNEC E/OU ASSENT DE TUBO DE CONCRETO COM JUNTA ARGAMASSADA | D176: 0052 | G176: 92817 | H176: ASSENTAMENTO DE TUBO DE CONCRETO PARA REDES COLETORAS DE ÁGUAS PLUVIAIS, DIÂMETRO DE 1200 MM, JUNTA RÍGIDA, INSTALADO EM LOCAL COM BAIXO NÍVEL DE INTERFERÊNCIAS (NÃO INCLUI FORNECIMENTO). AF_03/2024 | I176: M | J176: COEFICIENTE DE REPRESENTATIVIDADE | K176: 119.45 | L176: CAIXA REFERENCIAL
A177: ASSENTAMENTO DE TUBOS E PECAS | B177: ASTU | C177: FORNEC E/OU ASSENT DE TUBO DE CONCRETO COM JUNTA ARGAMASSADA | D177: 0052 | G177: 92818 | H177: TUBO DE CONCRETO PARA REDES COLETORAS DE ÁGUAS PLUVIAIS, DIÂMETRO DE 1500 MM, JUNTA RÍGIDA, INSTALADO EM LOCAL COM BAIXO NÍVEL DE INTERFERÊNCIAS - FORNECIMENTO E ASSENTAMENTO. AF_03/2024 | I177: M | J177: COEFICIENTE DE REPRESENTATIVIDADE | K177: 937.52 | L177: CAIXA REFERENCIAL
A178: ASSENTAMENTO DE TUBOS E PECAS | B178: ASTU | C178: FORNEC E/OU ASSENT DE TUBO DE CONCRETO COM JUNTA ARGAMASSADA | D178: 0052 | G178: 92819 | H178: ASSENTAMENTO DE TUBO DE CONCRETO PARA REDES COLETORAS DE ÁGUAS PLUVIAIS, DIÂMETRO DE 1500 MM, JUNTA RÍGIDA, INSTALADO EM LOCAL COM BAIXO NÍVEL DE INTERFERÊNCIAS (NÃO INCLUI FORNECIMENTO). AF_03/2024 | I178: M | J178: COEFICIENTE DE REPRESENTATIVIDADE | K178: 155.43 | L178: CAIXA REFERENCIAL
A179: ASSENTAMENTO DE TUBOS E PECAS | B179: ASTU | C179: FORNEC E/OU ASSENT DE TUBO DE CONCRETO COM JUNTA ARGAMASSADA | D179: 0052 | G179: 92820 | H179: ASSENTAMENTO DE TUBO DE CONCRETO PARA REDES COLETORAS DE ÁGUAS PLUVIAIS, DIÂMETRO DE 300 MM, JUNTA RÍGIDA, INSTALADO EM LOCAL COM ALTO NÍVEL DE INTERFERÊNCIAS (NÃO INCLUI FORNECIMENTO). AF_03/2024 | I179: M | J179: COEFICIENTE DE REPRESENTATIVIDADE | K179: 26.9 | L179: CAIXA REFERENCIAL
A180: ASSENTAMENTO DE TUBOS E PECAS | B180: ASTU | C180: FORNEC E/OU ASSENT DE TUBO DE CONCRETO COM JUNTA ARGAMASSADA | D180: 0052 | G180: 92821 | H180: ASSENTAMENTO DE TUBO DE CONCRETO PARA REDES COLETORAS DE ÁGUAS PLUVIAIS, DIÂMETRO DE 400 MM, JUNTA RÍGIDA, INSTALADO EM LOCAL COM ALTO NÍVEL DE INTERFERÊNCIAS (NÃO INCLUI FORNECIMENTO). AF_03/2024 | I180: M | J180: COEFICIENTE DE REPRESENTATIVIDADE | K180: 37.48 | L180: CAIXA REFERENCIAL
A181: ASSENTAMENTO DE TUBOS E PECAS | B181: ASTU | C181: FORNEC E/OU ASSENT DE TUBO DE CONCRETO COM JUNTA ARGAMASSADA | D181: 0052 | G181: 92822 | H181: ASSENTAMENTO DE TUBO DE CONCRETO PARA REDES COLETORAS DE ÁGUAS PLUVIAIS, DIÂMETRO DE 500 MM, JUNTA RÍGIDA, INSTALADO EM LOCAL COM ALTO NÍVEL DE INTERFERÊNCIAS (NÃO INCLUI FORNECIMENTO). AF_03/2024 | I181: M | J181: COEFICIENTE DE REPRESENTATIVIDADE | K181: 48.4 | L181: CAIXA REFERENCIAL
A182: ASSENTAMENTO DE TUBOS E PECAS | B182: ASTU | C182: FORNEC E/OU ASSENT DE TUBO DE CONCRETO COM JUNTA ARGAMASSADA | D182: 0052 | G182: 92824 | H182: ASSENTAMENTO DE TUBO DE CONCRETO PARA REDES COLETORAS DE ÁGUAS PLUVIAIS, DIÂMETRO DE 600 MM, JUNTA RÍGIDA, INSTALADO EM LOCAL COM ALTO NÍVEL DE INTERFERÊNCIAS (NÃO INCLUI FORNECIMENTO). AF_03/2024 | I182: M | J182: COEFICIENTE DE REPRESENTATIVIDADE | K182: 59.49 | L182: CAIXA REFERENCIAL
A183: ASSENTAMENTO DE TUBOS E PECAS | B183: ASTU | C183: FORNEC E/OU ASSENT DE TUBO DE CONCRETO COM JUNTA ARGAMASSADA | D183: 0052 | G183: 92825 | H183: ASSENTAMENTO DE TUBO DE CONCRETO PARA REDES COLETORAS DE ÁGUAS PLUVIAIS, DIÂMETRO DE 700 MM, JUNTA RÍGIDA, INSTALADO EM LOCAL COM ALTO NÍVEL DE INTERFERÊNCIAS (NÃO INCLUI FORNECIMENTO). AF_03/2024 | I183: M | J183: COEFICIENTE DE REPRESENTATIVIDADE | K183: 70.86 | L183: CAIXA REFERENCIAL
A184: ASSENTAMENTO DE TUBOS E PECAS | B184: ASTU | C184: FORNEC E/OU ASSENT DE TUBO DE CONCRETO COM JUNTA ARGAMASSADA | D184: 0052 | G184: 92826 | H184: ASSENTAMENTO DE TUBO DE CONCRETO PARA REDES COLETORAS DE ÁGUAS PLUVIAIS, DIÂMETRO DE 800 MM, JUNTA RÍGIDA, INSTALADO EM LOCAL COM ALTO NÍVEL DE INTERFERÊNCIAS (NÃO INCLUI FORNECIMENTO). AF_03/2024 | I184: M | J184: COEFICIENTE DE REPRESENTATIVIDADE | K184: 82.45 | L184: CAIXA REFERENCIAL
A185: ASSENTAMENTO DE TUBOS E PECAS | B185: ASTU | C185: FORNEC E/OU ASSENT DE TUBO DE CONCRETO COM JUNTA ARGAMASSADA | D185: 0052 | G185: 92827 | H185: ASSENTAMENTO DE TUBO DE CONCRETO PARA REDES COLETORAS DE ÁGUAS PLUVIAIS, DIÂMETRO DE 900 MM, JUNTA RÍGIDA, INSTALADO EM LOCAL COM ALTO NÍVEL DE INTERFERÊNCIAS (NÃO INCLUI FORNECIMENTO). AF_03/2024 | I185: M | J185: COEFICIENTE DE REPRESENTATIVIDADE | K185: 94.35 | L185: CAIXA REFERENCIAL
A186: ASSENTAMENTO DE TUBOS E PECAS | B186: ASTU | C186: FORNEC E/OU ASSENT DE TUBO DE CONCRETO COM JUNTA ARGAMASSADA | D186: 0052 | G186: 92828 | H186: ASSENTAMENTO DE TUBO DE CONCRETO PARA REDES COLETORAS DE ÁGUAS PLUVIAIS, DIÂMETRO DE 1000 MM, JUNTA RÍGIDA, INSTALADO EM LOCAL COM ALTO NÍVEL DE INTERFERÊNCIAS (NÃO INCLUI FORNECIMENTO). AF_03/2024 | I186: M | J186: COEFICIENTE DE REPRESENTATIVIDADE | K186: 106.42 | L186: CAIXA REFERENCIAL
A187: ASSENTAMENTO DE TUBOS E PECAS | B187: ASTU | C187: FORNEC E/OU ASSENT DE TUBO DE CONCRETO COM JUNTA ARGAMASSADA | D187: 0052 | G187: 92829 | H187: TUBO DE CONCRETO PARA REDES COLETORAS DE ÁGUAS PLUVIAIS, DIÂMETRO DE 1200 MM, JUNTA RÍGIDA, INSTALADO EM LOCAL COM ALTO NÍVEL DE INTERFERÊNCIAS - FORNECIMENTO E ASSENTAMENTO. AF_03/2024 | I187: M | J187: COEFICIENTE DE REPRESENTATIVIDADE | K187: 671.13 | L187: CAIXA REFERENCIAL
A188: ASSENTAMENTO DE TUBOS E PECAS | B188: ASTU | C188: FORNEC E/OU ASSENT DE TUBO DE CONCRETO COM JUNTA ARGAMASSADA | D188: 0052 | G188: 92830 | H188: ASSENTAMENTO DE TUBO DE CONCRETO PARA REDES COLETORAS DE ÁGUAS PLUVIAIS, DIÂMETRO DE 1200 MM, JUNTA RÍGIDA, INSTALADO EM LOCAL COM ALTO NÍVEL DE INTERFERÊNCIAS (NÃO INCLUI FORNECIMENTO). AF_03/2024 | I188: M | J188: COEFICIENTE DE REPRESENTATIVIDADE | K188: 131.3 | L188: CAIXA REFERENCIAL
A189: ASSENTAMENTO DE TUBOS E PECAS | B189: ASTU | C189: FORNEC E/OU ASSENT DE TUBO DE CONCRETO COM JUNTA ARGAMASSADA | D189: 0052 | G189: 92831 | H189: TUBO DE CONCRETO PARA REDES COLETORAS DE ÁGUAS PLUVIAIS, DIÂMETRO DE 1500 MM, JUNTA RÍGIDA, INSTALADO EM LOCAL COM ALTO NÍVEL DE INTERFERÊNCIAS - FORNECIMENTO E ASSENTAMENTO. AF_03/2024 | I189: M | J189: COEFICIENTE DE REPRESENTATIVIDADE | K189: 952.51 | L189: CAIXA REFERENCIAL
A190: ASSENTAMENTO DE TUBOS E PECAS | B190: ASTU | C190: FORNEC E/OU ASSENT DE TUBO DE CONCRETO COM JUNTA ARGAMASSADA | D190: 0052 | G190: 92832 | H190: ASSENTAMENTO DE TUBO DE CONCRETO PARA REDES COLETORAS DE ÁGUAS PLUVIAIS, DIÂMETRO DE 1500 MM, JUNTA RÍGIDA, INSTALADO EM LOCAL COM ALTO NÍVEL DE INTERFERÊNCIAS (NÃO INCLUI FORNECIMENTO). AF_03/2024 | I190: M | J190: COEFICIENTE DE REPRESENTATIVIDADE | K190: 170.42 | L190: CAIXA REFERENCIAL
A191: ASSENTAMENTO DE TUBOS E PECAS | B191: ASTU | C191: FORNEC E/OU ASSENT DE TUBO DE CONCRETO COM JUNTA ARGAMASSADA | D191: 0052 | G191: 95565 | H191: TUBO DE CONCRETO PARA REDES COLETORAS DE ÁGUAS PLUVIAIS, DIÂMETRO DE 300MM, JUNTA RÍGIDA, INSTALADO EM LOCAL COM BAIXO NÍVEL DE INTERFERÊNCIAS - FORNECIMENTO E ASSENTAMENTO. AF_03/2024 | I191: M | J191: COEFICIENTE DE REPRESENTATIVIDADE | K191: 109.33 | L191: CAIXA REFERENCIAL
A192: ASSENTAMENTO DE TUBOS E PECAS | B192: ASTU | C192: FORNEC E/OU ASSENT DE TUBO DE CONCRETO COM JUNTA ARGAMASSADA | D192: 0052 | G192: 95566 | H192: TUBO DE CONCRETO PARA REDES COLETORAS DE ÁGUAS PLUVIAIS, DIÂMETRO DE 300MM, JUNTA RÍGIDA, INSTALADO EM LOCAL COM ALTO NÍVEL DE INTERFERÊNCIAS - FORNECIMENTO E ASSENTAMENTO. AF_03/2024 | I192: M | J192: COEFICIENTE DE REPRESENTATIVIDADE | K192: 111.8 | L192: CAIXA REFERENCIAL
A193: ASSENTAMENTO DE TUBOS E PECAS | B193: ASTU | C193: FORNEC E/OU ASSENT DE TUBO DE CONCRETO COM JUNTA ARGAMASSADA | D193: 0052 | G193: 95567 | H193: TUBO DE CONCRETO (SIMPLES) PARA REDES COLETORAS DE ÁGUAS PLUVIAIS, DIÂMETRO DE 300 MM, JUNTA RÍGIDA, INSTALADO EM LOCAL COM BAIXO NÍVEL DE INTERFERÊNCIAS - FORNECIMENTO E ASSENTAMENTO. AF_03/2024 | I193: M | J193: ATRIBUÍDO SÃO PAULO | K193: 88.29 | L193: CAIXA REFERENCIAL
A194: ASSENTAMENTO DE TUBOS E PECAS | B194: ASTU | C194: FORNEC E/OU ASSENT DE TUBO DE CONCRETO COM JUNTA ARGAMASSADA | D194: 0052 | G194: 95568 | H194: TUBO DE CONCRETO (SIMPLES) PARA REDES COLETORAS DE ÁGUAS PLUVIAIS, DIÂMETRO DE 400 MM, JUNTA RÍGIDA, INSTALADO EM LOCAL COM BAIXO NÍVEL DE INTERFERÊNCIAS - FORNECIMENTO E ASSENTAMENTO. AF_03/2024 | I194: M | J194: ATRIBUÍDO SÃO PAULO | K194: 109.44 | L194: CAIXA REFERENCIAL
A195: ASSENTAMENTO DE TUBOS E PECAS | B195: ASTU | C195: FORNEC E/OU ASSENT DE TUBO DE CONCRETO COM JUNTA ARGAMASSADA | D195: 0052 | G195: 95569 | H195: TUBO DE CONCRETO (SIMPLES) PARA REDES COLETORAS DE ÁGUAS PLUVIAIS, DIÂMETRO DE 500 MM, JUNTA RÍGIDA, INSTALADO EM LOCAL COM BAIXO NÍVEL DE INTERFERÊNCIAS - FORNECIMENTO E ASSENTAMENTO. AF_03/2024 | I195: M | J195: ATRIBUÍDO SÃO PAULO | K195: 156.16 | L195: CAIXA REFERENCIAL
A196: ASSENTAMENTO DE TUBOS E PECAS | B196: ASTU | C196: FORNEC E/OU ASSENT DE TUBO DE CONCRETO COM JUNTA ARGAMASSADA | D196: 0052 | G196: 95570 | H196: TUBO DE CONCRETO (SIMPLES) PARA REDES COLETORAS DE ÁGUAS PLUVIAIS, DIÂMETRO DE 300 MM, JUNTA RÍGIDA, INSTALADO EM LOCAL COM ALTO NÍVEL DE INTERFERÊNCIAS - FORNECIMENTO E ASSENTAMENTO. AF_03/2024 | I196: M | J196: ATRIBUÍDO SÃO PAULO | K196: 90.76 | L196: CAIXA REFERENCIAL
A197: ASSENTAMENTO DE TUBOS E PECAS | B197: ASTU | C197: FORNEC E/OU ASSENT DE TUBO DE CONCRETO COM JUNTA ARGAMASSADA | D197: 0052 | G197: 95571 | H197: TUBO DE CONCRETO (SIMPLES) PARA REDES COLETORAS DE ÁGUAS PLUVIAIS, DIÂMETRO DE 400 MM, JUNTA RÍGIDA, INSTALADO EM LOCAL COM ALTO NÍVEL DE INTERFERÊNCIAS - FORNECIMENTO E ASSENTAMENTO. AF_03/2024 | I197: M | J197: ATRIBUÍDO SÃO PAULO | K197: 112.93 | L197: CAIXA REFERENCIAL
A198: ASSENTAMENTO DE TUBOS E PECAS | B198: ASTU | C198: FORNEC E/OU ASSENT DE TUBO DE CONCRETO COM JUNTA ARGAMASSADA | D198: 0052 | G198: 95572 | H198: TUBO DE CONCRETO (SIMPLES) PARA REDES COLETORAS DE ÁGUAS PLUVIAIS, DIÂMETRO DE 500 MM, JUNTA RÍGIDA, INSTALADO EM LOCAL COM ALTO NÍVEL DE INTERFERÊNCIAS - FORNECIMENTO E ASSENTAMENTO. AF_03/2024 | I198: M | J198: ATRIBUÍDO SÃO PAULO | K198: 160.71 | L198: CAIXA REFERENCIAL
A199: ASSENTAMENTO DE TUBOS E PECAS | B199: ASTU | C199: FORNEC E/OU ASSENT DE TUBO PVC DEFOFO COM JUNTA ELASTICA | D199: 0230 | G199: 97127 | H199: ASSENTAMENTO DE TUBO DE PVC DEFOFO OU PRFV OU RPVC PARA REDE DE ÁGUA, DN 150 MM, JUNTA ELÁSTICA INTEGRADA, INSTALADO EM LOCAL COM NÍVEL ALTO DE INTERFERÊNCIAS (NÃO INCLUI FORNECIMENTO). AF_11/2017 | I199: M | J199: COEFICIENTE DE REPRESENTATIVIDADE | K199: 4.82 | L199: CAIXA REFERENCIAL
A200: ASSENTAMENTO DE TUBOS E PECAS | B200: ASTU | C200: FORNEC E/OU ASSENT DE TUBO PVC DEFOFO COM JUNTA ELASTICA | D200: 0230 | G200: 97128 | H200: ASSENTAMENTO DE TUBO DE PVC DEFOFO OU PRFV OU RPVC PARA REDE DE ÁGUA, DN 200 MM, JUNTA ELÁSTICA INTEGRADA, INSTALADO EM LOCAL COM NÍVEL ALTO DE INTERFERÊNCIAS (NÃO INCLUI FORNECIMENTO). AF_11/2017 | I200: M | J200: COEFICIENTE DE REPRESENTATIVIDADE | K200: 10.61 | L200: CAIXA REFERENCIAL
A201: ASSENTAMENTO DE TUBOS E PECAS | B201: ASTU | C201: FORNEC E/OU ASSENT DE TUBO PVC DEFOFO COM JUNTA ELASTICA | D201: 0230 | G201: 97129 | H201: ASSENTAMENTO DE TUBO DE PVC DEFOFO OU PRFV OU RPVC PARA REDE DE ÁGUA, DN 250 MM, JUNTA ELÁSTICA INTEGRADA, INSTALADO EM LOCAL COM NÍVEL ALTO DE INTERFERÊNCIAS (NÃO INCLUI FORNECIMENTO). AF_11/2017 | I201: M | J201: COEFICIENTE DE REPRESENTATIVIDADE | K201: 13.05 | L201: CAIXA REFERENCIAL
A202: ASSENTAMENTO DE TUBOS E PECAS | B202: ASTU | C202: FORNEC E/OU ASSENT DE TUBO PVC DEFOFO COM JUNTA ELASTICA | D202: 0230 | G202: 97130 | H202: ASSENTAMENTO DE TUBO DE PVC DEFOFO OU PRFV OU RPVC PARA REDE DE ÁGUA, DN 300 MM, JUNTA ELÁSTICA INTEGRADA, INSTALADO EM LOCAL COM NÍVEL ALTO DE INTERFERÊNCIAS (NÃO INCLUI FORNECIMENTO). AF_11/2017 | I202: M | J202: COEFICIENTE DE REPRESENTATIVIDADE | K202: 15.49 | L202: CAIXA REFERENCIAL
... 7352 more rows

Sheet Comp SINAPI BA 05-2023 Desoner (hidden)
A1: PCI.817.01 - CUSTO DE COMPOSIÇÕES - SINTÉTICO DATA DE EMISSÃO: 20/06/2023 16:33:11 DATA DE RT: 20/06/2023
A2: ENCARGOS SOCIAIS DESONERADOS: 85,51%(HORA) 47,56%(MÊS)
A3: ABRANGÊNCIA : NACIONAL LOCALIDADE : SALVADOR DATA DE PREÇO : 05/2023 REFERÊNCIA COLETA : MEDIANO
A5: DESCRICAO DA CLASSE | B5: SIGLA DA CLASSE | C5: DESCRICAO DO TIPO 1 | D5: SIGLA DO TIPO 1 | E5: CODIGO DO AGRUPADOR | F5: DESCRICAO DO AGRUPADOR | G5: CODIGO DA COMPOSICAO | H5: DESCRICAO DA COMPOSICAO | I5: UNIDADE | J5: ORIGEM DE PREÇO | K5: CUSTO TOTAL | L5: VINCULO
A7: ASSENTAMENTO DE TUBOS E PECAS | B7: ASTU | C7: FORNEC E/OU ASSENT DE TUBO DE FERRO FUNDIDO JUNTA ELASTICA | D7: 45 | G7: 97141 | H7: ASSENTAMENTO DE TUBO DE FERRO FUNDIDO PARA REDE DE ÁGUA, DN 80 MM, JUNTA ELÁSTICA, INSTALADO EM LOCAL COM NÍVEL ALTO DE INTERFERÊNCIAS (NÃO INCLUI FORNECIMENTO). AF_11/2017 | I7: M | J7: COEFICIENTE DE REPRESENTATIVIDADE | K7: 10.52 | L7: CAIXA REFERENCIAL
A8: ASSENTAMENTO DE TUBOS E PECAS | B8: ASTU | C8: FORNEC E/OU ASSENT DE TUBO DE FERRO FUNDIDO JUNTA ELASTICA | D8: 45 | G8: 97142 | H8: ASSENTAMENTO DE TUBO DE FERRO FUNDIDO PARA REDE DE ÁGUA, DN 100 MM, JUNTA ELÁSTICA, INSTALADO EM LOCAL COM NÍVEL ALTO DE INTERFERÊNCIAS (NÃO INCLUI FORNECIMENTO). AF_11/2017 | I8: M | J8: COEFICIENTE DE REPRESENTATIVIDADE | K8: 11.78 | L8: CAIXA REFERENCIAL
A9: ASSENTAMENTO DE TUBOS E PECAS | B9: ASTU | C9: FORNEC E/OU ASSENT DE TUBO DE FERRO FUNDIDO JUNTA ELASTICA | D9: 45 | G9: 97143 | H9: ASSENTAMENTO DE TUBO DE FERRO FUNDIDO PARA REDE DE ÁGUA, DN 150 MM, JUNTA ELÁSTICA, INSTALADO EM LOCAL COM NÍVEL ALTO DE INTERFERÊNCIAS (NÃO INCLUI FORNECIMENTO). AF_11/2017 | I9: M | J9: COEFICIENTE DE REPRESENTATIVIDADE | K9: 14.89 | L9: CAIXA REFERENCIAL
A10: ASSENTAMENTO DE TUBOS E PECAS | B10: ASTU | C10: FORNEC E/OU ASSENT DE TUBO DE FERRO FUNDIDO JUNTA ELASTICA | D10: 45 | G10: 97144 | H10: ASSENTAMENTO DE TUBO DE FERRO FUNDIDO PARA REDE DE ÁGUA, DN 200 MM, JUNTA ELÁSTICA, INSTALADO EM LOCAL COM NÍVEL ALTO DE INTERFERÊNCIAS (NÃO INCLUI FORNECIMENTO). AF_11/2017 | I10: M | J10: COEFICIENTE DE REPRESENTATIVIDADE | K10: 17.99 | L10: CAIXA REFERENCIAL
A11: ASSENTAMENTO DE TUBOS E PECAS | B11: ASTU | C11: FORNEC E/OU ASSENT DE TUBO DE FERRO FUNDIDO JUNTA ELASTICA | D11: 45 | G11: 97145 | H11: ASSENTAMENTO DE TUBO DE FERRO FUNDIDO PARA REDE DE ÁGUA, DN 250 MM, JUNTA ELÁSTICA, INSTALADO EM LOCAL COM NÍVEL ALTO DE INTERFERÊNCIAS (NÃO INCLUI FORNECIMENTO). AF_11/2017 | I11: M | J11: COEFICIENTE DE REPRESENTATIVIDADE | K11: 21.12 | L11: CAIXA REFERENCIAL
A12: ASSENTAMENTO DE TUBOS E PECAS | B12: ASTU | C12: FORNEC E/OU ASSENT DE TUBO DE FERRO FUNDIDO JUNTA ELASTICA | D12: 45 | G12: 97146 | H12: ASSENTAMENTO DE TUBO DE FERRO FUNDIDO PARA REDE DE ÁGUA, DN 300 MM, JUNTA ELÁSTICA, INSTALADO EM LOCAL COM NÍVEL ALTO DE INTERFERÊNCIAS (NÃO INCLUI FORNECIMENTO). AF_11/2017 | I12: M | J12: COEFICIENTE DE REPRESENTATIVIDADE | K12: 24.26 | L12: CAIXA REFERENCIAL
A13: ASSENTAMENTO DE TUBOS E PECAS | B13: ASTU | C13: FORNEC E/OU ASSENT DE TUBO DE FERRO FUNDIDO JUNTA ELASTICA | D13: 45 | G13: 97147 | H13: ASSENTAMENTO DE TUBO DE FERRO FUNDIDO PARA REDE DE ÁGUA, DN 350 MM, JUNTA ELÁSTICA, INSTALADO EM LOCAL COM NÍVEL ALTO DE INTERFERÊNCIAS (NÃO INCLUI FORNECIMENTO). AF_11/2017 | I13: M | J13: COEFICIENTE DE REPRESENTATIVIDADE | K13: 27.4 | L13: CAIXA REFERENCIAL
A14: ASSENTAMENTO DE TUBOS E PECAS | B14: ASTU | C14: FORNEC E/OU ASSENT DE TUBO DE FERRO FUNDIDO JUNTA ELASTICA | D14: 45 | G14: 97148 | H14: ASSENTAMENTO DE TUBO DE FERRO FUNDIDO PARA REDE DE ÁGUA, DN 400 MM, JUNTA ELÁSTICA, INSTALADO EM LOCAL COM NÍVEL ALTO DE INTERFERÊNCIAS (NÃO INCLUI FORNECIMENTO). AF_11/2017 | I14: M | J14: COEFICIENTE DE REPRESENTATIVIDADE | K14: 30.51 | L14: CAIXA REFERENCIAL
A15: ASSENTAMENTO DE TUBOS E PECAS | B15: ASTU | C15: FORNEC E/OU ASSENT DE TUBO DE FERRO FUNDIDO JUNTA ELASTICA | D15: 45 | G15: 97149 | H15: ASSENTAMENTO DE TUBO DE FERRO FUNDIDO PARA REDE DE ÁGUA, DN 450 MM, JUNTA ELÁSTICA, INSTALADO EM LOCAL COM NÍVEL ALTO DE INTERFERÊNCIAS (NÃO INCLUI FORNECIMENTO). AF_11/2017 | I15: M | J15: COEFICIENTE DE REPRESENTATIVIDADE | K15: 33.67 | L15: CAIXA REFERENCIAL
A16: ASSENTAMENTO DE TUBOS E PECAS | B16: ASTU | C16: FORNEC E/OU ASSENT DE TUBO DE FERRO FUNDIDO JUNTA ELASTICA | D16: 45 | G16: 97150 | H16: ASSENTAMENTO DE TUBO DE FERRO FUNDIDO PARA REDE DE ÁGUA, DN 500 MM, JUNTA ELÁSTICA, INSTALADO EM LOCAL COM NÍVEL ALTO DE INTERFERÊNCIAS (NÃO INCLUI FORNECIMENTO). AF_11/2017 | I16: M | J16: COEFICIENTE DE REPRESENTATIVIDADE | K16: 41.04 | L16: CAIXA REFERENCIAL
A17: ASSENTAMENTO DE TUBOS E PECAS | B17: ASTU | C17: FORNEC E/OU ASSENT DE TUBO DE FERRO FUNDIDO JUNTA ELASTICA | D17: 45 | G17: 97151 | H17: ASSENTAMENTO DE TUBO DE FERRO FUNDIDO PARA REDE DE ÁGUA, DN 600 MM, JUNTA ELÁSTICA, INSTALADO EM LOCAL COM NÍVEL ALTO DE INTERFERÊNCIAS (NÃO INCLUI FORNECIMENTO). AF_11/2017 | I17: M | J17: COEFICIENTE DE REPRESENTATIVIDADE | K17: 47.93 | L17: CAIXA REFERENCIAL
A18: ASSENTAMENTO DE TUBOS E PECAS | B18: ASTU | C18: FORNEC E/OU ASSENT DE TUBO DE FERRO FUNDIDO JUNTA ELASTICA | D18: 45 | G18: 97152 | H18: ASSENTAMENTO DE TUBO DE FERRO FUNDIDO PARA REDE DE ÁGUA, DN 700 MM, JUNTA ELÁSTICA, INSTALADO EM LOCAL COM NÍVEL ALTO DE INTERFERÊNCIAS (NÃO INCLUI FORNECIMENTO). AF_11/2017 | I18: M | J18: COEFICIENTE DE REPRESENTATIVIDADE | K18: 54.61 | L18: CAIXA REFERENCIAL
A19: ASSENTAMENTO DE TUBOS E PECAS | B19: ASTU | C19: FORNEC E/OU ASSENT DE TUBO DE FERRO FUNDIDO JUNTA ELASTICA | D19: 45 | G19: 97153 | H19: ASSENTAMENTO DE TUBO DE FERRO FUNDIDO PARA REDE DE ÁGUA, DN 800 MM, JUNTA ELÁSTICA, INSTALADO EM LOCAL COM NÍVEL ALTO DE INTERFERÊNCIAS (NÃO INCLUI FORNECIMENTO). AF_11/2017 | I19: M | J19: COEFICIENTE DE REPRESENTATIVIDADE | K19: 61.4 | L19: CAIXA REFERENCIAL
A20: ASSENTAMENTO DE TUBOS E PECAS | B20: ASTU | C20: FORNEC E/OU ASSENT DE TUBO DE FERRO FUNDIDO JUNTA ELASTICA | D20: 45 | G20: 97154 | H20: ASSENTAMENTO DE TUBO DE FERRO FUNDIDO PARA REDE DE ÁGUA, DN 900 MM, JUNTA ELÁSTICA, INSTALADO EM LOCAL COM NÍVEL ALTO DE INTERFERÊNCIAS (NÃO INCLUI FORNECIMENTO). AF_11/2017 | I20: M | J20: COEFICIENTE DE REPRESENTATIVIDADE | K20: 68.25 | L20: CAIXA REFERENCIAL
A21: ASSENTAMENTO DE TUBOS E PECAS | B21: ASTU | C21: FORNEC E/OU ASSENT DE TUBO DE FERRO FUNDIDO JUNTA ELASTICA | D21: 45 | G21: 97155 | H21: ASSENTAMENTO DE TUBO DE FERRO FUNDIDO PARA REDE DE ÁGUA, DN 1000 MM, JUNTA ELÁSTICA, INSTALADO EM LOCAL COM NÍVEL ALTO DE INTERFERÊNCIAS (NÃO INCLUI FORNECIMENTO). AF_11/2017 | I21: M | J21: COEFICIENTE DE REPRESENTATIVIDADE | K21: 75.09 | L21: CAIXA REFERENCIAL
A22: ASSENTAMENTO DE TUBOS E PECAS | B22: ASTU | C22: FORNEC E/OU ASSENT DE TUBO DE FERRO FUNDIDO JUNTA ELASTICA | D22: 45 | G22: 97156 | H22: ASSENTAMENTO DE TUBO DE FERRO FUNDIDO PARA REDE DE ÁGUA, DN 1200 MM, JUNTA ELÁSTICA, INSTALADO EM LOCAL COM NÍVEL ALTO DE INTERFERÊNCIAS (NÃO INCLUI FORNECIMENTO). AF_11/2017 | I22: M | J22: COEFICIENTE DE REPRESENTATIVIDADE | K22: 89.2 | L22: CAIXA REFERENCIAL
A23: ASSENTAMENTO DE TUBOS E PECAS | B23: ASTU | C23: FORNEC E/OU ASSENT DE TUBO DE FERRO FUNDIDO JUNTA ELASTICA | D23: 45 | G23: 97157 | H23: ASSENTAMENTO DE TUBO DE FERRO FUNDIDO PARA REDE DE ÁGUA, DN 80 MM, JUNTA ELÁSTICA, INSTALADO EM LOCAL COM NÍVEL BAIXO DE INTERFERÊNCIAS (NÃO INCLUI FORNECIMENTO). AF_11/2017 | I23: M | J23: COEFICIENTE DE REPRESENTATIVIDADE | K23: 6.3 | L23: CAIXA REFERENCIAL
A24: ASSENTAMENTO DE TUBOS E PECAS | B24: ASTU | C24: FORNEC E/OU ASSENT DE TUBO DE FERRO FUNDIDO JUNTA ELASTICA | D24: 45 | G24: 97158 | H24: ASSENTAMENTO DE TUBO DE FERRO FUNDIDO PARA REDE DE ÁGUA, DN 100 MM, JUNTA ELÁSTICA, INSTALADO EM LOCAL COM NÍVEL BAIXO DE INTERFERÊNCIAS (NÃO INCLUI FORNECIMENTO). AF_11/2017 | I24: M | J24: COEFICIENTE DE REPRESENTATIVIDADE | K24: 7.08 | L24: CAIXA REFERENCIAL
A25: ASSENTAMENTO DE TUBOS E PECAS | B25: ASTU | C25: FORNEC E/OU ASSENT DE TUBO DE FERRO FUNDIDO JUNTA ELASTICA | D25: 45 | G25: 97159 | H25: ASSENTAMENTO DE TUBO DE FERRO FUNDIDO PARA REDE DE ÁGUA, DN 150 MM, JUNTA ELÁSTICA, INSTALADO EM LOCAL COM NÍVEL BAIXO DE INTERFERÊNCIAS (NÃO INCLUI FORNECIMENTO). AF_11/2017 | I25: M | J25: COEFICIENTE DE REPRESENTATIVIDADE | K25: 8.97 | L25: CAIXA REFERENCIAL
A26: ASSENTAMENTO DE TUBOS E PECAS | B26: ASTU | C26: FORNEC E/OU ASSENT DE TUBO DE FERRO FUNDIDO JUNTA ELASTICA | D26: 45 | G26: 97160 | H26: ASSENTAMENTO DE TUBO DE FERRO FUNDIDO PARA REDE DE ÁGUA, DN 200 MM, JUNTA ELÁSTICA, INSTALADO EM LOCAL COM NÍVEL BAIXO DE INTERFERÊNCIAS (NÃO INCLUI FORNECIMENTO). AF_11/2017 | I26: M | J26: COEFICIENTE DE REPRESENTATIVIDADE | K26: 10.82 | L26: CAIXA REFERENCIAL
A27: ASSENTAMENTO DE TUBOS E PECAS | B27: ASTU | C27: FORNEC E/OU ASSENT DE TUBO DE FERRO FUNDIDO JUNTA ELASTICA | D27: 45 | G27: 97161 | H27: ASSENTAMENTO DE TUBO DE FERRO FUNDIDO PARA REDE DE ÁGUA, DN 250 MM, JUNTA ELÁSTICA, INSTALADO EM LOCAL COM NÍVEL BAIXO DE INTERFERÊNCIAS (NÃO INCLUI FORNECIMENTO). AF_11/2017 | I27: M | J27: COEFICIENTE DE REPRESENTATIVIDADE | K27: 12.75 | L27: CAIXA REFERENCIAL
A28: ASSENTAMENTO DE TUBOS E PECAS | B28: ASTU | C28: FORNEC E/OU ASSENT DE TUBO DE FERRO FUNDIDO JUNTA ELASTICA | D28: 45 | G28: 97162 | H28: ASSENTAMENTO DE TUBO DE FERRO FUNDIDO PARA REDE DE ÁGUA, DN 300 MM, JUNTA ELÁSTICA, INSTALADO EM LOCAL COM NÍVEL BAIXO DE INTERFERÊNCIAS (NÃO INCLUI FORNECIMENTO). AF_11/2017 | I28: M | J28: COEFICIENTE DE REPRESENTATIVIDADE | K28: 14.65 | L28: CAIXA REFERENCIAL
A29: ASSENTAMENTO DE TUBOS E PECAS | B29: ASTU | C29: FORNEC E/OU ASSENT DE TUBO DE FERRO FUNDIDO JUNTA ELASTICA | D29: 45 | G29: 97163 | H29: ASSENTAMENTO DE TUBO DE FERRO FUNDIDO PARA REDE DE ÁGUA, DN 350 MM, JUNTA ELÁSTICA, INSTALADO EM LOCAL COM NÍVEL BAIXO DE INTERFERÊNCIAS (NÃO INCLUI FORNECIMENTO). AF_11/2017 | I29: M | J29: COEFICIENTE DE REPRESENTATIVIDADE | K29: 16.56 | L29: CAIXA REFERENCIAL
A30: ASSENTAMENTO DE TUBOS E PECAS | B30: ASTU | C30: FORNEC E/OU ASSENT DE TUBO DE FERRO FUNDIDO JUNTA ELASTICA | D30: 45 | G30: 97164 | H30: ASSENTAMENTO DE TUBO DE FERRO FUNDIDO PARA REDE DE ÁGUA, DN 400 MM, JUNTA ELÁSTICA, INSTALADO EM LOCAL COM NÍVEL BAIXO DE INTERFERÊNCIAS (NÃO INCLUI FORNECIMENTO). AF_11/2017 | I30: M | J30: COEFICIENTE DE REPRESENTATIVIDADE | K30: 18.45 | L30: CAIXA REFERENCIAL
A31: ASSENTAMENTO DE TUBOS E PECAS | B31: ASTU | C31: FORNEC E/OU ASSENT DE TUBO DE FERRO FUNDIDO JUNTA ELASTICA | D31: 45 | G31: 97165 | H31: ASSENTAMENTO DE TUBO DE FERRO FUNDIDO PARA REDE DE ÁGUA, DN 450 MM, JUNTA ELÁSTICA, INSTALADO EM LOCAL COM NÍVEL BAIXO DE INTERFERÊNCIAS (NÃO INCLUI FORNECIMENTO). AF_11/2017 | I31: M | J31: COEFICIENTE DE REPRESENTATIVIDADE | K31: 20.39 | L31: CAIXA REFERENCIAL
A32: ASSENTAMENTO DE TUBOS E PECAS | B32: ASTU | C32: FORNEC E/OU ASSENT DE TUBO DE FERRO FUNDIDO JUNTA ELASTICA | D32: 45 | G32: 97166 | H32: ASSENTAMENTO DE TUBO DE FERRO FUNDIDO PARA REDE DE ÁGUA, DN 500 MM, JUNTA ELÁSTICA, INSTALADO EM LOCAL COM NÍVEL BAIXO DE INTERFERÊNCIAS (NÃO INCLUI FORNECIMENTO). AF_11/2017 | I32: M | J32: COEFICIENTE DE REPRESENTATIVIDADE | K32: 24.88 | L32: CAIXA REFERENCIAL
A33: ASSENTAMENTO DE TUBOS E PECAS | B33: ASTU | C33: FORNEC E/OU ASSENT DE TUBO DE FERRO FUNDIDO JUNTA ELASTICA | D33: 45 | G33: 97167 | H33: ASSENTAMENTO DE TUBO DE FERRO FUNDIDO PARA REDE DE ÁGUA, DN 600 MM, JUNTA ELÁSTICA, INSTALADO EM LOCAL COM NÍVEL BAIXO DE INTERFERÊNCIAS (NÃO INCLUI FORNECIMENTO). AF_11/2017 | I33: M | J33: COEFICIENTE DE REPRESENTATIVIDADE | K33: 29.08 | L33: CAIXA REFERENCIAL
A34: ASSENTAMENTO DE TUBOS E PECAS | B34: ASTU | C34: FORNEC E/OU ASSENT DE TUBO DE FERRO FUNDIDO JUNTA ELASTICA | D34: 45 | G34: 97168 | H34: ASSENTAMENTO DE TUBO DE FERRO FUNDIDO PARA REDE DE ÁGUA, DN 700 MM, JUNTA ELÁSTICA, INSTALADO EM LOCAL COM NÍVEL BAIXO DE INTERFERÊNCIAS (NÃO INCLUI FORNECIMENTO). AF_11/2017 | I34: M | J34: COEFICIENTE DE REPRESENTATIVIDADE | K34: 33.06 | L34: CAIXA REFERENCIAL
A35: ASSENTAMENTO DE TUBOS E PECAS | B35: ASTU | C35: FORNEC E/OU ASSENT DE TUBO DE FERRO FUNDIDO JUNTA ELASTICA | D35: 45 | G35: 97169 | H35: ASSENTAMENTO DE TUBO DE FERRO FUNDIDO PARA REDE DE ÁGUA, DN 800 MM, JUNTA ELÁSTICA, INSTALADO EM LOCAL COM NÍVEL BAIXO DE INTERFERÊNCIAS (NÃO INCLUI FORNECIMENTO). AF_11/2017 | I35: M | J35: COEFICIENTE DE REPRESENTATIVIDADE | K35: 37.17 | L35: CAIXA REFERENCIAL
A36: ASSENTAMENTO DE TUBOS E PECAS | B36: ASTU | C36: FORNEC E/OU ASSENT DE TUBO DE FERRO FUNDIDO JUNTA ELASTICA | D36: 45 | G36: 97170 | H36: ASSENTAMENTO DE TUBO DE FERRO FUNDIDO PARA REDE DE ÁGUA, DN 900 MM, JUNTA ELÁSTICA, INSTALADO EM LOCAL COM NÍVEL BAIXO DE INTERFERÊNCIAS (NÃO INCLUI FORNECIMENTO). AF_11/2017 | I36: M | J36: COEFICIENTE DE REPRESENTATIVIDADE | K36: 41.31 | L36: CAIXA REFERENCIAL
A37: ASSENTAMENTO DE TUBOS E PECAS | B37: ASTU | C37: FORNEC E/OU ASSENT DE TUBO DE FERRO FUNDIDO JUNTA ELASTICA | D37: 45 | G37: 97171 | H37: ASSENTAMENTO DE TUBO DE FERRO FUNDIDO PARA REDE DE ÁGUA, DN 1000 MM, JUNTA ELÁSTICA, INSTALADO EM LOCAL COM NÍVEL BAIXO DE INTERFERÊNCIAS (NÃO INCLUI FORNECIMENTO). AF_11/2017 | I37: M | J37: COEFICIENTE DE REPRESENTATIVIDADE | K37: 45.49 | L37: CAIXA REFERENCIAL
A38: ASSENTAMENTO DE TUBOS E PECAS | B38: ASTU | C38: FORNEC E/OU ASSENT DE TUBO DE FERRO FUNDIDO JUNTA ELASTICA | D38: 45 | G38: 97172 | H38: ASSENTAMENTO DE TUBO DE FERRO FUNDIDO PARA REDE DE ÁGUA, DN 1200 MM, JUNTA ELÁSTICA, INSTALADO EM LOCAL COM NÍVEL BAIXO DE INTERFERÊNCIAS (NÃO INCLUI FORNECIMENTO). AF_11/2017 | I38: M | J38: COEFICIENTE DE REPRESENTATIVIDADE | K38: 54.23 | L38: CAIXA REFERENCIAL
A39: ASSENTAMENTO DE TUBOS E PECAS | B39: ASTU | C39: FORNEC E/OU ASSENT DE TUBO DE ACO COM JUNTA SOLDADA | D39: 46 | G39: 97173 | H39: ASSENTAMENTO DE TUBO DE AÇO CARBONO PARA REDE DE ÁGUA, DN 600 MM (24), JUNTA SOLDADA, INSTALADO EM LOCAL COM NÍVEL ALTO DE INTERFERÊNCIAS (NÃO INCLUI FORNECIMENTO). AF_11/2017 | I39: M | J39: COEFICIENTE DE REPRESENTATIVIDADE | K39: 43.01 | L39: CAIXA REFERENCIAL
A40: ASSENTAMENTO DE TUBOS E PECAS | B40: ASTU | C40: FORNEC E/OU ASSENT DE TUBO DE ACO COM JUNTA SOLDADA | D40: 46 | G40: 97174 | H40: ASSENTAMENTO DE TUBO DE AÇO CARBONO PARA REDE DE ÁGUA, DN 700 MM (28), JUNTA SOLDADA, INSTALADO EM LOCAL COM NÍVEL ALTO DE INTERFERÊNCIAS (NÃO INCLUI FORNECIMENTO). AF_11/2017 | I40: M | J40: COEFICIENTE DE REPRESENTATIVIDADE | K40: 49.69 | L40: CAIXA REFERENCIAL
A41: ASSENTAMENTO DE TUBOS E PECAS | B41: ASTU | C41: FORNEC E/OU ASSENT DE TUBO DE ACO COM JUNTA SOLDADA | D41: 46 | G41: 97175 | H41: ASSENTAMENTO DE TUBO DE AÇO CARBONO PARA REDE DE ÁGUA, DN 800 MM (32), JUNTA SOLDADA, INSTALADO EM LOCAL COM NÍVEL ALTO DE INTERFERÊNCIAS (NÃO INCLUI FORNECIMENTO). AF_11/2017 | I41: M | J41: COEFICIENTE DE REPRESENTATIVIDADE | K41: 56.38 | L41: CAIXA REFERENCIAL
A42: ASSENTAMENTO DE TUBOS E PECAS | B42: ASTU | C42: FORNEC E/OU ASSENT DE TUBO DE ACO COM JUNTA SOLDADA | D42: 46 | G42: 97176 | H42: ASSENTAMENTO DE TUBO DE AÇO CARBONO PARA REDE DE ÁGUA, DN 900 MM (36), JUNTA SOLDADA, INSTALADO EM LOCAL COM NÍVEL ALTO DE INTERFERÊNCIAS (NÃO INCLUI FORNECIMENTO). AF_11/2017 | I42: M | J42: COEFICIENTE DE REPRESENTATIVIDADE | K42: 63.06 | L42: CAIXA REFERENCIAL
A43: ASSENTAMENTO DE TUBOS E PECAS | B43: ASTU | C43: FORNEC E/OU ASSENT DE TUBO DE ACO COM JUNTA SOLDADA | D43: 46 | G43: 97177 | H43: ASSENTAMENTO DE TUBO DE AÇO CARBONO PARA REDE DE ÁGUA, DN 1000 MM (40) OU DN 1100 MM (44), JUNTA SOLDADA, INSTALADO EM LOCAL COM NÍVEL ALTO DE INTERFERÊNCIAS (NÃO INCLUI FORNECIMENTO). AF_11/2017 | I43: M | J43: COEFICIENTE DE REPRESENTATIVIDADE | K43: 76.43 | L43: CAIXA REFERENCIAL
A44: ASSENTAMENTO DE TUBOS E PECAS | B44: ASTU | C44: FORNEC E/OU ASSENT DE TUBO DE ACO COM JUNTA SOLDADA | D44: 46 | G44: 97178 | H44: ASSENTAMENTO DE TUBO DE AÇO CARBONO PARA REDE DE ÁGUA, DN 1200 MM (48) OU DN 1300 MM (52), JUNTA SOLDADA, INSTALADO EM LOCAL COM NÍVEL ALTO DE INTERFERÊNCIAS (NÃO INCLUI FORNECIMENTO). AF_11/2017 | I44: M | J44: COEFICIENTE DE REPRESENTATIVIDADE | K44: 89.81 | L44: CAIXA REFERENCIAL
A45: ASSENTAMENTO DE TUBOS E PECAS | B45: ASTU | C45: FORNEC E/OU ASSENT DE TUBO DE ACO COM JUNTA SOLDADA | D45: 46 | G45: 97179 | H45: ASSENTAMENTO DE TUBO DE AÇO CARBONO PARA REDE DE ÁGUA, DN 1400 MM (56'') OU DN 1500 MM (60), JUNTA SOLDADA, INSTALADO EM LOCAL COM NÍVEL ALTO DE INTERFERÊNCIAS (NÃO INCLUI FORNECIMENTO). AF_11/2017 | I45: M | J45: COEFICIENTE DE REPRESENTATIVIDADE | K45: 103.18 | L45: CAIXA REFERENCIAL
A46: ASSENTAMENTO DE TUBOS E PECAS | B46: ASTU | C46: FORNEC E/OU ASSENT DE TUBO DE ACO COM JUNTA SOLDADA | D46: 46 | G46: 97180 | H46: ASSENTAMENTO DE TUBO DE AÇO CARBONO PARA REDE DE ÁGUA, DN 1600 MM (64) OU DN 1700 MM (68), JUNTA SOLDADA, INSTALADO EM LOCAL COM NÍVEL ALTO DE INTERFERÊNCIAS (NÃO INCLUI FORNECIMENTO). AF_11/2017 | I46: M | J46: COEFICIENTE DE REPRESENTATIVIDADE | K46: 116.55 | L46: CAIXA REFERENCIAL
A47: ASSENTAMENTO DE TUBOS E PECAS | B47: ASTU | C47: FORNEC E/OU ASSENT DE TUBO DE ACO COM JUNTA SOLDADA | D47: 46 | G47: 97181 | H47: ASSENTAMENTO DE TUBO DE AÇO CARBONO PARA REDE DE ÁGUA, DN 1800 MM (72) OU DN 1900 MM (76), JUNTA SOLDADA, INSTALADO EM LOCAL COM NÍVEL ALTO DE INTERFERÊNCIAS (NÃO INCLUI FORNECIMENTO). AF_11/2017 | I47: M | J47: COEFICIENTE DE REPRESENTATIVIDADE | K47: 134.18 | L47: CAIXA REFERENCIAL
A48: ASSENTAMENTO DE TUBOS E PECAS | B48: ASTU | C48: FORNEC E/OU ASSENT DE TUBO DE ACO COM JUNTA SOLDADA | D48: 46 | G48: 97182 | H48: ASSENTAMENTO DE TUBO DE AÇO CARBONO PARA REDE DE ÁGUA, DN 2000 MM (80) OU DN 2100 MM (84), JUNTA SOLDADA, INSTALADO EM LOCAL COM NÍVEL ALTO DE INTERFERÊNCIAS (NÃO INCLUI FORNECIMENTO). AF_11/2017 | I48: M | J48: COEFICIENTE DE REPRESENTATIVIDADE | K48: 147.99 | L48: CAIXA REFERENCIAL
A49: ASSENTAMENTO DE TUBOS E PECAS | B49: ASTU | C49: FORNEC E/OU ASSENT DE TUBO DE ACO COM JUNTA SOLDADA | D49: 46 | G49: 97183 | H49: ASSENTAMENTO DE TUBO DE AÇO CARBONO PARA REDE DE ÁGUA, DN 600 MM (24), JUNTA SOLDADA, INSTALADO EM LOCAL COM NÍVEL BAIXO DE INTERFERÊNCIAS (NÃO INCLUI FORNECIMENTO). AF_11/2017 | I49: M | J49: COEFICIENTE DE REPRESENTATIVIDADE | K49: 34.76 | L49: CAIXA REFERENCIAL
A50: ASSENTAMENTO DE TUBOS E PECAS | B50: ASTU | C50: FORNEC E/OU ASSENT DE TUBO DE ACO COM JUNTA SOLDADA | D50: 46 | G50: 97184 | H50: ASSENTAMENTO DE TUBO DE AÇO CARBONO PARA REDE DE ÁGUA, DN 700 MM (28), JUNTA SOLDADA, INSTALADO EM LOCAL COM NÍVEL BAIXO DE INTERFERÊNCIAS (NÃO INCLUI FORNECIMENTO). AF_11/2017 | I50: M | J50: COEFICIENTE DE REPRESENTATIVIDADE | K50: 40.27 | L50: CAIXA REFERENCIAL
A51: ASSENTAMENTO DE TUBOS E PECAS | B51: ASTU | C51: FORNEC E/OU ASSENT DE TUBO DE ACO COM JUNTA SOLDADA | D51: 46 | G51: 97185 | H51: ASSENTAMENTO DE TUBO DE AÇO CARBONO PARA REDE DE ÁGUA, DN 800 MM (32), JUNTA SOLDADA, INSTALADO EM LOCAL COM NÍVEL BAIXO DE INTERFERÊNCIAS (NÃO INCLUI FORNECIMENTO). AF_11/2017 | I51: M | J51: COEFICIENTE DE REPRESENTATIVIDADE | K51: 45.76 | L51: CAIXA REFERENCIAL
A52: ASSENTAMENTO DE TUBOS E PECAS | B52: ASTU | C52: FORNEC E/OU ASSENT DE TUBO DE ACO COM JUNTA SOLDADA | D52: 46 | G52: 97186 | H52: ASSENTAMENTO DE TUBO DE AÇO CARBONO PARA REDE DE ÁGUA, DN 900 MM (36), JUNTA SOLDADA, INSTALADO EM LOCAL COM NÍVEL BAIXO DE INTERFERÊNCIAS (NÃO INCLUI FORNECIMENTO). AF_11/2017 | I52: M | J52: COEFICIENTE DE REPRESENTATIVIDADE | K52: 51.27 | L52: CAIXA REFERENCIAL
A53: ASSENTAMENTO DE TUBOS E PECAS | B53: ASTU | C53: FORNEC E/OU ASSENT DE TUBO DE ACO COM JUNTA SOLDADA | D53: 46 | G53: 97187 | H53: ASSENTAMENTO DE TUBO DE AÇO CARBONO PARA REDE DE ÁGUA, DN 1000 MM (40 ) OU DN 1100 MM (44 ), JUNTA SOLDADA, INSTALADO EM LOCAL COM NÍVEL BAIXO DE INTERFERÊNCIAS (NÃO INCLUI FORNECIMENTO). AF_11/2017 | I53: M | J53: COEFICIENTE DE REPRESENTATIVIDADE | K53: 62.27 | L53: CAIXA REFERENCIAL
A54: ASSENTAMENTO DE TUBOS E PECAS | B54: ASTU | C54: FORNEC E/OU ASSENT DE TUBO DE ACO COM JUNTA SOLDADA | D54: 46 | G54: 97188 | H54: ASSENTAMENTO DE TUBO DE AÇO CARBONO PARA REDE DE ÁGUA, DN 1200 MM (48) OU DN 1300 MM (52), JUNTA SOLDADA, INSTALADO EM LOCAL COM NÍVEL BAIXO DE INTERFERÊNCIAS (NÃO INCLUI FORNECIMENTO). AF_11/2017 | I54: M | J54: COEFICIENTE DE REPRESENTATIVIDADE | K54: 73.28 | L54: CAIXA REFERENCIAL
A55: ASSENTAMENTO DE TUBOS E PECAS | B55: ASTU | C55: FORNEC E/OU ASSENT DE TUBO DE ACO COM JUNTA SOLDADA | D55: 46 | G55: 97189 | H55: ASSENTAMENTO DE TUBO DE AÇO CARBONO PARA REDE DE ÁGUA, DN 1400 MM (56'') OU DN 1500 MM (60), JUNTA SOLDADA, INSTALADO EM LOCAL COM NÍVEL BAIXO DE INTERFERÊNCIAS (NÃO INCLUI FORNECIMENTO). AF_11/2017 | I55: M | J55: COEFICIENTE DE REPRESENTATIVIDADE | K55: 84.29 | L55: CAIXA REFERENCIAL
A56: ASSENTAMENTO DE TUBOS E PECAS | B56: ASTU | C56: FORNEC E/OU ASSENT DE TUBO DE ACO COM JUNTA SOLDADA | D56: 46 | G56: 97190 | H56: ASSENTAMENTO DE TUBO DE AÇO CARBONO PARA REDE DE ÁGUA, DN 1600 MM (64) OU DN 1700 MM (68), JUNTA SOLDADA, INSTALADO EM LOCAL COM NÍVEL BAIXO DE INTERFERÊNCIAS (NÃO INCLUI FORNECIMENTO). AF_11/2017 | I56: M | J56: COEFICIENTE DE REPRESENTATIVIDADE | K56: 95.29 | L56: CAIXA REFERENCIAL
A57: ASSENTAMENTO DE TUBOS E PECAS | B57: ASTU | C57: FORNEC E/OU ASSENT DE TUBO DE ACO COM JUNTA SOLDADA | D57: 46 | G57: 97191 | H57: ASSENTAMENTO DE TUBO DE AÇO CARBONO PARA REDE DE ÁGUA, DN 1800 MM (72) OU DN 1900 MM (76), JUNTA SOLDADA, INSTALADO EM LOCAL COM NÍVEL BAIXO DE INTERFERÊNCIAS (NÃO INCLUI FORNECIMENTO). AF_11/2017 | I57: M | J57: COEFICIENTE DE REPRESENTATIVIDADE | K57: 109.36 | L57: CAIXA REFERENCIAL
A58: ASSENTAMENTO DE TUBOS E PECAS | B58: ASTU | C58: FORNEC E/OU ASSENT DE TUBO DE ACO COM JUNTA SOLDADA | D58: 46 | G58: 97192 | H58: ASSENTAMENTO DE TUBO DE AÇO CARBONO PARA REDE DE ÁGUA, DN 2000 MM (80) OU DN 2100 MM (84), JUNTA SOLDADA, INSTALADO EM LOCAL COM NÍVEL BAIXO DE INTERFERÊNCIAS (NÃO INCLUI FORNECIMENTO). AF_11/2017 | I58: M | J58: COEFICIENTE DE REPRESENTATIVIDADE | K58: 120.67 | L58: CAIXA REFERENCIAL
A59: ASSENTAMENTO DE TUBOS E PECAS | B59: ASTU | C59: FORNEC E/OU ASSENT DE TUBO DE PVC COM JUNTA ELASTICA | D59: 48 | G59: 90694 | H59: TUBO DE PVC PARA REDE COLETORA DE ESGOTO DE PAREDE MACIÇA, DN 100 MM, JUNTA ELÁSTICA - FORNECIMENTO E ASSENTAMENTO. AF_01/2021 | I59: M | J59: COEFICIENTE DE REPRESENTATIVIDADE | K59: 46.98 | L59: CAIXA REFERENCIAL
A60: ASSENTAMENTO DE TUBOS E PECAS | B60: ASTU | C60: FORNEC E/OU ASSENT DE TUBO DE PVC COM JUNTA ELASTICA | D60: 48 | G60: 90695 | H60: TUBO DE PVC PARA REDE COLETORA DE ESGOTO DE PAREDE MACIÇA, DN 150 MM, JUNTA ELÁSTICA - FORNECIMENTO E ASSENTAMENTO. AF_01/2021 | I60: M | J60: COEFICIENTE DE REPRESENTATIVIDADE | K60: 88.28 | L60: CAIXA REFERENCIAL
A61: ASSENTAMENTO DE TUBOS E PECAS | B61: ASTU | C61: FORNEC E/OU ASSENT DE TUBO DE PVC COM JUNTA ELASTICA | D61: 48 | G61: 90696 | H61: TUBO DE PVC PARA REDE COLETORA DE ESGOTO DE PAREDE MACIÇA, DN 200 MM, JUNTA ELÁSTICA - FORNECIMENTO E ASSENTAMENTO. AF_01/2021 | I61: M | J61: COEFICIENTE DE REPRESENTATIVIDADE | K61: 146.61 | L61: CAIXA REFERENCIAL
A62: ASSENTAMENTO DE TUBOS E PECAS | B62: ASTU | C62: FORNEC E/OU ASSENT DE TUBO DE PVC COM JUNTA ELASTICA | D62: 48 | G62: 90697 | H62: TUBO DE PVC PARA REDE COLETORA DE ESGOTO DE PAREDE MACIÇA, DN 250 MM, JUNTA ELÁSTICA - FORNECIMENTO E ASSENTAMENTO. AF_01/2021 | I62: M | J62: COEFICIENTE DE REPRESENTATIVIDADE | K62: 226.65 | L62: CAIXA REFERENCIAL
A63: ASSENTAMENTO DE TUBOS E PECAS | B63: ASTU | C63: FORNEC E/OU ASSENT DE TUBO DE PVC COM JUNTA ELASTICA | D63: 48 | G63: 90698 | H63: TUBO DE PVC PARA REDE COLETORA DE ESGOTO DE PAREDE MACIÇA, DN 300 MM, JUNTA ELÁSTICA, FORNECIMENTO E ASSENTAMENTO. AF_01/2021 | I63: M | J63: COEFICIENTE DE REPRESENTATIVIDADE | K63: 345.53 | L63: CAIXA REFERENCIAL
A64: ASSENTAMENTO DE TUBOS E PECAS | B64: ASTU | C64: FORNEC E/OU ASSENT DE TUBO DE PVC COM JUNTA ELASTICA | D64: 48 | G64: 90699 | H64: TUBO DE PVC PARA REDE COLETORA DE ESGOTO DE PAREDE MACIÇA, DN 350 MM, JUNTA ELÁSTICA - FORNECIMENTO E ASSENTAMENTO. AF_01/2021 | I64: M | J64: COEFICIENTE DE REPRESENTATIVIDADE | K64: 485.59 | L64: CAIXA REFERENCIAL
A65: ASSENTAMENTO DE TUBOS E PECAS | B65: ASTU | C65: FORNEC E/OU ASSENT DE TUBO DE PVC COM JUNTA ELASTICA | D65: 48 | G65: 90700 | H65: TUBO DE PVC PARA REDE COLETORA DE ESGOTO DE PAREDE MACIÇA, DN 400 MM, JUNTA ELÁSTICA FORNECIMENTO E ASSENTAMENTO. AF_01/2021 | I65: M | J65: COEFICIENTE DE REPRESENTATIVIDADE | K65: 565.57 | L65: CAIXA REFERENCIAL
A66: ASSENTAMENTO DE TUBOS E PECAS | B66: ASTU | C66: FORNEC E/OU ASSENT DE TUBO DE PVC COM JUNTA ELASTICA | D66: 48 | G66: 90701 | H66: TUBO DE PVC CORRUGADO DE DUPLA PAREDE PARA REDE COLETORA DE ESGOTO, DN 150 MM, JUNTA ELÁSTICA - FORNECIMENTO E ASSENTAMENTO. AF_01/2021 | I66: M | J66: COEFICIENTE DE REPRESENTATIVIDADE | K66: 70.3 | L66: CAIXA REFERENCIAL
A67: ASSENTAMENTO DE TUBOS E PECAS | B67: ASTU | C67: FORNEC E/OU ASSENT DE TUBO DE PVC COM JUNTA ELASTICA | D67: 48 | G67: 90702 | H67: TUBO DE PVC CORRUGADO DE DUPLA PAREDE PARA REDE COLETORA DE ESGOTO, DN 200 MM, JUNTA ELÁSTICA - FORNECIMENTO E ASSENTAMENTO. AF_01/2021 | I67: M | J67: COEFICIENTE DE REPRESENTATIVIDADE | K67: 115.35 | L67: CAIXA REFERENCIAL
A68: ASSENTAMENTO DE TUBOS E PECAS | B68: ASTU | C68: FORNEC E/OU ASSENT DE TUBO DE PVC COM JUNTA ELASTICA | D68: 48 | G68: 90703 | H68: TUBO DE PVC CORRUGADO DE DUPLA PAREDE PARA REDE COLETORA DE ESGOTO, DN 250 MM, JUNTA ELÁSTICA - FORNECIMENTO E ASSENTAMENTO. AF_01/2021 | I68: M | J68: COEFICIENTE DE REPRESENTATIVIDADE | K68: 180.34 | L68: CAIXA REFERENCIAL
A69: ASSENTAMENTO DE TUBOS E PECAS | B69: ASTU | C69: FORNEC E/OU ASSENT DE TUBO DE PVC COM JUNTA ELASTICA | D69: 48 | G69: 90704 | H69: TUBO DE PVC CORRUGADO DE DUPLA PAREDE PARA REDE COLETORA DE ESGOTO, DN 300 MM, JUNTA ELÁSTICA - FORNECIMENTO E ASSENTAMENTO. AF_01/2021 | I69: M | J69: COEFICIENTE DE REPRESENTATIVIDADE | K69: 268.28 | L69: CAIXA REFERENCIAL
A70: ASSENTAMENTO DE TUBOS E PECAS | B70: ASTU | C70: FORNEC E/OU ASSENT DE TUBO DE PVC COM JUNTA ELASTICA | D70: 48 | G70: 90705 | H70: TUBO DE PVC CORRUGADO DE DUPLA PAREDE PARA REDE COLETORA DE ESGOTO, DN 350 MM, JUNTA ELÁSTICA - FORNECIMENTO E ASSENTAMENTO. AF_01/2021 | I70: M | J70: COEFICIENTE DE REPRESENTATIVIDADE | K70: 348.08 | L70: CAIXA REFERENCIAL
A71: ASSENTAMENTO DE TUBOS E PECAS | B71: ASTU | C71: FORNEC E/OU ASSENT DE TUBO DE PVC COM JUNTA ELASTICA | D71: 48 | G71: 90706 | H71: TUBO DE PVC CORRUGADO DE DUPLA PAREDE PARA REDE COLETORA DE ESGOTO, DN 400 MM, JUNTA ELÁSTICA - FORNECIMENTO E ASSENTAMENTO. AF_01/2021 | I71: M | J71: COEFICIENTE DE REPRESENTATIVIDADE | K71: 459.5 | L71: CAIXA REFERENCIAL
A72: ASSENTAMENTO DE TUBOS E PECAS | B72: ASTU | C72: FORNEC E/OU ASSENT DE TUBO DE PVC COM JUNTA ELASTICA | D72: 48 | G72: 90708 | H72: TUBO DE PEAD CORRUGADO DE DUPLA PAREDE PARA REDE COLETORA DE ESGOTO, DN 600 MM, JUNTA ELÁSTICA INTEGRADA - FORNECIMENTO E ASSENTAMENTO. AF_01/2021 | I72: M | J72: COEFICIENTE DE REPRESENTATIVIDADE | K72: 824.6 | L72: CAIXA REFERENCIAL
A73: ASSENTAMENTO DE TUBOS E PECAS | B73: ASTU | C73: FORNEC E/OU ASSENT DE TUBO DE PVC COM JUNTA ELASTICA | D73: 48 | G73: 90724 | H73: JUNTA ARGAMASSADA ENTRE TUBO DN 100 MM E O POÇO DE VISITA/ CAIXA DE CONCRETO OU ALVENARIA EM REDES DE ESGOTO. AF_01/2021 | I73: UN | J73: COEFICIENTE DE REPRESENTATIVIDADE | K73: 33.78 | L73: CAIXA REFERENCIAL
A74: ASSENTAMENTO DE TUBOS E PECAS | B74: ASTU | C74: FORNEC E/OU ASSENT DE TUBO DE PVC COM JUNTA ELASTICA | D74: 48 | G74: 90725 | H74: JUNTA ARGAMASSADA ENTRE TUBO DN 150 MM E O POÇO DE VISITA/ CAIXA DE CONCRETO OU ALVENARIA EM REDES DE ESGOTO. AF_01/2021 | I74: UN | J74: COEFICIENTE DE REPRESENTATIVIDADE | K74: 41.5 | L74: CAIXA REFERENCIAL
A75: ASSENTAMENTO DE TUBOS E PECAS | B75: ASTU | C75: FORNEC E/OU ASSENT DE TUBO DE PVC COM JUNTA ELASTICA | D75: 48 | G75: 90726 | H75: JUNTA ARGAMASSADA ENTRE TUBO DN 200 MM E O POÇO/ CAIXA DE CONCRETO OU ALVENARIA EM REDES DE ESGOTO. AF_01/2021 | I75: UN | J75: COEFICIENTE DE REPRESENTATIVIDADE | K75: 49.29 | L75: CAIXA REFERENCIAL
A76: ASSENTAMENTO DE TUBOS E PECAS | B76: ASTU | C76: FORNEC E/OU ASSENT DE TUBO DE PVC COM JUNTA ELASTICA | D76: 48 | G76: 90727 | H76: JUNTA ARGAMASSADA ENTRE TUBO DN 250 MM E O POÇO DE VISITA/ CAIXA DE CONCRETO OU ALVENARIA EM REDES DE ESGOTO. AF_01/2021 | I76: UN | J76: COEFICIENTE DE REPRESENTATIVIDADE | K76: 57.02 | L76: CAIXA REFERENCIAL
A77: ASSENTAMENTO DE TUBOS E PECAS | B77: ASTU | C77: FORNEC E/OU ASSENT DE TUBO DE PVC COM JUNTA ELASTICA | D77: 48 | G77: 90728 | H77: JUNTA ARGAMASSADA ENTRE TUBO DN 300 MM E O POÇO DE VISITA/ CAIXA DE CONCRETO OU ALVENARIA EM REDES DE ESGOTO. AF_01/2021 | I77: UN | J77: COEFICIENTE DE REPRESENTATIVIDADE | K77: 64.74 | L77: CAIXA REFERENCIAL
A78: ASSENTAMENTO DE TUBOS E PECAS | B78: ASTU | C78: FORNEC E/OU ASSENT DE TUBO DE PVC COM JUNTA ELASTICA | D78: 48 | G78: 90729 | H78: JUNTA ARGAMASSADA ENTRE TUBO DN 350 MM E O POÇO DE VISITA/ CAIXA DE CONCRETO OU ALVENARIA EM REDES DE ESGOTO. AF_01/2021 | I78: UN | J78: COEFICIENTE DE REPRESENTATIVIDADE | K78: 72.46 | L78: CAIXA REFERENCIAL
A79: ASSENTAMENTO DE TUBOS E PECAS | B79: ASTU | C79: FORNEC E/OU ASSENT DE TUBO DE PVC COM JUNTA ELASTICA | D79: 48 | G79: 90730 | H79: JUNTA ARGAMASSADA ENTRE TUBO DN 400 MM E O POÇO DE VISITA/ CAIXA DE CONCRETO OU ALVENARIA EM REDES DE ESGOTO. AF_01/2021 | I79: UN | J79: COEFICIENTE DE REPRESENTATIVIDADE | K79: 80.19 | L79: CAIXA REFERENCIAL
